Workbook

Sheet Table of Contents
C1: Go to Charts by Pressing Shift and Enter on Menu Item
C3: Sheet Tab | D3: Description | E3: Author
B4: 1 | C4: Table of Contents
B5: 2 | C5: Periodic Model
B6: 3 | C6: Standalone Case
B7: 4 | C7: LBO Summary
B8: 5 | C8: Transaction and Pro-forma
B9: 6 | C9: LBO Model
B10: 7 | C10: Annual
B11: 8 | C11: Quarterly and Annual
B12: 9 | C12: Standalone Annual
B13: 10 | C13: Prep Course Model
B14: 11 | C14: Total Returns Chart
B15: 12 | C15: Equity Returns Chart
B16: 13 | C16: Functions

Sheet Standalone Case
BZ1: a
E2: Mnts/Period | BZ2: a | CA2: 2016 | CB2: =CA2+1 -> 2017 | CC2: 2018 | CD2: 2019 | CE2: 2020 | CF2: 2021 | CG2: 2022 | CH2: 2023 | CI2: 2024 | CJ2: 2025 | CK2: 2026 | CL2: 2027
A3: Begining Period | E3: 3 | G3: 2016-01-01 | H3: =EDATE(G3,$E$3) -> 2016-04-01 | I3: =EDATE(H3,$E$3) -> 2016-07-01 | J3: 2016-10-01 | K3: 2017-01-01 | L3: 2017-04-01 | M3: 2017-07-01 | N3: 2017-10-01 | O3: 2018-01-01 | P3: 2018-04-01 | Q3: 2018-07-01 | R3: 2018-10-01 | S3: 2019-01-01 | T3: 2019-04-01 | U3: 2019-07-01 | V3: 2019-10-01 | W3: 2020-01-01 | X3: 2020-04-01 | Y3: 2020-07-01 | Z3: 2020-10-01 | AA3: 2021-01-01 | AB3: 2021-04-01 | AC3: 2021-07-01 | AD3: 2021-10-01 | AE3: 2022-01-01 | AF3: 2022-04-01 | AG3: 2022-07-01 | AH3: 2022-10-01 | AI3: 2023-01-01 | AJ3: 2023-04-01 | AK3: 2023-07-01 | AL3: 2023-10-01 | AM3: 2024-01-01 | AN3: 2024-04-01 | AO3: 2024-07-01 | AP3: 2024-10-01 | AQ3: 2025-01-01 | AR3: 2025-04-01 | AS3: 2025-07-01 | AT3: 2025-10-01 | AU3: 2026-01-01 | AV3: 2026-04-01 | AW3: 2026-07-01 | AX3: 2026-10-01 | AY3: 2027-01-01 | AZ3: 2027-04-01 | BA3: 2027-07-01 | BB3: 2027-10-01 | BC3: 2028-01-01 | BD3: 2028-04-01 | BE3: 2028-07-01 | BF3: 2028-10-01 | BG3: 2029-01-01 | BH3: 2029-04-01 | BI3: 2029-07-01 | BJ3: 2029-10-01 | BK3: 2030-01-01 | BL3: 2030-04-01 | BM3: 2030-07-01 | BN3: 2030-10-01 | BO3: 2031-01-01 | BP3: 2031-04-01 | BQ3: 2031-07-01 | BR3: 2031-10-01 | BS3: 2032-01-01 | BT3: 2032-04-01 | BU3: =EDATE(BT3,$E$3) -> 2032-07-01 | BV3: =EDATE(BU3,$E$3) -> 2032-10-01 | BW3: =EDATE(BV3,$E$3) -> 2033-01-01 | BX3: =EDATE(BW3,$E$3) -> 2033-04-01 | BY3: =EDATE(BX3,$E$3) -> 2033-07-01 | BZ3: a
A4: End Period | G4: =EOMONTH(G3,2) -> 2016-03-31 | H4: =EOMONTH(H3,2) -> 2016-06-30 | I4: 2016-09-30 | J4: 2016-12-31 | K4: 2017-03-31 | L4: 2017-06-30 | M4: 2017-09-30 | N4: 2017-12-31 | O4: 2018-03-31 | P4: 2018-06-30 | Q4: 2018-09-30 | R4: 2018-12-31 | S4: 2019-03-31 | T4: 2019-06-30 | U4: 2019-09-30 | V4: 2019-12-31 | W4: 2020-03-31 | X4: 2020-06-30 | Y4: 2020-09-30 | Z4: 2020-12-31 | AA4: 2021-03-31 | AB4: 2021-06-30 | AC4: 2021-09-30 | AD4: 2021-12-31 | AE4: 2022-03-31 | AF4: 2022-06-30 | AG4: 2022-09-30 | AH4: 2022-12-31 | AI4: 2023-03-31 | AJ4: 2023-06-30 | AK4: 2023-09-30 | AL4: 2023-12-31 | AM4: 2024-03-31 | AN4: 2024-06-30 | AO4: 2024-09-30 | AP4: 2024-12-31 | AQ4: 2025-03-31 | AR4: 2025-06-30 | AS4: 2025-09-30 | AT4: 2025-12-31 | AU4: 2026-03-31 | AV4: 2026-06-30 | AW4: 2026-09-30 | AX4: 2026-12-31 | AY4: 2027-03-31 | AZ4: 2027-06-30 | BA4: 2027-09-30 | BB4: 2027-12-31 | BC4: 2028-03-31 | BD4: 2028-06-30 | BE4: 2028-09-30 | BF4: 2028-12-31 | BG4: 2029-03-31 | BH4: 2029-06-30 | BI4: 2029-09-30 | BJ4: 2029-12-31 | BK4: 2030-03-31 | BL4: 2030-06-30 | BM4: 2030-09-30 | BN4: 2030-12-31 | BO4: 2031-03-31 | BP4: 2031-06-30 | BQ4: 2031-09-30 | BR4: 2031-12-31 | BS4: 2032-03-31 | BT4: =EOMONTH(BT3,2) -> 2032-06-30 | BU4: 2032-09-30 | BV4: 2032-12-31 | BW4: 2033-03-31 | BX4: 2033-06-30 | BY4: 2033-09-30 | BZ4: a
A5: Year | F5: 2016 | G5: =YEAR(G3) -> 2016 | H5: =YEAR(H3) -> 2016 | I5: 2016 | J5: 2016 | K5: 2017 | L5: 2017 | M5: 2017 | N5: 2017 | O5: 2018 | P5: 2018 | Q5: 2018 | R5: 2018 | S5: 2019 | T5: 2019 | U5: 2019 | V5: 2019 | W5: 2020 | X5: 2020 | Y5: 2020 | Z5: 2020 | AA5: 2021 | AB5: 2021 | AC5: 2021 | AD5: 2021 | AE5: 2022 | AF5: 2022 | AG5: 2022 | AH5: 2022 | AI5: 2023 | AJ5: 2023 | AK5: 2023 | AL5: 2023 | AM5: 2024 | AN5: 2024 | AO5: 2024 | AP5: 2024 | AQ5: 2025 | AR5: 2025 | AS5: 2025 | AT5: 2025 | AU5: 2026 | AV5: 2026 | AW5: 2026 | AX5: 2026 | AY5: 2027 | AZ5: 2027 | BA5: 2027 | BB5: 2027 | BC5: 2028 | BD5: 2028 | BE5: 2028 | BF5: 2028 | BG5: 2029 | BH5: 2029 | BI5: 2029 | BJ5: 2029 | BK5: 2030 | BL5: 2030 | BM5: 2030 | BN5: 2030 | BO5: 2031 | BP5: 2031 | BQ5: 2031 | BR5: 2031 | BS5: 2032 | BT5: =YEAR(BT3) -> 2032 | BU5: 2032 | BV5: 2032 | BW5: 2033 | BX5: 2033 | BY5: 2033 | BZ5: a
A6: Quarter | G6: =ROUNDUP(MONTH(G3)/3,0) -> 1 | H6: =ROUNDUP(MONTH(H3)/3,0) -> 2 | I6: 3 | J6: 4 | K6: 1 | L6: 2 | M6: 3 | N6: 4 | O6: 1 | P6: 2 | Q6: 3 | R6: 4 | S6: 1 | T6: 2 | U6: 3 | V6: 4 | W6: 1 | X6: 2 | Y6: 3 | Z6: 4 | AA6: 1 | AB6: 2 | AC6: 3 | AD6: 4 | AE6: 1 | AF6: 2 | AG6: 3 | AH6: 4 | AI6: 1 | AJ6: 2 | AK6: 3 | AL6: 4 | AM6: 1 | AN6: 2 | AO6: 3 | AP6: 4 | AQ6: 1 | AR6: 2 | AS6: 3 | AT6: 4 | AU6: 1 | AV6: 2 | AW6: 3 | AX6: 4 | AY6: 1 | AZ6: 2 | BA6: 3 | BB6: 4 | BC6: 1 | BD6: 2 | BE6: 3 | BF6: 4 | BG6: 1 | BH6: 2 | BI6: 3 | BJ6: 4 | BK6: 1 | BL6: 2 | BM6: 3 | BN6: 4 | BO6: 1 | BP6: 2 | BQ6: 3 | BR6: 4 | BS6: 1 | BT6: =ROUNDUP(MONTH(BT3)/3,0) -> 2 | BU6: 3 | BV6: 4 | BW6: 1 | BX6: 2 | BY6: 3 | BZ6: a
A7: Counter | G7: =IF(G5<>F5,F7+2,F7+1) -> 1 | H7: =IF(H5<>G5,G7+2,G7+1) -> 2 | I7: 3 | J7: 4 | K7: 6 | L7: 7 | M7: 8 | N7: 9 | O7: 11 | P7: 12 | Q7: 13 | R7: 14 | S7: 16 | T7: 17 | U7: 18 | V7: 19 | W7: 21 | X7: 22 | Y7: 23 | Z7: 24 | AA7: 26 | AB7: 27 | AC7: 28 | AD7: 29 | AE7: 31 | AF7: 32 | AG7: 33 | AH7: 34 | AI7: 36 | AJ7: 37 | AK7: 38 | AL7: 39 | AM7: 41 | AN7: 42 | AO7: 43 | AP7: 44 | AQ7: 46 | AR7: 47 | AS7: 48 | AT7: 49 | AU7: 51 | AV7: 52 | AW7: 53 | AX7: 54 | AY7: 56 | AZ7: 57 | BA7: 58 | BB7: 59 | BC7: 61 | BD7: 62 | BE7: 63 | BF7: 64 | BG7: 66 | BH7: 67 | BI7: 68 | BJ7: 69 | BK7: 71 | BL7: 72 | BM7: 73 | BN7: 74 | BO7: 76 | BP7: 77 | BQ7: 78 | BR7: 79 | BS7: 81 | BT7: =IF(BT5<>BS5,BS7+2,BS7+1) -> 82 | BU7: 83 | BV7: 84 | BW7: 86 | BX7: 87 | BY7: 88 | BZ7: a | CA7: 5 | CB7: =CA7+5 -> 10 | CC7: 15 | CD7: 20 | CE7: 25 | CF7: 30 | CG7: 35 | CH7: 40 | CI7: 45 | CJ7: 50 | CK7: 55 | CL7: 60
A8: End of Year | G8: =G6=4 -> FALSE | H8: =H6=4 -> FALSE | I8: FALSE | J8: TRUE | K8: FALSE | L8: FALSE | M8: FALSE | N8: TRUE | O8: FALSE | P8: FALSE | Q8: FALSE | R8: TRUE | S8: FALSE | T8: FALSE | U8: FALSE | V8: TRUE | W8: FALSE | X8: FALSE | Y8: FALSE | Z8: TRUE | AA8: FALSE | AB8: FALSE | AC8: FALSE | AD8: TRUE | AE8: FALSE | AF8: FALSE | AG8: FALSE | AH8: TRUE | AI8: FALSE | AJ8: FALSE | AK8: FALSE | AL8: TRUE | AM8: FALSE | AN8: FALSE | AO8: FALSE | AP8: TRUE | AQ8: FALSE | AR8: FALSE | AS8: FALSE | AT8: TRUE | AU8: FALSE | AV8: FALSE | AW8: FALSE | AX8: TRUE | AY8: FALSE | AZ8: FALSE | BA8: FALSE | BB8: TRUE | BC8: FALSE | BD8: FALSE | BE8: FALSE | BF8: TRUE | BG8: FALSE | BH8: FALSE | BI8: FALSE | BJ8: TRUE | BK8: FALSE | BL8: FALSE | BM8: FALSE | BN8: TRUE | BO8: FALSE | BP8: FALSE | BQ8: FALSE | BR8: TRUE | BS8: FALSE | BT8: =BT6=4 -> FALSE | BU8: FALSE | BV8: TRUE | BW8: FALSE | BX8: FALSE | BY8: FALSE | BZ8: a
BZ9: a
A10: Operating Assumptions | BZ10: a
B11: Revenues | E11: 1 | G11: 2016 | H11: 2017 | I11: 2018 | J11: 2019 | K11: 2020 | BZ11: a
C12: Base | F12: 0.1 | G12: 300 | H12: =G12*(1+$F12) -> 330 | I12: =H12*(1+$F12) -> 363 | J12: =I12*(1+$F12) -> 399.3 | K12: =J12*(1+$F12) -> 439.23 | BZ12: a
C13: Low | F13: 0.05 | G13: 250 | H13: =G13*(1+$F13) -> 262.5 | I13: 275.625 | J13: 289.40625 | K13: 303.8765625 | BZ13: a
C14: High | F14: -0.02 | G14: 240 | H14: 235.2 | I14: 230.496 | J14: 225.88608 | K14: 221.3683584 | BZ14: a
BZ15: a
C16: =INDEX(C12:C14,$E$11) -> Base | G16: =INDEX(G12:G14,$E$11) -> 300 | H16: =INDEX(H12:H14,$E$11) -> 330 | I16: =INDEX(I12:I14,$E$11) -> 363 | J16: =INDEX(J12:J14,$E$11) -> 399.3 | K16: =INDEX(K12:K14,$E$11) -> 439.23 | BZ16: a
BZ17: a
B18: Other Assumptions | G18: =G11 -> 2016 | H18: =H11 -> 2017 | I18: 2018 | J18: 2019 | K18: 2020 | BZ18: a
C19: A/R Days Outstanding | G19: 250 | H19: 180 | I19: 150 | J19: 100 | K19: 103 | BZ19: a
C20: A/R Collected This Period | G20: =MAX((90-G19)/90,0) -> 0 | H20: =MAX((90-H19)/90,0) -> 0 | I20: 0 | J20: 0 | K20: 0 | BZ20: a
C21: A/R Percent Next Quarter | G21: =MAX(MIN((180-G19)/90,1-G20),0) -> 0 | H21: =MAX(MIN((180-H19)/90,1-H20),0) -> 0 | I21: 0.3333333333 | J21: 0.8888888889 | K21: 0.8555555556 | BZ21: a
C22: A/R Percent Two Quarters | G22: =MAX(MIN((270-G19)/90-G21,1-G21-G20),0) -> 0.2222222222 | H22: =MAX(MIN((270-H19)/90-H21,1-H21-H20),0) -> 1 | I22: 0.6666666667 | J22: 0.1111111111 | K22: 0.1444444444 | BZ22: a
C23: A/R Percent Three Quarters | G23: =1-G22-G21-G20 -> 0.7777777778 | H23: =1-H22-H21-H20 -> 0 | I23: -5.551115123e-17 | J23: 0 | K23: 0 | BZ23: a
BZ24: a
C25: COGS Percent | E25: 73 | G25: =E25/100 -> 0.73 | H25: 0.8 | I25: =H25 -> 0.8 | J25: =I25 -> 0.8 | K25: =J25 -> 0.8 | BZ25: a
C26: R&D Expenditure | F26: -0.05 | G26: 30 | H26: 10 | I26: =H26*(1+$F$26) -> 9.5 | J26: =I26*(1+$F$26) -> 9.025 | K26: =J26*(1+$F$26) -> 8.57375 | BZ26: a
BZ27: a
B28: Revenue Seasonality | G28: 1 | H28: 2 | I28: 3 | J28: 4 | BZ28: a
C29: Percent | G29: 0.05 | H29: 0.2 | I29: 0.3 | J29: 0.45 | BZ29: a
BZ30: a
A31: Tax and Depreciation | BZ31: a
B32: Depreciation Life | E32: Years | F32: 7 | BZ32: a
B33: Income Tax Rate | E33: Percent | F33: 0.25 | BZ33: a
BZ34: a
A35: Financing Assumptions | BZ35: a
B36: Revolver | BZ36: a
C37: Commitment | F37: 400 | BZ37: a
C38: Interest Rate | F38: 0.05 | BZ38: a
C39: Commitment Fee | F39: 0.025 | BZ39: a
C40: Upfront Fee | F40: 0.01 | BZ40: a
J41: Margin | K41: =G25 -> 0.73 | BZ41: a
B42: Valuation Assumtions | BZ42: a
C43: WACC | F43: 0.07 | BZ43: a
C44: Terminal EV/EBITDA | F44: 5 | BZ44: a
C45: Terminal Year | BZ45: a
BZ46: a
A47: Starting Balance Sheet | BZ47: a
B48: Cash | F48: 30 | BZ48: a
BZ49: a
B50: Debt | F50: 0 | BZ50: a
B51: Equity | F51: =F48-F50 -> 30 | BZ51: a
C52: Total | F52: =SUM(F50:F51) -> 30 | BZ52: a
BZ53: a
BZ54: a
A55: Operating Analysis
B56: LBO Period | G56: =G3>='LBO Model'!$G$3 -> FALSE | H56: =H3>='LBO Model'!$G$3 -> FALSE | I56: =I3>='LBO Model'!$G$3 -> FALSE | J56: =J3>='LBO Model'!$G$3 -> FALSE | K56: =K3>='LBO Model'!$G$3 -> FALSE | L56: =L3>='LBO Model'!$G$3 -> FALSE | M56: =M3>='LBO Model'!$G$3 -> FALSE | N56: =N3>='LBO Model'!$G$3 -> FALSE | O56: =O3>='LBO Model'!$G$3 -> TRUE | P56: =P3>='LBO Model'!$G$3 -> TRUE | Q56: =Q3>='LBO Model'!$G$3 -> TRUE | R56: =R3>='LBO Model'!$G$3 -> TRUE | S56: =S3>='LBO Model'!$G$3 -> TRUE | T56: =T3>='LBO Model'!$G$3 -> TRUE | U56: =U3>='LBO Model'!$G$3 -> TRUE | V56: =V3>='LBO Model'!$G$3 -> TRUE | W56: =W3>='LBO Model'!$G$3 -> TRUE | X56: =X3>='LBO Model'!$G$3 -> TRUE | Y56: =Y3>='LBO Model'!$G$3 -> TRUE | Z56: =Z3>='LBO Model'!$G$3 -> TRUE | AA56: =AA3>='LBO Model'!$G$3 -> TRUE | AB56: =AB3>='LBO Model'!$G$3 -> TRUE | AC56: =AC3>='LBO Model'!$G$3 -> TRUE | AD56: =AD3>='LBO Model'!$G$3 -> TRUE | AE56: =AE3>='LBO Model'!$G$3 -> TRUE | AF56: =AF3>='LBO Model'!$G$3 -> TRUE | AG56: =AG3>='LBO Model'!$G$3 -> TRUE | AH56: =AH3>='LBO Model'!$G$3 -> TRUE | AI56: =AI3>='LBO Model'!$G$3 -> TRUE | AJ56: =AJ3>='LBO Model'!$G$3 -> TRUE | AK56: =AK3>='LBO Model'!$G$3 -> TRUE | AL56: =AL3>='LBO Model'!$G$3 -> TRUE | AM56: =AM3>='LBO Model'!$G$3 -> TRUE | AN56: =AN3>='LBO Model'!$G$3 -> TRUE | AO56: =AO3>='LBO Model'!$G$3 -> TRUE | AP56: =AP3>='LBO Model'!$G$3 -> TRUE | AQ56: =AQ3>='LBO Model'!$G$3 -> TRUE | AR56: =AR3>='LBO Model'!$G$3 -> TRUE | AS56: =AS3>='LBO Model'!$G$3 -> TRUE | AT56: =AT3>='LBO Model'!$G$3 -> TRUE | AU56: =AU3>='LBO Model'!$G$3 -> TRUE | AV56: =AV3>='LBO Model'!$G$3 -> TRUE | AW56: =AW3>='LBO Model'!$G$3 -> TRUE | AX56: =AX3>='LBO Model'!$G$3 -> TRUE | AY56: =AY3>='LBO Model'!$G$3 -> TRUE | AZ56: =AZ3>='LBO Model'!$G$3 -> TRUE | BA56: =BA3>='LBO Model'!$G$3 -> TRUE | BB56: =BB3>='LBO Model'!$G$3 -> TRUE | BC56: =BC3>='LBO Model'!$G$3 -> TRUE | BD56: =BD3>='LBO Model'!$G$3 -> TRUE | BE56: =BE3>='LBO Model'!$G$3 -> TRUE | BF56: =BF3>='LBO Model'!$G$3 -> TRUE | BG56: =BG3>='LBO Model'!$G$3 -> TRUE | BH56: =BH3>='LBO Model'!$G$3 -> TRUE | BI56: =BI3>='LBO Model'!$G$3 -> TRUE | BJ56: =BJ3>='LBO Model'!$G$3 -> TRUE | BK56: =BK3>='LBO Model'!$G$3 -> TRUE | BL56: =BL3>='LBO Model'!$G$3 -> TRUE | BM56: =BM3>='LBO Model'!$G$3 -> TRUE | BN56: =BN3>='LBO Model'!$G$3 -> TRUE | BO56: =BO3>='LBO Model'!$G$3 -> TRUE | BP56: =BP3>='LBO Model'!$G$3 -> TRUE | BQ56: =BQ3>='LBO Model'!$G$3 -> TRUE | BR56: =BR3>='LBO Model'!$G$3 -> TRUE | BS56: =BS3>='LBO Model'!$G$3 -> TRUE | BT56: =BT3>='LBO Model'!$G$3 -> TRUE | BU56: =BU3>='LBO Model'!$G$3 -> TRUE | BV56: =BV3>='LBO Model'!$G$3 -> TRUE | BW56: =BW3>='LBO Model'!$G$3 -> TRUE | BX56: =BX3>='LBO Model'!$G$3 -> TRUE | BY56: =BY3>='LBO Model'!$G$3 -> TRUE
B57: Revenues / Annual - Base | G57: =LOOKUP(G5,11:11,12:12) -> 300 | H57: =LOOKUP(H5,11:11,12:12) -> 300 | I57: 300 | J57: 300 | K57: 330 | L57: 330 | M57: 330 | N57: 330 | O57: 363 | P57: 363 | Q57: 363 | R57: 363 | S57: 399.3 | T57: 399.3 | U57: 399.3 | V57: 399.3 | W57: 439.23 | X57: 439.23 | Y57: 439.23 | Z57: 439.23 | AA57: 439.23 | AB57: 439.23 | AC57: 439.23 | AD57: 439.23 | AE57: 439.23 | AF57: 439.23 | AG57: 439.23 | AH57: 439.23 | AI57: 439.23 | AJ57: 439.23 | AK57: 439.23 | AL57: 439.23 | AM57: 439.23 | AN57: 439.23 | AO57: 439.23 | AP57: 439.23 | AQ57: 439.23 | AR57: 439.23 | AS57: 439.23 | AT57: 439.23 | AU57: 439.23 | AV57: 439.23 | AW57: 439.23 | AX57: 439.23 | AY57: 439.23 | AZ57: 439.23 | BA57: 439.23 | BB57: 439.23 | BC57: 439.23 | BD57: 439.23 | BE57: 439.23 | BF57: 439.23 | BG57: 439.23 | BH57: 439.23 | BI57: 439.23 | BJ57: 439.23 | BK57: 439.23 | BL57: 439.23 | BM57: 439.23 | BN57: 439.23 | BO57: 439.23 | BP57: 439.23 | BQ57: 439.23 | BR57: 439.23 | BS57: 439.23 | BT57: =LOOKUP(BT5,11:11,12:12) -> 439.23 | BU57: 439.23 | BV57: 439.23 | BW57: 439.23 | BX57: 439.23 | BY57: 439.23
B58: Revenues / Annual - Sensitivity | G58: =LOOKUP(G5,11:11,16:16) -> 300 | H58: =LOOKUP(H5,11:11,16:16) -> 300 | I58: 300 | J58: 300 | K58: 330 | L58: 330 | M58: 330 | N58: 330 | O58: 363 | P58: 363 | Q58: 363 | R58: 363 | S58: 399.3 | T58: 399.3 | U58: 399.3 | V58: 399.3 | W58: 439.23 | X58: 439.23 | Y58: 439.23 | Z58: 439.23 | AA58: 439.23 | AB58: 439.23 | AC58: 439.23 | AD58: 439.23 | AE58: 439.23 | AF58: 439.23 | AG58: 439.23 | AH58: 439.23 | AI58: 439.23 | AJ58: 439.23 | AK58: 439.23 | AL58: 439.23 | AM58: 439.23 | AN58: 439.23 | AO58: 439.23 | AP58: 439.23 | AQ58: 439.23 | AR58: 439.23 | AS58: 439.23 | AT58: 439.23 | AU58: 439.23 | AV58: 439.23 | AW58: 439.23 | AX58: 439.23 | AY58: 439.23 | AZ58: 439.23 | BA58: 439.23 | BB58: 439.23 | BC58: 439.23 | BD58: 439.23 | BE58: 439.23 | BF58: 439.23 | BG58: 439.23 | BH58: 439.23 | BI58: 439.23 | BJ58: 439.23 | BK58: 439.23 | BL58: 439.23 | BM58: 439.23 | BN58: 439.23 | BO58: 439.23 | BP58: 439.23 | BQ58: 439.23 | BR58: 439.23 | BS58: 439.23 | BT58: =LOOKUP(BT5,11:11,16:16) -> 439.23 | BU58: 439.23 | BV58: 439.23 | BW58: 439.23 | BX58: 439.23 | BY58: 439.23
B59: Revenues Applied | G59: =IF(G56,G58,G57) -> 300 | H59: =IF(H56,H58,H57) -> 300 | I59: 300 | J59: 300 | K59: 330 | L59: 330 | M59: 330 | N59: 330 | O59: 363 | P59: 363 | Q59: 363 | R59: 363 | S59: 399.3 | T59: 399.3 | U59: 399.3 | V59: 399.3 | W59: 439.23 | X59: 439.23 | Y59: 439.23 | Z59: 439.23 | AA59: 439.23 | AB59: 439.23 | AC59: 439.23 | AD59: 439.23 | AE59: 439.23 | AF59: 439.23 | AG59: 439.23 | AH59: 439.23 | AI59: 439.23 | AJ59: 439.23 | AK59: 439.23 | AL59: 439.23 | AM59: 439.23 | AN59: 439.23 | AO59: 439.23 | AP59: 439.23 | AQ59: 439.23 | AR59: 439.23 | AS59: 439.23 | AT59: 439.23 | AU59: 439.23 | AV59: 439.23 | AW59: 439.23 | AX59: 439.23 | AY59: 439.23 | AZ59: 439.23 | BA59: 439.23 | BB59: 439.23 | BC59: 439.23 | BD59: 439.23 | BE59: 439.23 | BF59: 439.23 | BG59: 439.23 | BH59: 439.23 | BI59: 439.23 | BJ59: 439.23 | BK59: 439.23 | BL59: 439.23 | BM59: 439.23 | BN59: 439.23 | BO59: 439.23 | BP59: 439.23 | BQ59: 439.23 | BR59: 439.23 | BS59: 439.23 | BT59: =IF(BT56,BT58,BT57) -> 439.23 | BU59: 439.23 | BV59: 439.23 | BW59: 439.23 | BX59: 439.23 | BY59: 439.23
B60: Seasonal Factor | G60: =LOOKUP(G6,28:28,29:29) -> 0.05 | H60: 0.2 | I60: 0.3 | J60: 0.45 | K60: 0.05 | L60: 0.2 | M60: 0.3 | N60: 0.45 | O60: 0.05 | P60: 0.2 | Q60: 0.3 | R60: 0.45 | S60: 0.05 | T60: 0.2 | U60: 0.3 | V60: 0.45 | W60: 0.05 | X60: 0.2 | Y60: 0.3 | Z60: 0.45 | AA60: 0.05 | AB60: 0.2 | AC60: 0.3 | AD60: 0.45 | AE60: 0.05 | AF60: 0.2 | AG60: 0.3 | AH60: 0.45 | AI60: 0.05 | AJ60: 0.2 | AK60: 0.3 | AL60: 0.45 | AM60: =LOOKUP(AM6,28:28,29:29) -> 0.05 | AN60: 0.2 | AO60: 0.3 | AP60: 0.45 | AQ60: 0.05 | AR60: 0.2 | AS60: 0.3 | AT60: 0.45 | AU60: 0.05 | AV60: 0.2 | AW60: 0.3 | AX60: 0.45 | AY60: 0.05 | AZ60: 0.2 | BA60: 0.3 | BB60: 0.45 | BC60: 0.05 | BD60: 0.2 | BE60: 0.3 | BF60: 0.45 | BG60: 0.05 | BH60: 0.2 | BI60: 0.3 | BJ60: 0.45 | BK60: 0.05 | BL60: 0.2 | BM60: 0.3 | BN60: 0.45 | BO60: 0.05 | BP60: 0.2 | BQ60: 0.3 | BR60: 0.45 | BS60: =LOOKUP(BS6,28:28,29:29) -> 0.05 | BT60: 0.2 | BU60: 0.3 | BV60: 0.45 | BW60: 0.05 | BX60: 0.2 | BY60: 0.3 | CA60: =SUMIF($5:$5,CA$2,60:60) -> 1 | CB60: 1 | CC60: 1 | CD60: 1 | CE60: 1 | CF60: 1 | CG60: 1 | CH60: 1 | CI60: 1 | CJ60: 1 | CK60: 1 | CL60: 1
B61: Quartely Revenues | G61: =G59*G60 -> 15 | H61: =H59*H60 -> 60 | I61: 90 | J61: 135 | K61: 16.5 | L61: 66 | M61: 99 | N61: 148.5 | O61: 18.15 | P61: 72.6 | Q61: 108.9 | R61: 163.35 | S61: 19.965 | T61: 79.86 | U61: 119.79 | V61: 179.685 | W61: 21.9615 | X61: 87.846 | Y61: 131.769 | Z61: 197.6535 | AA61: 21.9615 | AB61: 87.846 | AC61: 131.769 | AD61: 197.6535 | AE61: 21.9615 | AF61: 87.846 | AG61: 131.769 | AH61: 197.6535 | AI61: 21.9615 | AJ61: 87.846 | AK61: 131.769 | AL61: 197.6535 | AM61: 21.9615 | AN61: 87.846 | AO61: 131.769 | AP61: 197.6535 | AQ61: 21.9615 | AR61: 87.846 | AS61: 131.769 | AT61: 197.6535 | AU61: 21.9615 | AV61: 87.846 | AW61: 131.769 | AX61: 197.6535 | AY61: 21.9615 | AZ61: 87.846 | BA61: 131.769 | BB61: 197.6535 | BC61: 21.9615 | BD61: 87.846 | BE61: 131.769 | BF61: 197.6535 | BG61: 21.9615 | BH61: 87.846 | BI61: 131.769 | BJ61: 197.6535 | BK61: 21.9615 | BL61: 87.846 | BM61: 131.769 | BN61: 197.6535 | BO61: 21.9615 | BP61: 87.846 | BQ61: 131.769 | BR61: 197.6535 | BS61: 21.9615 | BT61: =BT59*BT60 -> 87.846 | BU61: 131.769 | BV61: 197.6535 | BW61: 21.9615 | BX61: 87.846 | BY61: 131.769 | CA61: 0 | CB61: 0 | CC61: 0 | CD61: 0 | CE61: 0 | CF61: 0 | CG61: 0 | CH61: 0 | CI61: 0 | CJ61: 0 | CK61: 0 | CL61: 0
B63: Margin | G63: =IF(G56,$G$25,$H$25) -> 0.8 | H63: 0.8 | I63: 0.8 | J63: 0.8 | K63: 0.8 | L63: 0.8 | M63: 0.8 | N63: 0.8 | O63: 0.73 | P63: 0.73 | Q63: 0.73 | R63: 0.73 | S63: 0.73 | T63: 0.73 | U63: 0.73 | V63: 0.73 | W63: 0.73 | X63: 0.73 | Y63: 0.73 | Z63: 0.73 | AA63: 0.73 | AB63: 0.73 | AC63: 0.73 | AD63: 0.73 | AE63: 0.73 | AF63: 0.73 | AG63: 0.73 | AH63: 0.73 | AI63: 0.73 | AJ63: 0.73 | AK63: 0.73 | AL63: 0.73 | AM63: =IF(AM56,$G$25,$H$25) -> 0.73 | AN63: 0.73 | AO63: 0.73 | AP63: 0.73 | AQ63: 0.73 | AR63: 0.73 | AS63: 0.73 | AT63: 0.73 | AU63: 0.73 | AV63: 0.73 | AW63: 0.73 | AX63: 0.73 | AY63: 0.73 | AZ63: 0.73 | BA63: 0.73 | BB63: 0.73 | BC63: 0.73 | BD63: 0.73 | BE63: 0.73 | BF63: 0.73 | BG63: 0.73 | BH63: 0.73 | BI63: 0.73 | BJ63: 0.73 | BK63: 0.73 | BL63: 0.73 | BM63: 0.73 | BN63: 0.73 | BO63: 0.73 | BP63: 0.73 | BQ63: 0.73 | BR63: 0.73 | BS63: =IF(BS56,$G$25,$H$25) -> 0.73 | BT63: 0.73 | BU63: 0.73 | BV63: 0.73 | BW63: 0.73 | BX63: 0.73 | BY63: 0.73 | CA63: =IF(CA56,$G$25,$H$25) -> 0.8 | CB63: 0.8 | CC63: 0.8 | CD63: 0.8 | CE63: 0.8 | CF63: 0.8 | CG63: 0.8 | CH63: 0.8 | CI63: 0.8 | CJ63: 0.8 | CK63: 0.8 | CL63: 0.8
B64: COGS | G64: =G63*G61 -> 12 | H64: 48 | I64: 72 | J64: 108 | K64: 13.2 | L64: 52.8 | M64: 79.2 | N64: 118.8 | O64: 13.2495 | P64: 52.998 | Q64: 79.497 | R64: 119.2455 | S64: 14.57445 | T64: 58.2978 | U64: 87.4467 | V64: 131.17005 | W64: 16.031895 | X64: 64.12758 | Y64: 96.19137 | Z64: 144.287055 | AA64: 16.031895 | AB64: 64.12758 | AC64: 96.19137 | AD64: 144.287055 | AE64: 16.031895 | AF64: 64.12758 | AG64: 96.19137 | AH64: 144.287055 | AI64: 16.031895 | AJ64: 64.12758 | AK64: 96.19137 | AL64: 144.287055 | AM64: =AM63*AM61 -> 16.031895 | AN64: 64.12758 | AO64: 96.19137 | AP64: 144.287055 | AQ64: 16.031895 | AR64: 64.12758 | AS64: 96.19137 | AT64: 144.287055 | AU64: 16.031895 | AV64: 64.12758 | AW64: 96.19137 | AX64: 144.287055 | AY64: 16.031895 | AZ64: 64.12758 | BA64: 96.19137 | BB64: 144.287055 | BC64: 16.031895 | BD64: 64.12758 | BE64: 96.19137 | BF64: 144.287055 | BG64: 16.031895 | BH64: 64.12758 | BI64: 96.19137 | BJ64: 144.287055 | BK64: 16.031895 | BL64: 64.12758 | BM64: 96.19137 | BN64: 144.287055 | BO64: 16.031895 | BP64: 64.12758 | BQ64: 96.19137 | BR64: 144.287055 | BS64: =BS63*BS61 -> 16.031895 | BT64: 64.12758 | BU64: 96.19137 | BV64: 144.287055 | BW64: 16.031895 | BX64: 64.12758 | BY64: 96.19137 | CA64: =CA63*CA61 -> 0 | CB64: 0 | CC64: 0 | CD64: 0 | CE64: 0 | CF64: 0 | CG64: 0 | CH64: 0 | CI64: 0 | CJ64: 0 | CK64: 0 | CL64: 0
C66: EBITDA | G66: =G61-G64 -> 3 | H66: 12 | I66: 18 | J66: 27 | K66: 3.3 | L66: 13.2 | M66: 19.8 | N66: 29.7 | O66: 4.9005 | P66: 19.602 | Q66: 29.403 | R66: 44.1045 | S66: 5.39055 | T66: 21.5622 | U66: 32.3433 | V66: 48.51495 | W66: 5.929605 | X66: 23.71842 | Y66: 35.57763 | Z66: 53.366445 | AA66: 5.929605 | AB66: 23.71842 | AC66: 35.57763 | AD66: 53.366445 | AE66: 5.929605 | AF66: 23.71842 | AG66: 35.57763 | AH66: 53.366445 | AI66: 5.929605 | AJ66: 23.71842 | AK66: 35.57763 | AL66: 53.366445 | AM66: =AM61-AM64 -> 5.929605 | AN66: 23.71842 | AO66: 35.57763 | AP66: 53.366445 | AQ66: 5.929605 | AR66: 23.71842 | AS66: 35.57763 | AT66: 53.366445 | AU66: 5.929605 | AV66: 23.71842 | AW66: 35.57763 | AX66: 53.366445 | AY66: 5.929605 | AZ66: 23.71842 | BA66: 35.57763 | BB66: 53.366445 | BC66: 5.929605 | BD66: 23.71842 | BE66: 35.57763 | BF66: 53.366445 | BG66: 5.929605 | BH66: 23.71842 | BI66: 35.57763 | BJ66: 53.366445 | BK66: 5.929605 | BL66: 23.71842 | BM66: 35.57763 | BN66: 53.366445 | BO66: 5.929605 | BP66: 23.71842 | BQ66: 35.57763 | BR66: 53.366445 | BS66: =BS61-BS64 -> 5.929605 | BT66: 23.71842 | BU66: 35.57763 | BV66: 53.366445 | BW66: 5.929605 | BX66: 23.71842 | BY66: 35.57763 | CA66: =SUMIF($5:$5,CA$2,66:66) -> 60 | CB66: 66 | CC66: 98.01 | CD66: 107.811 | CE66: 118.5921 | CF66: 118.5921 | CG66: 118.5921 | CH66: 118.5921 | CI66: 118.5921 | CJ66: 118.5921 | CK66: 118.5921 | CL66: 118.5921
C67: R&D Expenditure | G67: =LOOKUP(G5,18:18,26:26) -> 30 | H67: 30 | I67: 30 | J67: 30 | K67: 10 | L67: 10 | M67: 10 | N67: 10 | O67: 9.5 | P67: 9.5 | Q67: 9.5 | R67: 9.5 | S67: 9.025 | T67: 9.025 | U67: 9.025 | V67: 9.025 | W67: 8.57375 | X67: 8.57375 | Y67: 8.57375 | Z67: 8.57375 | AA67: 8.57375 | AB67: 8.57375 | AC67: 8.57375 | AD67: 8.57375 | AE67: 8.57375 | AF67: 8.57375 | AG67: 8.57375 | AH67: 8.57375 | AI67: 8.57375 | AJ67: 8.57375 | AK67: 8.57375 | AL67: 8.57375 | AM67: =LOOKUP(AM5,18:18,26:26) -> 8.57375 | AN67: 8.57375 | AO67: 8.57375 | AP67: 8.57375 | AQ67: 8.57375 | AR67: 8.57375 | AS67: 8.57375 | AT67: 8.57375 | AU67: 8.57375 | AV67: 8.57375 | AW67: 8.57375 | AX67: 8.57375 | AY67: 8.57375 | AZ67: 8.57375 | BA67: 8.57375 | BB67: 8.57375 | BC67: 8.57375 | BD67: 8.57375 | BE67: 8.57375 | BF67: 8.57375 | BG67: 8.57375 | BH67: 8.57375 | BI67: 8.57375 | BJ67: 8.57375 | BK67: 8.57375 | BL67: 8.57375 | BM67: 8.57375 | BN67: 8.57375 | BO67: 8.57375 | BP67: 8.57375 | BQ67: 8.57375 | BR67: 8.57375 | BS67: =LOOKUP(BS5,18:18,26:26) -> 8.57375 | BT67: 8.57375 | BU67: 8.57375 | BV67: 8.57375 | BW67: 8.57375 | BX67: 8.57375 | BY67: 8.57375 | CA67: 120 | CB67: 40 | CC67: 38 | CD67: 36.1 | CE67: 34.295 | CF67: 34.295 | CG67: 34.295 | CH67: 34.295 | CI67: 34.295 | CJ67: 34.295 | CK67: 34.295 | CL67: 34.295
A69: A/R Balance
B70: A/R Collections
C71: Days Outstanding | G71: =LOOKUP(G5,18:18,19:19) -> 250 | H71: 250 | I71: 250 | J71: 250 | K71: 180 | L71: 180 | M71: 180 | N71: 180 | O71: 150 | P71: 150 | Q71: 150 | R71: 150 | S71: 100 | T71: 100 | U71: 100 | V71: 100 | W71: 103 | X71: 103 | Y71: 103 | Z71: 103 | AA71: 103 | AB71: 103 | AC71: 103 | AD71: 103 | AE71: 103 | AF71: 103 | AG71: 103 | AH71: 103 | AI71: 103 | AJ71: 103 | AK71: 103 | AL71: 103 | AM71: =LOOKUP(AM5,18:18,19:19) -> 103 | AN71: 103 | AO71: 103 | AP71: 103 | AQ71: 103 | AR71: 103 | AS71: 103 | AT71: 103 | AU71: 103 | AV71: 103 | AW71: 103 | AX71: 103 | AY71: 103 | AZ71: 103 | BA71: 103 | BB71: 103 | BC71: 103 | BD71: 103 | BE71: 103 | BF71: 103 | BG71: 103 | BH71: 103 | BI71: 103 | BJ71: 103 | BK71: 103 | BL71: 103 | BM71: 103 | BN71: 103 | BO71: 103 | BP71: 103 | BQ71: 103 | BR71: 103 | BS71: =LOOKUP(BS5,18:18,19:19) -> 103 | BT71: 103 | BU71: 103 | BV71: 103 | BW71: 103 | BX71: 103 | BY71: 103
C72: This Quarter | E72: 0 | G72: =LOOKUP(G5,18:18,20:20) -> 0 | H72: 0 | I72: 0 | J72: 0 | K72: 0 | L72: 0 | M72: 0 | N72: 0 | O72: 0 | P72: 0 | Q72: 0 | R72: 0 | S72: 0 | T72: 0 | U72: 0 | V72: 0 | W72: 0 | X72: 0 | Y72: 0 | Z72: 0 | AA72: 0 | AB72: 0 | AC72: 0 | AD72: 0 | AE72: 0 | AF72: 0 | AG72: 0 | AH72: 0 | AI72: 0 | AJ72: 0 | AK72: 0 | AL72: 0 | AM72: =LOOKUP(AM5,18:18,20:20) -> 0 | AN72: 0 | AO72: 0 | AP72: 0 | AQ72: 0 | AR72: 0 | AS72: 0 | AT72: 0 | AU72: 0 | AV72: 0 | AW72: 0 | AX72: 0 | AY72: 0 | AZ72: 0 | BA72: 0 | BB72: 0 | BC72: 0 | BD72: 0 | BE72: 0 | BF72: 0 | BG72: 0 | BH72: 0 | BI72: 0 | BJ72: 0 | BK72: 0 | BL72: 0 | BM72: 0 | BN72: 0 | BO72: 0 | BP72: 0 | BQ72: 0 | BR72: 0 | BS72: =LOOKUP(BS5,18:18,20:20) -> 0 | BT72: 0 | BU72: 0 | BV72: 0 | BW72: 0 | BX72: 0 | BY72: 0 | BZ72: a
C73: Prior Quarter | E73: 1 | G73: =LOOKUP(G5,18:18,21:21) -> 0 | H73: 0 | I73: 0 | J73: 0 | K73: 0 | L73: 0 | M73: 0 | N73: 0 | O73: 0.3333333333 | P73: 0.3333333333 | Q73: 0.3333333333 | R73: 0.3333333333 | S73: 0.8888888889 | T73: 0.8888888889 | U73: 0.8888888889 | V73: 0.8888888889 | W73: 0.8555555556 | X73: 0.8555555556 | Y73: 0.8555555556 | Z73: 0.8555555556 | AA73: 0.8555555556 | AB73: 0.8555555556 | AC73: 0.8555555556 | AD73: 0.8555555556 | AE73: 0.8555555556 | AF73: 0.8555555556 | AG73: 0.8555555556 | AH73: 0.8555555556 | AI73: 0.8555555556 | AJ73: 0.8555555556 | AK73: 0.8555555556 | AL73: 0.8555555556 | AM73: =LOOKUP(AM5,18:18,21:21) -> 0.8555555556 | AN73: 0.8555555556 | AO73: 0.8555555556 | AP73: 0.8555555556 | AQ73: 0.8555555556 | AR73: 0.8555555556 | AS73: 0.8555555556 | AT73: 0.8555555556 | AU73: 0.8555555556 | AV73: 0.8555555556 | AW73: 0.8555555556 | AX73: 0.8555555556 | AY73: 0.8555555556 | AZ73: 0.8555555556 | BA73: 0.8555555556 | BB73: 0.8555555556 | BC73: 0.8555555556 | BD73: 0.8555555556 | BE73: 0.8555555556 | BF73: 0.8555555556 | BG73: 0.8555555556 | BH73: 0.8555555556 | BI73: 0.8555555556 | BJ73: 0.8555555556 | BK73: 0.8555555556 | BL73: 0.8555555556 | BM73: 0.8555555556 | BN73: 0.8555555556 | BO73: 0.8555555556 | BP73: 0.8555555556 | BQ73: 0.8555555556 | BR73: 0.8555555556 | BS73: =LOOKUP(BS5,18:18,21:21) -> 0.8555555556 | BT73: 0.8555555556 | BU73: 0.8555555556 | BV73: 0.8555555556 | BW73: 0.8555555556 | BX73: 0.8555555556 | BY73: 0.8555555556 | BZ73: a
C74: Prior 2nd Quarter | E74: 2 | G74: =LOOKUP(G5,18:18,22:22) -> 0.2222222222 | H74: 0.2222222222 | I74: 0.2222222222 | J74: 0.2222222222 | K74: 1 | L74: 1 | M74: 1 | N74: 1 | O74: 0.6666666667 | P74: 0.6666666667 | Q74: 0.6666666667 | R74: 0.6666666667 | S74: 0.1111111111 | T74: 0.1111111111 | U74: 0.1111111111 | V74: 0.1111111111 | W74: 0.1444444444 | X74: 0.1444444444 | Y74: 0.1444444444 | Z74: 0.1444444444 | AA74: 0.1444444444 | AB74: 0.1444444444 | AC74: 0.1444444444 | AD74: 0.1444444444 | AE74: 0.1444444444 | AF74: 0.1444444444 | AG74: 0.1444444444 | AH74: 0.1444444444 | AI74: 0.1444444444 | AJ74: 0.1444444444 | AK74: 0.1444444444 | AL74: 0.1444444444 | AM74: =LOOKUP(AM5,18:18,22:22) -> 0.1444444444 | AN74: 0.1444444444 | AO74: 0.1444444444 | AP74: 0.1444444444 | AQ74: 0.1444444444 | AR74: 0.1444444444 | AS74: 0.1444444444 | AT74: 0.1444444444 | AU74: 0.1444444444 | AV74: 0.1444444444 | AW74: 0.1444444444 | AX74: 0.1444444444 | AY74: 0.1444444444 | AZ74: 0.1444444444 | BA74: 0.1444444444 | BB74: 0.1444444444 | BC74: 0.1444444444 | BD74: 0.1444444444 | BE74: 0.1444444444 | BF74: 0.1444444444 | BG74: 0.1444444444 | BH74: 0.1444444444 | BI74: 0.1444444444 | BJ74: 0.1444444444 | BK74: 0.1444444444 | BL74: 0.1444444444 | BM74: 0.1444444444 | BN74: 0.1444444444 | BO74: 0.1444444444 | BP74: 0.1444444444 | BQ74: 0.1444444444 | BR74: 0.1444444444 | BS74: =LOOKUP(BS5,18:18,22:22) -> 0.1444444444 | BT74: 0.1444444444 | BU74: 0.1444444444 | BV74: 0.1444444444 | BW74: 0.1444444444 | BX74: 0.1444444444 | BY74: 0.1444444444 | BZ74: a
C75: Prior 3rd Quarter | E75: 3 | G75: =LOOKUP(G5,18:18,23:23) -> 0.7777777778 | H75: 0.7777777778 | I75: 0.7777777778 | J75: 0.7777777778 | K75: 0 | L75: 0 | M75: 0 | N75: 0 | O75: -5.551115123e-17 | P75: -5.551115123e-17 | Q75: -5.551115123e-17 | R75: -5.551115123e-17 | S75: 0 | T75: 0 | U75: 0 | V75: 0 | W75: 0 | X75: 0 | Y75: 0 | Z75: 0 | AA75: 0 | AB75: 0 | AC75: 0 | AD75: 0 | AE75: 0 | AF75: 0 | AG75: 0 | AH75: 0 | AI75: 0 | AJ75: 0 | AK75: 0 | AL75: 0 | AM75: =LOOKUP(AM5,18:18,23:23) -> 0 | AN75: 0 | AO75: 0 | AP75: 0 | AQ75: 0 | AR75: 0 | AS75: 0 | AT75: 0 | AU75: 0 | AV75: 0 | AW75: 0 | AX75: 0 | AY75: 0 | AZ75: 0 | BA75: 0 | BB75: 0 | BC75: 0 | BD75: 0 | BE75: 0 | BF75: 0 | BG75: 0 | BH75: 0 | BI75: 0 | BJ75: 0 | BK75: 0 | BL75: 0 | BM75: 0 | BN75: 0 | BO75: 0 | BP75: 0 | BQ75: 0 | BR75: 0 | BS75: =LOOKUP(BS5,18:18,23:23) -> 0 | BT75: 0 | BU75: 0 | BV75: 0 | BW75: 0 | BX75: 0 | BY75: 0 | BZ75: a
BZ76: a
BZ77: a
B78: Opening Balance | G78: =F84 -> 0 | H78: 15 | I78: 75 | J78: 161.6666667 | K78: 271.6666667 | L78: 221.5 | M78: 187.5 | N78: 165 | O78: 247.5 | P78: 166.65 | Q78: 84.7 | R78: 157.3 | S78: 235.95 | T78: 128.865 | U78: 82.07833333 | V78: 128.6633333 | W78: 192.995 | X78: 41.9265 | Y78: 91.01821667 | Z78: 144.4578667 | AA78: 216.6868 | AB78: 50.51145 | AC78: 91.01821667 | AD78: 144.4578667 | AE78: 216.6868 | AF78: 50.51145 | AG78: 91.01821667 | AH78: 144.4578667 | AI78: 216.6868 | AJ78: 50.51145 | AK78: 91.01821667 | AL78: 144.4578667 | AM78: =AL84 -> 216.6868 | AN78: 50.51145 | AO78: 91.01821667 | AP78: 144.4578667 | AQ78: 216.6868 | AR78: 50.51145 | AS78: 91.01821667 | AT78: 144.4578667 | AU78: 216.6868 | AV78: 50.51145 | AW78: 91.01821667 | AX78: 144.4578667 | AY78: 216.6868 | AZ78: 50.51145 | BA78: 91.01821667 | BB78: 144.4578667 | BC78: 216.6868 | BD78: 50.51145 | BE78: 91.01821667 | BF78: 144.4578667 | BG78: 216.6868 | BH78: 50.51145 | BI78: 91.01821667 | BJ78: 144.4578667 | BK78: 216.6868 | BL78: 50.51145 | BM78: 91.01821667 | BN78: 144.4578667 | BO78: 216.6868 | BP78: 50.51145 | BQ78: 91.01821667 | BR78: 144.4578667 | BS78: =BR84 -> 216.6868 | BT78: 50.51145 | BU78: 91.01821667 | BV78: 144.4578667 | BW78: 216.6868 | BX78: 50.51145 | BY78: 91.01821667 | BZ78: a
C79: Add: Revenues | G79: =G61 -> 15 | H79: 60 | I79: 90 | J79: 135 | K79: 16.5 | L79: 66 | M79: 99 | N79: 148.5 | O79: 18.15 | P79: 72.6 | Q79: 108.9 | R79: 163.35 | S79: 19.965 | T79: 79.86 | U79: 119.79 | V79: 179.685 | W79: 21.9615 | X79: 87.846 | Y79: 131.769 | Z79: 197.6535 | AA79: 21.9615 | AB79: 87.846 | AC79: 131.769 | AD79: 197.6535 | AE79: 21.9615 | AF79: 87.846 | AG79: 131.769 | AH79: 197.6535 | AI79: 21.9615 | AJ79: 87.846 | AK79: 131.769 | AL79: 197.6535 | AM79: =AM61 -> 21.9615 | AN79: 87.846 | AO79: 131.769 | AP79: 197.6535 | AQ79: 21.9615 | AR79: 87.846 | AS79: 131.769 | AT79: 197.6535 | AU79: 21.9615 | AV79: 87.846 | AW79: 131.769 | AX79: 197.6535 | AY79: 21.9615 | AZ79: 87.846 | BA79: 131.769 | BB79: 197.6535 | BC79: 21.9615 | BD79: 87.846 | BE79: 131.769 | BF79: 197.6535 | BG79: 21.9615 | BH79: 87.846 | BI79: 131.769 | BJ79: 197.6535 | BK79: 21.9615 | BL79: 87.846 | BM79: 131.769 | BN79: 197.6535 | BO79: 21.9615 | BP79: 87.846 | BQ79: 131.769 | BR79: 197.6535 | BS79: =BS61 -> 21.9615 | BT79: 87.846 | BU79: 131.769 | BV79: 197.6535 | BW79: 21.9615 | BX79: 87.846 | BY79: 131.769 | BZ79: a
C80: Less: Collections - Current Quarter | E80: =E72 -> 0 | G80: =OFFSET(G$79,0,-$E80)*OFFSET(G72,0,-$E80) -> 0 | H80: 0 | I80: 0 | J80: 0 | K80: 0 | L80: 0 | M80: 0 | N80: 0 | O80: 0 | P80: 0 | Q80: 0 | R80: 0 | S80: 0 | T80: 0 | U80: 0 | V80: 0 | W80: 0 | X80: 0 | Y80: 0 | Z80: 0 | AA80: 0 | AB80: 0 | AC80: 0 | AD80: 0 | AE80: 0 | AF80: 0 | AG80: 0 | AH80: 0 | AI80: 0 | AJ80: 0 | AK80: 0 | AL80: 0 | AM80: =OFFSET(AM$79,0,-$E80)*OFFSET(AM72,0,-$E80) -> 0 | AN80: 0 | AO80: 0 | AP80: 0 | AQ80: 0 | AR80: 0 | AS80: 0 | AT80: 0 | AU80: 0 | AV80: 0 | AW80: 0 | AX80: 0 | AY80: 0 | AZ80: 0 | BA80: 0 | BB80: 0 | BC80: 0 | BD80: 0 | BE80: 0 | BF80: 0 | BG80: 0 | BH80: 0 | BI80: 0 | BJ80: 0 | BK80: 0 | BL80: 0 | BM80: 0 | BN80: 0 | BO80: 0 | BP80: 0 | BQ80: 0 | BR80: 0 | BS80: =OFFSET(BS$79,0,-$E80)*OFFSET(BS72,0,-$E80) -> 0 | BT80: 0 | BU80: 0 | BV80: 0 | BW80: 0 | BX80: 0 | BY80: 0 | BZ80: a
C81: Less: Collections - Prior Quarter | E81: =E73 -> 1 | G81: =OFFSET(G$79,0,-$E81)*OFFSET(G73,0,-$E81) -> 0 | H81: 0 | I81: 0 | J81: 0 | K81: 0 | L81: 0 | M81: 0 | N81: 0 | O81: 0 | P81: 6.05 | Q81: 24.2 | R81: 36.3 | S81: 54.45 | T81: 17.74666667 | U81: 70.98666667 | V81: 106.48 | W81: 159.72 | X81: 18.78928333 | Y81: 75.15713333 | Z81: 112.7357 | AA81: 169.10355 | AB81: 18.78928333 | AC81: 75.15713333 | AD81: 112.7357 | AE81: 169.10355 | AF81: 18.78928333 | AG81: 75.15713333 | AH81: 112.7357 | AI81: 169.10355 | AJ81: 18.78928333 | AK81: 75.15713333 | AL81: 112.7357 | AM81: =OFFSET(AM$79,0,-$E81)*OFFSET(AM73,0,-$E81) -> 169.10355 | AN81: 18.78928333 | AO81: 75.15713333 | AP81: 112.7357 | AQ81: 169.10355 | AR81: 18.78928333 | AS81: 75.15713333 | AT81: 112.7357 | AU81: 169.10355 | AV81: 18.78928333 | AW81: 75.15713333 | AX81: 112.7357 | AY81: 169.10355 | AZ81: 18.78928333 | BA81: 75.15713333 | BB81: 112.7357 | BC81: 169.10355 | BD81: 18.78928333 | BE81: 75.15713333 | BF81: 112.7357 | BG81: 169.10355 | BH81: 18.78928333 | BI81: 75.15713333 | BJ81: 112.7357 | BK81: 169.10355 | BL81: 18.78928333 | BM81: 75.15713333 | BN81: 112.7357 | BO81: 169.10355 | BP81: 18.78928333 | BQ81: 75.15713333 | BR81: 112.7357 | BS81: =OFFSET(BS$79,0,-$E81)*OFFSET(BS73,0,-$E81) -> 169.10355 | BT81: 18.78928333 | BU81: 75.15713333 | BV81: 112.7357 | BW81: 169.10355 | BX81: 18.78928333 | BY81: 75.15713333 | BZ81: a
C82: Less: Collections - Prior 2nd Quarter | E82: 2 | G82: =OFFSET(G$79,0,-$E82)*OFFSET(G74,0,-$E82) -> 0 | H82: 0 | I82: 3.333333333 | J82: 13.33333333 | K82: 20 | L82: 30 | M82: 16.5 | N82: 66 | O82: 99 | P82: 148.5 | Q82: 12.1 | R82: 48.4 | S82: 72.6 | T82: 108.9 | U82: 2.218333333 | V82: 8.873333333 | W82: 13.31 | X82: 19.965 | Y82: 3.172216667 | Z82: 12.68886667 | AA82: 19.0333 | AB82: 28.54995 | AC82: 3.172216667 | AD82: 12.68886667 | AE82: 19.0333 | AF82: 28.54995 | AG82: 3.172216667 | AH82: 12.68886667 | AI82: 19.0333 | AJ82: 28.54995 | AK82: 3.172216667 | AL82: 12.68886667 | AM82: =OFFSET(AM$79,0,-$E82)*OFFSET(AM74,0,-$E82) -> 19.0333 | AN82: 28.54995 | AO82: 3.172216667 | AP82: 12.68886667 | AQ82: 19.0333 | AR82: 28.54995 | AS82: 3.172216667 | AT82: 12.68886667 | AU82: 19.0333 | AV82: 28.54995 | AW82: 3.172216667 | AX82: 12.68886667 | AY82: 19.0333 | AZ82: 28.54995 | BA82: 3.172216667 | BB82: 12.68886667 | BC82: 19.0333 | BD82: 28.54995 | BE82: 3.172216667 | BF82: 12.68886667 | BG82: 19.0333 | BH82: 28.54995 | BI82: 3.172216667 | BJ82: 12.68886667 | BK82: 19.0333 | BL82: 28.54995 | BM82: 3.172216667 | BN82: 12.68886667 | BO82: 19.0333 | BP82: 28.54995 | BQ82: 3.172216667 | BR82: 12.68886667 | BS82: =OFFSET(BS$79,0,-$E82)*OFFSET(BS74,0,-$E82) -> 19.0333 | BT82: 28.54995 | BU82: 3.172216667 | BV82: 12.68886667 | BW82: 19.0333 | BX82: 28.54995 | BY82: 3.172216667 | BZ82: a
C83: Less: Collections - Prior 3rd Quarter | E83: 3 | G83: =OFFSET(G$79,0,-$E83)*OFFSET(G75,0,-$E83) -> 0 | H83: 0 | I83: 0 | J83: 11.66666667 | K83: 46.66666667 | L83: 70 | M83: 105 | N83: 0 | O83: 0 | P83: 0 | Q83: 0 | R83: -1.007527395e-15 | S83: -4.030109579e-15 | T83: -6.045164369e-15 | U83: -9.067746554e-15 | V83: 0 | W83: 0 | X83: 0 | Y83: 0 | Z83: 0 | AA83: 0 | AB83: 0 | AC83: 0 | AD83: 0 | AE83: 0 | AF83: 0 | AG83: 0 | AH83: 0 | AI83: 0 | AJ83: 0 | AK83: 0 | AL83: 0 | AM83: =OFFSET(AM$79,0,-$E83)*OFFSET(AM75,0,-$E83) -> 0 | AN83: 0 | AO83: 0 | AP83: 0 | AQ83: 0 | AR83: 0 | AS83: 0 | AT83: 0 | AU83: 0 | AV83: 0 | AW83: 0 | AX83: 0 | AY83: 0 | AZ83: 0 | BA83: 0 | BB83: 0 | BC83: 0 | BD83: 0 | BE83: 0 | BF83: 0 | BG83: 0 | BH83: 0 | BI83: 0 | BJ83: 0 | BK83: 0 | BL83: 0 | BM83: 0 | BN83: 0 | BO83: 0 | BP83: 0 | BQ83: 0 | BR83: 0 | BS83: =OFFSET(BS$79,0,-$E83)*OFFSET(BS75,0,-$E83) -> 0 | BT83: 0 | BU83: 0 | BV83: 0 | BW83: 0 | BX83: 0 | BY83: 0 | BZ83: a
B84: Closing Balance | G84: =G78+G79-G80-G81-G82-G83 -> 15 | H84: 75 | I84: 161.6666667 | J84: 271.6666667 | K84: 221.5 | L84: 187.5 | M84: 165 | N84: 247.5 | O84: 166.65 | P84: 84.7 | Q84: 157.3 | R84: 235.95 | S84: 128.865 | T84: 82.07833333 | U84: 128.6633333 | V84: 192.995 | W84: 41.9265 | X84: 91.01821667 | Y84: 144.4578667 | Z84: 216.6868 | AA84: 50.51145 | AB84: 91.01821667 | AC84: 144.4578667 | AD84: 216.6868 | AE84: 50.51145 | AF84: 91.01821667 | AG84: 144.4578667 | AH84: 216.6868 | AI84: 50.51145 | AJ84: 91.01821667 | AK84: 144.4578667 | AL84: 216.6868 | AM84: =AM78+AM79-AM80-AM81-AM82-AM83 -> 50.51145 | AN84: 91.01821667 | AO84: 144.4578667 | AP84: 216.6868 | AQ84: 50.51145 | AR84: 91.01821667 | AS84: 144.4578667 | AT84: 216.6868 | AU84: 50.51145 | AV84: 91.01821667 | AW84: 144.4578667 | AX84: 216.6868 | AY84: 50.51145 | AZ84: 91.01821667 | BA84: 144.4578667 | BB84: 216.6868 | BC84: 50.51145 | BD84: 91.01821667 | BE84: 144.4578667 | BF84: 216.6868 | BG84: 50.51145 | BH84: 91.01821667 | BI84: 144.4578667 | BJ84: 216.6868 | BK84: 50.51145 | BL84: 91.01821667 | BM84: 144.4578667 | BN84: 216.6868 | BO84: 50.51145 | BP84: 91.01821667 | BQ84: 144.4578667 | BR84: 216.6868 | BS84: =BS78+BS79-BS80-BS81-BS82-BS83 -> 50.51145 | BT84: 91.01821667 | BU84: 144.4578667 | BV84: 216.6868 | BW84: 50.51145 | BX84: 91.01821667 | BY84: 144.4578667 | BZ84: a
BZ85: a
B86: Change in WC | G86: =G78-G84 -> -15 | H86: -60 | I86: -86.66666667 | J86: -110 | K86: 50.16666667 | L86: 34 | M86: 22.5 | N86: -82.5 | O86: 80.85 | P86: 81.95 | Q86: -72.6 | R86: -78.65 | S86: 107.085 | T86: 46.78666667 | U86: -46.585 | V86: -64.33166667 | W86: 151.0685 | X86: -49.09171667 | Y86: -53.43965 | Z86: -72.22893333 | AA86: 166.17535 | AB86: -40.50676667 | AC86: -53.43965 | AD86: -72.22893333 | AE86: 166.17535 | AF86: -40.50676667 | AG86: -53.43965 | AH86: -72.22893333 | AI86: 166.17535 | AJ86: -40.50676667 | AK86: -53.43965 | AL86: -72.22893333 | AM86: =AM78-AM84 -> 166.17535 | AN86: -40.50676667 | AO86: -53.43965 | AP86: -72.22893333 | AQ86: 166.17535 | AR86: -40.50676667 | AS86: -53.43965 | AT86: -72.22893333 | AU86: 166.17535 | AV86: -40.50676667 | AW86: -53.43965 | AX86: -72.22893333 | AY86: 166.17535 | AZ86: -40.50676667 | BA86: -53.43965 | BB86: -72.22893333 | BC86: 166.17535 | BD86: -40.50676667 | BE86: -53.43965 | BF86: -72.22893333 | BG86: 166.17535 | BH86: -40.50676667 | BI86: -53.43965 | BJ86: -72.22893333 | BK86: 166.17535 | BL86: -40.50676667 | BM86: -53.43965 | BN86: -72.22893333 | BO86: 166.17535 | BP86: -40.50676667 | BQ86: -53.43965 | BR86: -72.22893333 | BS86: =BS78-BS84 -> 166.17535 | BT86: -40.50676667 | BU86: -53.43965 | BV86: -72.22893333 | BW86: 166.17535 | BX86: -40.50676667 | BY86: -53.43965 | BZ86: a
BZ87: a
A88: Depreciation and Taxes | BZ88: a
B89: Model Period | G89: 1 | H89: =G89+1 -> 2 | I89: =H89+1 -> 3 | J89: 4 | K89: 5 | L89: 6 | M89: 7 | N89: 8 | O89: 9 | P89: 10 | Q89: 11 | R89: 12 | S89: 13 | T89: 14 | U89: 15 | V89: 16 | W89: 17 | X89: 18 | Y89: 19 | Z89: 20 | AA89: 21 | AB89: 22 | AC89: 23 | AD89: 24 | AE89: 25 | AF89: 26 | AG89: 27 | AH89: 28 | AI89: 29 | AJ89: 30 | AK89: 31 | AL89: 32 | AM89: 33 | AN89: 34 | AO89: 35 | AP89: 36 | AQ89: 37 | AR89: 38 | AS89: 39 | AT89: 40 | AU89: 41 | AV89: 42 | AW89: 43 | AX89: 44 | AY89: 45 | AZ89: 46 | BA89: 47 | BB89: 48 | BC89: 49 | BD89: 50 | BE89: 51 | BF89: 52 | BG89: 53 | BH89: 54 | BI89: 55 | BJ89: 56 | BK89: 57 | BL89: 58 | BM89: 59 | BN89: 60 | BO89: 61 | BP89: 62 | BQ89: 63 | BR89: 64 | BS89: 65 | BT89: 66 | BU89: =BT89+1 -> 67 | BV89: 68 | BW89: 69 | BX89: 70 | BY89: 71
B90: Capitalised Developent
C91: Opening Balance | G91: =F94 -> 0 | H91: 30 | I91: 60 | J91: 90 | K91: 120 | L91: 130 | M91: 140 | N91: 150 | O91: 160 | P91: 169.5 | Q91: 179 | R91: 188.5 | S91: 198 | T91: 207.025 | U91: 216.05 | V91: 225.075 | W91: 234.1 | X91: 242.67375 | Y91: 251.2475 | Z91: 259.82125 | AA91: 268.395 | AB91: 276.96875 | AC91: 285.5425 | AD91: 294.11625 | AE91: 302.69 | AF91: 311.26375 | AG91: 319.8375 | AH91: 328.41125 | AI91: 336.985 | AJ91: 315.55875 | AK91: 294.1325 | AL91: 272.70625 | AM91: =AL94 -> 251.28 | AN91: 249.85375 | AO91: 248.4275 | AP91: 247.00125 | AQ91: 245.575 | AR91: 244.64875 | AS91: 243.7225 | AT91: 242.79625 | AU91: 241.87 | AV91: 241.41875 | AW91: 240.9675 | AX91: 240.51625 | AY91: 240.065 | AZ91: 240.065 | BA91: 240.065 | BB91: 240.065 | BC91: 240.065 | BD91: 240.065 | BE91: 240.065 | BF91: 240.065 | BG91: 240.065 | BH91: 240.065 | BI91: 240.065 | BJ91: 240.065 | BK91: 240.065 | BL91: 240.065 | BM91: 240.065 | BN91: 240.065 | BO91: 240.065 | BP91: 240.065 | BQ91: 240.065 | BR91: 240.065 | BS91: =BR94 -> 240.065 | BT91: 240.065 | BU91: 240.065 | BV91: 240.065 | BW91: 240.065 | BX91: 240.065 | BY91: 240.065
C92: Add: Development Capitalised | G92: =G67 -> 30 | H92: =H67 -> 30 | I92: 30 | J92: 30 | K92: 10 | L92: 10 | M92: 10 | N92: 10 | O92: 9.5 | P92: 9.5 | Q92: 9.5 | R92: 9.5 | S92: 9.025 | T92: 9.025 | U92: 9.025 | V92: 9.025 | W92: 8.57375 | X92: 8.57375 | Y92: 8.57375 | Z92: 8.57375 | AA92: 8.57375 | AB92: 8.57375 | AC92: 8.57375 | AD92: 8.57375 | AE92: 8.57375 | AF92: 8.57375 | AG92: 8.57375 | AH92: 8.57375 | AI92: 8.57375 | AJ92: 8.57375 | AK92: 8.57375 | AL92: 8.57375 | AM92: 8.57375 | AN92: 8.57375 | AO92: 8.57375 | AP92: 8.57375 | AQ92: 8.57375 | AR92: 8.57375 | AS92: 8.57375 | AT92: 8.57375 | AU92: 8.57375 | AV92: 8.57375 | AW92: 8.57375 | AX92: 8.57375 | AY92: 8.57375 | AZ92: 8.57375 | BA92: 8.57375 | BB92: 8.57375 | BC92: 8.57375 | BD92: 8.57375 | BE92: 8.57375 | BF92: 8.57375 | BG92: 8.57375 | BH92: 8.57375 | BI92: 8.57375 | BJ92: 8.57375 | BK92: 8.57375 | BL92: 8.57375 | BM92: 8.57375 | BN92: 8.57375 | BO92: 8.57375 | BP92: 8.57375 | BQ92: 8.57375 | BR92: 8.57375 | BS92: 8.57375 | BT92: =BT67 -> 8.57375 | BU92: 8.57375 | BV92: 8.57375 | BW92: 8.57375 | BX92: 8.57375 | BY92: 8.57375
C93: Less: Retirement | E93: =F32*4 -> 28 | G93: =IF(G89>=$E$93,OFFSET(G92,0,-$E$93))*1 -> 0 | H93: 0 | I93: 0 | J93: 0 | K93: 0 | L93: 0 | M93: 0 | N93: 0 | O93: 0 | P93: 0 | Q93: 0 | R93: 0 | S93: 0 | T93: 0 | U93: 0 | V93: 0 | W93: 0 | X93: 0 | Y93: 0 | Z93: 0 | AA93: 0 | AB93: 0 | AC93: 0 | AD93: 0 | AE93: 0 | AF93: 0 | AG93: 0 | AH93: 0 | AI93: 30 | AJ93: 30 | AK93: 30 | AL93: 30 | AM93: =IF(AM89>=$E$93,OFFSET(AM92,0,-$E$93))*1 -> 10 | AN93: 10 | AO93: 10 | AP93: 10 | AQ93: 9.5 | AR93: 9.5 | AS93: 9.5 | AT93: 9.5 | AU93: 9.025 | AV93: 9.025 | AW93: 9.025 | AX93: 9.025 | AY93: 8.57375 | AZ93: 8.57375 | BA93: 8.57375 | BB93: 8.57375 | BC93: 8.57375 | BD93: 8.57375 | BE93: 8.57375 | BF93: 8.57375 | BG93: 8.57375 | BH93: 8.57375 | BI93: 8.57375 | BJ93: 8.57375 | BK93: 8.57375 | BL93: 8.57375 | BM93: 8.57375 | BN93: 8.57375 | BO93: 8.57375 | BP93: 8.57375 | BQ93: 8.57375 | BR93: 8.57375 | BS93: =IF(BS89>=$E$93,OFFSET(BS92,0,-$E$93))*1 -> 8.57375 | BT93: 8.57375 | BU93: 8.57375 | BV93: 8.57375 | BW93: 8.57375 | BX93: 8.57375 | BY93: 8.57375
C94: Closing Balance | G94: =G91+G92-G93 -> 30 | H94: 60 | I94: 90 | J94: 120 | K94: 130 | L94: 140 | M94: 150 | N94: 160 | O94: 169.5 | P94: 179 | Q94: 188.5 | R94: 198 | S94: 207.025 | T94: 216.05 | U94: 225.075 | V94: 234.1 | W94: 242.67375 | X94: 251.2475 | Y94: 259.82125 | Z94: 268.395 | AA94: 276.96875 | AB94: 285.5425 | AC94: 294.11625 | AD94: 302.69 | AE94: 311.26375 | AF94: 319.8375 | AG94: 328.41125 | AH94: 336.985 | AI94: 315.55875 | AJ94: 294.1325 | AK94: 272.70625 | AL94: 251.28 | AM94: =AM91+AM92-AM93 -> 249.85375 | AN94: 248.4275 | AO94: 247.00125 | AP94: 245.575 | AQ94: 244.64875 | AR94: 243.7225 | AS94: 242.79625 | AT94: 241.87 | AU94: 241.41875 | AV94: 240.9675 | AW94: 240.51625 | AX94: 240.065 | AY94: 240.065 | AZ94: 240.065 | BA94: 240.065 | BB94: 240.065 | BC94: 240.065 | BD94: 240.065 | BE94: 240.065 | BF94: 240.065 | BG94: 240.065 | BH94: 240.065 | BI94: 240.065 | BJ94: 240.065 | BK94: 240.065 | BL94: 240.065 | BM94: 240.065 | BN94: 240.065 | BO94: 240.065 | BP94: 240.065 | BQ94: 240.065 | BR94: 240.065 | BS94: =BS91+BS92-BS93 -> 240.065 | BT94: 240.065 | BU94: 240.065 | BV94: 240.065 | BW94: 240.065 | BX94: 240.065 | BY94: 240.065
C95: Depreciation Rate on Gross Development Cost | E95: =1/E93 -> 0.03571428571 | G95: =$E$95*G91 -> 0 | H95: 1.071428571 | I95: 2.142857143 | J95: 3.214285714 | K95: 4.285714286 | L95: 4.642857143 | M95: 5 | N95: 5.357142857 | O95: 5.714285714 | P95: 6.053571429 | Q95: 6.392857143 | R95: 6.732142857 | S95: 7.071428571 | T95: 7.39375 | U95: 7.716071429 | V95: 8.038392857 | W95: 8.360714286 | X95: 8.666919643 | Y95: 8.973125 | Z95: 9.279330357 | AA95: 9.585535714 | AB95: 9.891741071 | AC95: 10.19794643 | AD95: 10.50415179 | AE95: 10.81035714 | AF95: 11.1165625 | AG95: 11.42276786 | AH95: 11.72897321 | AI95: 12.03517857 | AJ95: 11.26995536 | AK95: 10.50473214 | AL95: 9.739508929 | AM95: =$E$95*AM91 -> 8.974285714 | AN95: 8.923348214 | AO95: 8.872410714 | AP95: 8.821473214 | AQ95: 8.770535714 | AR95: 8.737455357 | AS95: 8.704375 | AT95: 8.671294643 | AU95: 8.638214286 | AV95: 8.622098214 | AW95: 8.605982143 | AX95: 8.589866071 | AY95: 8.57375 | AZ95: 8.57375 | BA95: 8.57375 | BB95: 8.57375 | BC95: 8.57375 | BD95: 8.57375 | BE95: 8.57375 | BF95: 8.57375 | BG95: 8.57375 | BH95: 8.57375 | BI95: 8.57375 | BJ95: 8.57375 | BK95: 8.57375 | BL95: 8.57375 | BM95: 8.57375 | BN95: 8.57375 | BO95: 8.57375 | BP95: 8.57375 | BQ95: 8.57375 | BR95: 8.57375 | BS95: =$E$95*BS91 -> 8.57375 | BT95: 8.57375 | BU95: 8.57375 | BV95: 8.57375 | BW95: 8.57375 | BX95: 8.57375 | BY95: 8.57375
BZ96: a
B97: Accumulated Depreciation | BZ97: a
C98: Opening Balance | G98: =F101 -> 0 | H98: 0 | I98: 1.071428571 | J98: 3.214285714 | K98: 6.428571429 | L98: 10.71428571 | M98: 15.35714286 | N98: 20.35714286 | O98: 25.71428571 | P98: 31.42857143 | Q98: 37.48214286 | R98: 43.875 | S98: 50.60714286 | T98: 57.67857143 | U98: 65.07232143 | V98: 72.78839286 | W98: 80.82678571 | X98: 89.1875 | Y98: 97.85441964 | Z98: 106.8275446 | AA98: 116.106875 | AB98: 125.6924107 | AC98: 135.5841518 | AD98: 145.7820982 | AE98: 156.28625 | AF98: 167.0966071 | AG98: 178.2131696 | AH98: 189.6359375 | AI98: 201.3649107 | AJ98: 183.4000893 | AK98: 164.6700446 | AL98: 145.1747768 | AM98: =AL101 -> 124.9142857 | AN98: 123.8885714 | AO98: 122.8119196 | AP98: 121.6843304 | AQ98: 120.5058036 | AR98: 119.7763393 | AS98: 119.0137946 | AT98: 118.2181696 | AU98: 117.3894643 | AV98: 117.0026786 | AW98: 116.5997768 | AX98: 116.1807589 | AY98: 115.745625 | AZ98: 115.745625 | BA98: 115.745625 | BB98: 115.745625 | BC98: 115.745625 | BD98: 115.745625 | BE98: 115.745625 | BF98: 115.745625 | BG98: 115.745625 | BH98: 115.745625 | BI98: 115.745625 | BJ98: 115.745625 | BK98: 115.745625 | BL98: 115.745625 | BM98: 115.745625 | BN98: 115.745625 | BO98: 115.745625 | BP98: 115.745625 | BQ98: 115.745625 | BR98: 115.745625 | BS98: =BR101 -> 115.745625 | BT98: 115.745625 | BU98: 115.745625 | BV98: 115.745625 | BW98: 115.745625 | BX98: 115.745625 | BY98: 115.745625 | BZ98: a
C99: Add: Depreciation Expense | G99: =G95 -> 0 | H99: 1.071428571 | I99: 2.142857143 | J99: 3.214285714 | K99: 4.285714286 | L99: 4.642857143 | M99: 5 | N99: 5.357142857 | O99: 5.714285714 | P99: 6.053571429 | Q99: 6.392857143 | R99: 6.732142857 | S99: 7.071428571 | T99: 7.39375 | U99: 7.716071429 | V99: 8.038392857 | W99: 8.360714286 | X99: 8.666919643 | Y99: 8.973125 | Z99: 9.279330357 | AA99: 9.585535714 | AB99: 9.891741071 | AC99: 10.19794643 | AD99: 10.50415179 | AE99: 10.81035714 | AF99: 11.1165625 | AG99: 11.42276786 | AH99: 11.72897321 | AI99: 12.03517857 | AJ99: 11.26995536 | AK99: 10.50473214 | AL99: 9.739508929 | AM99: =AM95 -> 8.974285714 | AN99: 8.923348214 | AO99: 8.872410714 | AP99: 8.821473214 | AQ99: 8.770535714 | AR99: 8.737455357 | AS99: 8.704375 | AT99: 8.671294643 | AU99: 8.638214286 | AV99: 8.622098214 | AW99: 8.605982143 | AX99: 8.589866071 | AY99: 8.57375 | AZ99: 8.57375 | BA99: 8.57375 | BB99: 8.57375 | BC99: 8.57375 | BD99: 8.57375 | BE99: 8.57375 | BF99: 8.57375 | BG99: 8.57375 | BH99: 8.57375 | BI99: 8.57375 | BJ99: 8.57375 | BK99: 8.57375 | BL99: 8.57375 | BM99: 8.57375 | BN99: 8.57375 | BO99: 8.57375 | BP99: 8.57375 | BQ99: 8.57375 | BR99: 8.57375 | BS99: =BS95 -> 8.57375 | BT99: 8.57375 | BU99: 8.57375 | BV99: 8.57375 | BW99: 8.57375 | BX99: 8.57375 | BY99: 8.57375 | BZ99: a
C100: Less: Retirement | G100: =G93 -> 0 | H100: 0 | I100: 0 | J100: 0 | K100: 0 | L100: 0 | M100: 0 | N100: 0 | O100: 0 | P100: 0 | Q100: 0 | R100: 0 | S100: 0 | T100: 0 | U100: 0 | V100: 0 | W100: 0 | X100: 0 | Y100: 0 | Z100: 0 | AA100: 0 | AB100: 0 | AC100: 0 | AD100: 0 | AE100: 0 | AF100: 0 | AG100: 0 | AH100: 0 | AI100: 30 | AJ100: 30 | AK100: 30 | AL100: 30 | AM100: =AM93 -> 10 | AN100: 10 | AO100: 10 | AP100: 10 | AQ100: 9.5 | AR100: 9.5 | AS100: 9.5 | AT100: 9.5 | AU100: 9.025 | AV100: 9.025 | AW100: 9.025 | AX100: 9.025 | AY100: 8.57375 | AZ100: 8.57375 | BA100: 8.57375 | BB100: 8.57375 | BC100: 8.57375 | BD100: 8.57375 | BE100: 8.57375 | BF100: 8.57375 | BG100: 8.57375 | BH100: 8.57375 | BI100: 8.57375 | BJ100: 8.57375 | BK100: 8.57375 | BL100: 8.57375 | BM100: 8.57375 | BN100: 8.57375 | BO100: 8.57375 | BP100: 8.57375 | BQ100: 8.57375 | BR100: 8.57375 | BS100: =BS93 -> 8.57375 | BT100: 8.57375 | BU100: 8.57375 | BV100: 8.57375 | BW100: 8.57375 | BX100: 8.57375 | BY100: 8.57375 | BZ100: a
C101: Closing Balance | G101: =G98+G99-G100 -> 0 | H101: 1.071428571 | I101: 3.214285714 | J101: 6.428571429 | K101: 10.71428571 | L101: 15.35714286 | M101: 20.35714286 | N101: 25.71428571 | O101: 31.42857143 | P101: 37.48214286 | Q101: 43.875 | R101: 50.60714286 | S101: 57.67857143 | T101: 65.07232143 | U101: 72.78839286 | V101: 80.82678571 | W101: 89.1875 | X101: 97.85441964 | Y101: 106.8275446 | Z101: 116.106875 | AA101: 125.6924107 | AB101: 135.5841518 | AC101: 145.7820982 | AD101: 156.28625 | AE101: 167.0966071 | AF101: 178.2131696 | AG101: 189.6359375 | AH101: 201.3649107 | AI101: 183.4000893 | AJ101: 164.6700446 | AK101: 145.1747768 | AL101: 124.9142857 | AM101: =AM98+AM99-AM100 -> 123.8885714 | AN101: 122.8119196 | AO101: 121.6843304 | AP101: 120.5058036 | AQ101: 119.7763393 | AR101: 119.0137946 | AS101: 118.2181696 | AT101: 117.3894643 | AU101: 117.0026786 | AV101: 116.5997768 | AW101: 116.1807589 | AX101: 115.745625 | AY101: 115.745625 | AZ101: 115.745625 | BA101: 115.745625 | BB101: 115.745625 | BC101: 115.745625 | BD101: 115.745625 | BE101: 115.745625 | BF101: 115.745625 | BG101: 115.745625 | BH101: 115.745625 | BI101: 115.745625 | BJ101: 115.745625 | BK101: 115.745625 | BL101: 115.745625 | BM101: 115.745625 | BN101: 115.745625 | BO101: 115.745625 | BP101: 115.745625 | BQ101: 115.745625 | BR101: 115.745625 | BS101: =BS98+BS99-BS100 -> 115.745625 | BT101: 115.745625 | BU101: 115.745625 | BV101: 115.745625 | BW101: 115.745625 | BX101: 115.745625 | BY101: 115.745625 | BZ101: a
BZ102: a
B103: Net Plant | G103: =G94-G101 -> 30 | H103: 58.92857143 | I103: 86.78571429 | J103: 113.5714286 | K103: 119.2857143 | L103: 124.6428571 | M103: 129.6428571 | N103: 134.2857143 | O103: 138.0714286 | P103: 141.5178571 | Q103: 144.625 | R103: 147.3928571 | S103: 149.3464286 | T103: 150.9776786 | U103: 152.2866071 | V103: 153.2732143 | W103: 153.48625 | X103: 153.3930804 | Y103: 152.9937054 | Z103: 152.288125 | AA103: 151.2763393 | AB103: 149.9583482 | AC103: 148.3341518 | AD103: 146.40375 | AE103: 144.1671429 | AF103: 141.6243304 | AG103: 138.7753125 | AH103: 135.6200893 | AI103: 132.1586607 | AJ103: 129.4624554 | AK103: 127.5314732 | AL103: 126.3657143 | AM103: =AM94-AM101 -> 125.9651786 | AN103: 125.6155804 | AO103: 125.3169196 | AP103: 125.0691964 | AQ103: 124.8724107 | AR103: 124.7087054 | AS103: 124.5780804 | AT103: 124.4805357 | AU103: 124.4160714 | AV103: 124.3677232 | AW103: 124.3354911 | AX103: 124.319375 | AY103: 124.319375 | AZ103: 124.319375 | BA103: 124.319375 | BB103: 124.319375 | BC103: 124.319375 | BD103: 124.319375 | BE103: 124.319375 | BF103: 124.319375 | BG103: 124.319375 | BH103: 124.319375 | BI103: 124.319375 | BJ103: 124.319375 | BK103: 124.319375 | BL103: 124.319375 | BM103: 124.319375 | BN103: 124.319375 | BO103: 124.319375 | BP103: 124.319375 | BQ103: 124.319375 | BR103: 124.319375 | BS103: =BS94-BS101 -> 124.319375 | BT103: 124.319375 | BU103: 124.319375 | BV103: 124.319375 | BW103: 124.319375 | BX103: 124.319375 | BY103: 124.319375 | BZ103: a
BZ104: a
A105: Financing Analysis | BZ105: a
B106: Cash minus debt balance | BZ106: a
C107: Opening balance | G107: =F109 -> 30 | H107: 30 | I107: 30 | J107: 30 | K107: 30 | L107: 30 | M107: 30 | N107: 30 | O107: 30 | P107: 30 | Q107: 30 | R107: 30 | S107: 30 | T107: 30 | U107: 30 | V107: 30 | W107: 30 | X107: 30 | Y107: 30 | Z107: 30 | AA107: 30 | AB107: 30 | AC107: 30 | AD107: 30 | AE107: 30 | AF107: 68.76614327 | AG107: 68.76614327 | AH107: 68.76614327 | AI107: 68.76614327 | AJ107: 126.3044821 | AK107: 126.3044821 | AL107: 126.3044821 | AM107: =AL109 -> 126.3044821 | AN107: 183.4306783 | AO107: 183.4306783 | AP107: 183.4306783 | AQ107: 183.4306783 | AR107: 238.5409183 | AS107: 238.5409183 | AT107: 238.5409183 | AU107: 238.5409183 | AV107: 293.4751483 | AW107: 293.4751483 | AX107: 293.4751483 | AY107: 293.4751483 | AZ107: 348.3014114 | BA107: 348.3014114 | BB107: 348.3014114 | BC107: 348.3014114 | BD107: 403.0869981 | BE107: 403.0869981 | BF107: 403.0869981 | BG107: 403.0869981 | BH107: 457.872649 | BI107: 457.872649 | BJ107: 457.872649 | BK107: 457.872649 | BL107: 512.6582997 | BM107: 512.6582997 | BN107: 512.6582997 | BO107: 512.6582997 | BP107: 567.4439505 | BQ107: 567.4439505 | BR107: 567.4439505 | BS107: =BR109 -> 567.4439505 | BT107: 622.2296013 | BU107: 622.2296013 | BV107: 622.2296013 | BW107: 622.2296013 | BX107: 677.015252 | BY107: 677.015252 | BZ107: a
C108: Add: Cash flow | G108: =G162 -> 0 | H108: 0 | I108: 0 | J108: 0 | K108: 0 | L108: 0 | M108: 0 | N108: 0 | O108: 0 | P108: 0 | Q108: 0 | R108: 0 | S108: 0 | T108: 0 | U108: 0 | V108: 0 | W108: 0 | X108: 0 | Y108: 0 | Z108: 0 | AA108: 0 | AB108: 0 | AC108: 0 | AD108: 0 | AE108: 38.76614327 | AF108: 0 | AG108: 0 | AH108: 0 | AI108: 57.53833885 | AJ108: 0 | AK108: 0 | AL108: 0 | AM108: =AM162 -> 57.12619618 | AN108: 0 | AO108: 0 | AP108: 0 | AQ108: 55.11024001 | AR108: 0 | AS108: 0 | AT108: 0 | AU108: 54.93422999 | AV108: 0 | AW108: 0 | AX108: 0 | AY108: 54.8262631 | AZ108: 0 | BA108: 0 | BB108: 0 | BC108: 54.78558671 | BD108: 0 | BE108: 0 | BF108: 0 | BG108: 54.78565086 | BH108: 0 | BI108: 0 | BJ108: 0 | BK108: 54.78565076 | BL108: 0 | BM108: 0 | BN108: 0 | BO108: 54.78565076 | BP108: 0 | BQ108: 0 | BR108: 0 | BS108: =BS162 -> 54.78565076 | BT108: 0 | BU108: 0 | BV108: 0 | BW108: 54.78565076 | BX108: 0 | BY108: 0 | BZ108: a
C109: Closing balance | F109: =F48-F50 -> 30 | G109: =G107+G108 -> 30 | H109: 30 | I109: 30 | J109: 30 | K109: 30 | L109: 30 | M109: 30 | N109: 30 | O109: 30 | P109: 30 | Q109: 30 | R109: 30 | S109: 30 | T109: 30 | U109: 30 | V109: 30 | W109: 30 | X109: 30 | Y109: 30 | Z109: 30 | AA109: 30 | AB109: 30 | AC109: 30 | AD109: 30 | AE109: 68.76614327 | AF109: 68.76614327 | AG109: 68.76614327 | AH109: 68.76614327 | AI109: 126.3044821 | AJ109: 126.3044821 | AK109: 126.3044821 | AL109: 126.3044821 | AM109: =AM107+AM108 -> 183.4306783 | AN109: 183.4306783 | AO109: 183.4306783 | AP109: 183.4306783 | AQ109: 238.5409183 | AR109: 238.5409183 | AS109: 238.5409183 | AT109: 238.5409183 | AU109: 293.4751483 | AV109: 293.4751483 | AW109: 293.4751483 | AX109: 293.4751483 | AY109: 348.3014114 | AZ109: 348.3014114 | BA109: 348.3014114 | BB109: 348.3014114 | BC109: 403.0869981 | BD109: 403.0869981 | BE109: 403.0869981 | BF109: 403.0869981 | BG109: 457.872649 | BH109: 457.872649 | BI109: 457.872649 | BJ109: 457.872649 | BK109: 512.6582997 | BL109: 512.6582997 | BM109: 512.6582997 | BN109: 512.6582997 | BO109: 567.4439505 | BP109: 567.4439505 | BQ109: 567.4439505 | BR109: 567.4439505 | BS109: =BS107+BS108 -> 622.2296013 | BT109: 622.2296013 | BU109: 622.2296013 | BV109: 622.2296013 | BW109: 677.015252 | BX109: 677.015252 | BY109: 677.015252 | BZ109: a
BZ110: a
B111: Revolving Credit Facility | BZ111: a
C112: Commitment | F112: =$F$37 -> 400 | G112: =$F$112 -> 400 | H112: =$F$112 -> 400 | I112: 400 | J112: 400 | K112: 400 | L112: 400 | M112: 400 | N112: 400 | O112: 400 | P112: 400 | Q112: 400 | R112: 400 | S112: 400 | T112: 400 | U112: 400 | V112: 400 | W112: 400 | X112: 400 | Y112: 400 | Z112: 400 | AA112: 400 | AB112: 400 | AC112: 400 | AD112: 400 | AE112: 400 | AF112: 400 | AG112: 400 | AH112: 400 | AI112: 400 | AJ112: 400 | AK112: 400 | AL112: 400 | AM112: 400 | AN112: 400 | AO112: 400 | AP112: 400 | AQ112: 400 | AR112: 400 | AS112: 400 | AT112: 400 | AU112: 400 | AV112: 400 | AW112: 400 | AX112: 400 | AY112: 400 | AZ112: 400 | BA112: 400 | BB112: 400 | BC112: 400 | BD112: 400 | BE112: 400 | BF112: 400 | BG112: 400 | BH112: 400 | BI112: 400 | BJ112: 400 | BK112: 400 | BL112: 400 | BM112: 400 | BN112: 400 | BO112: 400 | BP112: 400 | BQ112: 400 | BR112: 400 | BS112: 400 | BT112: =$F$112 -> 400 | BU112: 400 | BV112: 400 | BW112: 400 | BX112: 400 | BY112: 400 | BZ112: a
C113: Less: Amount Already Used | G113: =G116 -> 0 | H113: 48.5 | I113: 130.4594866 | J113: 235.5769678 | K113: 357.5026634 | L113: 318.7703884 | M113: 286.0627033 | N113: 260.2648028 | O113: 332.2455083 | P113: 260.5715427 | Q113: 173.655499 | R113: 234.7940448 | S113: 291.1582312 | T113: 192.0274201 | U113: 137.5206401 | V113: 169.4637753 | W113: 207.0939927 | X113: 62.46397512 | Y113: 100.7853351 | Z113: 136.2196626 | AA113: 177.1912092 | AB113: 17.26744931 | AC113: 46.22631293 | AD113: 81.09868966 | AE113: 121.5056514 | AF113: 0 | AG113: 28.35252043 | AH113: 62.8349084 | AI113: 102.8500533 | AJ113: 0 | AK113: 28.03711623 | AL113: 62.74753467 | AM113: =AM116 -> 103.2596361 | AN113: 0 | AO113: 29.38835125 | AP113: 64.51318397 | AQ113: 105.2630708 | AR113: 0 | AS113: 29.4826316 | AT113: 64.64991519 | AU113: 105.4379876 | AV113: 0 | AW113: 29.54427794 | AX113: 64.7364487 | AY113: 105.5452839 | AZ113: 0 | BA113: 29.57231341 | BB113: 64.77267363 | BC113: 105.5857076 | BD113: 0 | BE113: 29.57225025 | BF113: 64.77261017 | BG113: 105.5856439 | BH113: 0 | BI113: 29.57225035 | BJ113: 64.77261027 | BK113: 105.585644 | BL113: 0 | BM113: 29.57225035 | BN113: 64.77261027 | BO113: 105.585644 | BP113: 0 | BQ113: 29.57225035 | BR113: 64.77261027 | BS113: =BS116 -> 105.585644 | BT113: 0 | BU113: 29.57225035 | BV113: 64.77261027 | BW113: 105.585644 | BX113: 0 | BY113: 29.57225035 | BZ113: a
C114: Remaining Amount we can borrow | G114: =G112-G113 -> 400 | H114: 351.5 | I114: 269.5405134 | J114: 164.4230322 | K114: 42.49733656 | L114: 81.22961158 | M114: 113.9372967 | N114: 139.7351972 | O114: 67.75449168 | P114: 139.4284573 | Q114: 226.344501 | R114: 165.2059552 | S114: 108.8417688 | T114: 207.9725799 | U114: 262.4793599 | V114: 230.5362247 | W114: 192.9060073 | X114: 337.5360249 | Y114: 299.2146649 | Z114: 263.7803374 | AA114: 222.8087908 | AB114: 382.7325507 | AC114: 353.7736871 | AD114: 318.9013103 | AE114: 278.4943486 | AF114: 400 | AG114: 371.6474796 | AH114: 337.1650916 | AI114: 297.1499467 | AJ114: 400 | AK114: 371.9628838 | AL114: 337.2524653 | AM114: =AM112-AM113 -> 296.7403639 | AN114: 400 | AO114: 370.6116487 | AP114: 335.486816 | AQ114: 294.7369292 | AR114: 400 | AS114: 370.5173684 | AT114: 335.3500848 | AU114: 294.5620124 | AV114: 400 | AW114: 370.4557221 | AX114: 335.2635513 | AY114: 294.4547161 | AZ114: 400 | BA114: 370.4276866 | BB114: 335.2273264 | BC114: 294.4142924 | BD114: 400 | BE114: 370.4277498 | BF114: 335.2273898 | BG114: 294.4143561 | BH114: 400 | BI114: 370.4277497 | BJ114: 335.2273897 | BK114: 294.414356 | BL114: 400 | BM114: 370.4277497 | BN114: 335.2273897 | BO114: 294.414356 | BP114: 400 | BQ114: 370.4277497 | BR114: 335.2273897 | BS114: =BS112-BS113 -> 294.414356 | BT114: 400 | BU114: 370.4277497 | BV114: 335.2273897 | BW114: 294.414356 | BX114: 400 | BY114: 370.4277497 | BZ114: a
BZ115: a
C116: Opening Balance | G116: =F119 -> 0 | H116: 48.5 | I116: 130.4594866 | J116: 235.5769678 | K116: 357.5026634 | L116: 318.7703884 | M116: 286.0627033 | N116: 260.2648028 | O116: 332.2455083 | P116: 260.5715427 | Q116: 173.655499 | R116: 234.7940448 | S116: 291.1582312 | T116: 192.0274201 | U116: 137.5206401 | V116: 169.4637753 | W116: 207.0939927 | X116: 62.46397512 | Y116: 100.7853351 | Z116: 136.2196626 | AA116: 177.1912092 | AB116: 17.26744931 | AC116: 46.22631293 | AD116: 81.09868966 | AE116: 121.5056514 | AF116: 0 | AG116: 28.35252043 | AH116: 62.8349084 | AI116: 102.8500533 | AJ116: 0 | AK116: 28.03711623 | AL116: 62.74753467 | AM116: =AL119 -> 103.2596361 | AN116: 0 | AO116: 29.38835125 | AP116: 64.51318397 | AQ116: 105.2630708 | AR116: 0 | AS116: 29.4826316 | AT116: 64.64991519 | AU116: 105.4379876 | AV116: 0 | AW116: 29.54427794 | AX116: 64.7364487 | AY116: 105.5452839 | AZ116: 0 | BA116: 29.57231341 | BB116: 64.77267363 | BC116: 105.5857076 | BD116: 0 | BE116: 29.57225025 | BF116: 64.77261017 | BG116: 105.5856439 | BH116: 0 | BI116: 29.57225035 | BJ116: 64.77261027 | BK116: 105.585644 | BL116: 0 | BM116: 29.57225035 | BN116: 64.77261027 | BO116: 105.585644 | BP116: 0 | BQ116: 29.57225035 | BR116: 64.77261027 | BS116: =BR119 -> 105.585644 | BT116: 0 | BU116: 29.57225035 | BV116: 64.77261027 | BW116: 105.585644 | BX116: 0 | BY116: 29.57225035 | BZ116: a
C117: Add: Amount Borrowed | G117: =G160 -> 48.5 | H117: 81.95948661 | I117: 105.1174812 | J117: 121.9256956 | K117: 0 | L117: 0 | M117: 0 | N117: 71.98070555 | O117: 0 | P117: 0 | Q117: 61.13854587 | R117: 56.36418637 | S117: 0 | T117: 0 | U117: 31.94313514 | V117: 37.6302174 | W117: 0 | X117: 38.32135995 | Y117: 35.43432751 | Z117: 40.97154666 | AA117: 0 | AB117: 28.95886362 | AC117: 34.87237673 | AD117: 40.40696174 | AE117: 0 | AF117: 28.35252043 | AG117: 34.48238798 | AH117: 40.01514491 | AI117: 0 | AJ117: 28.03711623 | AK117: 34.71041845 | AL117: 40.51210142 | AM117: =AM160 -> 0 | AN117: 29.38835125 | AO117: 35.12483272 | AP117: 40.74988683 | AQ117: 0 | AR117: 29.4826316 | AS117: 35.16728359 | AT117: 40.7880724 | AU117: 0 | AV117: 29.54427794 | AW117: 35.19217077 | AX117: 40.80883517 | AY117: 0 | AZ117: 29.57231341 | BA117: 35.20036022 | BB117: 40.81303399 | BC117: 0 | BD117: 29.57225025 | BE117: 35.20035992 | BF117: 40.81303369 | BG117: 0 | BH117: 29.57225035 | BI117: 35.20035992 | BJ117: 40.81303369 | BK117: 0 | BL117: 29.57225035 | BM117: 35.20035992 | BN117: 40.81303369 | BO117: 0 | BP117: 29.57225035 | BQ117: 35.20035992 | BR117: 40.81303369 | BS117: =BS160 -> 0 | BT117: 29.57225035 | BU117: 35.20035992 | BV117: 40.81303369 | BW117: 0 | BX117: 29.57225035 | BY117: 35.20035992 | BZ117: a
C118: Less: Amount Repaid | G118: =G161 -> 0 | H118: 0 | I118: 0 | J118: 0 | K118: 38.73227502 | L118: 32.70768507 | M118: 25.79790058 | N118: 0 | O118: 71.67396557 | P118: 86.91604379 | Q118: 0 | R118: 0 | S118: 99.13081106 | T118: 54.50678001 | U118: 0 | V118: 0 | W118: 144.6300175 | X118: 0 | Y118: 0 | Z118: 0 | AA118: 159.9237599 | AB118: 0 | AC118: 0 | AD118: 0 | AE118: 121.5056514 | AF118: 0 | AG118: 0 | AH118: 0 | AI118: 102.8500533 | AJ118: 0 | AK118: 0 | AL118: 0 | AM118: =AM161 -> 103.2596361 | AN118: 0 | AO118: 0 | AP118: 0 | AQ118: 105.2630708 | AR118: 0 | AS118: 0 | AT118: 0 | AU118: 105.4379876 | AV118: 0 | AW118: 0 | AX118: 0 | AY118: 105.5452839 | AZ118: 0 | BA118: 0 | BB118: 0 | BC118: 105.5857076 | BD118: 0 | BE118: 0 | BF118: 0 | BG118: 105.5856439 | BH118: 0 | BI118: 0 | BJ118: 0 | BK118: 105.585644 | BL118: 0 | BM118: 0 | BN118: 0 | BO118: 105.585644 | BP118: 0 | BQ118: 0 | BR118: 0 | BS118: =BS161 -> 105.585644 | BT118: 0 | BU118: 0 | BV118: 0 | BW118: 105.585644 | BX118: 0 | BY118: 0 | BZ118: a
C119: Closing Balance | G119: =G116+G117-G118 -> 48.5 | H119: 130.4594866 | I119: 235.5769678 | J119: 357.5026634 | K119: 318.7703884 | L119: 286.0627033 | M119: 260.2648028 | N119: 332.2455083 | O119: 260.5715427 | P119: 173.655499 | Q119: 234.7940448 | R119: 291.1582312 | S119: 192.0274201 | T119: 137.5206401 | U119: 169.4637753 | V119: 207.0939927 | W119: 62.46397512 | X119: 100.7853351 | Y119: 136.2196626 | Z119: 177.1912092 | AA119: 17.26744931 | AB119: 46.22631293 | AC119: 81.09868966 | AD119: 121.5056514 | AE119: 0 | AF119: 28.35252043 | AG119: 62.8349084 | AH119: 102.8500533 | AI119: 0 | AJ119: 28.03711623 | AK119: 62.74753467 | AL119: 103.2596361 | AM119: =AM116+AM117-AM118 -> 0 | AN119: 29.38835125 | AO119: 64.51318397 | AP119: 105.2630708 | AQ119: 0 | AR119: 29.4826316 | AS119: 64.64991519 | AT119: 105.4379876 | AU119: 0 | AV119: 29.54427794 | AW119: 64.7364487 | AX119: 105.5452839 | AY119: 0 | AZ119: 29.57231341 | BA119: 64.77267363 | BB119: 105.5857076 | BC119: 0 | BD119: 29.57225025 | BE119: 64.77261017 | BF119: 105.5856439 | BG119: 0 | BH119: 29.57225035 | BI119: 64.77261027 | BJ119: 105.585644 | BK119: 0 | BL119: 29.57225035 | BM119: 64.77261027 | BN119: 105.585644 | BO119: 0 | BP119: 29.57225035 | BQ119: 64.77261027 | BR119: 105.585644 | BS119: =BS116+BS117-BS118 -> 0 | BT119: 29.57225035 | BU119: 64.77261027 | BV119: 105.585644 | BW119: 0 | BX119: 29.57225035 | BY119: 64.77261027 | BZ119: a
BZ120: a
C121: Interest | E121: =$F$38/12*E3 -> 0.0125 | G121: =G116*$E$121 -> 0 | H121: 0.60625 | I121: 1.630743583 | J121: 2.944712098 | K121: 4.468783293 | L121: 3.984629855 | M121: 3.575783792 | N121: 3.253310035 | O121: 4.153068854 | P121: 3.257144284 | Q121: 2.170693737 | R121: 2.93492556 | S121: 3.63947789 | T121: 2.400342752 | U121: 1.719008002 | V121: 2.118297191 | W121: 2.588674908 | X121: 0.780799689 | Y121: 1.259816688 | Z121: 1.702745782 | AA121: 2.214890116 | AB121: 0.2158431163 | AC121: 0.5778289116 | AD121: 1.013733621 | AE121: 1.518820643 | AF121: 0 | AG121: 0.3544065053 | AH121: 0.785436355 | AI121: 1.285625666 | AJ121: 0 | AK121: 0.3504639528 | AL121: 0.7843441834 | AM121: =AM116*$E$121 -> 1.290745451 | AN121: 0 | AO121: 0.3673543907 | AP121: 0.8064147996 | AQ121: 1.315788385 | AR121: 0 | AS121: 0.368532895 | AT121: 0.8081239398 | AU121: 1.317974845 | AV121: 0 | AW121: 0.3693034742 | AX121: 0.8092056088 | AY121: 1.319316048 | AZ121: 0 | BA121: 0.3696539176 | BB121: 0.8096584204 | BC121: 1.319821345 | BD121: 0 | BE121: 0.3696531281 | BF121: 0.8096576271 | BG121: 1.319820548 | BH121: 0 | BI121: 0.3696531294 | BJ121: 0.8096576284 | BK121: 1.31982055 | BL121: 0 | BM121: 0.3696531293 | BN121: 0.8096576284 | BO121: 1.31982055 | BP121: 0 | BQ121: 0.3696531293 | BR121: 0.8096576284 | BS121: =BS116*$E$121 -> 1.31982055 | BT121: 0 | BU121: 0.3696531293 | BV121: 0.8096576284 | BW121: 1.31982055 | BX121: 0 | BY121: 0.3696531293 | BZ121: a
C122: Commitment Fees | E122: =F39/4 -> 0.00625 | G122: =$E$122*G114 -> 2.5 | H122: 2.196875 | I122: 1.684628209 | J122: 1.027643951 | K122: 0.2656083535 | L122: 0.5076850724 | M122: 0.7121081041 | N122: 0.8733449827 | O122: 0.423465573 | P122: 0.8714278578 | Q122: 1.414653132 | R122: 1.03253722 | S122: 0.680261055 | T122: 1.299828624 | U122: 1.640495999 | V122: 1.440851405 | W122: 1.205662546 | X122: 2.109600155 | Y122: 1.870091656 | Z122: 1.648627109 | AA122: 1.392554942 | AB122: 2.392078442 | AC122: 2.211085544 | AD122: 1.99313319 | AE122: 1.740589679 | AF122: 2.5 | AG122: 2.322796747 | AH122: 2.107281822 | AI122: 1.857187167 | AJ122: 2.5 | AK122: 2.324768024 | AL122: 2.107827908 | AM122: =$E$122*AM114 -> 1.854627274 | AN122: 2.5 | AO122: 2.316322805 | AP122: 2.0967926 | AQ122: 1.842105807 | AR122: 2.5 | AS122: 2.315733552 | AT122: 2.09593803 | AU122: 1.841012578 | AV122: 2.5 | AW122: 2.315348263 | AX122: 2.095397196 | AY122: 1.840341976 | AZ122: 2.5 | BA122: 2.315173041 | BB122: 2.09517079 | BC122: 1.840089327 | BD122: 2.5 | BE122: 2.315173436 | BF122: 2.095171186 | BG122: 1.840089726 | BH122: 2.5 | BI122: 2.315173435 | BJ122: 2.095171186 | BK122: 1.840089725 | BL122: 2.5 | BM122: 2.315173435 | BN122: 2.095171186 | BO122: 1.840089725 | BP122: 2.5 | BQ122: 2.315173435 | BR122: 2.095171186 | BS122: =$E$122*BS114 -> 1.840089725 | BT122: 2.5 | BU122: 2.315173435 | BV122: 2.095171186 | BW122: 1.840089725 | BX122: 2.5 | BY122: 2.315173435 | BZ122: a
C123: Upfront Fee | E123: =F40 -> 0.01 | G123: =G112*$E$123 -> 4 | BZ123: a
BZ124: a
A125: Profit and Loss Statement
B126: Revenues | G126: =G61 -> 15 | H126: 60 | I126: 90 | J126: 135 | K126: 16.5 | L126: 66 | M126: 99 | N126: 148.5 | O126: 18.15 | P126: 72.6 | Q126: 108.9 | R126: 163.35 | S126: 19.965 | T126: 79.86 | U126: 119.79 | V126: 179.685 | W126: 21.9615 | X126: 87.846 | Y126: 131.769 | Z126: 197.6535 | AA126: 21.9615 | AB126: 87.846 | AC126: 131.769 | AD126: 197.6535 | AE126: 21.9615 | AF126: 87.846 | AG126: 131.769 | AH126: 197.6535 | AI126: 21.9615 | AJ126: 87.846 | AK126: 131.769 | AL126: 197.6535 | AM126: =AM61 -> 21.9615 | AN126: 87.846 | AO126: 131.769 | AP126: 197.6535 | AQ126: 21.9615 | AR126: 87.846 | AS126: 131.769 | AT126: 197.6535 | AU126: 21.9615 | AV126: 87.846 | AW126: 131.769 | AX126: 197.6535 | AY126: 21.9615 | AZ126: 87.846 | BA126: 131.769 | BB126: 197.6535 | BC126: 21.9615 | BD126: 87.846 | BE126: 131.769 | BF126: 197.6535 | BG126: 21.9615 | BH126: 87.846 | BI126: 131.769 | BJ126: 197.6535 | BK126: 21.9615 | BL126: 87.846 | BM126: 131.769 | BN126: 197.6535 | BO126: 21.9615 | BP126: 87.846 | BQ126: 131.769 | BR126: 197.6535 | BS126: =BS61 -> 21.9615 | BT126: 87.846 | BU126: 131.769 | BV126: 197.6535 | BW126: 21.9615 | BX126: 87.846 | BY126: 131.769 | CA126: =SUMIF($5:$5,CA$2,126:126) -> 300 | CB126: 330 | CC126: 363 | CD126: 399.3 | CE126: 439.23 | CF126: 439.23 | CG126: 439.23 | CH126: 439.23 | CI126: 439.23 | CJ126: 439.23 | CK126: 439.23 | CL126: 439.23
B127: COGS | G127: =G64 -> 12 | H127: =H64 -> 48 | I127: 72 | J127: 108 | K127: 13.2 | L127: 52.8 | M127: 79.2 | N127: 118.8 | O127: 13.2495 | P127: 52.998 | Q127: 79.497 | R127: 119.2455 | S127: 14.57445 | T127: 58.2978 | U127: 87.4467 | V127: 131.17005 | W127: 16.031895 | X127: 64.12758 | Y127: 96.19137 | Z127: 144.287055 | AA127: 16.031895 | AB127: 64.12758 | AC127: 96.19137 | AD127: 144.287055 | AE127: 16.031895 | AF127: 64.12758 | AG127: 96.19137 | AH127: 144.287055 | AI127: 16.031895 | AJ127: 64.12758 | AK127: 96.19137 | AL127: 144.287055 | AM127: 16.031895 | AN127: 64.12758 | AO127: 96.19137 | AP127: 144.287055 | AQ127: 16.031895 | AR127: 64.12758 | AS127: 96.19137 | AT127: 144.287055 | AU127: 16.031895 | AV127: 64.12758 | AW127: 96.19137 | AX127: 144.287055 | AY127: 16.031895 | AZ127: 64.12758 | BA127: 96.19137 | BB127: 144.287055 | BC127: 16.031895 | BD127: 64.12758 | BE127: 96.19137 | BF127: 144.287055 | BG127: 16.031895 | BH127: 64.12758 | BI127: 96.19137 | BJ127: 144.287055 | BK127: 16.031895 | BL127: 64.12758 | BM127: 96.19137 | BN127: 144.287055 | BO127: 16.031895 | BP127: 64.12758 | BQ127: 96.19137 | BR127: 144.287055 | BS127: 16.031895 | BT127: =BT64 -> 64.12758 | BU127: 96.19137 | BV127: 144.287055 | BW127: 16.031895 | BX127: 64.12758 | BY127: 96.19137 | CA127: 240 | CB127: 264 | CC127: 264.99 | CD127: 291.489 | CE127: 320.6379 | CF127: 320.6379 | CG127: 320.6379 | CH127: 320.6379 | CI127: 320.6379 | CJ127: 320.6379 | CK127: 320.6379 | CL127: 320.6379
C128: EBITDA | G128: =G126-G127 -> 3 | H128: =H126-H127 -> 12 | I128: 18 | J128: 27 | K128: 3.3 | L128: 13.2 | M128: 19.8 | N128: 29.7 | O128: 4.9005 | P128: 19.602 | Q128: 29.403 | R128: 44.1045 | S128: 5.39055 | T128: 21.5622 | U128: 32.3433 | V128: 48.51495 | W128: 5.929605 | X128: 23.71842 | Y128: 35.57763 | Z128: 53.366445 | AA128: 5.929605 | AB128: 23.71842 | AC128: 35.57763 | AD128: 53.366445 | AE128: 5.929605 | AF128: 23.71842 | AG128: 35.57763 | AH128: 53.366445 | AI128: 5.929605 | AJ128: 23.71842 | AK128: 35.57763 | AL128: 53.366445 | AM128: 5.929605 | AN128: 23.71842 | AO128: 35.57763 | AP128: 53.366445 | AQ128: 5.929605 | AR128: 23.71842 | AS128: 35.57763 | AT128: 53.366445 | AU128: 5.929605 | AV128: 23.71842 | AW128: 35.57763 | AX128: 53.366445 | AY128: 5.929605 | AZ128: 23.71842 | BA128: 35.57763 | BB128: 53.366445 | BC128: 5.929605 | BD128: 23.71842 | BE128: 35.57763 | BF128: 53.366445 | BG128: 5.929605 | BH128: 23.71842 | BI128: 35.57763 | BJ128: 53.366445 | BK128: 5.929605 | BL128: 23.71842 | BM128: 35.57763 | BN128: 53.366445 | BO128: 5.929605 | BP128: 23.71842 | BQ128: 35.57763 | BR128: 53.366445 | BS128: 5.929605 | BT128: =BT126-BT127 -> 23.71842 | BU128: 35.57763 | BV128: 53.366445 | BW128: 5.929605 | BX128: 23.71842 | BY128: 35.57763 | CA128: 60 | CB128: 66 | CC128: 98.01 | CD128: 107.811 | CE128: 118.5921 | CF128: 118.5921 | CG128: 118.5921 | CH128: 118.5921 | CI128: 118.5921 | CJ128: 118.5921 | CK128: 118.5921 | CL128: 118.5921
B129: Less: Depreciation on Development | G129: =G99 -> 0 | H129: 1.071428571 | I129: 2.142857143 | J129: 3.214285714 | K129: 4.285714286 | L129: 4.642857143 | M129: 5 | N129: 5.357142857 | O129: 5.714285714 | P129: 6.053571429 | Q129: 6.392857143 | R129: 6.732142857 | S129: 7.071428571 | T129: 7.39375 | U129: 7.716071429 | V129: 8.038392857 | W129: 8.360714286 | X129: 8.666919643 | Y129: 8.973125 | Z129: 9.279330357 | AA129: 9.585535714 | AB129: 9.891741071 | AC129: 10.19794643 | AD129: 10.50415179 | AE129: 10.81035714 | AF129: 11.1165625 | AG129: 11.42276786 | AH129: 11.72897321 | AI129: 12.03517857 | AJ129: 11.26995536 | AK129: 10.50473214 | AL129: 9.739508929 | AM129: =AM99 -> 8.974285714 | AN129: 8.923348214 | AO129: 8.872410714 | AP129: 8.821473214 | AQ129: 8.770535714 | AR129: 8.737455357 | AS129: 8.704375 | AT129: 8.671294643 | AU129: 8.638214286 | AV129: 8.622098214 | AW129: 8.605982143 | AX129: 8.589866071 | AY129: 8.57375 | AZ129: 8.57375 | BA129: 8.57375 | BB129: 8.57375 | BC129: 8.57375 | BD129: 8.57375 | BE129: 8.57375 | BF129: 8.57375 | BG129: 8.57375 | BH129: 8.57375 | BI129: 8.57375 | BJ129: 8.57375 | BK129: 8.57375 | BL129: 8.57375 | BM129: 8.57375 | BN129: 8.57375 | BO129: 8.57375 | BP129: 8.57375 | BQ129: 8.57375 | BR129: 8.57375 | BS129: =BS99 -> 8.57375 | BT129: 8.57375 | BU129: 8.57375 | BV129: 8.57375 | BW129: 8.57375 | BX129: 8.57375 | BY129: 8.57375 | CA129: 6.428571429 | CB129: 19.28571429 | CC129: 24.89285714 | CD129: 30.21964286 | CE129: 35.28008929 | CF129: 40.179375 | CG129: 45.07866071 | CH129: 43.549375 | CI129: 35.59151786 | CJ129: 34.88366071 | CK129: 34.45616071 | CL129: 34.295
C130: EBIT | G130: =G128-G129 -> 3 | H130: 10.92857143 | I130: 15.85714286 | J130: 23.78571429 | K130: -0.9857142857 | L130: 8.557142857 | M130: 14.8 | N130: 24.34285714 | O130: -0.8137857143 | P130: 13.54842857 | Q130: 23.01014286 | R130: 37.37235714 | S130: -1.680878571 | T130: 14.16845 | U130: 24.62722857 | V130: 40.47655714 | W130: -2.431109286 | X130: 15.05150036 | Y130: 26.604505 | Z130: 44.08711464 | AA130: -3.655930714 | AB130: 13.82667893 | AC130: 25.37968357 | AD130: 42.86229321 | AE130: -4.880752143 | AF130: 12.6018575 | AG130: 24.15486214 | AH130: 41.63747179 | AI130: -6.105573571 | AJ130: 12.44846464 | AK130: 25.07289786 | AL130: 43.62693607 | AM130: =AM128-AM129 -> -3.044680714 | AN130: 14.79507179 | AO130: 26.70521929 | AP130: 44.54497179 | AQ130: -2.840930714 | AR130: 14.98096464 | AS130: 26.873255 | AT130: 44.69515036 | AU130: -2.708609286 | AV130: 15.09632179 | AW130: 26.97164786 | AX130: 44.77657893 | AY130: -2.644145 | AZ130: 15.14467 | BA130: 27.00388 | BB130: 44.792695 | BC130: -2.644145 | BD130: 15.14467 | BE130: 27.00388 | BF130: 44.792695 | BG130: -2.644145 | BH130: 15.14467 | BI130: 27.00388 | BJ130: 44.792695 | BK130: -2.644145 | BL130: 15.14467 | BM130: 27.00388 | BN130: 44.792695 | BO130: -2.644145 | BP130: 15.14467 | BQ130: 27.00388 | BR130: 44.792695 | BS130: =BS128-BS129 -> -2.644145 | BT130: 15.14467 | BU130: 27.00388 | BV130: 44.792695 | BW130: -2.644145 | BX130: 15.14467 | BY130: 27.00388 | CA130: 53.57142857 | CB130: 46.71428571 | CC130: 73.11714286 | CD130: 77.59135714 | CE130: 83.31201071 | CF130: 78.412725 | CG130: 73.51343929 | CH130: 75.042725 | CI130: 83.00058214 | CJ130: 83.70843929 | CK130: 84.13593929 | CL130: 84.2971
B131: Less: Interest Expense | G131: =G121 -> 0 | H131: 0.60625 | I131: 1.630743583 | J131: 2.944712098 | K131: 4.468783293 | L131: 3.984629855 | M131: 3.575783792 | N131: 3.253310035 | O131: 4.153068854 | P131: 3.257144284 | Q131: 2.170693737 | R131: 2.93492556 | S131: 3.63947789 | T131: 2.400342752 | U131: 1.719008002 | V131: 2.118297191 | W131: 2.588674908 | X131: 0.780799689 | Y131: 1.259816688 | Z131: 1.702745782 | AA131: 2.214890116 | AB131: 0.2158431163 | AC131: 0.5778289116 | AD131: 1.013733621 | AE131: 1.518820643 | AF131: 0 | AG131: 0.3544065053 | AH131: 0.785436355 | AI131: 1.285625666 | AJ131: 0 | AK131: 0.3504639528 | AL131: 0.7843441834 | AM131: =AM121 -> 1.290745451 | AN131: 0 | AO131: 0.3673543907 | AP131: 0.8064147996 | AQ131: 1.315788385 | AR131: 0 | AS131: 0.368532895 | AT131: 0.8081239398 | AU131: 1.317974845 | AV131: 0 | AW131: 0.3693034742 | AX131: 0.8092056088 | AY131: 1.319316048 | AZ131: 0 | BA131: 0.3696539176 | BB131: 0.8096584204 | BC131: 1.319821345 | BD131: 0 | BE131: 0.3696531281 | BF131: 0.8096576271 | BG131: 1.319820548 | BH131: 0 | BI131: 0.3696531294 | BJ131: 0.8096576284 | BK131: 1.31982055 | BL131: 0 | BM131: 0.3696531293 | BN131: 0.8096576284 | BO131: 1.31982055 | BP131: 0 | BQ131: 0.3696531293 | BR131: 0.8096576284 | BS131: =BS121 -> 1.31982055 | BT131: 0 | BU131: 0.3696531293 | BV131: 0.8096576284 | BW131: 1.31982055 | BX131: 0 | BY131: 0.3696531293 | CA131: 5.18170568 | CB131: 15.28250697 | CC131: 12.51583244 | CD131: 9.877125834 | CE131: 6.332037068 | CF131: 4.022295764 | CG131: 2.658663503 | CH131: 2.420433803 | CI131: 2.464514641 | CJ131: 2.49244522 | CK131: 2.496483928 | CL131: 2.498628386
B132: Less: Fees | G132: =G122+G123 -> 6.5 | H132: 2.196875 | I132: 1.684628209 | J132: 1.027643951 | K132: 0.2656083535 | L132: 0.5076850724 | M132: 0.7121081041 | N132: 0.8733449827 | O132: 0.423465573 | P132: 0.8714278578 | Q132: 1.414653132 | R132: 1.03253722 | S132: 0.680261055 | T132: 1.299828624 | U132: 1.640495999 | V132: 1.440851405 | W132: 1.205662546 | X132: 2.109600155 | Y132: 1.870091656 | Z132: 1.648627109 | AA132: 1.392554942 | AB132: 2.392078442 | AC132: 2.211085544 | AD132: 1.99313319 | AE132: 1.740589679 | AF132: 2.5 | AG132: 2.322796747 | AH132: 2.107281822 | AI132: 1.857187167 | AJ132: 2.5 | AK132: 2.324768024 | AL132: 2.107827908 | AM132: =AM122+AM123 -> 1.854627274 | AN132: 2.5 | AO132: 2.316322805 | AP132: 2.0967926 | AQ132: 1.842105807 | AR132: 2.5 | AS132: 2.315733552 | AT132: 2.09593803 | AU132: 1.841012578 | AV132: 2.5 | AW132: 2.315348263 | AX132: 2.095397196 | AY132: 1.840341976 | AZ132: 2.5 | BA132: 2.315173041 | BB132: 2.09517079 | BC132: 1.840089327 | BD132: 2.5 | BE132: 2.315173436 | BF132: 2.095171186 | BG132: 1.840089726 | BH132: 2.5 | BI132: 2.315173435 | BJ132: 2.095171186 | BK132: 1.840089725 | BL132: 2.5 | BM132: 2.315173435 | BN132: 2.095171186 | BO132: 1.840089725 | BP132: 2.5 | BQ132: 2.315173435 | BR132: 2.095171186 | BS132: =BS122+BS123 -> 1.840089725 | BT132: 2.5 | BU132: 2.315173435 | BV132: 2.095171186 | BW132: 1.840089725 | BX132: 2.5 | BY132: 2.315173435 | CA132: 11.40914716 | CB132: 2.358746513 | CC132: 3.742083782 | CD132: 5.061437083 | CE132: 6.833981466 | CF132: 7.988852118 | CG132: 8.670668249 | CH132: 8.789783099 | CI132: 8.767742679 | CJ132: 8.75377739 | CK132: 8.751758036 | CL132: 8.750685807
C133: EBT | G133: =G130-G131-G132 -> -3.5 | H133: 8.125446429 | I133: 12.54177107 | J133: 19.81335824 | K133: -5.720105932 | L133: 4.06482793 | M133: 10.5121081 | N133: 20.21620213 | O133: -5.390320141 | P133: 9.419856429 | Q133: 19.42479599 | R133: 33.40489436 | S133: -6.000617516 | T133: 10.46827862 | U133: 21.26772457 | V133: 36.91740855 | W133: -6.22544674 | X133: 12.16110051 | Y133: 23.47459666 | Z133: 40.73574175 | AA133: -7.263375772 | AB133: 11.21875737 | AC133: 22.59076912 | AD133: 39.8554264 | AE133: -8.140162464 | AF133: 10.1018575 | AG133: 21.47765889 | AH133: 38.74475361 | AI133: -9.248386405 | AJ133: 9.948464643 | AK133: 22.39766588 | AL133: 40.73476398 | AM133: =AM130-AM131-AM132 -> -6.19005344 | AN133: 12.29507179 | AO133: 24.02154209 | AP133: 41.64176439 | AQ133: -5.998824907 | AR133: 12.48096464 | AS133: 24.18898855 | AT133: 41.79108839 | AU133: -5.867596708 | AV133: 12.59632179 | AW133: 24.28699612 | AX133: 41.87197612 | AY133: -5.803803024 | AZ133: 12.64467 | BA133: 24.31905304 | BB133: 41.88786579 | BC133: -5.804055673 | BD133: 12.64467 | BE133: 24.31905344 | BF133: 41.88786619 | BG133: -5.804055274 | BH133: 12.64467 | BI133: 24.31905344 | BJ133: 41.88786619 | BK133: -5.804055275 | BL133: 12.64467 | BM133: 24.31905344 | BN133: 41.88786619 | BO133: -5.804055275 | BP133: 12.64467 | BQ133: 24.31905344 | BR133: 41.88786619 | BS133: =BS130-BS131-BS132 -> -5.804055275 | BT133: 12.64467 | BU133: 24.31905344 | BV133: 41.88786619 | BW133: -5.804055275 | BX133: 12.64467 | BY133: 24.31905344 | CA133: 36.98057573 | CB133: 29.07303223 | CC133: 56.85922664 | CD133: 62.65279423 | CE133: 70.14599218 | CF133: 66.40157712 | CG133: 62.18410753 | CH133: 63.8325081 | CI133: 71.76832482 | CJ133: 72.46221668 | CK133: 72.88769732 | CL133: 73.04778581
B134: NOL Balance | CA134: 0 | CB134: 0 | CC134: 0 | CD134: 0 | CE134: 0 | CF134: 0 | CG134: 0 | CH134: 0 | CI134: 0 | CJ134: 0 | CK134: 0 | CL134: 0
B135: Opening NOL | G135: =F138 -> 0 | H135: =G138 -> 3.5 | I135: =H138 -> 0 | J135: 0 | K135: 0 | L135: 5.720105932 | M135: 1.655278003 | N135: 0 | O135: 0 | P135: 5.390320141 | Q135: 0 | R135: 0 | S135: 0 | T135: 6.000617516 | U135: 0 | V135: 0 | W135: 0 | X135: 6.22544674 | Y135: 0 | Z135: 0 | AA135: 0 | AB135: 7.263375772 | AC135: 0 | AD135: 0 | AE135: 0 | AF135: 8.140162464 | AG135: 0 | AH135: 0 | AI135: 0 | AJ135: 9.248386405 | AK135: 0 | AL135: 0 | AM135: 0 | AN135: 6.19005344 | AO135: =AN138 -> 0 | AP135: 0 | AQ135: 0 | AR135: 5.998824907 | AS135: 0 | AT135: 0 | AU135: 0 | AV135: 5.867596708 | AW135: 0 | AX135: 0 | AY135: 0 | AZ135: 5.803803024 | BA135: 0 | BB135: 0 | BC135: 0 | BD135: 5.804055673 | BE135: 0 | BF135: 0 | BG135: 0 | BH135: 5.804055274 | BI135: 0 | BJ135: 0 | BK135: 0 | BL135: 5.804055275 | BM135: 0 | BN135: 0 | BO135: 0 | BP135: 5.804055275 | BQ135: 0 | BR135: 0 | BS135: 0 | BT135: 5.804055275 | BU135: 0 | BV135: 0 | BW135: 0 | BX135: 5.804055275 | BY135: 0 | CA135: 3.5 | CB135: 7.375383935 | CC135: 5.390320141 | CD135: 6.000617516 | CE135: 6.22544674 | CF135: 7.263375772 | CG135: 8.140162464 | CH135: 9.248386405 | CI135: 6.19005344 | CJ135: 5.998824907 | CK135: 5.867596708 | CL135: 5.803803024
B136: Add: Negative EBT | G136: =MAX(-G133,0) -> 3.5 | H136: 0 | I136: 0 | J136: 0 | K136: 5.720105932 | L136: 0 | M136: 0 | N136: 0 | O136: 5.390320141 | P136: 0 | Q136: 0 | R136: 0 | S136: 6.000617516 | T136: 0 | U136: 0 | V136: 0 | W136: 6.22544674 | X136: 0 | Y136: 0 | Z136: 0 | AA136: 7.263375772 | AB136: 0 | AC136: 0 | AD136: 0 | AE136: 8.140162464 | AF136: 0 | AG136: 0 | AH136: 0 | AI136: 9.248386405 | AJ136: 0 | AK136: 0 | AL136: 0 | AM136: =MAX(-AM133,0) -> 6.19005344 | AN136: 0 | AO136: 0 | AP136: 0 | AQ136: 5.998824907 | AR136: 0 | AS136: 0 | AT136: 0 | AU136: 5.867596708 | AV136: 0 | AW136: 0 | AX136: 0 | AY136: 5.803803024 | AZ136: 0 | BA136: 0 | BB136: 0 | BC136: 5.804055673 | BD136: 0 | BE136: 0 | BF136: 0 | BG136: 5.804055274 | BH136: 0 | BI136: 0 | BJ136: 0 | BK136: 5.804055275 | BL136: 0 | BM136: 0 | BN136: 0 | BO136: 5.804055275 | BP136: 0 | BQ136: 0 | BR136: 0 | BS136: =MAX(-BS133,0) -> 5.804055275 | BT136: 0 | BU136: 0 | BV136: 0 | BW136: 5.804055275 | BX136: 0 | BY136: 0 | CA136: =SUMIF($5:$5,CA$2,136:136) -> 3.5 | CB136: 5.720105932 | CC136: 5.390320141 | CD136: 6.000617516 | CE136: 6.22544674 | CF136: 7.263375772 | CG136: 8.140162464 | CH136: 9.248386405 | CI136: 6.19005344 | CJ136: 5.998824907 | CK136: 5.867596708 | CL136: 5.803803024
B137: Less: Positive EBT applied to NOL | G137: =MIN(G135,MAX(G133,0)) -> 0 | H137: 3.5 | I137: 0 | J137: 0 | K137: 0 | L137: 4.06482793 | M137: 1.655278003 | N137: 0 | O137: 0 | P137: 5.390320141 | Q137: 0 | R137: 0 | S137: 0 | T137: 6.000617516 | U137: 0 | V137: 0 | W137: 0 | X137: 6.22544674 | Y137: 0 | Z137: 0 | AA137: 0 | AB137: 7.263375772 | AC137: 0 | AD137: 0 | AE137: 0 | AF137: 8.140162464 | AG137: 0 | AH137: 0 | AI137: 0 | AJ137: 9.248386405 | AK137: 0 | AL137: 0 | AM137: =MIN(AM135,MAX(AM133,0)) -> 0 | AN137: 6.19005344 | AO137: 0 | AP137: 0 | AQ137: 0 | AR137: 5.998824907 | AS137: 0 | AT137: 0 | AU137: 0 | AV137: 5.867596708 | AW137: 0 | AX137: 0 | AY137: 0 | AZ137: 5.803803024 | BA137: 0 | BB137: 0 | BC137: 0 | BD137: 5.804055673 | BE137: 0 | BF137: 0 | BG137: 0 | BH137: 5.804055274 | BI137: 0 | BJ137: 0 | BK137: 0 | BL137: 5.804055275 | BM137: 0 | BN137: 0 | BO137: 0 | BP137: 5.804055275 | BQ137: 0 | BR137: 0 | BS137: =MIN(BS135,MAX(BS133,0)) -> 0 | BT137: 5.804055275 | BU137: 0 | BV137: 0 | BW137: 0 | BX137: 5.804055275 | BY137: 0 | CA137: 3.5 | CB137: 5.720105932 | CC137: 5.390320141 | CD137: 6.000617516 | CE137: 6.22544674 | CF137: 7.263375772 | CG137: 8.140162464 | CH137: 9.248386405 | CI137: 6.19005344 | CJ137: 5.998824907 | CK137: 5.867596708 | CL137: 5.803803024
B138: Closing Balance | G138: =G135+G136-G137 -> 3.5 | H138: 0 | I138: 0 | J138: 0 | K138: 5.720105932 | L138: 1.655278003 | M138: 0 | N138: 0 | O138: 5.390320141 | P138: 0 | Q138: 0 | R138: 0 | S138: 6.000617516 | T138: 0 | U138: 0 | V138: 0 | W138: 6.22544674 | X138: 0 | Y138: 0 | Z138: 0 | AA138: 7.263375772 | AB138: 0 | AC138: 0 | AD138: 0 | AE138: 8.140162464 | AF138: 0 | AG138: 0 | AH138: 0 | AI138: 9.248386405 | AJ138: 0 | AK138: 0 | AL138: 0 | AM138: =AM135+AM136-AM137 -> 6.19005344 | AN138: 0 | AO138: 0 | AP138: 0 | AQ138: 5.998824907 | AR138: 0 | AS138: 0 | AT138: 0 | AU138: 5.867596708 | AV138: 0 | AW138: 0 | AX138: 0 | AY138: 5.803803024 | AZ138: 0 | BA138: 0 | BB138: 0 | BC138: 5.804055673 | BD138: 0 | BE138: 0 | BF138: 0 | BG138: 5.804055274 | BH138: 0 | BI138: 0 | BJ138: 0 | BK138: 5.804055275 | BL138: 0 | BM138: 0 | BN138: 0 | BO138: 5.804055275 | BP138: 0 | BQ138: 0 | BR138: 0 | BS138: =BS135+BS136-BS137 -> 5.804055275 | BT138: 0 | BU138: 0 | BV138: 0 | BW138: 5.804055275 | BX138: 0 | BY138: 0 | CA138: 3.5 | CB138: 7.375383935 | CC138: 5.390320141 | CD138: 6.000617516 | CE138: 6.22544674 | CF138: 7.263375772 | CG138: 8.140162464 | CH138: 9.248386405 | CI138: 6.19005344 | CJ138: 5.998824907 | CK138: 5.867596708 | CL138: 5.803803024
C139: EBT After NOL | G139: =G133+G136-G137 -> 0 | H139: 4.625446429 | I139: 12.54177107 | J139: 19.81335824 | K139: 0 | L139: 0 | M139: 8.856830101 | N139: 20.21620213 | O139: 0 | P139: 4.029536288 | Q139: 19.42479599 | R139: 33.40489436 | S139: 0 | T139: 4.467661108 | U139: 21.26772457 | V139: 36.91740855 | W139: 0 | X139: 5.935653773 | Y139: 23.47459666 | Z139: 40.73574175 | AA139: 0 | AB139: 3.955381598 | AC139: 22.59076912 | AD139: 39.8554264 | AE139: 0 | AF139: 1.961695036 | AG139: 21.47765889 | AH139: 38.74475361 | AI139: 0 | AJ139: 0.7000782382 | AK139: 22.39766588 | AL139: 40.73476398 | AM139: =AM133+AM136-AM137 -> 0 | AN139: 6.105018346 | AO139: 24.02154209 | AP139: 41.64176439 | AQ139: 0 | AR139: 6.482139736 | AS139: 24.18898855 | AT139: 41.79108839 | AU139: 0 | AV139: 6.728725078 | AW139: 24.28699612 | AX139: 41.87197612 | AY139: 0 | AZ139: 6.840866976 | BA139: 24.31905304 | BB139: 41.88786579 | BC139: 0 | BD139: 6.840614327 | BE139: 24.31905344 | BF139: 41.88786619 | BG139: 0 | BH139: 6.840614726 | BI139: 24.31905344 | BJ139: 41.88786619 | BK139: 0 | BL139: 6.840614725 | BM139: 24.31905344 | BN139: 41.88786619 | BO139: 0 | BP139: 6.840614725 | BQ139: 24.31905344 | BR139: 41.88786619 | BS139: =BS133+BS136-BS137 -> 0 | BT139: 6.840614725 | BU139: 24.31905344 | BV139: 41.88786619 | BW139: 0 | BX139: 6.840614725 | BY139: 24.31905344 | CA139: 36.98057573 | CB139: 29.07303223 | CC139: 56.85922664 | CD139: 62.65279423 | CE139: 70.14599218 | CF139: 66.40157712 | CG139: 62.18410753 | CH139: 63.8325081 | CI139: 71.76832482 | CJ139: 72.46221668 | CK139: 72.88769732 | CL139: 73.04778581
B140: Taxes Paid | E140: =F33 -> 0.25 | G140: =G139*$E$140 -> 0 | H140: 1.156361607 | I140: 3.135442766 | J140: 4.953339559 | K140: 0 | L140: 0 | M140: 2.214207525 | N140: 5.054050531 | O140: 0 | P140: 1.007384072 | Q140: 4.856198997 | R140: 8.351223591 | S140: 0 | T140: 1.116915277 | U140: 5.316931143 | V140: 9.229352137 | W140: 0 | X140: 1.483913443 | Y140: 5.868649164 | Z140: 10.18393544 | AA140: 0 | AB140: 0.9888453996 | AC140: 5.647692279 | AD140: 9.963856601 | AE140: 0 | AF140: 0.490423759 | AG140: 5.369414723 | AH140: 9.686188402 | AI140: 0 | AJ140: 0.1750195596 | AK140: 5.59941647 | AL140: 10.18369099 | AM140: =AM139*$E$140 -> 0 | AN140: 1.526254586 | AO140: 6.005385523 | AP140: 10.4104411 | AQ140: 0 | AR140: 1.620534934 | AS140: 6.047247138 | AT140: 10.4477721 | AU140: 0 | AV140: 1.682181269 | AW140: 6.07174903 | AX140: 10.46799403 | AY140: 0 | AZ140: 1.710216744 | BA140: 6.07976326 | BB140: 10.47196645 | BC140: 0 | BD140: 1.710153582 | BE140: 6.079763359 | BF140: 10.47196655 | BG140: 0 | BH140: 1.710153681 | BI140: 6.079763359 | BJ140: 10.47196655 | BK140: 0 | BL140: 1.710153681 | BM140: 6.079763359 | BN140: 10.47196655 | BO140: 0 | BP140: 1.710153681 | BQ140: 6.079763359 | BR140: 10.47196655 | BS140: =BS139*$E$140 -> 0 | BT140: 1.710153681 | BU140: 6.079763359 | BV140: 10.47196655 | BW140: 0 | BX140: 1.710153681 | BY140: 6.079763359 | CA140: 9.245143933 | CB140: 7.268258057 | CC140: 14.21480666 | CD140: 15.66319856 | CE140: 17.53649805 | CF140: 16.60039428 | CG140: 15.54602688 | CH140: 15.95812702 | CI140: 17.94208121 | CJ140: 18.11555417 | CK140: 18.22192433 | CL140: 18.26194645
B141: Taxes Booked | E141: =E140 -> 0.25 | G141: =$E$141*G133 -> -0.875 | H141: 2.031361607 | I141: 3.135442766 | J141: 4.953339559 | K141: -1.430026483 | L141: 1.016206982 | M141: 2.628027026 | N141: 5.054050531 | O141: -1.347580035 | P141: 2.354964107 | Q141: 4.856198997 | R141: 8.351223591 | S141: -1.500154379 | T141: 2.617069656 | U141: 5.316931143 | V141: 9.229352137 | W141: -1.556361685 | X141: 3.040275128 | Y141: 5.868649164 | Z141: 10.18393544 | AA141: -1.815843943 | AB141: 2.804689343 | AC141: 5.647692279 | AD141: 9.963856601 | AE141: -2.035040616 | AF141: 2.525464375 | AG141: 5.369414723 | AH141: 9.686188402 | AI141: -2.312096601 | AJ141: 2.487116161 | AK141: 5.59941647 | AL141: 10.18369099 | AM141: =$E$141*AM133 -> -1.54751336 | AN141: 3.073767946 | AO141: 6.005385523 | AP141: 10.4104411 | AQ141: -1.499706227 | AR141: 3.120241161 | AS141: 6.047247138 | AT141: 10.4477721 | AU141: -1.466899177 | AV141: 3.149080446 | AW141: 6.07174903 | AX141: 10.46799403 | AY141: -1.450950756 | AZ141: 3.1611675 | BA141: 6.07976326 | BB141: 10.47196645 | BC141: -1.451013918 | BD141: 3.1611675 | BE141: 6.079763359 | BF141: 10.47196655 | BG141: -1.451013819 | BH141: 3.1611675 | BI141: 6.079763359 | BJ141: 10.47196655 | BK141: -1.451013819 | BL141: 3.1611675 | BM141: 6.079763359 | BN141: 10.47196655 | BO141: -1.451013819 | BP141: 3.1611675 | BQ141: 6.079763359 | BR141: 10.47196655 | BS141: =$E$141*BS133 -> -1.451013819 | BT141: 3.1611675 | BU141: 6.079763359 | BV141: 10.47196655 | BW141: -1.451013819 | BX141: 3.1611675 | BY141: 6.079763359 | CA141: 9.245143933 | CB141: 7.268258057 | CC141: 14.21480666 | CD141: 15.66319856 | CE141: 17.53649805 | CF141: 16.60039428 | CG141: 15.54602688 | CH141: 15.95812702 | CI141: 17.94208121 | CJ141: 18.11555417 | CK141: 18.22192433 | CL141: 18.26194645
C142: Net Income - Books | G142: =G133-G141 -> -2.625 | H142: 6.094084821 | I142: 9.406328299 | J142: 14.86001868 | K142: -4.290079449 | L142: 3.048620947 | M142: 7.884081078 | N142: 15.16215159 | O142: -4.042740106 | P142: 7.064892322 | Q142: 14.56859699 | R142: 25.05367077 | S142: -4.500463137 | T142: 7.851208968 | U142: 15.95079343 | V142: 27.68805641 | W142: -4.669085055 | X142: 9.120825384 | Y142: 17.60594749 | Z142: 30.55180631 | AA142: -5.447531829 | AB142: 8.414068028 | AC142: 16.94307684 | AD142: 29.8915698 | AE142: -6.105121848 | AF142: 7.576393125 | AG142: 16.10824417 | AH142: 29.05856521 | AI142: -6.936289803 | AJ142: 7.461348482 | AK142: 16.79824941 | AL142: 30.55107298 | AM142: =AM133-AM141 -> -4.64254008 | AN142: 9.221303839 | AO142: 18.01615657 | AP142: 31.23132329 | AQ142: -4.49911868 | AR142: 9.360723482 | AS142: 18.14174141 | AT142: 31.34331629 | AU142: -4.400697531 | AV142: 9.447241339 | AW142: 18.21524709 | AX142: 31.40398209 | AY142: -4.352852268 | AZ142: 9.4835025 | BA142: 18.23928978 | BB142: 31.41589934 | BC142: -4.353041754 | BD142: 9.4835025 | BE142: 18.23929008 | BF142: 31.41589964 | BG142: -4.353041456 | BH142: 9.4835025 | BI142: 18.23929008 | BJ142: 31.41589964 | BK142: -4.353041456 | BL142: 9.4835025 | BM142: 18.23929008 | BN142: 31.41589964 | BO142: -4.353041456 | BP142: 9.4835025 | BQ142: 18.23929008 | BR142: 31.41589964 | BS142: =BS133-BS141 -> -4.353041456 | BT142: 9.4835025 | BU142: 18.23929008 | BV142: 31.41589964 | BW142: -4.353041456 | BX142: 9.4835025 | BY142: 18.23929008
C144: Deferred Taxes - Asset (Paid-Booked) | G144: =G140-G141 -> 0.875 | H144: -0.875 | I144: 0 | J144: 0 | K144: 1.430026483 | L144: -1.016206982 | M144: -0.4138195007 | N144: 0 | O144: 1.347580035 | P144: -1.347580035 | Q144: 0 | R144: 0 | S144: 1.500154379 | T144: -1.500154379 | U144: 0 | V144: 0 | W144: 1.556361685 | X144: -1.556361685 | Y144: 0 | Z144: 0 | AA144: 1.815843943 | AB144: -1.815843943 | AC144: 0 | AD144: 0 | AE144: 2.035040616 | AF144: -2.035040616 | AG144: 0 | AH144: 0 | AI144: 2.312096601 | AJ144: -2.312096601 | AK144: 0 | AL144: 0 | AM144: =AM140-AM141 -> 1.54751336 | AN144: -1.54751336 | AO144: 0 | AP144: 0 | AQ144: 1.499706227 | AR144: -1.499706227 | AS144: 0 | AT144: 0 | AU144: 1.466899177 | AV144: -1.466899177 | AW144: 0 | AX144: 0 | AY144: 1.450950756 | AZ144: -1.450950756 | BA144: 0 | BB144: 0 | BC144: 1.451013918 | BD144: -1.451013918 | BE144: 0 | BF144: 0 | BG144: 1.451013819 | BH144: -1.451013819 | BI144: 0 | BJ144: 0 | BK144: 1.451013819 | BL144: -1.451013819 | BM144: 0 | BN144: 0 | BO144: 1.451013819 | BP144: -1.451013819 | BQ144: 0 | BR144: 0 | BS144: =BS140-BS141 -> 1.451013819 | BT144: -1.451013819 | BU144: 0 | BV144: 0 | BW144: 1.451013819 | BX144: -1.451013819 | BY144: 0
C146: Accumulated Deferred Tax
C147: Opening | G147: =F149 -> 0 | H147: =G149 -> 0.875 | I147: =H149 -> 0 | J147: 0 | K147: 0 | L147: 1.430026483 | M147: 0.4138195007 | N147: 0 | O147: 0 | P147: 1.347580035 | Q147: 0 | R147: 0 | S147: 0 | T147: 1.500154379 | U147: 0 | V147: 0 | W147: 0 | X147: 1.556361685 | Y147: 0 | Z147: 0 | AA147: 0 | AB147: 1.815843943 | AC147: 0 | AD147: 0 | AE147: 0 | AF147: 2.035040616 | AG147: 0 | AH147: 0 | AI147: 0 | AJ147: 2.312096601 | AK147: 0 | AL147: 0 | AM147: 0 | AN147: 1.54751336 | AO147: =AN149 -> 0 | AP147: 0 | AQ147: 0 | AR147: 1.499706227 | AS147: 0 | AT147: 0 | AU147: 0 | AV147: 1.466899177 | AW147: 0 | AX147: 0 | AY147: 0 | AZ147: 1.450950756 | BA147: 0 | BB147: 0 | BC147: 0 | BD147: 1.451013918 | BE147: 0 | BF147: 0 | BG147: 0 | BH147: 1.451013819 | BI147: 0 | BJ147: 0 | BK147: 0 | BL147: 1.451013819 | BM147: 0 | BN147: 0 | BO147: 0 | BP147: 1.451013819 | BQ147: 0 | BR147: 0 | BS147: 0 | BT147: 1.451013819 | BU147: 0 | BV147: 0 | BW147: 0 | BX147: 1.451013819 | BY147: 0
C148: Add: Deferred Tax | G148: =G144 -> 0.875 | H148: -0.875 | I148: 0 | J148: 0 | K148: 1.430026483 | L148: -1.016206982 | M148: -0.4138195007 | N148: 0 | O148: 1.347580035 | P148: -1.347580035 | Q148: 0 | R148: 0 | S148: 1.500154379 | T148: -1.500154379 | U148: 0 | V148: 0 | W148: 1.556361685 | X148: -1.556361685 | Y148: 0 | Z148: 0 | AA148: 1.815843943 | AB148: -1.815843943 | AC148: 0 | AD148: 0 | AE148: 2.035040616 | AF148: -2.035040616 | AG148: 0 | AH148: 0 | AI148: 2.312096601 | AJ148: -2.312096601 | AK148: 0 | AL148: 0 | AM148: =AM144 -> 1.54751336 | AN148: -1.54751336 | AO148: 0 | AP148: 0 | AQ148: 1.499706227 | AR148: -1.499706227 | AS148: 0 | AT148: 0 | AU148: 1.466899177 | AV148: -1.466899177 | AW148: 0 | AX148: 0 | AY148: 1.450950756 | AZ148: -1.450950756 | BA148: 0 | BB148: 0 | BC148: 1.451013918 | BD148: -1.451013918 | BE148: 0 | BF148: 0 | BG148: 1.451013819 | BH148: -1.451013819 | BI148: 0 | BJ148: 0 | BK148: 1.451013819 | BL148: -1.451013819 | BM148: 0 | BN148: 0 | BO148: 1.451013819 | BP148: -1.451013819 | BQ148: 0 | BR148: 0 | BS148: =BS144 -> 1.451013819 | BT148: -1.451013819 | BU148: 0 | BV148: 0 | BW148: 1.451013819 | BX148: -1.451013819 | BY148: 0
C149: Closing Balance | G149: =G147+G148 -> 0.875 | H149: 0 | I149: 0 | J149: 0 | K149: 1.430026483 | L149: 0.4138195007 | M149: 0 | N149: 0 | O149: 1.347580035 | P149: 0 | Q149: 0 | R149: 0 | S149: 1.500154379 | T149: 0 | U149: 0 | V149: 0 | W149: 1.556361685 | X149: 0 | Y149: 0 | Z149: 0 | AA149: 1.815843943 | AB149: 0 | AC149: 0 | AD149: 0 | AE149: 2.035040616 | AF149: 0 | AG149: 0 | AH149: 0 | AI149: 2.312096601 | AJ149: 0 | AK149: 0 | AL149: 0 | AM149: =AM147+AM148 -> 1.54751336 | AN149: 0 | AO149: 0 | AP149: 0 | AQ149: 1.499706227 | AR149: 0 | AS149: 0 | AT149: 0 | AU149: 1.466899177 | AV149: 0 | AW149: 0 | AX149: 0 | AY149: 1.450950756 | AZ149: 0 | BA149: 0 | BB149: 0 | BC149: 1.451013918 | BD149: 0 | BE149: 0 | BF149: 0 | BG149: 1.451013819 | BH149: 0 | BI149: 0 | BJ149: 0 | BK149: 1.451013819 | BL149: 0 | BM149: 0 | BN149: 0 | BO149: 1.451013819 | BP149: 0 | BQ149: 0 | BR149: 0 | BS149: =BS147+BS148 -> 1.451013819 | BT149: 0 | BU149: 0 | BV149: 0 | BW149: 1.451013819 | BX149: 0 | BY149: 0
A151: Cash Flow
B152: EBITDA | G152: =G66 -> 3 | H152: 12 | I152: 18 | J152: 27 | K152: 3.3 | L152: 13.2 | M152: 19.8 | N152: 29.7 | O152: 4.9005 | P152: 19.602 | Q152: 29.403 | R152: 44.1045 | S152: 5.39055 | T152: 21.5622 | U152: 32.3433 | V152: 48.51495 | W152: 5.929605 | X152: 23.71842 | Y152: 35.57763 | Z152: 53.366445 | AA152: 5.929605 | AB152: 23.71842 | AC152: 35.57763 | AD152: 53.366445 | AE152: 5.929605 | AF152: 23.71842 | AG152: 35.57763 | AH152: 53.366445 | AI152: 5.929605 | AJ152: 23.71842 | AK152: 35.57763 | AL152: 53.366445 | AM152: =AM66 -> 5.929605 | AN152: 23.71842 | AO152: 35.57763 | AP152: 53.366445 | AQ152: 5.929605 | AR152: 23.71842 | AS152: 35.57763 | AT152: 53.366445 | AU152: 5.929605 | AV152: 23.71842 | AW152: 35.57763 | AX152: 53.366445 | AY152: 5.929605 | AZ152: 23.71842 | BA152: 35.57763 | BB152: 53.366445 | BC152: 5.929605 | BD152: 23.71842 | BE152: 35.57763 | BF152: 53.366445 | BG152: 5.929605 | BH152: 23.71842 | BI152: 35.57763 | BJ152: 53.366445 | BK152: 5.929605 | BL152: 23.71842 | BM152: 35.57763 | BN152: 53.366445 | BO152: 5.929605 | BP152: 23.71842 | BQ152: 35.57763 | BR152: 53.366445 | BS152: =BS66 -> 5.929605 | BT152: 23.71842 | BU152: 35.57763 | BV152: 53.366445 | BW152: 5.929605 | BX152: 23.71842 | BY152: 35.57763 | CA152: =SUMIF($5:$5,CA$2,152:152) -> 60 | CB152: 66 | CC152: 98.01 | CD152: 107.811 | CE152: 118.5921 | CF152: 118.5921 | CG152: 118.5921 | CH152: 118.5921 | CI152: 118.5921 | CJ152: 118.5921 | CK152: 118.5921 | CL152: 118.5921
B153: Less: WC Changes | G153: =G86 -> -15 | H153: -60 | I153: -86.66666667 | J153: -110 | K153: 50.16666667 | L153: 34 | M153: 22.5 | N153: -82.5 | O153: 80.85 | P153: 81.95 | Q153: -72.6 | R153: -78.65 | S153: 107.085 | T153: 46.78666667 | U153: -46.585 | V153: -64.33166667 | W153: 151.0685 | X153: -49.09171667 | Y153: -53.43965 | Z153: -72.22893333 | AA153: 166.17535 | AB153: -40.50676667 | AC153: -53.43965 | AD153: -72.22893333 | AE153: 166.17535 | AF153: -40.50676667 | AG153: -53.43965 | AH153: -72.22893333 | AI153: 166.17535 | AJ153: -40.50676667 | AK153: -53.43965 | AL153: -72.22893333 | AM153: =AM86 -> 166.17535 | AN153: -40.50676667 | AO153: -53.43965 | AP153: -72.22893333 | AQ153: 166.17535 | AR153: -40.50676667 | AS153: -53.43965 | AT153: -72.22893333 | AU153: 166.17535 | AV153: -40.50676667 | AW153: -53.43965 | AX153: -72.22893333 | AY153: 166.17535 | AZ153: -40.50676667 | BA153: -53.43965 | BB153: -72.22893333 | BC153: 166.17535 | BD153: -40.50676667 | BE153: -53.43965 | BF153: -72.22893333 | BG153: 166.17535 | BH153: -40.50676667 | BI153: -53.43965 | BJ153: -72.22893333 | BK153: 166.17535 | BL153: -40.50676667 | BM153: -53.43965 | BN153: -72.22893333 | BO153: 166.17535 | BP153: -40.50676667 | BQ153: -53.43965 | BR153: -72.22893333 | BS153: =BS86 -> 166.17535 | BT153: -40.50676667 | BU153: -53.43965 | BV153: -72.22893333 | BW153: 166.17535 | BX153: -40.50676667 | BY153: -53.43965 | CA153: -271.6666667 | CB153: 24.16666667 | CC153: 11.55 | CD153: 42.955 | CE153: -23.6918 | CF153: -1.421085472e-14 | CG153: -1.421085472e-14 | CH153: -1.421085472e-14 | CI153: -1.421085472e-14 | CJ153: -1.421085472e-14 | CK153: -1.421085472e-14 | CL153: -1.421085472e-14
B154: Less: R&D | G154: =-G67 -> -30 | H154: -30 | I154: -30 | J154: -30 | K154: -10 | L154: -10 | M154: -10 | N154: -10 | O154: -9.5 | P154: -9.5 | Q154: -9.5 | R154: -9.5 | S154: -9.025 | T154: -9.025 | U154: -9.025 | V154: -9.025 | W154: -8.57375 | X154: -8.57375 | Y154: -8.57375 | Z154: -8.57375 | AA154: -8.57375 | AB154: -8.57375 | AC154: -8.57375 | AD154: -8.57375 | AE154: -8.57375 | AF154: -8.57375 | AG154: -8.57375 | AH154: -8.57375 | AI154: -8.57375 | AJ154: -8.57375 | AK154: -8.57375 | AL154: -8.57375 | AM154: =-AM67 -> -8.57375 | AN154: -8.57375 | AO154: -8.57375 | AP154: -8.57375 | AQ154: -8.57375 | AR154: -8.57375 | AS154: -8.57375 | AT154: -8.57375 | AU154: -8.57375 | AV154: -8.57375 | AW154: -8.57375 | AX154: -8.57375 | AY154: -8.57375 | AZ154: -8.57375 | BA154: -8.57375 | BB154: -8.57375 | BC154: -8.57375 | BD154: -8.57375 | BE154: -8.57375 | BF154: -8.57375 | BG154: -8.57375 | BH154: -8.57375 | BI154: -8.57375 | BJ154: -8.57375 | BK154: -8.57375 | BL154: -8.57375 | BM154: -8.57375 | BN154: -8.57375 | BO154: -8.57375 | BP154: -8.57375 | BQ154: -8.57375 | BR154: -8.57375 | BS154: =-BS67 -> -8.57375 | BT154: -8.57375 | BU154: -8.57375 | BV154: -8.57375 | BW154: -8.57375 | BX154: -8.57375 | BY154: -8.57375 | CA154: -120 | CB154: -40 | CC154: -38 | CD154: -36.1 | CE154: -34.295 | CF154: -34.295 | CG154: -34.295 | CH154: -34.295 | CI154: -34.295 | CJ154: -34.295 | CK154: -34.295 | CL154: -34.295
B155: Less: Taxes Paid | G155: =-G140 -> 0 | H155: -1.156361607 | I155: -3.135442766 | J155: -4.953339559 | K155: 0 | L155: 0 | M155: -2.214207525 | N155: -5.054050531 | O155: 0 | P155: -1.007384072 | Q155: -4.856198997 | R155: -8.351223591 | S155: 0 | T155: -1.116915277 | U155: -5.316931143 | V155: -9.229352137 | W155: 0 | X155: -1.483913443 | Y155: -5.868649164 | Z155: -10.18393544 | AA155: 0 | AB155: -0.9888453996 | AC155: -5.647692279 | AD155: -9.963856601 | AE155: 0 | AF155: -0.490423759 | AG155: -5.369414723 | AH155: -9.686188402 | AI155: 0 | AJ155: -0.1750195596 | AK155: -5.59941647 | AL155: -10.18369099 | AM155: =-AM140 -> 0 | AN155: -1.526254586 | AO155: -6.005385523 | AP155: -10.4104411 | AQ155: 0 | AR155: -1.620534934 | AS155: -6.047247138 | AT155: -10.4477721 | AU155: 0 | AV155: -1.682181269 | AW155: -6.07174903 | AX155: -10.46799403 | AY155: 0 | AZ155: -1.710216744 | BA155: -6.07976326 | BB155: -10.47196645 | BC155: 0 | BD155: -1.710153582 | BE155: -6.079763359 | BF155: -10.47196655 | BG155: 0 | BH155: -1.710153681 | BI155: -6.079763359 | BJ155: -10.47196655 | BK155: 0 | BL155: -1.710153681 | BM155: -6.079763359 | BN155: -10.47196655 | BO155: 0 | BP155: -1.710153681 | BQ155: -6.079763359 | BR155: -10.47196655 | BS155: =-BS140 -> 0 | BT155: -1.710153681 | BU155: -6.079763359 | BV155: -10.47196655 | BW155: 0 | BX155: -1.710153681 | BY155: -6.079763359 | CA155: =-CA140 -> -9.245143933 | CB155: -7.268258057 | CC155: -14.21480666 | CD155: -15.66319856 | CE155: -17.53649805 | CF155: -16.60039428 | CG155: -15.54602688 | CH155: -15.95812702 | CI155: -17.94208121 | CJ155: -18.11555417 | CK155: -18.22192433 | CL155: -18.26194645
C156: Cash flow before finance | G156: =SUM(G152:G155) -> -42 | H156: -79.15636161 | I156: -101.8021094 | J156: -117.9533396 | K156: 43.46666667 | L156: 37.2 | M156: 30.08579247 | N156: -67.85405053 | O156: 76.2505 | P156: 91.04461593 | Q156: -57.553199 | R156: -52.39672359 | S156: 103.45055 | T156: 58.20695139 | U156: -28.58363114 | V156: -34.0710688 | W156: 148.424355 | X156: -35.43096011 | Y156: -32.30441916 | Z156: -37.62017377 | AA156: 163.531205 | AB156: -26.35094207 | AC156: -32.08346228 | AD156: -37.40009493 | AE156: 163.531205 | AF156: -25.85252043 | AG156: -31.80518472 | AH156: -37.12242674 | AI156: 163.531205 | AJ156: -25.53711623 | AK156: -32.03518647 | AL156: -37.61992933 | AM156: =SUM(AM152:AM155) -> 163.531205 | AN156: -26.88835125 | AO156: -32.44115552 | AP156: -37.84667943 | AQ156: 163.531205 | AR156: -26.9826316 | AS156: -32.48301714 | AT156: -37.88401043 | AU156: 163.531205 | AV156: -27.04427794 | AW156: -32.50751903 | AX156: -37.90423236 | AY156: 163.531205 | AZ156: -27.07231341 | BA156: -32.51553326 | BB156: -37.90820478 | BC156: 163.531205 | BD156: -27.07225025 | BE156: -32.51553336 | BF156: -37.90820488 | BG156: 163.531205 | BH156: -27.07225035 | BI156: -32.51553336 | BJ156: -37.90820488 | BK156: 163.531205 | BL156: -27.07225035 | BM156: -32.51553336 | BN156: -37.90820488 | BO156: 163.531205 | BP156: -27.07225035 | BQ156: -32.51553336 | BR156: -37.90820488 | BS156: =SUM(BS152:BS155) -> 163.531205 | BT156: -27.07225035 | BU156: -32.51553336 | BV156: -37.90820488 | BW156: 163.531205 | BX156: -27.07225035 | BY156: -32.51553336 | CA156: =SUM(CA152:CA155) -> -340.9118106 | CB156: 42.89840861 | CC156: 57.34519334 | CD156: 99.00280144 | CE156: 43.06880195 | CF156: 67.69670572 | CG156: 68.75107312 | CH156: 68.33897298 | CI156: 66.35501879 | CJ156: 66.18154583 | CK156: 66.07517567 | CL156: 66.03515355
B157: Less: Interest expense | G157: =-G121 -> 0 | H157: =-H121 -> -0.60625 | I157: -1.630743583 | J157: -2.944712098 | K157: -4.468783293 | L157: -3.984629855 | M157: -3.575783792 | N157: -3.253310035 | O157: -4.153068854 | P157: -3.257144284 | Q157: -2.170693737 | R157: -2.93492556 | S157: -3.63947789 | T157: -2.400342752 | U157: -1.719008002 | V157: -2.118297191 | W157: -2.588674908 | X157: -0.780799689 | Y157: -1.259816688 | Z157: -1.702745782 | AA157: -2.214890116 | AB157: -0.2158431163 | AC157: -0.5778289116 | AD157: -1.013733621 | AE157: -1.518820643 | AF157: 0 | AG157: -0.3544065053 | AH157: -0.785436355 | AI157: -1.285625666 | AJ157: 0 | AK157: -0.3504639528 | AL157: -0.7843441834 | AM157: -1.290745451 | AN157: =-AN121 -> 0 | AO157: -0.3673543907 | AP157: -0.8064147996 | AQ157: -1.315788385 | AR157: 0 | AS157: -0.368532895 | AT157: -0.8081239398 | AU157: -1.317974845 | AV157: 0 | AW157: -0.3693034742 | AX157: -0.8092056088 | AY157: -1.319316048 | AZ157: 0 | BA157: -0.3696539176 | BB157: -0.8096584204 | BC157: -1.319821345 | BD157: 0 | BE157: -0.3696531281 | BF157: -0.8096576271 | BG157: -1.319820548 | BH157: 0 | BI157: -0.3696531294 | BJ157: -0.8096576284 | BK157: -1.31982055 | BL157: 0 | BM157: -0.3696531293 | BN157: -0.8096576284 | BO157: -1.31982055 | BP157: 0 | BQ157: -0.3696531293 | BR157: -0.8096576284 | BS157: -1.31982055 | BT157: =-BT121 -> 0 | BU157: -0.3696531293 | BV157: -0.8096576284 | BW157: -1.31982055 | BX157: 0 | BY157: -0.3696531293 | CA157: =SUMIF($5:$5,CA$2,157:157) -> -5.18170568 | CB157: -15.28250697 | CC157: -12.51583244 | CD157: -9.877125834 | CE157: -6.332037068 | CF157: -4.022295764 | CG157: -2.658663503 | CH157: -2.420433803 | CI157: -2.464514641 | CJ157: -2.49244522 | CK157: -2.496483928 | CL157: -2.498628386
B158: Less: Fees | G158: =-G122-G123 -> -6.5 | H158: =-H122-H123 -> -2.196875 | I158: -1.684628209 | J158: -1.027643951 | K158: -0.2656083535 | L158: -0.5076850724 | M158: -0.7121081041 | N158: -0.8733449827 | O158: -0.423465573 | P158: -0.8714278578 | Q158: -1.414653132 | R158: -1.03253722 | S158: -0.680261055 | T158: -1.299828624 | U158: -1.640495999 | V158: -1.440851405 | W158: -1.205662546 | X158: -2.109600155 | Y158: -1.870091656 | Z158: -1.648627109 | AA158: -1.392554942 | AB158: -2.392078442 | AC158: -2.211085544 | AD158: -1.99313319 | AE158: -1.740589679 | AF158: -2.5 | AG158: -2.322796747 | AH158: -2.107281822 | AI158: -1.857187167 | AJ158: -2.5 | AK158: -2.324768024 | AL158: -2.107827908 | AM158: -1.854627274 | AN158: =-AN122-AN123 -> -2.5 | AO158: -2.316322805 | AP158: -2.0967926 | AQ158: -1.842105807 | AR158: -2.5 | AS158: -2.315733552 | AT158: -2.09593803 | AU158: -1.841012578 | AV158: -2.5 | AW158: -2.315348263 | AX158: -2.095397196 | AY158: -1.840341976 | AZ158: -2.5 | BA158: -2.315173041 | BB158: -2.09517079 | BC158: -1.840089327 | BD158: -2.5 | BE158: -2.315173436 | BF158: -2.095171186 | BG158: -1.840089726 | BH158: -2.5 | BI158: -2.315173435 | BJ158: -2.095171186 | BK158: -1.840089725 | BL158: -2.5 | BM158: -2.315173435 | BN158: -2.095171186 | BO158: -1.840089725 | BP158: -2.5 | BQ158: -2.315173435 | BR158: -2.095171186 | BS158: -1.840089725 | BT158: =-BT122-BT123 -> -2.5 | BU158: -2.315173435 | BV158: -2.095171186 | BW158: -1.840089725 | BX158: -2.5 | BY158: -2.315173435 | CA158: -11.40914716 | CB158: -2.358746513 | CC158: -3.742083782 | CD158: -5.061437083 | CE158: -6.833981466 | CF158: -7.988852118 | CG158: -8.670668249 | CH158: -8.789783099 | CI158: -8.767742679 | CJ158: -8.75377739 | CK158: -8.751758036 | CL158: -8.750685807
C159: Net cash flow | G159: =SUM(G156:G158) -> -48.5 | H159: -81.95948661 | I159: -105.1174812 | J159: -121.9256956 | K159: 38.73227502 | L159: 32.70768507 | M159: 25.79790058 | N159: -71.98070555 | O159: 71.67396557 | P159: 86.91604379 | Q159: -61.13854587 | R159: -56.36418637 | S159: 99.13081106 | T159: 54.50678001 | U159: -31.94313514 | V159: -37.6302174 | W159: 144.6300175 | X159: -38.32135995 | Y159: -35.43432751 | Z159: -40.97154666 | AA159: 159.9237599 | AB159: -28.95886362 | AC159: -34.87237673 | AD159: -40.40696174 | AE159: 160.2717947 | AF159: -28.35252043 | AG159: -34.48238798 | AH159: -40.01514491 | AI159: 160.3883922 | AJ159: -28.03711623 | AK159: -34.71041845 | AL159: -40.51210142 | AM159: =SUM(AM156:AM158) -> 160.3858323 | AN159: -29.38835125 | AO159: -35.12483272 | AP159: -40.74988683 | AQ159: 160.3733108 | AR159: -29.4826316 | AS159: -35.16728359 | AT159: -40.7880724 | AU159: 160.3722176 | AV159: -29.54427794 | AW159: -35.19217077 | AX159: -40.80883517 | AY159: 160.371547 | AZ159: -29.57231341 | BA159: -35.20036022 | BB159: -40.81303399 | BC159: 160.3712943 | BD159: -29.57225025 | BE159: -35.20035992 | BF159: -40.81303369 | BG159: 160.3712947 | BH159: -29.57225035 | BI159: -35.20035992 | BJ159: -40.81303369 | BK159: 160.3712947 | BL159: -29.57225035 | BM159: -35.20035992 | BN159: -40.81303369 | BO159: 160.3712947 | BP159: -29.57225035 | BQ159: -35.20035992 | BR159: -40.81303369 | BS159: =SUM(BS156:BS158) -> 160.3712947 | BT159: -29.57225035 | BU159: -35.20035992 | BV159: -40.81303369 | BW159: 160.3712947 | BX159: -29.57225035 | BY159: -35.20035992 | CA159: -357.5026634 | CB159: 25.25715512 | CC159: 41.08727712 | CD159: 84.06423853 | CE159: 29.90278342 | CF159: 55.68555784 | CG159: 57.42174136 | CH159: 57.12875607 | CI159: 55.12276147 | CJ159: 54.93532322 | CK159: 54.82693371 | CL159: 54.78583936
B160: Borrowing when CF is negative | G160: =MIN(MAX(-G159,0),G114) -> 48.5 | H160: 81.95948661 | I160: 105.1174812 | J160: 121.9256956 | K160: 0 | L160: 0 | M160: 0 | N160: 71.98070555 | O160: 0 | P160: 0 | Q160: 61.13854587 | R160: 56.36418637 | S160: 0 | T160: 0 | U160: 31.94313514 | V160: 37.6302174 | W160: 0 | X160: 38.32135995 | Y160: 35.43432751 | Z160: 40.97154666 | AA160: 0 | AB160: 28.95886362 | AC160: 34.87237673 | AD160: 40.40696174 | AE160: 0 | AF160: 28.35252043 | AG160: 34.48238798 | AH160: 40.01514491 | AI160: 0 | AJ160: 28.03711623 | AK160: 34.71041845 | AL160: 40.51210142 | AM160: =MIN(MAX(-AM159,0),AM114) -> 0 | AN160: 29.38835125 | AO160: 35.12483272 | AP160: 40.74988683 | AQ160: 0 | AR160: 29.4826316 | AS160: 35.16728359 | AT160: 40.7880724 | AU160: 0 | AV160: 29.54427794 | AW160: 35.19217077 | AX160: 40.80883517 | AY160: 0 | AZ160: 29.57231341 | BA160: 35.20036022 | BB160: 40.81303399 | BC160: 0 | BD160: 29.57225025 | BE160: 35.20035992 | BF160: 40.81303369 | BG160: 0 | BH160: 29.57225035 | BI160: 35.20035992 | BJ160: 40.81303369 | BK160: 0 | BL160: 29.57225035 | BM160: 35.20035992 | BN160: 40.81303369 | BO160: 0 | BP160: 29.57225035 | BQ160: 35.20035992 | BR160: 40.81303369 | BS160: =MIN(MAX(-BS159,0),BS114) -> 0 | BT160: 29.57225035 | BU160: 35.20035992 | BV160: 40.81303369 | BW160: 0 | BX160: 29.57225035 | BY160: 35.20035992 | CA160: 357.5026634 | CB160: 71.98070555 | CC160: 117.5027322 | CD160: 69.57335254 | CE160: 114.7272341 | CF160: 104.2382021 | CG160: 102.8500533 | CH160: 103.2596361 | CI160: 105.2630708 | CJ160: 105.4379876 | CK160: 105.5452839 | CL160: 105.5857076
B161: Repaid when CF is Positive | G161: =MIN(MAX(G159,0),G116) -> 0 | H161: 0 | I161: 0 | J161: 0 | K161: 38.73227502 | L161: 32.70768507 | M161: 25.79790058 | N161: 0 | O161: 71.67396557 | P161: 86.91604379 | Q161: 0 | R161: 0 | S161: 99.13081106 | T161: 54.50678001 | U161: 0 | V161: 0 | W161: 144.6300175 | X161: 0 | Y161: 0 | Z161: 0 | AA161: 159.9237599 | AB161: 0 | AC161: 0 | AD161: 0 | AE161: 121.5056514 | AF161: 0 | AG161: 0 | AH161: 0 | AI161: 102.8500533 | AJ161: 0 | AK161: 0 | AL161: 0 | AM161: =MIN(MAX(AM159,0),AM116) -> 103.2596361 | AN161: 0 | AO161: 0 | AP161: 0 | AQ161: 105.2630708 | AR161: 0 | AS161: 0 | AT161: 0 | AU161: 105.4379876 | AV161: 0 | AW161: 0 | AX161: 0 | AY161: 105.5452839 | AZ161: 0 | BA161: 0 | BB161: 0 | BC161: 105.5857076 | BD161: 0 | BE161: 0 | BF161: 0 | BG161: 105.5856439 | BH161: 0 | BI161: 0 | BJ161: 0 | BK161: 105.585644 | BL161: 0 | BM161: 0 | BN161: 0 | BO161: 105.585644 | BP161: 0 | BQ161: 0 | BR161: 0 | BS161: =MIN(MAX(BS159,0),BS116) -> 105.585644 | BT161: 0 | BU161: 0 | BV161: 0 | BW161: 105.585644 | BX161: 0 | BY161: 0 | CA161: 0 | CB161: 97.23786067 | CC161: 158.5900094 | CD161: 153.6375911 | CE161: 144.6300175 | CF161: 159.9237599 | CG161: 121.5056514 | CH161: 102.8500533 | CI161: 103.2596361 | CJ161: 105.2630708 | CK161: 105.4379876 | CL161: 105.5452839
C162: Net cash flow | G162: =G159+G160-G161 -> 0 | H162: 0 | I162: 0 | J162: 0 | K162: 0 | L162: 0 | M162: 0 | N162: 0 | O162: 0 | P162: 0 | Q162: 0 | R162: 0 | S162: 0 | T162: 0 | U162: 0 | V162: 0 | W162: 0 | X162: 0 | Y162: 0 | Z162: 0 | AA162: 0 | AB162: 0 | AC162: 0 | AD162: 0 | AE162: 38.76614327 | AF162: 0 | AG162: 0 | AH162: 0 | AI162: 57.53833885 | AJ162: 0 | AK162: 0 | AL162: 0 | AM162: =AM159+AM160-AM161 -> 57.12619618 | AN162: 0 | AO162: 0 | AP162: 0 | AQ162: 55.11024001 | AR162: 0 | AS162: 0 | AT162: 0 | AU162: 54.93422999 | AV162: 0 | AW162: 0 | AX162: 0 | AY162: 54.8262631 | AZ162: 0 | BA162: 0 | BB162: 0 | BC162: 54.78558671 | BD162: 0 | BE162: 0 | BF162: 0 | BG162: 54.78565086 | BH162: 0 | BI162: 0 | BJ162: 0 | BK162: 54.78565076 | BL162: 0 | BM162: 0 | BN162: 0 | BO162: 54.78565076 | BP162: 0 | BQ162: 0 | BR162: 0 | BS162: =BS159+BS160-BS161 -> 54.78565076 | BT162: 0 | BU162: 0 | BV162: 0 | BW162: 54.78565076 | BX162: 0 | BY162: 0 | CA162: 0 | CB162: 0 | CC162: 0 | CD162: 0 | CE162: 0 | CF162: 0 | CG162: 38.76614327 | CH162: 57.53833885 | CI162: 57.12619618 | CJ162: 55.11024001 | CK162: 54.93422999 | CL162: 54.8262631
A164: Balance sheet
B165: Equity Balance
C166: Opening Balance | G166: =F169 -> 30 | H166: =G169 -> 27.375 | I166: =H169 -> 33.46908482 | J166: 42.87541312 | K166: 57.7354318 | L166: 53.44535235 | M166: 56.4939733 | N166: 64.37805437 | O166: 79.54020597 | P166: 75.49746586 | Q166: 82.56235818 | R166: 97.13095518 | S166: 122.1846259 | T166: 117.6841628 | U166: 125.5353718 | V166: 141.4861652 | W166: 169.1742216 | X166: 164.5051366 | Y166: 173.6259619 | Z166: 191.2319094 | AA166: 221.7837158 | AB166: 216.3361839 | AC166: 224.750252 | AD166: 241.6933288 | AE166: 271.5848986 | AF166: 265.4797767 | AG166: 273.0561699 | AH166: 289.164414 | AI166: 318.2229792 | AJ166: 311.2866894 | AK166: 318.7480379 | AL166: 335.5462873 | AM166: 366.0973603 | AN166: 361.4548202 | AO166: =AN169 -> 370.6761241 | AP166: 388.6922806 | AQ166: 419.9236039 | AR166: 415.4244853 | AS166: 424.7852087 | AT166: 442.9269501 | AU166: 474.2702664 | AV166: 469.8695689 | AW166: 479.3168102 | AX166: 497.5320573 | AY166: 528.9360394 | AZ166: 524.5831872 | BA166: 534.0666897 | BB166: 552.3059794 | BC166: 583.7218788 | BD166: 579.368837 | BE166: 588.8523395 | BF166: 607.0916296 | BG166: 638.5075292 | BH166: 634.1544878 | BI166: 643.6379903 | BJ166: 661.8772804 | BK166: 693.29318 | BL166: 688.9401386 | BM166: 698.4236411 | BN166: 716.6629311 | BO166: 748.0788308 | BP166: 743.7257893 | BQ166: 753.2092918 | BR166: 771.4485819 | BS166: 802.8644815 | BT166: 798.5114401 | BU166: 807.9949426 | BV166: 826.2342326 | BW166: 857.6501323 | BX166: 853.2970908 | BY166: 862.7805933 | CA166: =SUMIFS(166:166,$5:$5,CA$2,$8:$8,TRUE) -> 42.87541312 | CB166: 64.37805437 | CC166: 97.13095518 | CD166: 141.4861652 | CE166: 191.2319094 | CF166: 241.6933288 | CG166: 289.164414 | CH166: 335.5462873 | CI166: 388.6922806 | CJ166: 442.9269501 | CK166: 497.5320573 | CL166: 552.3059794
C167: Add: Income | G167: =G142 -> -2.625 | H167: 6.094084821 | I167: 9.406328299 | J167: 14.86001868 | K167: -4.290079449 | L167: 3.048620947 | M167: 7.884081078 | N167: 15.16215159 | O167: -4.042740106 | P167: 7.064892322 | Q167: 14.56859699 | R167: 25.05367077 | S167: -4.500463137 | T167: 7.851208968 | U167: 15.95079343 | V167: 27.68805641 | W167: -4.669085055 | X167: 9.120825384 | Y167: 17.60594749 | Z167: 30.55180631 | AA167: -5.447531829 | AB167: 8.414068028 | AC167: 16.94307684 | AD167: 29.8915698 | AE167: -6.105121848 | AF167: 7.576393125 | AG167: 16.10824417 | AH167: 29.05856521 | AI167: -6.936289803 | AJ167: 7.461348482 | AK167: 16.79824941 | AL167: 30.55107298 | AM167: =AM142 -> -4.64254008 | AN167: 9.221303839 | AO167: 18.01615657 | AP167: 31.23132329 | AQ167: -4.49911868 | AR167: 9.360723482 | AS167: 18.14174141 | AT167: 31.34331629 | AU167: -4.400697531 | AV167: 9.447241339 | AW167: 18.21524709 | AX167: 31.40398209 | AY167: -4.352852268 | AZ167: 9.4835025 | BA167: 18.23928978 | BB167: 31.41589934 | BC167: -4.353041754 | BD167: 9.4835025 | BE167: 18.23929008 | BF167: 31.41589964 | BG167: -4.353041456 | BH167: 9.4835025 | BI167: 18.23929008 | BJ167: 31.41589964 | BK167: -4.353041456 | BL167: 9.4835025 | BM167: 18.23929008 | BN167: 31.41589964 | BO167: -4.353041456 | BP167: 9.4835025 | BQ167: 18.23929008 | BR167: 31.41589964 | BS167: =BS142 -> -4.353041456 | BT167: 9.4835025 | BU167: 18.23929008 | BV167: 31.41589964 | BW167: -4.353041456 | BX167: 9.4835025 | BY167: 18.23929008 | CA167: 14.86001868 | CB167: 15.16215159 | CC167: 25.05367077 | CD167: 27.68805641 | CE167: 30.55180631 | CF167: 29.8915698 | CG167: 29.05856521 | CH167: 30.55107298 | CI167: 31.23132329 | CJ167: 31.34331629 | CK167: 31.40398209 | CL167: 31.41589934
C168: Less: Dividends | CA168: 0 | CB168: 0 | CC168: 0 | CD168: 0 | CE168: 0 | CF168: 0 | CG168: 0 | CH168: 0 | CI168: 0 | CJ168: 0 | CK168: 0 | CL168: 0
C169: Closing Balance | F169: =F51 -> 30 | G169: =G166+G167-G168 -> 27.375 | H169: 33.46908482 | I169: 42.87541312 | J169: 57.7354318 | K169: 53.44535235 | L169: 56.4939733 | M169: 64.37805437 | N169: 79.54020597 | O169: 75.49746586 | P169: 82.56235818 | Q169: 97.13095518 | R169: 122.1846259 | S169: 117.6841628 | T169: 125.5353718 | U169: 141.4861652 | V169: 169.1742216 | W169: 164.5051366 | X169: 173.6259619 | Y169: 191.2319094 | Z169: 221.7837158 | AA169: 216.3361839 | AB169: 224.750252 | AC169: 241.6933288 | AD169: 271.5848986 | AE169: 265.4797767 | AF169: 273.0561699 | AG169: 289.164414 | AH169: 318.2229792 | AI169: 311.2866894 | AJ169: 318.7480379 | AK169: 335.5462873 | AL169: 366.0973603 | AM169: =AM166+AM167-AM168 -> 361.4548202 | AN169: 370.6761241 | AO169: 388.6922806 | AP169: 419.9236039 | AQ169: 415.4244853 | AR169: 424.7852087 | AS169: 442.9269501 | AT169: 474.2702664 | AU169: 469.8695689 | AV169: 479.3168102 | AW169: 497.5320573 | AX169: 528.9360394 | AY169: 524.5831872 | AZ169: 534.0666897 | BA169: 552.3059794 | BB169: 583.7218788 | BC169: 579.368837 | BD169: 588.8523395 | BE169: 607.0916296 | BF169: 638.5075292 | BG169: 634.1544878 | BH169: 643.6379903 | BI169: 661.8772804 | BJ169: 693.29318 | BK169: 688.9401386 | BL169: 698.4236411 | BM169: 716.6629311 | BN169: 748.0788308 | BO169: 743.7257893 | BP169: 753.2092918 | BQ169: 771.4485819 | BR169: 802.8644815 | BS169: =BS166+BS167-BS168 -> 798.5114401 | BT169: 807.9949426 | BU169: 826.2342326 | BV169: 857.6501323 | BW169: 853.2970908 | BX169: 862.7805933 | BY169: 881.0198834 | CA169: 57.7354318 | CB169: 79.54020597 | CC169: 122.1846259 | CD169: 169.1742216 | CE169: 221.7837158 | CF169: 271.5848986 | CG169: 318.2229792 | CH169: 366.0973603 | CI169: 419.9236039 | CJ169: 474.2702664 | CK169: 528.9360394 | CL169: 583.7218788
B171: Cash | F171: =F48 -> 30 | G171: =G109 -> 30 | H171: 30 | I171: 30 | J171: 30 | K171: 30 | L171: 30 | M171: 30 | N171: 30 | O171: 30 | P171: 30 | Q171: 30 | R171: 30 | S171: 30 | T171: 30 | U171: 30 | V171: 30 | W171: 30 | X171: 30 | Y171: 30 | Z171: 30 | AA171: 30 | AB171: 30 | AC171: 30 | AD171: 30 | AE171: 68.76614327 | AF171: 68.76614327 | AG171: 68.76614327 | AH171: 68.76614327 | AI171: 126.3044821 | AJ171: 126.3044821 | AK171: 126.3044821 | AL171: 126.3044821 | AM171: =AM109 -> 183.4306783 | AN171: 183.4306783 | AO171: 183.4306783 | AP171: 183.4306783 | AQ171: 238.5409183 | AR171: 238.5409183 | AS171: 238.5409183 | AT171: 238.5409183 | AU171: 293.4751483 | AV171: 293.4751483 | AW171: 293.4751483 | AX171: 293.4751483 | AY171: 348.3014114 | AZ171: 348.3014114 | BA171: 348.3014114 | BB171: 348.3014114 | BC171: 403.0869981 | BD171: 403.0869981 | BE171: 403.0869981 | BF171: 403.0869981 | BG171: 457.872649 | BH171: 457.872649 | BI171: 457.872649 | BJ171: 457.872649 | BK171: 512.6582997 | BL171: 512.6582997 | BM171: 512.6582997 | BN171: 512.6582997 | BO171: 567.4439505 | BP171: 567.4439505 | BQ171: 567.4439505 | BR171: 567.4439505 | BS171: =BS109 -> 622.2296013 | BT171: 622.2296013 | BU171: 622.2296013 | BV171: 622.2296013 | BW171: 677.015252 | BX171: 677.015252 | BY171: 677.015252 | CA171: =SUMIFS(171:171,$5:$5,CA$2,$8:$8,TRUE) -> 30 | CB171: 30 | CC171: 30 | CD171: 30 | CE171: 30 | CF171: 30 | CG171: 68.76614327 | CH171: 126.3044821 | CI171: 183.4306783 | CJ171: 238.5409183 | CK171: 293.4751483 | CL171: 348.3014114
B172: A/R | G172: =G84 -> 15 | H172: 75 | I172: 161.6666667 | J172: 271.6666667 | K172: 221.5 | L172: 187.5 | M172: 165 | N172: 247.5 | O172: 166.65 | P172: 84.7 | Q172: 157.3 | R172: 235.95 | S172: 128.865 | T172: 82.07833333 | U172: 128.6633333 | V172: 192.995 | W172: 41.9265 | X172: 91.01821667 | Y172: 144.4578667 | Z172: 216.6868 | AA172: 50.51145 | AB172: 91.01821667 | AC172: 144.4578667 | AD172: 216.6868 | AE172: 50.51145 | AF172: 91.01821667 | AG172: 144.4578667 | AH172: 216.6868 | AI172: 50.51145 | AJ172: 91.01821667 | AK172: 144.4578667 | AL172: 216.6868 | AM172: =AM84 -> 50.51145 | AN172: 91.01821667 | AO172: 144.4578667 | AP172: 216.6868 | AQ172: 50.51145 | AR172: 91.01821667 | AS172: 144.4578667 | AT172: 216.6868 | AU172: 50.51145 | AV172: 91.01821667 | AW172: 144.4578667 | AX172: 216.6868 | AY172: 50.51145 | AZ172: 91.01821667 | BA172: 144.4578667 | BB172: 216.6868 | BC172: 50.51145 | BD172: 91.01821667 | BE172: 144.4578667 | BF172: 216.6868 | BG172: 50.51145 | BH172: 91.01821667 | BI172: 144.4578667 | BJ172: 216.6868 | BK172: 50.51145 | BL172: 91.01821667 | BM172: 144.4578667 | BN172: 216.6868 | BO172: 50.51145 | BP172: 91.01821667 | BQ172: 144.4578667 | BR172: 216.6868 | BS172: =BS84 -> 50.51145 | BT172: 91.01821667 | BU172: 144.4578667 | BV172: 216.6868 | BW172: 50.51145 | BX172: 91.01821667 | BY172: 144.4578667 | CA172: 271.6666667 | CB172: 247.5 | CC172: 235.95 | CD172: 192.995 | CE172: 216.6868 | CF172: 216.6868 | CG172: 216.6868 | CH172: 216.6868 | CI172: 216.6868 | CJ172: 216.6868 | CK172: 216.6868 | CL172: 216.6868
B173: Net Development Cost | G173: =G103 -> 30 | H173: 58.92857143 | I173: 86.78571429 | J173: 113.5714286 | K173: 119.2857143 | L173: 124.6428571 | M173: 129.6428571 | N173: 134.2857143 | O173: 138.0714286 | P173: 141.5178571 | Q173: 144.625 | R173: 147.3928571 | S173: 149.3464286 | T173: 150.9776786 | U173: 152.2866071 | V173: 153.2732143 | W173: 153.48625 | X173: 153.3930804 | Y173: 152.9937054 | Z173: 152.288125 | AA173: 151.2763393 | AB173: 149.9583482 | AC173: 148.3341518 | AD173: 146.40375 | AE173: 144.1671429 | AF173: 141.6243304 | AG173: 138.7753125 | AH173: 135.6200893 | AI173: 132.1586607 | AJ173: 129.4624554 | AK173: 127.5314732 | AL173: 126.3657143 | AM173: =AM103 -> 125.9651786 | AN173: 125.6155804 | AO173: 125.3169196 | AP173: 125.0691964 | AQ173: 124.8724107 | AR173: 124.7087054 | AS173: 124.5780804 | AT173: 124.4805357 | AU173: 124.4160714 | AV173: 124.3677232 | AW173: 124.3354911 | AX173: 124.319375 | AY173: 124.319375 | AZ173: 124.319375 | BA173: 124.319375 | BB173: 124.319375 | BC173: 124.319375 | BD173: 124.319375 | BE173: 124.319375 | BF173: 124.319375 | BG173: 124.319375 | BH173: 124.319375 | BI173: 124.319375 | BJ173: 124.319375 | BK173: 124.319375 | BL173: 124.319375 | BM173: 124.319375 | BN173: 124.319375 | BO173: 124.319375 | BP173: 124.319375 | BQ173: 124.319375 | BR173: 124.319375 | BS173: =BS103 -> 124.319375 | BT173: 124.319375 | BU173: 124.319375 | BV173: 124.319375 | BW173: 124.319375 | BX173: 124.319375 | BY173: 124.319375 | CA173: =CA103 -> 0 | CB173: 0 | CC173: 0 | CD173: 0 | CE173: 0 | CF173: 0 | CG173: 0 | CH173: 0 | CI173: 0 | CJ173: 0 | CK173: 0 | CL173: 0
B174: Accumulated Deferred Tax Asset | G174: =G149 -> 0.875 | H174: 0 | I174: 0 | J174: 0 | K174: 1.430026483 | L174: 0.4138195007 | M174: 0 | N174: 0 | O174: 1.347580035 | P174: 0 | Q174: 0 | R174: 0 | S174: 1.500154379 | T174: 0 | U174: 0 | V174: 0 | W174: 1.556361685 | X174: 0 | Y174: 0 | Z174: 0 | AA174: 1.815843943 | AB174: 0 | AC174: 0 | AD174: 0 | AE174: 2.035040616 | AF174: 0 | AG174: 0 | AH174: 0 | AI174: 2.312096601 | AJ174: 0 | AK174: 0 | AL174: 0 | AM174: =AM149 -> 1.54751336 | AN174: 0 | AO174: 0 | AP174: 0 | AQ174: 1.499706227 | AR174: 0 | AS174: 0 | AT174: 0 | AU174: 1.466899177 | AV174: 0 | AW174: 0 | AX174: 0 | AY174: 1.450950756 | AZ174: 0 | BA174: 0 | BB174: 0 | BC174: 1.451013918 | BD174: 0 | BE174: 0 | BF174: 0 | BG174: 1.451013819 | BH174: 0 | BI174: 0 | BJ174: 0 | BK174: 1.451013819 | BL174: 0 | BM174: 0 | BN174: 0 | BO174: 1.451013819 | BP174: 0 | BQ174: 0 | BR174: 0 | BS174: =BS149 -> 1.451013819 | BT174: 0 | BU174: 0 | BV174: 0 | BW174: 1.451013819 | BX174: 0 | BY174: 0 | CA174: =CA149 -> 0 | CB174: 0 | CC174: 0 | CD174: 0 | CE174: 0 | CF174: 0 | CG174: 0 | CH174: 0 | CI174: 0 | CJ174: 0 | CK174: 0 | CL174: 0
B175: Total | F175: =SUM(F171:F174) -> 30 | G175: 75.875 | H175: 163.9285714 | I175: 278.452381 | J175: 415.2380952 | K175: 372.2157408 | L175: 342.5566766 | M175: 324.6428571 | N175: 411.7857143 | O175: 336.0690086 | P175: 256.2178571 | Q175: 331.925 | R175: 413.3428571 | S175: 309.711583 | T175: 263.0560119 | U175: 310.9499405 | V175: 376.2682143 | W175: 226.9691117 | X175: 274.411297 | Y175: 327.451572 | Z175: 398.974925 | AA175: 233.6036332 | AB175: 270.9765649 | AC175: 322.7920185 | AD175: 393.09055 | AE175: 265.4797767 | AF175: 301.4086903 | AG175: 351.9993224 | AH175: 421.0730326 | AI175: 311.2866894 | AJ175: 346.7851541 | AK175: 398.293822 | AL175: =SUM(AL171:AL174) -> 469.3569964 | AM175: 361.4548202 | AN175: 400.0644753 | AO175: 453.2054646 | AP175: 525.1866747 | AQ175: 415.4244853 | AR175: 454.2678403 | AS175: 507.5768653 | AT175: 579.708254 | AU175: 469.8695689 | AV175: 508.8610882 | AW175: 562.268506 | AX175: 634.4813233 | AY175: 524.5831872 | AZ175: 563.6390031 | BA175: 617.0786531 | BB175: 689.3075864 | BC175: 579.368837 | BD175: 618.4245898 | BE175: 671.8642398 | BF175: 744.0931731 | BG175: 634.1544878 | BH175: 673.2102406 | BI175: 726.6498906 | BJ175: 798.878824 | BK175: 688.9401386 | BL175: 727.9958914 | BM175: 781.4355414 | BN175: 853.6644747 | BO175: 743.7257893 | BP175: 782.7815422 | BQ175: 836.2211922 | BR175: =SUM(BR171:BR174) -> 908.4501255 | BS175: 798.5114401 | BT175: 837.5671929 | BU175: 891.0068429 | BV175: 963.2357763 | BW175: 853.2970908 | BX175: 892.3528437 | BY175: 945.7924937 | CA175: =SUM(CA171:CA174) -> 301.6666667 | CB175: 277.5 | CC175: 265.95 | CD175: 222.995 | CE175: 246.6868 | CF175: 246.6868 | CG175: 285.4529433 | CH175: 342.9912821 | CI175: 400.1174783 | CJ175: 455.2277183 | CK175: 510.1619483 | CL175: 564.9882114
B177: Debt | G177: =G119 -> 48.5 | H177: 130.4594866 | I177: 235.5769678 | J177: 357.5026634 | K177: 318.7703884 | L177: 286.0627033 | M177: 260.2648028 | N177: 332.2455083 | O177: 260.5715427 | P177: 173.655499 | Q177: 234.7940448 | R177: 291.1582312 | S177: 192.0274201 | T177: 137.5206401 | U177: 169.4637753 | V177: 207.0939927 | W177: 62.46397512 | X177: 100.7853351 | Y177: 136.2196626 | Z177: 177.1912092 | AA177: 17.26744931 | AB177: 46.22631293 | AC177: 81.09868966 | AD177: 121.5056514 | AE177: 0 | AF177: 28.35252043 | AG177: 62.8349084 | AH177: 102.8500533 | AI177: 0 | AJ177: 28.03711623 | AK177: 62.74753467 | AL177: 103.2596361 | AM177: =AM119 -> 0 | AN177: 29.38835125 | AO177: 64.51318397 | AP177: 105.2630708 | AQ177: 0 | AR177: 29.4826316 | AS177: 64.64991519 | AT177: 105.4379876 | AU177: 0 | AV177: 29.54427794 | AW177: 64.7364487 | AX177: 105.5452839 | AY177: 0 | AZ177: 29.57231341 | BA177: 64.77267363 | BB177: 105.5857076 | BC177: 0 | BD177: 29.57225025 | BE177: 64.77261017 | BF177: 105.5856439 | BG177: 0 | BH177: 29.57225035 | BI177: 64.77261027 | BJ177: 105.585644 | BK177: 0 | BL177: 29.57225035 | BM177: 64.77261027 | BN177: 105.585644 | BO177: 0 | BP177: 29.57225035 | BQ177: 64.77261027 | BR177: 105.585644 | BS177: =BS119 -> 0 | BT177: 29.57225035 | BU177: 64.77261027 | BV177: 105.585644 | BW177: 0 | BX177: 29.57225035 | BY177: 64.77261027 | CA177: =SUMIFS(177:177,$5:$5,CA$2,$8:$8,TRUE) -> 357.5026634 | CB177: 332.2455083 | CC177: 291.1582312 | CD177: 207.0939927 | CE177: 177.1912092 | CF177: 121.5056514 | CG177: 102.8500533 | CH177: 103.2596361 | CI177: 105.2630708 | CJ177: 105.4379876 | CK177: 105.5452839 | CL177: 105.5857076
B178: Equity | F178: =F169 -> 30 | G178: =G169 -> 27.375 | H178: =H169 -> 33.46908482 | I178: 42.87541312 | J178: 57.7354318 | K178: 53.44535235 | L178: 56.4939733 | M178: 64.37805437 | N178: 79.54020597 | O178: 75.49746586 | P178: 82.56235818 | Q178: 97.13095518 | R178: 122.1846259 | S178: 117.6841628 | T178: 125.5353718 | U178: 141.4861652 | V178: 169.1742216 | W178: 164.5051366 | X178: 173.6259619 | Y178: 191.2319094 | Z178: 221.7837158 | AA178: 216.3361839 | AB178: 224.750252 | AC178: 241.6933288 | AD178: 271.5848986 | AE178: 265.4797767 | AF178: 273.0561699 | AG178: 289.164414 | AH178: 318.2229792 | AI178: 311.2866894 | AJ178: 318.7480379 | AK178: 335.5462873 | AL178: 366.0973603 | AM178: 361.4548202 | AN178: =AN169 -> 370.6761241 | AO178: 388.6922806 | AP178: 419.9236039 | AQ178: 415.4244853 | AR178: 424.7852087 | AS178: 442.9269501 | AT178: 474.2702664 | AU178: 469.8695689 | AV178: 479.3168102 | AW178: 497.5320573 | AX178: 528.9360394 | AY178: 524.5831872 | AZ178: 534.0666897 | BA178: 552.3059794 | BB178: 583.7218788 | BC178: 579.368837 | BD178: 588.8523395 | BE178: 607.0916296 | BF178: 638.5075292 | BG178: 634.1544878 | BH178: 643.6379903 | BI178: 661.8772804 | BJ178: 693.29318 | BK178: 688.9401386 | BL178: 698.4236411 | BM178: 716.6629311 | BN178: 748.0788308 | BO178: 743.7257893 | BP178: 753.2092918 | BQ178: 771.4485819 | BR178: 802.8644815 | BS178: 798.5114401 | BT178: =BT169 -> 807.9949426 | BU178: 826.2342326 | BV178: 857.6501323 | BW178: 853.2970908 | BX178: 862.7805933 | BY178: 881.0198834 | CA178: =CA169 -> 57.7354318 | CB178: 79.54020597 | CC178: 122.1846259 | CD178: 169.1742216 | CE178: 221.7837158 | CF178: 271.5848986 | CG178: 318.2229792 | CH178: 366.0973603 | CI178: 419.9236039 | CJ178: 474.2702664 | CK178: 528.9360394 | CL178: 583.7218788
B179: Total | F179: =SUM(F177:F178) -> 30 | G179: 75.875 | H179: 163.9285714 | I179: 278.452381 | J179: 415.2380952 | K179: 372.2157408 | L179: 342.5566766 | M179: 324.6428571 | N179: 411.7857143 | O179: 336.0690086 | P179: 256.2178571 | Q179: 331.925 | R179: 413.3428571 | S179: 309.711583 | T179: 263.0560119 | U179: 310.9499405 | V179: 376.2682143 | W179: 226.9691117 | X179: 274.411297 | Y179: 327.451572 | Z179: 398.974925 | AA179: 233.6036332 | AB179: 270.9765649 | AC179: 322.7920185 | AD179: 393.09055 | AE179: 265.4797767 | AF179: 301.4086903 | AG179: 351.9993224 | AH179: 421.0730326 | AI179: 311.2866894 | AJ179: 346.7851541 | AK179: 398.293822 | AL179: =SUM(AL177:AL178) -> 469.3569964 | AM179: 361.4548202 | AN179: 400.0644753 | AO179: 453.2054646 | AP179: 525.1866747 | AQ179: 415.4244853 | AR179: 454.2678403 | AS179: 507.5768653 | AT179: 579.708254 | AU179: 469.8695689 | AV179: 508.8610882 | AW179: 562.268506 | AX179: 634.4813233 | AY179: 524.5831872 | AZ179: 563.6390031 | BA179: 617.0786531 | BB179: 689.3075864 | BC179: 579.368837 | BD179: 618.4245898 | BE179: 671.8642398 | BF179: 744.0931731 | BG179: 634.1544878 | BH179: 673.2102406 | BI179: 726.6498906 | BJ179: 798.878824 | BK179: 688.9401386 | BL179: 727.9958914 | BM179: 781.4355414 | BN179: 853.6644747 | BO179: 743.7257893 | BP179: 782.7815422 | BQ179: 836.2211922 | BR179: =SUM(BR177:BR178) -> 908.4501255 | BS179: 798.5114401 | BT179: 837.5671929 | BU179: 891.0068429 | BV179: 963.2357763 | BW179: 853.2970908 | BX179: 892.3528437 | BY179: 945.7924937 | CA179: =SUM(CA177:CA178) -> 415.2380952 | CB179: 411.7857143 | CC179: 413.3428571 | CD179: 376.2682143 | CE179: 398.974925 | CF179: 393.09055 | CG179: 421.0730326 | CH179: 469.3569964 | CI179: 525.1866747 | CJ179: 579.708254 | CK179: 634.4813233 | CL179: 689.3075864
B181: Difference | G181: =G179-G175 -> 0 | H181: 0 | I181: 0 | J181: 0 | K181: 0 | L181: 0 | M181: 0 | N181: 0 | O181: 0 | P181: 0 | Q181: 0 | R181: 0 | S181: 0 | T181: 0 | U181: 0 | V181: 0 | W181: 0 | X181: 0 | Y181: 0 | Z181: 0 | AA181: 0 | AB181: 0 | AC181: 0 | AD181: 0 | AE181: 0 | AF181: 0 | AG181: 0 | AH181: 0 | AI181: 0 | AJ181: 0 | AK181: 0 | AL181: 0 | AM181: =AM179-AM175 -> 0 | AN181: 0 | AO181: 0 | AP181: 0 | AQ181: 0 | AR181: 0 | AS181: 0 | AT181: 0 | AU181: 0 | AV181: 0 | AW181: 0 | AX181: 0 | AY181: 0 | AZ181: 0 | BA181: 0 | BB181: 0 | BC181: 0 | BD181: 0 | BE181: 0 | BF181: 0 | BG181: 0 | BH181: 0 | BI181: 0 | BJ181: 0 | BK181: 0 | BL181: 0 | BM181: 0 | BN181: 0 | BO181: 0 | BP181: 0 | BQ181: 0 | BR181: 0 | BS181: =BS179-BS175 -> 0 | BT181: 0 | BU181: 0 | BV181: 0 | BW181: 0 | BX181: 0 | BY181: 0 | CA181: =SUMIFS(181:181,$5:$5,CA$2,$8:$8,TRUE) -> 0 | CB181: 0 | CC181: 0 | CD181: 0 | CE181: 0 | CF181: 0 | CG181: 0 | CH181: 0 | CI181: 0 | CJ181: 0 | CK181: 0 | CL181: 0
A183: Return on Invested Capital
B184: Operating Income | G184: =G130 -> 3 | H184: =H130 -> 10.92857143 | I184: 15.85714286 | J184: 23.78571429 | K184: -0.9857142857 | L184: 8.557142857 | M184: 14.8 | N184: 24.34285714 | O184: -0.8137857143 | P184: 13.54842857 | Q184: 23.01014286 | R184: 37.37235714 | S184: -1.680878571 | T184: 14.16845 | U184: 24.62722857 | V184: 40.47655714 | W184: -2.431109286 | X184: 15.05150036 | Y184: 26.604505 | Z184: 44.08711464 | AA184: -3.655930714 | AB184: 13.82667893 | AC184: 25.37968357 | AD184: 42.86229321 | AE184: -4.880752143 | AF184: 12.6018575 | AG184: 24.15486214 | AH184: 41.63747179 | AI184: -6.105573571 | AJ184: 12.44846464 | AK184: 25.07289786 | AL184: 43.62693607 | AM184: -3.044680714 | AN184: 14.79507179 | AO184: 26.70521929 | AP184: 44.54497179 | AQ184: -2.840930714 | AR184: 14.98096464 | AS184: 26.873255 | AT184: 44.69515036 | AU184: -2.708609286 | AV184: 15.09632179 | AW184: 26.97164786 | AX184: 44.77657893 | AY184: -2.644145 | AZ184: 15.14467 | BA184: 27.00388 | BB184: 44.792695 | BC184: -2.644145 | BD184: 15.14467 | BE184: 27.00388 | BF184: 44.792695 | BG184: -2.644145 | BH184: 15.14467 | BI184: 27.00388 | BJ184: 44.792695 | BK184: -2.644145 | BL184: 15.14467 | BM184: 27.00388 | BN184: 44.792695 | BO184: -2.644145 | BP184: 15.14467 | BQ184: 27.00388 | BR184: 44.792695 | BS184: -2.644145 | BT184: =BT130 -> 15.14467 | BU184: 27.00388 | BV184: 44.792695 | BW184: -2.644145 | BX184: 15.14467 | BY184: 27.00388 | CA184: =CA130 -> 53.57142857 | CB184: =CB130 -> 46.71428571 | CC184: 73.11714286 | CD184: 77.59135714 | CE184: 83.31201071 | CF184: 78.412725 | CG184: 73.51343929 | CH184: 75.042725 | CI184: 83.00058214 | CJ184: 83.70843929 | CK184: 84.13593929 | CL184: 84.2971
B185: Less: Taxes | E185: =F33 -> 0.25 | G185: =G184*$E$185 -> 0.75 | H185: =H184*$E$185 -> 2.732142857 | I185: 3.964285714 | J185: 5.946428571 | K185: -0.2464285714 | L185: 2.139285714 | M185: 3.7 | N185: 6.085714286 | O185: -0.2034464286 | P185: 3.387107143 | Q185: 5.752535714 | R185: 9.343089286 | S185: -0.4202196429 | T185: 3.5421125 | U185: 6.156807143 | V185: 10.11913929 | W185: -0.6077773214 | X185: 3.762875089 | Y185: 6.65112625 | Z185: 11.02177866 | AA185: -0.9139826786 | AB185: 3.456669732 | AC185: 6.344920893 | AD185: 10.7155733 | AE185: -1.220188036 | AF185: 3.150464375 | AG185: 6.038715536 | AH185: 10.40936795 | AI185: -1.526393393 | AJ185: 3.112116161 | AK185: 6.268224464 | AL185: 10.90673402 | AM185: -0.7611701786 | AN185: 3.698767946 | AO185: 6.676304821 | AP185: 11.13624295 | AQ185: -0.7102326786 | AR185: 3.745241161 | AS185: 6.71831375 | AT185: 11.17378759 | AU185: -0.6771523214 | AV185: 3.774080446 | AW185: 6.742911964 | AX185: 11.19414473 | AY185: -0.66103625 | AZ185: 3.7861675 | BA185: 6.75097 | BB185: 11.19817375 | BC185: -0.66103625 | BD185: 3.7861675 | BE185: 6.75097 | BF185: 11.19817375 | BG185: -0.66103625 | BH185: 3.7861675 | BI185: 6.75097 | BJ185: 11.19817375 | BK185: -0.66103625 | BL185: 3.7861675 | BM185: 6.75097 | BN185: 11.19817375 | BO185: -0.66103625 | BP185: 3.7861675 | BQ185: 6.75097 | BR185: 11.19817375 | BS185: -0.66103625 | BT185: =BT184*$E$185 -> 3.7861675 | BU185: 6.75097 | BV185: 11.19817375 | BW185: -0.66103625 | BX185: 3.7861675 | BY185: 6.75097 | CA185: 13.39285714 | CB185: 11.67857143 | CC185: 18.27928571 | CD185: 19.39783929 | CE185: 20.82800268 | CF185: 19.60318125 | CG185: 18.37835982 | CH185: 18.76068125 | CI185: 20.75014554 | CJ185: 20.92710982 | CK185: 21.03398482 | CL185: 21.074275
B186: NOPLAT | G186: =G184-G185 -> 2.25 | H186: =H184-H185 -> 8.196428571 | I186: 11.89285714 | J186: 17.83928571 | K186: -0.7392857143 | L186: 6.417857143 | M186: 11.1 | N186: 18.25714286 | O186: -0.6103392857 | P186: 10.16132143 | Q186: 17.25760714 | R186: 28.02926786 | S186: -1.260658929 | T186: 10.6263375 | U186: 18.47042143 | V186: 30.35741786 | W186: -1.823331964 | X186: 11.28862527 | Y186: 19.95337875 | Z186: 33.06533598 | AA186: -2.741948036 | AB186: 10.3700092 | AC186: 19.03476268 | AD186: 32.14671991 | AE186: -3.660564107 | AF186: 9.451393125 | AG186: 18.11614661 | AH186: 31.22810384 | AI186: -4.579180179 | AJ186: 9.336348482 | AK186: 18.80467339 | AL186: 32.72020205 | AM186: -2.283510536 | AN186: 11.09630384 | AO186: 20.02891446 | AP186: 33.40872884 | AQ186: -2.130698036 | AR186: 11.23572348 | AS186: 20.15494125 | AT186: 33.52136277 | AU186: -2.031456964 | AV186: 11.32224134 | AW186: 20.22873589 | AX186: 33.5824342 | AY186: -1.98310875 | AZ186: 11.3585025 | BA186: 20.25291 | BB186: 33.59452125 | BC186: -1.98310875 | BD186: 11.3585025 | BE186: 20.25291 | BF186: 33.59452125 | BG186: -1.98310875 | BH186: 11.3585025 | BI186: 20.25291 | BJ186: 33.59452125 | BK186: -1.98310875 | BL186: 11.3585025 | BM186: 20.25291 | BN186: 33.59452125 | BO186: -1.98310875 | BP186: 11.3585025 | BQ186: 20.25291 | BR186: 33.59452125 | BS186: -1.98310875 | BT186: =BT184-BT185 -> 11.3585025 | BU186: 20.25291 | BV186: 33.59452125 | BW186: -1.98310875 | BX186: 11.3585025 | BY186: 20.25291 | CA186: 40.17857143 | CB186: 35.03571429 | CC186: 54.83785714 | CD186: 58.19351786 | CE186: 62.48400804 | CF186: 58.80954375 | CG186: 55.13507946 | CH186: 56.28204375 | CI186: 62.25043661 | CJ186: 62.78132946 | CK186: 63.10195446 | CL186: 63.222825
B187: Average Capital | G187: =AVERAGE(F177:G178) -> 35.29166667 | H187: =AVERAGE(G177:H178) -> 59.95089286 | I187: 110.5952381 | J187: 173.422619 | K187: 196.863459 | L187: 178.6931044 | M187: 166.7998834 | N187: 184.1071429 | O187: 186.9636807 | P187: 148.0717164 | Q187: 147.0357143 | R187: 186.3169643 | S187: 180.76361 | T187: 143.1918987 | U187: 143.5014881 | V187: 171.8045387 | W187: 150.8093315 | X187: 125.3451022 | Y187: 150.4657173 | Z187: 181.6066243 | AA187: 158.1446396 | AB187: 126.1450495 | AC187: 148.4421458 | AD187: 178.9706421 | AE187: 164.6425817 | AF187: 141.7221168 | AG187: 163.3520032 | AH187: 193.2680887 | AI187: 183.0899305 | AJ187: 164.5179609 | AK187: 186.269744 | AL187: 216.9127046 | AM187: 207.7029542 | AN187: 190.3798239 | AO187: 213.317485 | AP187: 244.5980348 | AQ187: 235.15279 | AR187: 217.4230814 | AS187: 240.4611764 | AT187: 271.8212798 | AU187: 262.3944557 | AV187: 244.6826643 | AW187: 267.7823986 | AX187: 299.1874573 | AY187: 289.7661276 | AZ187: 272.0555476 | BA187: 295.179414 | BB187: 326.5965599 | BC187: 317.1691059 | BD187: 299.4483567 | BE187: 322.5722074 | BF187: 353.9893532 | BG187: 344.5619152 | BH187: 326.8411821 | BI187: 349.9650328 | BJ187: 381.3821787 | BK187: 371.9547406 | BL187: 354.2340075 | BM187: 377.3578582 | BN187: 408.775004 | BO187: 399.347566 | BP187: 381.6268329 | BQ187: 404.7506836 | BR187: 436.1678294 | BS187: 426.7403914 | BT187: =AVERAGE(BS177:BT178) -> 409.0196582 | BU187: 432.143509 | BV187: 463.5606548 | BW187: 454.1332168 | BX187: 436.4124836 | BY187: 459.5363343 | CA187: 207.6190476 | CB187: 206.7559524 | CC187: 206.2821429 | CD187: 197.4027679 | CE187: 193.8107848 | CF187: 198.0163688 | CG187: 203.5408956 | CH187: 222.6075072 | CI187: 248.6359178 | CJ187: 276.2237322 | CK187: 303.5473943 | CL187: 330.9472274
CA188: =CA2 -> 2016 | CB188: =CB2 -> 2017 | CC188: 2018 | CD188: 2019 | CE188: 2020 | CF188: 2021 | CG188: 2022 | CH188: 2023 | CI188: 2024 | CJ188: 2025 | CK188: 2026 | CL188: 2027
B189: ROIC | G189: =G186/G187 -> 0.06375442739 | H189: =H186/H187 -> 0.1367190409 | I189: 0.1075349839 | J189: 0.1028659688 | K189: -0.003755322181 | L189: 0.03591552772 | M189: 0.06654680909 | N189: 0.09916585839 | O189: -0.003264480477 | P189: 0.0686243239 | Q189: 0.1173701725 | R189: 0.1504386247 | S189: -0.006974074751 | T189: 0.07421046578 | U189: 0.1287124034 | V189: 0.1766974149 | W189: -0.01209031262 | X189: 0.09006036193 | Y189: 0.1326107974 | Z189: 0.1820711999 | AA189: -0.01733822938 | AB189: 0.08220702465 | AC189: 0.1282301773 | AD189: 0.1796200736 | AE189: -0.02223339837 | AF189: 0.06668961303 | AG189: 0.1109025066 | AH189: 0.1615792035 | AI189: -0.02501055173 | AJ189: 0.05674972162 | AK189: 0.1009539874 | AL189: 0.1508450236 | AM189: -0.01099411679 | AN189: 0.05828508301 | AO189: 0.09389251174 | AP189: 0.1365862521 | AQ189: -0.009060909019 | AR189: 0.0516767742 | AS189: 0.08381786012 | AT189: 0.1233213337 | AU189: -0.007741996524 | AV189: 0.04627316517 | AW189: 0.07554169356 | AX189: 0.1122454614 | AY189: -0.006843825282 | AZ189: 0.04175067409 | BA189: 0.06861220342 | BB189: 0.1028624468 | BC189: -0.00625252811 | BD189: 0.03793142372 | BE189: 0.06278566329 | BF189: 0.0949026318 | BG189: -0.005755449637 | BH189: 0.03475236023 | BI189: 0.05787123884 | BJ189: 0.08808623772 | BK189: -0.005331586167 | BL189: 0.03206496909 | BM189: 0.05367030144 | BN189: 0.08218340387 | BO189: -0.004965871634 | BP189: 0.0297633749 | BQ189: 0.05003798838 | BR189: 0.07702200617 | BS189: -0.004647108148 | BT189: =BT186/BT187 -> 0.02777006501 | BU189: 0.04686616733 | BV189: 0.07247060531 | BW189: -0.004366799601 | BX189: 0.02602698806 | BY189: 0.04407248891 | BZ189: =B189 -> ROIC | CA189: 0.1935206422 | CB189: 0.1694544408 | CC189: 0.26583909 | CD189: 0.2947958556 | CE189: 0.322396961 | CF189: 0.2969933452 | CG189: 0.2708796151 | CH189: 0.2528308432 | CI189: 0.2503678357 | CJ189: 0.2272843429 | CK189: 0.2078817201 | CL189: 0.1910359712
A192: Graph | G192: =G4 -> 2016-03-31 | H192: 2016-06-30 | I192: 2016-09-30 | J192: 2016-12-31 | K192: 2017-03-31 | L192: 2017-06-30 | M192: 2017-09-30 | N192: 2017-12-31 | O192: 2018-03-31 | P192: 2018-06-30 | Q192: 2018-09-30 | R192: 2018-12-31 | S192: 2019-03-31 | T192: 2019-06-30 | U192: 2019-09-30 | V192: 2019-12-31 | W192: 2020-03-31 | X192: 2020-06-30 | Y192: 2020-09-30 | Z192: 2020-12-31 | AA192: 2021-03-31 | AB192: 2021-06-30 | AC192: 2021-09-30 | AD192: 2021-12-31 | AE192: 2022-03-31 | AF192: 2022-06-30 | AG192: 2022-09-30 | AH192: 2022-12-31 | AI192: 2023-03-31 | AJ192: 2023-06-30 | AK192: 2023-09-30 | AL192: 2023-12-31 | AM192: =AM4 -> 2024-03-31 | AN192: 2024-06-30 | AO192: 2024-09-30 | AP192: 2024-12-31 | AQ192: 2025-03-31 | AR192: 2025-06-30 | AS192: 2025-09-30 | AT192: 2025-12-31 | AU192: 2026-03-31 | AV192: 2026-06-30 | AW192: 2026-09-30 | AX192: 2026-12-31 | AY192: 2027-03-31 | AZ192: 2027-06-30 | BA192: 2027-09-30 | BB192: 2027-12-31 | BC192: 2028-03-31 | BD192: 2028-06-30 | BE192: 2028-09-30 | BF192: 2028-12-31 | BG192: 2029-03-31 | BH192: 2029-06-30 | BI192: 2029-09-30 | BJ192: 2029-12-31 | BK192: 2030-03-31 | BL192: 2030-06-30 | BM192: 2030-09-30 | BN192: 2030-12-31 | BO192: 2031-03-31 | BP192: 2031-06-30 | BQ192: 2031-09-30 | BR192: 2031-12-31 | BS192: =BS4 -> 2032-03-31 | BT192: 2032-06-30 | BU192: 2032-09-30 | BV192: 2032-12-31 | BW192: 2033-03-31 | BX192: 2033-06-30 | BY192: 2033-09-30
B193: Closing Balance of Revolver | G193: =G119 -> 48.5 | H193: 130.4594866 | I193: 235.5769678 | J193: 357.5026634 | K193: 318.7703884 | L193: 286.0627033 | M193: 260.2648028 | N193: 332.2455083 | O193: 260.5715427 | P193: 173.655499 | Q193: 234.7940448 | R193: 291.1582312 | S193: 192.0274201 | T193: 137.5206401 | U193: 169.4637753 | V193: 207.0939927 | W193: 62.46397512 | X193: 100.7853351 | Y193: 136.2196626 | Z193: 177.1912092 | AA193: 17.26744931 | AB193: 46.22631293 | AC193: 81.09868966 | AD193: 121.5056514 | AE193: 0 | AF193: 28.35252043 | AG193: 62.8349084 | AH193: 102.8500533 | AI193: 0 | AJ193: 28.03711623 | AK193: 62.74753467 | AL193: 103.2596361 | AM193: =AM119 -> 0 | AN193: 29.38835125 | AO193: 64.51318397 | AP193: 105.2630708 | AQ193: 0 | AR193: 29.4826316 | AS193: 64.64991519 | AT193: 105.4379876 | AU193: 0 | AV193: 29.54427794 | AW193: 64.7364487 | AX193: 105.5452839 | AY193: 0 | AZ193: 29.57231341 | BA193: 64.77267363 | BB193: 105.5857076 | BC193: 0 | BD193: 29.57225025 | BE193: 64.77261017 | BF193: 105.5856439 | BG193: 0 | BH193: 29.57225035 | BI193: 64.77261027 | BJ193: 105.585644 | BK193: 0 | BL193: 29.57225035 | BM193: 64.77261027 | BN193: 105.585644 | BO193: 0 | BP193: 29.57225035 | BQ193: 64.77261027 | BR193: 105.585644 | BS193: =BS119 -> 0 | BT193: 29.57225035 | BU193: 64.77261027 | BV193: 105.585644 | BW193: 0 | BX193: 29.57225035 | BY193: 64.77261027 | CA193: =CA119 -> 0 | CB193: 0 | CC193: 0 | CD193: 0 | CE193: 0 | CF193: 0 | CG193: 0 | CH193: 0 | CI193: 0 | CJ193: 0 | CK193: 0 | CL193: 0
BZ194: a
BZ195: a
BZ196: a
BZ197: a
BZ198: a
BZ199: a
BZ200: a
BZ201: a
BZ202: a
BZ203: a
BZ204: a
G205: Equity | H205: Sub Debt | I205: Senior | BZ205: a
G206: ='LBO Model'!F174 -> 0.3109344542 | H206: ='LBO Model'!F179 -> 0.09999999994 | I206: ='LBO Model'!F189 -> 0.06369158117
F207: 0.66 | G207: 0.3789512932 | H207: 0.09999999994 | I207: 0.07378647305
F208: =F207+1% -> 0.67 | G208: 0.3705866754 | H208: 0.09999999994 | I208: 0.07242418839
F209: =F208+1% -> 0.68 | G209: 0.3618465364 | H209: 0.09999999994 | I209: 0.07105203181
F210: 0.69 | G210: 0.3526887 | H210: 0.09999999994 | I210: 0.06955947486
F211: 0.7 | G211: 0.3430743039 | H211: 0.09999999994 | I211: 0.06812508803
F212: 0.71 | G212: 0.3330527604 | H212: 0.09999999994 | I212: 0.06625521619
F213: 0.72 | G213: 0.3223212302 | H213: 0.09999999994 | I213: 0.0650212358
... 19 more rows

Sheet LBO Summary
B2: Transaction Assumptions
C3: Transaction Date | F3: ='Transaction and Pro-forma'!E3 -> 2017-12-31 | M3: Sources & Uses of Funds | Q3: Percent | R3: to EBITDA
N4: Uses
C5: Entry EV/EBITDA | F5: ='Transaction and Pro-forma'!E6 -> 8.4 | O5: Consideration | P5: ='Transaction and Pro-forma'!E69 -> 252.1544917 | Q5: =P5/$P$10 -> 0.4191481407 | R5: =P5/$P$20 -> 3.820522601
C6: Holding Period | F6: ='Transaction and Pro-forma'!$E$29 -> 8 | O6: Debt Retired | P6: ='Transaction and Pro-forma'!E70 -> 332.2455083 | Q6: =P6/$P$10 -> 0.5522808106 | R6: =P6/$P$20 -> 5.034022853
C7: Exit EV/EBITDA | F7: ='Transaction and Pro-forma'!$E$28 -> 6.7 | O7: Working Capital | P7: ='Transaction and Pro-forma'!E71 -> 0 | Q7: 0 | R7: 0
C8: Synergies | O8: Debt Fees | P8: ='Transaction and Pro-forma'!E72 -> 6.1 | Q8: 0.01013982992
O9: Advisory Fees | P9: ='Transaction and Pro-forma'!E73 -> 11.088 | Q9: 0.01843121871
B10: Standalone Operating Assumptions | O10: Total Uses | P10: ='Transaction and Pro-forma'!E74 -> 601.588 | R10: =P10/$P$20 -> 9.114969697
C11: EBITDA Scenario
C12: Margin | F12: ='Standalone Case'!$G$25 -> 0.73 | N12: Sources | S12: IRR
C13: Stable Days Outstanding | F13: ='Standalone Case'!$K$19 -> 103 | O13: Senior Debt | P13: ='Transaction and Pro-forma'!E77 -> 410 | Q13: =P13/$P$17 -> 0.6815295518 | R13: =P13/$P$20 -> 6.212121212 | S13: ='LBO Model'!F189 -> 0.06369158117
O14: Subord. Debt | P14: ='Transaction and Pro-forma'!E78 -> 75 | Q14: =P14/$P$17 -> 0.12467004 | R14: =P14/$P$20 -> 1.136363636 | S14: ='LBO Model'!F179 -> 0.09999999994
O15: Cash Used | P15: ='Transaction and Pro-forma'!E79 -> 28 | Q15: 0.04654348159 | R15: 0.4242424242
O16: Equity | P16: ='Transaction and Pro-forma'!E80 -> 88.588 | Q16: 0.1472569267 | R16: 1.342242424 | S16: ='LBO Model'!F174 -> 0.3109344542
O17: Total Sources | P17: ='Transaction and Pro-forma'!E81 -> 601.588 | Q17: =P17/P17 -> 1 | R17: =SUM(R13:R16) -> 9.114969697
M19: Transaction Multiples
O20: Trailing EBITDA | P20: ='Transaction and Pro-forma'!E8 -> 66
O21: EV/EBITDA Ratio | P21: ='Transaction and Pro-forma'!$E$6 -> 8.4
O22: P/E Ratio | P22: ='Transaction and Pro-forma'!E23 -> 11.56418726
O23: Price to Book | P23: ='Transaction and Pro-forma'!E21 -> 3.170151354
O24: Premium | P24: ='Transaction and Pro-forma'!E25 -> 1.101287431

Sheet Transaction and Pro-forma
A2: Transaction Assumpt.
C3: Transaction Date | E3: 2017-12-31
C5: Consideration
D6: EV/ EBITDA | E6: =G6/10 -> 8.4 | G6: 84
D7: Column Nbr with Match | E7: =MATCH(E3,'Standalone Case'!4:4,0) -> 14
D8: Trailing EBITDA with OFFSET | E8: =SUM(OFFSET(INDEX('Standalone Case'!66:66,'Transaction and Pro-forma'!E7),0,-3,1,4)) -> 66
D9: Enterprise Value | E9: =E8*E6 -> 554.4
C11: Existing Capital Structure
D12: Debt | E12: =INDEX('Standalone Case'!177:177,'Transaction and Pro-forma'!E7) -> 332.2455083
D13: Cash | E13: =INDEX('Standalone Case'!171:171,'Transaction and Pro-forma'!E7) -> 30
D14: Equity Value with Cash | E14: =E9-E12+E13 -> 252.1544917
D16: Cash Taken Out | E16: 28
D17: Equity Consideration without Cash | E17: =E14-E16 -> 224.1544917
C19: Transaction Multiples and Premium
D20: Equity Book Value | E20: =INDEX('Standalone Case'!178:178,'Transaction and Pro-forma'!E7) -> 79.54020597
D21: P/B | E21: =E14/E20 -> 3.170151354
D22: Earnings | E22: =SUM(OFFSET(INDEX('Standalone Case'!142:142,'Transaction and Pro-forma'!E7),0,-3,1,4)) -> 21.80477417
D23: P/E Ratio - Transaction Multiple | E23: =E14/E22 -> 11.56418726
D24: Existing Market Capital - Day Before | E24: 120
D25: Premium Paid | E25: =E14/E24-1 -> 1.101287431
A27: Exit Proceeds and Synergies
B28: EV/ EBITDA | E28: =G28/10 -> 6.7 | G28: 67
B29: Holding Period | E29: 8
B31: Year | E31: 0 | F31: 1 | G31: 2 | H31: 3 | I31: 4 | J31: 5
B32: Cost Savings/Synergies | E32: 1
C33: Base Case | E33: 0 | F33: -5 | G33: 6 | H33: 10 | I33: 12 | J33: 13
C34: No Synergy Case | E34: 0 | F34: 0 | G34: 0 | H34: 0 | I34: 0 | J34: 0
C35: High Synergy Case | E35: 0 | F35: -5 | G35: 6 | H35: 12 | I35: 15 | J35: 19
C36: Negative Synergy | E36: 0 | F36: -10 | G36: -5 | H36: -1 | I36: -1 | J36: -1
C38: =INDEX(C33:C36,$E$32) -> Base Case | E38: =INDEX(E33:E36,$E$32) -> 0 | F38: =INDEX(F33:F36,$E$32) -> -5 | G38: 6 | H38: 10 | I38: 12 | J38: 13
A40: Financing Assumpt.
C41: Senior Term Loan | E41: 410
C42: Tenor | E42: =E29 -> 8
C43: Repayment Type
D44: Lineair | E44: TRUE
D45: Annuity | E45: =NOT(E44) -> FALSE
D46: Interest Rate | E46: 0.035
D47: Fees | E47: 0.01
E48: Debt to EBITDA
C49: Cash Sweep | E49: From | F49: To
E50: 200 | F50: 5 | G50: 1
E51: =F50 -> 5 | F51: 4 | G51: 0.75
E52: =F51 -> 4 | F52: 0 | G52: 0.5
B53: Revolver
C54: Amount | E54: 200
C55: Commit. Fees | E55: 0.022
C56: Interest Rate | E56: 0.035
C57: Fees | E57: 0.01
C58: Advisory Fees | E58: 0.02
B60: Subord. Debt Amount
C61: Amount | E61: 75
C62: Tenor | E62: 10
C63: Interest Rate | E63: 0.1
B65: Dividends Before Exit | E65: FALSE
A67: Sources & Uses of Funds
B68: Uses
C69: Consideration | E69: =E14 -> 252.1544917
C70: Debt Retired | E70: =E12 -> 332.2455083
C71: Working Capital | E71: 0
C72: Debt Fees | E72: =E41*E47+E54*E57 -> 6.1
C73: Advisory Fees | E73: =E58*E9 -> 11.088
C74: Total Uses | E74: =SUM(E69:E73) -> 601.588
B76: Sources
C77: Senior Debt | E77: =E41 -> 410
C78: Subord. Debt | E78: =E61 -> 75
C79: Cash Used | E79: =E16 -> 28
C80: Equity | E80: =E74-E77-E78-E79 -> 88.588
C81: Total Sources | E81: =SUM(E77:E80) -> 601.588
E82: =E81=E74 -> TRUE
A84: Accounting Assumpt.
C85: Asset Write up | E85: 20
C86: Intangibles | E86: 30
A88: GoodWill Analysis
C89: Consideration | E89: =E14 -> 252.1544917
C90: Less: Existing Equity | E90: =E20 -> 79.54020597
C91: Sub-Total | E91: =E89-E90 -> 172.6142857
C92: Less: Asset Write-Up | E92: =SUM(E85:E86) -> 50
C93: Net GoodWill | E93: =E91-E92 -> 122.6142857
C96: Pro Forma BS | E96: Original | F96: Acc. Adjustments | G96: Goodwill | H96: Debt Retired | I96: New Debt | J96: Equity Retired | K96: New Equity | L96: Cash Adj. | M96: Total Adjustment | N96: Pro Forma B/S
D97: Cash | E97: =INDEX('Standalone Case'!171:171,'Transaction and Pro-forma'!$E$7) -> 30 | L97: =-E79 -> -28 | M97: =SUM(F97:L97) -> -28 | N97: =E97+M97 -> 2
D98: A/R | E98: =INDEX('Standalone Case'!172:172,'Transaction and Pro-forma'!$E$7) -> 247.5 | M98: =SUM(F98:L98) -> 0 | N98: =E98+M98 -> 247.5
D99: Development Cost | E99: =INDEX('Standalone Case'!173:173,'Transaction and Pro-forma'!$E$7) -> 134.2857143 | F99: =E85 -> 20 | M99: 20 | N99: 154.2857143
D100: GoodWill | G100: =E93 -> 122.6142857 | M100: 122.6142857 | N100: 122.6142857
D101: Intangibles | F101: =E86 -> 30 | M101: 30 | N101: 30
D102: Debt Issuance Cost | I102: =E72 -> 6.1 | M102: 6.1 | N102: 6.1
D103: Total | E103: =INDEX('Standalone Case'!175:175,'Transaction and Pro-forma'!$E$7) -> 411.7857143 | M103: =SUM(M97:M102) -> 150.7142857 | N103: =SUM(N97:N102) -> 562.5
D105: Debt | E105: =INDEX('Standalone Case'!177:177,'Transaction and Pro-forma'!$E$7) -> 332.2455083 | H105: =-E70 -> -332.2455083 | M105: -332.2455083 | N105: =E105+M105 -> 0
D106: Senior Debt | I106: =E77 -> 410 | M106: 410 | N106: 410
D107: Subord. Debt | I107: =E78 -> 75 | M107: 75 | N107: 75
D108: Equity | E108: =INDEX('Standalone Case'!178:178,'Transaction and Pro-forma'!$E$7) -> 79.54020597 | J108: =-E90 -> -79.54020597 | K108: =E80-E73 -> 77.5 | M108: -2.040205969 | N108: 77.5
D109: Total | E109: =INDEX('Standalone Case'!179:179,'Transaction and Pro-forma'!$E$7) -> 411.7857143 | M109: =SUM(M105:M108) -> 150.7142857 | N109: =SUM(N105:N108) -> 562.5
M110: =M109=M103 -> TRUE | N110: =N109=N103 -> TRUE

Sheet LBO Model
E1: Margin | F1: ='LBO Summary'!F12 -> 0.73 | BB1: Annual
A2: Timing
B3: Start of Period | G3: =F4+1 -> 2018-01-01 | H3: =G4+1 -> 2018-04-01 | I3: 2018-07-01 | J3: 2018-10-01 | K3: 2019-01-01 | L3: 2019-04-01 | M3: 2019-07-01 | N3: 2019-10-01 | O3: 2020-01-01 | P3: 2020-04-01 | Q3: 2020-07-01 | R3: 2020-10-01 | S3: 2021-01-01 | T3: 2021-04-01 | U3: 2021-07-01 | V3: 2021-10-01 | W3: 2022-01-01 | X3: 2022-04-01 | Y3: 2022-07-01 | Z3: 2022-10-01 | AA3: =Z4+1 -> 2023-01-01 | AB3: =AA4+1 -> 2023-04-01 | AC3: =AB4+1 -> 2023-07-01 | AD3: =AC4+1 -> 2023-10-01 | AE3: =AD4+1 -> 2024-01-01 | AF3: =AE4+1 -> 2024-04-01 | AG3: =AF4+1 -> 2024-07-01 | AH3: =AG4+1 -> 2024-10-01 | AI3: =AH4+1 -> 2025-01-01 | AJ3: =AI4+1 -> 2025-04-01 | AK3: =AJ4+1 -> 2025-07-01 | AL3: =AK4+1 -> 2025-10-01 | AM3: =AL4+1 -> 2026-01-01 | AN3: =AM4+1 -> 2026-04-01 | AO3: =AN4+1 -> 2026-07-01 | AP3: =AO4+1 -> 2026-10-01 | AQ3: =AP4+1 -> 2027-01-01 | AR3: =AQ4+1 -> 2027-04-01 | AS3: =AR4+1 -> 2027-07-01 | AT3: =AS4+1 -> 2027-10-01 | AU3: =AT4+1 -> 2028-01-01 | AV3: =AU4+1 -> 2028-04-01 | AW3: =AV4+1 -> 2028-07-01 | AX3: =AW4+1 -> 2028-10-01 | AY3: =AX4+1 -> 2029-01-01 | AZ3: =AY4+1 -> 2029-04-01
B4: End of Period | F4: ='Transaction and Pro-forma'!E3 -> 2017-12-31 | G4: =EOMONTH(G3,2) -> 2018-03-31 | H4: =EOMONTH(H3,2) -> 2018-06-30 | I4: 2018-09-30 | J4: 2018-12-31 | K4: 2019-03-31 | L4: 2019-06-30 | M4: 2019-09-30 | N4: 2019-12-31 | O4: 2020-03-31 | P4: 2020-06-30 | Q4: 2020-09-30 | R4: 2020-12-31 | S4: 2021-03-31 | T4: 2021-06-30 | U4: 2021-09-30 | V4: 2021-12-31 | W4: 2022-03-31 | X4: 2022-06-30 | Y4: 2022-09-30 | Z4: 2022-12-31 | AA4: =EOMONTH(AA3,2) -> 2023-03-31 | AB4: 2023-06-30 | AC4: 2023-09-30 | AD4: 2023-12-31 | AE4: 2024-03-31 | AF4: 2024-06-30 | AG4: 2024-09-30 | AH4: 2024-12-31 | AI4: 2025-03-31 | AJ4: 2025-06-30 | AK4: 2025-09-30 | AL4: 2025-12-31 | AM4: 2026-03-31 | AN4: 2026-06-30 | AO4: 2026-09-30 | AP4: 2026-12-31 | AQ4: 2027-03-31 | AR4: 2027-06-30 | AS4: 2027-09-30 | AT4: 2027-12-31 | AU4: 2028-03-31 | AV4: 2028-06-30 | AW4: 2028-09-30 | AX4: 2028-12-31 | AY4: 2029-03-31 | AZ4: 2029-06-30 | BB4: =YEAR(G3) -> 2018 | BC4: =BB4+1 -> 2019 | BD4: =BC4+1 -> 2020 | BE4: 2021 | BF4: 2022 | BG4: 2023 | BH4: 2024 | BI4: 2025 | BJ4: 2026 | BK4: 2027 | BL4: 2028 | BM4: 2029 | BN4: 2030
B5: Quarter | F5: 0 | G5: =F5+1 -> 1 | H5: =G5+1 -> 2 | I5: 3 | J5: 4 | K5: 5 | L5: 6 | M5: 7 | N5: 8 | O5: 9 | P5: 10 | Q5: 11 | R5: 12 | S5: 13 | T5: 14 | U5: 15 | V5: 16 | W5: 17 | X5: 18 | Y5: 19 | Z5: 20 | AA5: =Z5+1 -> 21 | AB5: 22 | AC5: 23 | AD5: 24 | AE5: 25 | AF5: 26 | AG5: 27 | AH5: 28 | AI5: 29 | AJ5: 30 | AK5: 31 | AL5: 32 | AM5: 33 | AN5: 34 | AO5: 35 | AP5: 36 | AQ5: 37 | AR5: 38 | AS5: 39 | AT5: 40 | AU5: 41 | AV5: 42 | AW5: 43 | AX5: 44 | AY5: 45 | AZ5: 46
B6: Year | G6: =ROUNDUP(G5/3,0) -> 1 | H6: =ROUNDUP(H5/3,0) -> 1 | I6: 1 | J6: 2 | K6: 2 | L6: 2 | M6: 3 | N6: 3 | O6: 3 | P6: 4 | Q6: 4 | R6: 4 | S6: 5 | T6: 5 | U6: 5 | V6: 6 | W6: 6 | X6: 6 | Y6: 7 | Z6: 7 | AA6: =ROUNDUP(AA5/3,0) -> 7 | AB6: =ROUNDUP(AB5/3,0) -> 8 | AC6: =ROUNDUP(AC5/3,0) -> 8 | AD6: =ROUNDUP(AD5/3,0) -> 8 | AE6: =ROUNDUP(AE5/3,0) -> 9 | AF6: =ROUNDUP(AF5/3,0) -> 9 | AG6: =ROUNDUP(AG5/3,0) -> 9 | AH6: =ROUNDUP(AH5/3,0) -> 10 | AI6: =ROUNDUP(AI5/3,0) -> 10 | AJ6: =ROUNDUP(AJ5/3,0) -> 10 | AK6: =ROUNDUP(AK5/3,0) -> 11 | AL6: =ROUNDUP(AL5/3,0) -> 11 | AM6: =ROUNDUP(AM5/3,0) -> 11 | AN6: =ROUNDUP(AN5/3,0) -> 12 | AO6: =ROUNDUP(AO5/3,0) -> 12 | AP6: =ROUNDUP(AP5/3,0) -> 12 | AQ6: =ROUNDUP(AQ5/3,0) -> 13 | AR6: =ROUNDUP(AR5/3,0) -> 13 | AS6: =ROUNDUP(AS5/3,0) -> 13 | AT6: =ROUNDUP(AT5/3,0) -> 14 | AU6: =ROUNDUP(AU5/3,0) -> 14 | AV6: =ROUNDUP(AV5/3,0) -> 14 | AW6: =ROUNDUP(AW5/3,0) -> 15 | AX6: =ROUNDUP(AX5/3,0) -> 15 | AY6: =ROUNDUP(AY5/3,0) -> 15 | AZ6: =ROUNDUP(AZ5/3,0) -> 16
B7: Holding | E7: ='Transaction and Pro-forma'!E29*4 -> 32 | G7: =G5<=$E$7 -> TRUE | H7: =H5<=$E$7 -> TRUE | I7: TRUE | J7: TRUE | K7: TRUE | L7: TRUE | M7: TRUE | N7: TRUE | O7: TRUE | P7: TRUE | Q7: TRUE | R7: TRUE | S7: TRUE | T7: TRUE | U7: TRUE | V7: TRUE | W7: TRUE | X7: TRUE | Y7: TRUE | Z7: TRUE | AA7: =AA5<=$E$7 -> TRUE | AB7: TRUE | AC7: TRUE | AD7: TRUE | AE7: TRUE | AF7: TRUE | AG7: TRUE | AH7: TRUE | AI7: TRUE | AJ7: TRUE | AK7: TRUE | AL7: TRUE | AM7: FALSE | AN7: FALSE | AO7: FALSE | AP7: FALSE | AQ7: FALSE | AR7: FALSE | AS7: FALSE | AT7: FALSE | AU7: FALSE | AV7: FALSE | AW7: FALSE | AX7: FALSE | AY7: FALSE | AZ7: FALSE
B8: Exit | E8: =E7 -> 32 | G8: =$E$8=G5 -> FALSE | H8: =$E$8=H5 -> FALSE | I8: FALSE | J8: FALSE | K8: FALSE | L8: FALSE | M8: FALSE | N8: FALSE | O8: FALSE | P8: FALSE | Q8: FALSE | R8: FALSE | S8: FALSE | T8: FALSE | U8: FALSE | V8: FALSE | W8: FALSE | X8: FALSE | Y8: FALSE | Z8: FALSE | AA8: FALSE | AB8: FALSE | AC8: FALSE | AD8: FALSE | AE8: FALSE | AF8: FALSE | AG8: FALSE | AH8: FALSE | AI8: FALSE | AJ8: FALSE | AK8: FALSE | AL8: TRUE | AM8: FALSE | AN8: FALSE | AO8: FALSE | AP8: FALSE | AQ8: FALSE | AR8: FALSE | AS8: FALSE | AT8: FALSE | AU8: FALSE | AV8: FALSE | AW8: FALSE | AX8: FALSE | AY8: FALSE | AZ8: FALSE
B9: Column | F9: =MATCH(F4,'Standalone Case'!4:4) -> 14 | G9: =MATCH(G4,'Standalone Case'!4:4) -> 15 | H9: =MATCH(H4,'Standalone Case'!4:4) -> 16 | I9: =MATCH(I4,'Standalone Case'!4:4) -> 17 | J9: =MATCH(J4,'Standalone Case'!4:4) -> 18 | K9: =MATCH(K4,'Standalone Case'!4:4) -> 19 | L9: =MATCH(L4,'Standalone Case'!4:4) -> 20 | M9: =MATCH(M4,'Standalone Case'!4:4) -> 21 | N9: =MATCH(N4,'Standalone Case'!4:4) -> 22 | O9: =MATCH(O4,'Standalone Case'!4:4) -> 23 | P9: =MATCH(P4,'Standalone Case'!4:4) -> 24 | Q9: =MATCH(Q4,'Standalone Case'!4:4) -> 25 | R9: =MATCH(R4,'Standalone Case'!4:4) -> 26 | S9: =MATCH(S4,'Standalone Case'!4:4) -> 27 | T9: =MATCH(T4,'Standalone Case'!4:4) -> 28 | U9: =MATCH(U4,'Standalone Case'!4:4) -> 29 | V9: =MATCH(V4,'Standalone Case'!4:4) -> 30 | W9: =MATCH(W4,'Standalone Case'!4:4) -> 31 | X9: =MATCH(X4,'Standalone Case'!4:4) -> 32 | Y9: =MATCH(Y4,'Standalone Case'!4:4) -> 33 | Z9: =MATCH(Z4,'Standalone Case'!4:4) -> 34 | AA9: =MATCH(AA4,'Standalone Case'!4:4) -> 35 | AB9: =MATCH(AB4,'Standalone Case'!4:4) -> 36 | AC9: =MATCH(AC4,'Standalone Case'!4:4) -> 37 | AD9: =MATCH(AD4,'Standalone Case'!4:4) -> 38 | AE9: =MATCH(AE4,'Standalone Case'!4:4) -> 39 | AF9: =MATCH(AF4,'Standalone Case'!4:4) -> 40 | AG9: =MATCH(AG4,'Standalone Case'!4:4) -> 41 | AH9: =MATCH(AH4,'Standalone Case'!4:4) -> 42 | AI9: =MATCH(AI4,'Standalone Case'!4:4) -> 43 | AJ9: =MATCH(AJ4,'Standalone Case'!4:4) -> 44 | AK9: =MATCH(AK4,'Standalone Case'!4:4) -> 45 | AL9: =MATCH(AL4,'Standalone Case'!4:4) -> 46 | AM9: =MATCH(AM4,'Standalone Case'!4:4) -> 47 | AN9: =MATCH(AN4,'Standalone Case'!4:4) -> 48 | AO9: =MATCH(AO4,'Standalone Case'!4:4) -> 49 | AP9: =MATCH(AP4,'Standalone Case'!4:4) -> 50 | AQ9: =MATCH(AQ4,'Standalone Case'!4:4) -> 51 | AR9: =MATCH(AR4,'Standalone Case'!4:4) -> 52 | AS9: =MATCH(AS4,'Standalone Case'!4:4) -> 53 | AT9: =MATCH(AT4,'Standalone Case'!4:4) -> 54 | AU9: =MATCH(AU4,'Standalone Case'!4:4) -> 55 | AV9: =MATCH(AV4,'Standalone Case'!4:4) -> 56 | AW9: =MATCH(AW4,'Standalone Case'!4:4) -> 57 | AX9: =MATCH(AX4,'Standalone Case'!4:4) -> 58 | AY9: =MATCH(AY4,'Standalone Case'!4:4) -> 59 | AZ9: =MATCH(AZ4,'Standalone Case'!4:4) -> 60
B10: Year | G10: =YEAR(G4) -> 2018 | H10: =YEAR(H4) -> 2018 | I10: 2018 | J10: 2018 | K10: 2019 | L10: 2019 | M10: 2019 | N10: 2019 | O10: 2020 | P10: 2020 | Q10: 2020 | R10: 2020 | S10: 2021 | T10: 2021 | U10: 2021 | V10: 2021 | W10: 2022 | X10: 2022 | Y10: 2022 | Z10: 2022 | AA10: 2023 | AB10: 2023 | AC10: 2023 | AD10: 2023 | AE10: 2024 | AF10: 2024 | AG10: 2024 | AH10: 2024 | AI10: 2025 | AJ10: 2025 | AK10: 2025 | AL10: 2025 | AM10: 2026 | AN10: 2026 | AO10: 2026 | AP10: 2026 | AQ10: 2027 | AR10: 2027 | AS10: 2027 | AT10: 2027 | AU10: 2028 | AV10: 2028 | AW10: 2028 | AX10: 2028 | AY10: 2029 | AZ10: 2029
B11: Counter that Skips | F11: -1 | G11: =IF(G10<>F10,F11+2,F11+1) -> 1 | H11: =IF(H10<>G10,G11+2,G11+1) -> 2 | I11: 3 | J11: 4 | K11: 6 | L11: 7 | M11: 8 | N11: 9 | O11: 11 | P11: 12 | Q11: 13 | R11: 14 | S11: 16 | T11: 17 | U11: 18 | V11: 19 | W11: 21 | X11: 22 | Y11: 23 | Z11: 24 | AA11: 26 | AB11: 27 | AC11: 28 | AD11: 29 | AE11: 31 | AF11: 32 | AG11: 33 | AH11: 34 | AI11: 36 | AJ11: 37 | AK11: 38 | AL11: 39 | AM11: 41 | AN11: 42 | AO11: 43 | AP11: 44 | AQ11: 46 | AR11: 47 | AS11: 48 | AT11: 49 | AU11: 51 | AV11: 52 | AW11: 53 | AX11: 54 | AY11: 56 | AZ11: 57
A13: Pro Forma B/S
B14: Cash | F14: ='Transaction and Pro-forma'!N97 -> 2
B15: A/R | F15: ='Transaction and Pro-forma'!N98 -> 247.5
B16: Development Capitalised | F16: ='Transaction and Pro-forma'!N99 -> 154.2857143
B17: GoodWill | F17: ='Transaction and Pro-forma'!N100 -> 122.6142857
B18: Intangibles | F18: ='Transaction and Pro-forma'!N101 -> 30
B19: Debt Issuance Cost | F19: ='Transaction and Pro-forma'!N102 -> 6.1
C20: Total | F20: ='Transaction and Pro-forma'!N103 -> 562.5
B22: Debt | F22: ='Transaction and Pro-forma'!N105 -> 0
B23: Senior Debt | F23: ='Transaction and Pro-forma'!N106 -> 410
B24: Subord. Debt | F24: ='Transaction and Pro-forma'!N107 -> 75
B25: Equity | F25: ='Transaction and Pro-forma'!N108 -> 77.5
C26: Total | F26: ='Transaction and Pro-forma'!N109 -> 562.5
A28: Operating Analysis
B29: EBITDA | F29: =INDEX('Standalone Case'!152:152,'LBO Model'!F9)*F7 -> 0 | G29: =INDEX('Standalone Case'!152:152,'LBO Model'!G9)*G7 -> 4.9005 | H29: =INDEX('Standalone Case'!152:152,'LBO Model'!H9)*H7 -> 19.602 | I29: =INDEX('Standalone Case'!152:152,'LBO Model'!I9)*I7 -> 29.403 | J29: =INDEX('Standalone Case'!152:152,'LBO Model'!J9)*J7 -> 44.1045 | K29: =INDEX('Standalone Case'!152:152,'LBO Model'!K9)*K7 -> 5.39055 | L29: =INDEX('Standalone Case'!152:152,'LBO Model'!L9)*L7 -> 21.5622 | M29: =INDEX('Standalone Case'!152:152,'LBO Model'!M9)*M7 -> 32.3433 | N29: =INDEX('Standalone Case'!152:152,'LBO Model'!N9)*N7 -> 48.51495 | O29: =INDEX('Standalone Case'!152:152,'LBO Model'!O9)*O7 -> 5.929605 | P29: =INDEX('Standalone Case'!152:152,'LBO Model'!P9)*P7 -> 23.71842 | Q29: =INDEX('Standalone Case'!152:152,'LBO Model'!Q9)*Q7 -> 35.57763 | R29: =INDEX('Standalone Case'!152:152,'LBO Model'!R9)*R7 -> 53.366445 | S29: =INDEX('Standalone Case'!152:152,'LBO Model'!S9)*S7 -> 5.929605 | T29: =INDEX('Standalone Case'!152:152,'LBO Model'!T9)*T7 -> 23.71842 | U29: =INDEX('Standalone Case'!152:152,'LBO Model'!U9)*U7 -> 35.57763 | V29: =INDEX('Standalone Case'!152:152,'LBO Model'!V9)*V7 -> 53.366445 | W29: =INDEX('Standalone Case'!152:152,'LBO Model'!W9)*W7 -> 5.929605 | X29: =INDEX('Standalone Case'!152:152,'LBO Model'!X9)*X7 -> 23.71842 | Y29: =INDEX('Standalone Case'!152:152,'LBO Model'!Y9)*Y7 -> 35.57763 | Z29: =INDEX('Standalone Case'!152:152,'LBO Model'!Z9)*Z7 -> 53.366445 | AA29: =INDEX('Standalone Case'!152:152,'LBO Model'!AA9)*AA7 -> 5.929605 | AB29: =INDEX('Standalone Case'!152:152,'LBO Model'!AB9)*AB7 -> 23.71842 | AC29: =INDEX('Standalone Case'!152:152,'LBO Model'!AC9)*AC7 -> 35.57763 | AD29: =INDEX('Standalone Case'!152:152,'LBO Model'!AD9)*AD7 -> 53.366445 | AE29: =INDEX('Standalone Case'!152:152,'LBO Model'!AE9)*AE7 -> 5.929605 | AF29: =INDEX('Standalone Case'!152:152,'LBO Model'!AF9)*AF7 -> 23.71842 | AG29: =INDEX('Standalone Case'!152:152,'LBO Model'!AG9)*AG7 -> 35.57763 | AH29: =INDEX('Standalone Case'!152:152,'LBO Model'!AH9)*AH7 -> 53.366445 | AI29: =INDEX('Standalone Case'!152:152,'LBO Model'!AI9)*AI7 -> 5.929605 | AJ29: =INDEX('Standalone Case'!152:152,'LBO Model'!AJ9)*AJ7 -> 23.71842 | AK29: =INDEX('Standalone Case'!152:152,'LBO Model'!AK9)*AK7 -> 35.57763 | AL29: =INDEX('Standalone Case'!152:152,'LBO Model'!AL9)*AL7 -> 53.366445 | AM29: =INDEX('Standalone Case'!152:152,'LBO Model'!AM9)*AM7 -> 0 | AN29: =INDEX('Standalone Case'!152:152,'LBO Model'!AN9)*AN7 -> 0 | AO29: =INDEX('Standalone Case'!152:152,'LBO Model'!AO9)*AO7 -> 0 | AP29: =INDEX('Standalone Case'!152:152,'LBO Model'!AP9)*AP7 -> 0 | AQ29: =INDEX('Standalone Case'!152:152,'LBO Model'!AQ9)*AQ7 -> 0 | AR29: =INDEX('Standalone Case'!152:152,'LBO Model'!AR9)*AR7 -> 0 | AS29: =INDEX('Standalone Case'!152:152,'LBO Model'!AS9)*AS7 -> 0 | AT29: =INDEX('Standalone Case'!152:152,'LBO Model'!AT9)*AT7 -> 0 | AU29: =INDEX('Standalone Case'!152:152,'LBO Model'!AU9)*AU7 -> 0 | AV29: =INDEX('Standalone Case'!152:152,'LBO Model'!AV9)*AV7 -> 0 | AW29: =INDEX('Standalone Case'!152:152,'LBO Model'!AW9)*AW7 -> 0 | AX29: =INDEX('Standalone Case'!152:152,'LBO Model'!AX9)*AX7 -> 0 | AY29: =INDEX('Standalone Case'!152:152,'LBO Model'!AY9)*AY7 -> 0 | AZ29: =INDEX('Standalone Case'!152:152,'LBO Model'!AZ9)*AZ7 -> 0
B30: Working Capital Changes | F30: =INDEX('Standalone Case'!153:153,'LBO Model'!F9)*F7 -> 0 | G30: =INDEX('Standalone Case'!153:153,'LBO Model'!G9)*G7 -> 80.85 | H30: =INDEX('Standalone Case'!153:153,'LBO Model'!H9)*H7 -> 81.95 | I30: =INDEX('Standalone Case'!153:153,'LBO Model'!I9)*I7 -> -72.6 | J30: =INDEX('Standalone Case'!153:153,'LBO Model'!J9)*J7 -> -78.65 | K30: =INDEX('Standalone Case'!153:153,'LBO Model'!K9)*K7 -> 107.085 | L30: =INDEX('Standalone Case'!153:153,'LBO Model'!L9)*L7 -> 46.78666667 | M30: =INDEX('Standalone Case'!153:153,'LBO Model'!M9)*M7 -> -46.585 | N30: =INDEX('Standalone Case'!153:153,'LBO Model'!N9)*N7 -> -64.33166667 | O30: =INDEX('Standalone Case'!153:153,'LBO Model'!O9)*O7 -> 151.0685 | P30: =INDEX('Standalone Case'!153:153,'LBO Model'!P9)*P7 -> -49.09171667 | Q30: =INDEX('Standalone Case'!153:153,'LBO Model'!Q9)*Q7 -> -53.43965 | R30: =INDEX('Standalone Case'!153:153,'LBO Model'!R9)*R7 -> -72.22893333 | S30: =INDEX('Standalone Case'!153:153,'LBO Model'!S9)*S7 -> 166.17535 | T30: =INDEX('Standalone Case'!153:153,'LBO Model'!T9)*T7 -> -40.50676667 | U30: =INDEX('Standalone Case'!153:153,'LBO Model'!U9)*U7 -> -53.43965 | V30: =INDEX('Standalone Case'!153:153,'LBO Model'!V9)*V7 -> -72.22893333 | W30: =INDEX('Standalone Case'!153:153,'LBO Model'!W9)*W7 -> 166.17535 | X30: =INDEX('Standalone Case'!153:153,'LBO Model'!X9)*X7 -> -40.50676667 | Y30: =INDEX('Standalone Case'!153:153,'LBO Model'!Y9)*Y7 -> -53.43965 | Z30: =INDEX('Standalone Case'!153:153,'LBO Model'!Z9)*Z7 -> -72.22893333 | AA30: =INDEX('Standalone Case'!153:153,'LBO Model'!AA9)*AA7 -> 166.17535 | AB30: =INDEX('Standalone Case'!153:153,'LBO Model'!AB9)*AB7 -> -40.50676667 | AC30: =INDEX('Standalone Case'!153:153,'LBO Model'!AC9)*AC7 -> -53.43965 | AD30: =INDEX('Standalone Case'!153:153,'LBO Model'!AD9)*AD7 -> -72.22893333 | AE30: =INDEX('Standalone Case'!153:153,'LBO Model'!AE9)*AE7 -> 166.17535 | AF30: =INDEX('Standalone Case'!153:153,'LBO Model'!AF9)*AF7 -> -40.50676667 | AG30: =INDEX('Standalone Case'!153:153,'LBO Model'!AG9)*AG7 -> -53.43965 | AH30: =INDEX('Standalone Case'!153:153,'LBO Model'!AH9)*AH7 -> -72.22893333 | AI30: =INDEX('Standalone Case'!153:153,'LBO Model'!AI9)*AI7 -> 166.17535 | AJ30: =INDEX('Standalone Case'!153:153,'LBO Model'!AJ9)*AJ7 -> -40.50676667 | AK30: =INDEX('Standalone Case'!153:153,'LBO Model'!AK9)*AK7 -> -53.43965 | AL30: =INDEX('Standalone Case'!153:153,'LBO Model'!AL9)*AL7 -> -72.22893333 | AM30: =INDEX('Standalone Case'!153:153,'LBO Model'!AM9)*AM7 -> 0 | AN30: =INDEX('Standalone Case'!153:153,'LBO Model'!AN9)*AN7 -> 0 | AO30: =INDEX('Standalone Case'!153:153,'LBO Model'!AO9)*AO7 -> 0 | AP30: =INDEX('Standalone Case'!153:153,'LBO Model'!AP9)*AP7 -> 0 | AQ30: =INDEX('Standalone Case'!153:153,'LBO Model'!AQ9)*AQ7 -> 0 | AR30: =INDEX('Standalone Case'!153:153,'LBO Model'!AR9)*AR7 -> 0 | AS30: =INDEX('Standalone Case'!153:153,'LBO Model'!AS9)*AS7 -> 0 | AT30: =INDEX('Standalone Case'!153:153,'LBO Model'!AT9)*AT7 -> 0 | AU30: =INDEX('Standalone Case'!153:153,'LBO Model'!AU9)*AU7 -> 0 | AV30: =INDEX('Standalone Case'!153:153,'LBO Model'!AV9)*AV7 -> 0 | AW30: =INDEX('Standalone Case'!153:153,'LBO Model'!AW9)*AW7 -> 0 | AX30: =INDEX('Standalone Case'!153:153,'LBO Model'!AX9)*AX7 -> 0 | AY30: =INDEX('Standalone Case'!153:153,'LBO Model'!AY9)*AY7 -> 0 | AZ30: =INDEX('Standalone Case'!153:153,'LBO Model'!AZ9)*AZ7 -> 0
B31: R&D | F31: =INDEX('Standalone Case'!154:154,'LBO Model'!F9)*F7 -> 0 | G31: =INDEX('Standalone Case'!154:154,'LBO Model'!G9)*G7 -> -9.5 | H31: =INDEX('Standalone Case'!154:154,'LBO Model'!H9)*H7 -> -9.5 | I31: =INDEX('Standalone Case'!154:154,'LBO Model'!I9)*I7 -> -9.5 | J31: =INDEX('Standalone Case'!154:154,'LBO Model'!J9)*J7 -> -9.5 | K31: =INDEX('Standalone Case'!154:154,'LBO Model'!K9)*K7 -> -9.025 | L31: =INDEX('Standalone Case'!154:154,'LBO Model'!L9)*L7 -> -9.025 | M31: =INDEX('Standalone Case'!154:154,'LBO Model'!M9)*M7 -> -9.025 | N31: =INDEX('Standalone Case'!154:154,'LBO Model'!N9)*N7 -> -9.025 | O31: =INDEX('Standalone Case'!154:154,'LBO Model'!O9)*O7 -> -8.57375 | P31: =INDEX('Standalone Case'!154:154,'LBO Model'!P9)*P7 -> -8.57375 | Q31: =INDEX('Standalone Case'!154:154,'LBO Model'!Q9)*Q7 -> -8.57375 | R31: =INDEX('Standalone Case'!154:154,'LBO Model'!R9)*R7 -> -8.57375 | S31: =INDEX('Standalone Case'!154:154,'LBO Model'!S9)*S7 -> -8.57375 | T31: =INDEX('Standalone Case'!154:154,'LBO Model'!T9)*T7 -> -8.57375 | U31: =INDEX('Standalone Case'!154:154,'LBO Model'!U9)*U7 -> -8.57375 | V31: =INDEX('Standalone Case'!154:154,'LBO Model'!V9)*V7 -> -8.57375 | W31: =INDEX('Standalone Case'!154:154,'LBO Model'!W9)*W7 -> -8.57375 | X31: =INDEX('Standalone Case'!154:154,'LBO Model'!X9)*X7 -> -8.57375 | Y31: =INDEX('Standalone Case'!154:154,'LBO Model'!Y9)*Y7 -> -8.57375 | Z31: =INDEX('Standalone Case'!154:154,'LBO Model'!Z9)*Z7 -> -8.57375 | AA31: =INDEX('Standalone Case'!154:154,'LBO Model'!AA9)*AA7 -> -8.57375 | AB31: =INDEX('Standalone Case'!154:154,'LBO Model'!AB9)*AB7 -> -8.57375 | AC31: =INDEX('Standalone Case'!154:154,'LBO Model'!AC9)*AC7 -> -8.57375 | AD31: =INDEX('Standalone Case'!154:154,'LBO Model'!AD9)*AD7 -> -8.57375 | AE31: =INDEX('Standalone Case'!154:154,'LBO Model'!AE9)*AE7 -> -8.57375 | AF31: =INDEX('Standalone Case'!154:154,'LBO Model'!AF9)*AF7 -> -8.57375 | AG31: =INDEX('Standalone Case'!154:154,'LBO Model'!AG9)*AG7 -> -8.57375 | AH31: =INDEX('Standalone Case'!154:154,'LBO Model'!AH9)*AH7 -> -8.57375 | AI31: =INDEX('Standalone Case'!154:154,'LBO Model'!AI9)*AI7 -> -8.57375 | AJ31: =INDEX('Standalone Case'!154:154,'LBO Model'!AJ9)*AJ7 -> -8.57375 | AK31: =INDEX('Standalone Case'!154:154,'LBO Model'!AK9)*AK7 -> -8.57375 | AL31: =INDEX('Standalone Case'!154:154,'LBO Model'!AL9)*AL7 -> -8.57375 | AM31: =INDEX('Standalone Case'!154:154,'LBO Model'!AM9)*AM7 -> 0 | AN31: =INDEX('Standalone Case'!154:154,'LBO Model'!AN9)*AN7 -> 0 | AO31: =INDEX('Standalone Case'!154:154,'LBO Model'!AO9)*AO7 -> 0 | AP31: =INDEX('Standalone Case'!154:154,'LBO Model'!AP9)*AP7 -> 0 | AQ31: =INDEX('Standalone Case'!154:154,'LBO Model'!AQ9)*AQ7 -> 0 | AR31: =INDEX('Standalone Case'!154:154,'LBO Model'!AR9)*AR7 -> 0 | AS31: =INDEX('Standalone Case'!154:154,'LBO Model'!AS9)*AS7 -> 0 | AT31: =INDEX('Standalone Case'!154:154,'LBO Model'!AT9)*AT7 -> 0 | AU31: =INDEX('Standalone Case'!154:154,'LBO Model'!AU9)*AU7 -> 0 | AV31: =INDEX('Standalone Case'!154:154,'LBO Model'!AV9)*AV7 -> 0 | AW31: =INDEX('Standalone Case'!154:154,'LBO Model'!AW9)*AW7 -> 0 | AX31: =INDEX('Standalone Case'!154:154,'LBO Model'!AX9)*AX7 -> 0 | AY31: =INDEX('Standalone Case'!154:154,'LBO Model'!AY9)*AY7 -> 0 | AZ31: =INDEX('Standalone Case'!154:154,'LBO Model'!AZ9)*AZ7 -> 0
B32: Synergies (Cost Savings) | F32: =LOOKUP(F6,'Transaction and Pro-forma'!31:31,'Transaction and Pro-forma'!38:38)/4*F7 -> 0 | G32: =LOOKUP(G6,'Transaction and Pro-forma'!31:31,'Transaction and Pro-forma'!38:38)/4*G7 -> -1.25 | H32: =LOOKUP(H6,'Transaction and Pro-forma'!31:31,'Transaction and Pro-forma'!38:38)/4*H7 -> -1.25 | I32: =LOOKUP(I6,'Transaction and Pro-forma'!31:31,'Transaction and Pro-forma'!38:38)/4*I7 -> -1.25 | J32: =LOOKUP(J6,'Transaction and Pro-forma'!31:31,'Transaction and Pro-forma'!38:38)/4*J7 -> 1.5 | K32: =LOOKUP(K6,'Transaction and Pro-forma'!31:31,'Transaction and Pro-forma'!38:38)/4*K7 -> 1.5 | L32: =LOOKUP(L6,'Transaction and Pro-forma'!31:31,'Transaction and Pro-forma'!38:38)/4*L7 -> 1.5 | M32: =LOOKUP(M6,'Transaction and Pro-forma'!31:31,'Transaction and Pro-forma'!38:38)/4*M7 -> 2.5 | N32: =LOOKUP(N6,'Transaction and Pro-forma'!31:31,'Transaction and Pro-forma'!38:38)/4*N7 -> 2.5 | O32: =LOOKUP(O6,'Transaction and Pro-forma'!31:31,'Transaction and Pro-forma'!38:38)/4*O7 -> 2.5 | P32: =LOOKUP(P6,'Transaction and Pro-forma'!31:31,'Transaction and Pro-forma'!38:38)/4*P7 -> 3 | Q32: =LOOKUP(Q6,'Transaction and Pro-forma'!31:31,'Transaction and Pro-forma'!38:38)/4*Q7 -> 3 | R32: =LOOKUP(R6,'Transaction and Pro-forma'!31:31,'Transaction and Pro-forma'!38:38)/4*R7 -> 3 | S32: =LOOKUP(S6,'Transaction and Pro-forma'!31:31,'Transaction and Pro-forma'!38:38)/4*S7 -> 3.25 | T32: =LOOKUP(T6,'Transaction and Pro-forma'!31:31,'Transaction and Pro-forma'!38:38)/4*T7 -> 3.25 | U32: =LOOKUP(U6,'Transaction and Pro-forma'!31:31,'Transaction and Pro-forma'!38:38)/4*U7 -> 3.25 | V32: =LOOKUP(V6,'Transaction and Pro-forma'!31:31,'Transaction and Pro-forma'!38:38)/4*V7 -> 3.25 | W32: =LOOKUP(W6,'Transaction and Pro-forma'!31:31,'Transaction and Pro-forma'!38:38)/4*W7 -> 3.25 | X32: =LOOKUP(X6,'Transaction and Pro-forma'!31:31,'Transaction and Pro-forma'!38:38)/4*X7 -> 3.25 | Y32: =LOOKUP(Y6,'Transaction and Pro-forma'!31:31,'Transaction and Pro-forma'!38:38)/4*Y7 -> 3.25 | Z32: =LOOKUP(Z6,'Transaction and Pro-forma'!31:31,'Transaction and Pro-forma'!38:38)/4*Z7 -> 3.25 | AA32: =LOOKUP(AA6,'Transaction and Pro-forma'!31:31,'Transaction and Pro-forma'!38:38)/4*AA7 -> 3.25 | AB32: =LOOKUP(AB6,'Transaction and Pro-forma'!31:31,'Transaction and Pro-forma'!38:38)/4*AB7 -> 3.25 | AC32: =LOOKUP(AC6,'Transaction and Pro-forma'!31:31,'Transaction and Pro-forma'!38:38)/4*AC7 -> 3.25 | AD32: =LOOKUP(AD6,'Transaction and Pro-forma'!31:31,'Transaction and Pro-forma'!38:38)/4*AD7 -> 3.25 | AE32: =LOOKUP(AE6,'Transaction and Pro-forma'!31:31,'Transaction and Pro-forma'!38:38)/4*AE7 -> 3.25 | AF32: =LOOKUP(AF6,'Transaction and Pro-forma'!31:31,'Transaction and Pro-forma'!38:38)/4*AF7 -> 3.25 | AG32: =LOOKUP(AG6,'Transaction and Pro-forma'!31:31,'Transaction and Pro-forma'!38:38)/4*AG7 -> 3.25 | AH32: =LOOKUP(AH6,'Transaction and Pro-forma'!31:31,'Transaction and Pro-forma'!38:38)/4*AH7 -> 3.25 | AI32: =LOOKUP(AI6,'Transaction and Pro-forma'!31:31,'Transaction and Pro-forma'!38:38)/4*AI7 -> 3.25 | AJ32: =LOOKUP(AJ6,'Transaction and Pro-forma'!31:31,'Transaction and Pro-forma'!38:38)/4*AJ7 -> 3.25 | AK32: =LOOKUP(AK6,'Transaction and Pro-forma'!31:31,'Transaction and Pro-forma'!38:38)/4*AK7 -> 3.25 | AL32: =LOOKUP(AL6,'Transaction and Pro-forma'!31:31,'Transaction and Pro-forma'!38:38)/4*AL7 -> 3.25 | AM32: =LOOKUP(AM6,'Transaction and Pro-forma'!31:31,'Transaction and Pro-forma'!38:38)/4*AM7 -> 0 | AN32: =LOOKUP(AN6,'Transaction and Pro-forma'!31:31,'Transaction and Pro-forma'!38:38)/4*AN7 -> 0 | AO32: =LOOKUP(AO6,'Transaction and Pro-forma'!31:31,'Transaction and Pro-forma'!38:38)/4*AO7 -> 0 | AP32: =LOOKUP(AP6,'Transaction and Pro-forma'!31:31,'Transaction and Pro-forma'!38:38)/4*AP7 -> 0 | AQ32: =LOOKUP(AQ6,'Transaction and Pro-forma'!31:31,'Transaction and Pro-forma'!38:38)/4*AQ7 -> 0 | AR32: =LOOKUP(AR6,'Transaction and Pro-forma'!31:31,'Transaction and Pro-forma'!38:38)/4*AR7 -> 0 | AS32: =LOOKUP(AS6,'Transaction and Pro-forma'!31:31,'Transaction and Pro-forma'!38:38)/4*AS7 -> 0 | AT32: =LOOKUP(AT6,'Transaction and Pro-forma'!31:31,'Transaction and Pro-forma'!38:38)/4*AT7 -> 0 | AU32: =LOOKUP(AU6,'Transaction and Pro-forma'!31:31,'Transaction and Pro-forma'!38:38)/4*AU7 -> 0 | AV32: =LOOKUP(AV6,'Transaction and Pro-forma'!31:31,'Transaction and Pro-forma'!38:38)/4*AV7 -> 0 | AW32: =LOOKUP(AW6,'Transaction and Pro-forma'!31:31,'Transaction and Pro-forma'!38:38)/4*AW7 -> 0 | AX32: =LOOKUP(AX6,'Transaction and Pro-forma'!31:31,'Transaction and Pro-forma'!38:38)/4*AX7 -> 0 | AY32: =LOOKUP(AY6,'Transaction and Pro-forma'!31:31,'Transaction and Pro-forma'!38:38)/4*AY7 -> 0 | AZ32: =LOOKUP(AZ6,'Transaction and Pro-forma'!31:31,'Transaction and Pro-forma'!38:38)/4*AZ7 -> 0
B34: Trailing EBITDA | G34: =SUM(D29:G29) -> 4.9005 | H34: =SUM(E29:H29) -> 24.5025 | I34: 53.9055 | J34: 98.01 | K34: 98.50005 | L34: 100.46025 | M34: 103.40055 | N34: 107.811 | O34: 108.350055 | P34: 110.506275 | Q34: 113.740605 | R34: 118.5921 | S34: 118.5921 | T34: 118.5921 | U34: 118.5921 | V34: 118.5921 | W34: 118.5921 | X34: 118.5921 | Y34: 118.5921 | Z34: 118.5921 | AA34: 118.5921 | AB34: 118.5921 | AC34: 118.5921 | AD34: 118.5921 | AE34: 118.5921 | AF34: 118.5921 | AG34: 118.5921 | AH34: 118.5921 | AI34: 118.5921 | AJ34: 118.5921 | AK34: 118.5921 | AL34: 118.5921 | AM34: 112.662495 | AN34: 88.944075 | AO34: 53.366445 | AP34: 0 | AQ34: 0 | AR34: 0 | AS34: 0 | AT34: 0 | AU34: 0 | AV34: 0 | AW34: 0 | AX34: 0 | AY34: 0 | AZ34: 0
B35: Exit Proceeds | E35: ='Transaction and Pro-forma'!E28 -> 6.7 | F35: =$E$35*F34*F8 -> 0 | G35: =$E$35*G34*G8 -> 0 | H35: 0 | I35: 0 | J35: 0 | K35: 0 | L35: 0 | M35: 0 | N35: 0 | O35: 0 | P35: 0 | Q35: 0 | R35: 0 | S35: 0 | T35: 0 | U35: 0 | V35: 0 | W35: 0 | X35: 0 | Y35: 0 | Z35: 0 | AA35: 0 | AB35: 0 | AC35: 0 | AD35: 0 | AE35: 0 | AF35: 0 | AG35: 0 | AH35: 0 | AI35: 0 | AJ35: 0 | AK35: 0 | AL35: 794.56707 | AM35: 0 | AN35: 0 | AO35: 0 | AP35: 0 | AQ35: 0 | AR35: 0 | AS35: 0 | AT35: 0 | AU35: 0 | AV35: 0 | AW35: 0 | AX35: 0 | AY35: 0 | AZ35: 0
A37: Depreciation and Amortisation
B38: Depreciation from Standalone Case | G38: =INDEX('Standalone Case'!95:95,'LBO Model'!G9)*G7 -> 5.714285714 | H38: =INDEX('Standalone Case'!95:95,'LBO Model'!H9)*H7 -> 6.053571429 | I38: =INDEX('Standalone Case'!95:95,'LBO Model'!I9)*I7 -> 6.392857143 | J38: =INDEX('Standalone Case'!95:95,'LBO Model'!J9)*J7 -> 6.732142857 | K38: =INDEX('Standalone Case'!95:95,'LBO Model'!K9)*K7 -> 7.071428571 | L38: =INDEX('Standalone Case'!95:95,'LBO Model'!L9)*L7 -> 7.39375 | M38: =INDEX('Standalone Case'!95:95,'LBO Model'!M9)*M7 -> 7.716071429 | N38: =INDEX('Standalone Case'!95:95,'LBO Model'!N9)*N7 -> 8.038392857 | O38: =INDEX('Standalone Case'!95:95,'LBO Model'!O9)*O7 -> 8.360714286 | P38: =INDEX('Standalone Case'!95:95,'LBO Model'!P9)*P7 -> 8.666919643 | Q38: =INDEX('Standalone Case'!95:95,'LBO Model'!Q9)*Q7 -> 8.973125 | R38: =INDEX('Standalone Case'!95:95,'LBO Model'!R9)*R7 -> 9.279330357 | S38: =INDEX('Standalone Case'!95:95,'LBO Model'!S9)*S7 -> 9.585535714 | T38: =INDEX('Standalone Case'!95:95,'LBO Model'!T9)*T7 -> 9.891741071 | U38: =INDEX('Standalone Case'!95:95,'LBO Model'!U9)*U7 -> 10.19794643 | V38: =INDEX('Standalone Case'!95:95,'LBO Model'!V9)*V7 -> 10.50415179 | W38: =INDEX('Standalone Case'!95:95,'LBO Model'!W9)*W7 -> 10.81035714 | X38: =INDEX('Standalone Case'!95:95,'LBO Model'!X9)*X7 -> 11.1165625 | Y38: =INDEX('Standalone Case'!95:95,'LBO Model'!Y9)*Y7 -> 11.42276786 | Z38: =INDEX('Standalone Case'!95:95,'LBO Model'!Z9)*Z7 -> 11.72897321 | AA38: =INDEX('Standalone Case'!95:95,'LBO Model'!AA9)*AA7 -> 12.03517857 | AB38: =INDEX('Standalone Case'!95:95,'LBO Model'!AB9)*AB7 -> 11.26995536 | AC38: =INDEX('Standalone Case'!95:95,'LBO Model'!AC9)*AC7 -> 10.50473214 | AD38: =INDEX('Standalone Case'!95:95,'LBO Model'!AD9)*AD7 -> 9.739508929 | AE38: =INDEX('Standalone Case'!95:95,'LBO Model'!AE9)*AE7 -> 8.974285714 | AF38: =INDEX('Standalone Case'!95:95,'LBO Model'!AF9)*AF7 -> 8.923348214 | AG38: =INDEX('Standalone Case'!95:95,'LBO Model'!AG9)*AG7 -> 8.872410714 | AH38: =INDEX('Standalone Case'!95:95,'LBO Model'!AH9)*AH7 -> 8.821473214 | AI38: =INDEX('Standalone Case'!95:95,'LBO Model'!AI9)*AI7 -> 8.770535714 | AJ38: =INDEX('Standalone Case'!95:95,'LBO Model'!AJ9)*AJ7 -> 8.737455357 | AK38: =INDEX('Standalone Case'!95:95,'LBO Model'!AK9)*AK7 -> 8.704375 | AL38: =INDEX('Standalone Case'!95:95,'LBO Model'!AL9)*AL7 -> 8.671294643 | AM38: =INDEX('Standalone Case'!95:95,'LBO Model'!AM9)*AM7 -> 0 | AN38: =INDEX('Standalone Case'!95:95,'LBO Model'!AN9)*AN7 -> 0 | AO38: =INDEX('Standalone Case'!95:95,'LBO Model'!AO9)*AO7 -> 0 | AP38: =INDEX('Standalone Case'!95:95,'LBO Model'!AP9)*AP7 -> 0 | AQ38: =INDEX('Standalone Case'!95:95,'LBO Model'!AQ9)*AQ7 -> 0 | AR38: =INDEX('Standalone Case'!95:95,'LBO Model'!AR9)*AR7 -> 0 | AS38: =INDEX('Standalone Case'!95:95,'LBO Model'!AS9)*AS7 -> 0 | AT38: =INDEX('Standalone Case'!95:95,'LBO Model'!AT9)*AT7 -> 0 | AU38: =INDEX('Standalone Case'!95:95,'LBO Model'!AU9)*AU7 -> 0 | AV38: =INDEX('Standalone Case'!95:95,'LBO Model'!AV9)*AV7 -> 0 | AW38: =INDEX('Standalone Case'!95:95,'LBO Model'!AW9)*AW7 -> 0 | AX38: =INDEX('Standalone Case'!95:95,'LBO Model'!AX9)*AX7 -> 0 | AY38: =INDEX('Standalone Case'!95:95,'LBO Model'!AY9)*AY7 -> 0 | AZ38: =INDEX('Standalone Case'!95:95,'LBO Model'!AZ9)*AZ7 -> 0
B39: Net Plant Balance | F39: =F16 -> 154.2857143 | G39: =F39-G31-G38 -> 158.0714286 | H39: =G39-H31-H38 -> 161.5178571 | I39: 164.625 | J39: 167.3928571 | K39: 169.3464286 | L39: 170.9776786 | M39: 172.2866071 | N39: 173.2732143 | O39: 173.48625 | P39: 173.3930804 | Q39: 172.9937054 | R39: 172.288125 | S39: 171.2763393 | T39: 169.9583482 | U39: 168.3341518 | V39: 166.40375 | W39: 164.1671429 | X39: 161.6243304 | Y39: 158.7753125 | Z39: 155.6200893 | AA39: 152.1586607 | AB39: 149.4624554 | AC39: 147.5314732 | AD39: 146.3657143 | AE39: 145.9651786 | AF39: 145.6155804 | AG39: 145.3169196 | AH39: 145.0691964 | AI39: 144.8724107 | AJ39: 144.7087054 | AK39: 144.5780804 | AL39: 144.4805357 | AM39: 144.4805357 | AN39: 144.4805357 | AO39: 144.4805357 | AP39: 144.4805357 | AQ39: 144.4805357 | AR39: 144.4805357 | AS39: 144.4805357 | AT39: 144.4805357 | AU39: 144.4805357 | AV39: 144.4805357 | AW39: 144.4805357 | AX39: 144.4805357 | AY39: 144.4805357 | AZ39: 144.4805357
B41: Fee Balance
C42: Balance | F42: =F19 -> 6.1 | G42: =F42 -> 6.1 | H42: =G42 -> 6.1 | I42: 6.1 | J42: 6.1 | K42: 6.1 | L42: 6.1 | M42: 6.1 | N42: 6.1 | O42: 6.1 | P42: 6.1 | Q42: 6.1 | R42: 6.1 | S42: 6.1 | T42: 6.1 | U42: 6.1 | V42: 6.1 | W42: 6.1 | X42: 6.1 | Y42: 6.1 | Z42: 6.1 | AA42: 6.1 | AB42: 6.1 | AC42: 6.1 | AD42: 6.1 | AE42: 6.1 | AF42: 6.1 | AG42: 6.1 | AH42: 6.1 | AI42: 6.1 | AJ42: 6.1 | AK42: 6.1 | AL42: 6.1 | AM42: 6.1 | AN42: 6.1 | AO42: 6.1 | AP42: 6.1 | AQ42: 6.1 | AR42: 6.1 | AS42: 6.1 | AT42: 6.1 | AU42: 6.1 | AV42: 6.1 | AW42: 6.1 | AX42: 6.1 | AY42: 6.1 | AZ42: 6.1
C43: Amortisation | F43: =1/F48 -> 0.03125 | G43: =MIN($F$43*G42,F45) -> 0.190625 | H43: =MIN($F$43*H42,G45) -> 0.190625 | I43: =MIN($F$43*I42,H45) -> 0.190625 | J43: 0.190625 | K43: 0.190625 | L43: 0.190625 | M43: 0.190625 | N43: 0.190625 | O43: 0.190625 | P43: 0.190625 | Q43: 0.190625 | R43: 0.190625 | S43: 0.190625 | T43: 0.190625 | U43: 0.190625 | V43: 0.190625 | W43: 0.190625 | X43: 0.190625 | Y43: 0.190625 | Z43: 0.190625 | AA43: 0.190625 | AB43: 0.190625 | AC43: 0.190625 | AD43: 0.190625 | AE43: 0.190625 | AF43: 0.190625 | AG43: 0.190625 | AH43: 0.190625 | AI43: 0.190625 | AJ43: 0.190625 | AK43: 0.190625 | AL43: 0.190625 | AM43: 0 | AN43: 0 | AO43: 0 | AP43: 0 | AQ43: 0 | AR43: 0 | AS43: 0 | AT43: 0 | AU43: 0 | AV43: 0 | AW43: 0 | AX43: 0 | AY43: 0 | AZ43: 0
C44: Accumulated Amortisation | G44: =F44+G43 -> 0.190625 | H44: =G44+H43 -> 0.38125 | I44: =H44+I43 -> 0.571875 | J44: 0.7625 | K44: 0.953125 | L44: 1.14375 | M44: 1.334375 | N44: 1.525 | O44: 1.715625 | P44: 1.90625 | Q44: 2.096875 | R44: 2.2875 | S44: 2.478125 | T44: 2.66875 | U44: 2.859375 | V44: 3.05 | W44: 3.240625 | X44: 3.43125 | Y44: 3.621875 | Z44: 3.8125 | AA44: 4.003125 | AB44: 4.19375 | AC44: 4.384375 | AD44: 4.575 | AE44: 4.765625 | AF44: 4.95625 | AG44: 5.146875 | AH44: 5.3375 | AI44: 5.528125 | AJ44: 5.71875 | AK44: 5.909375 | AL44: 6.1 | AM44: 6.1 | AN44: 6.1 | AO44: 6.1 | AP44: 6.1 | AQ44: 6.1 | AR44: 6.1 | AS44: 6.1 | AT44: 6.1 | AU44: 6.1 | AV44: 6.1 | AW44: 6.1 | AX44: 6.1 | AY44: 6.1 | AZ44: 6.1
C45: Net Fee Balance | F45: =F42 -> 6.1 | G45: =G42-G44 -> 5.909375 | H45: =H42-H44 -> 5.71875 | I45: =I42-I44 -> 5.528125 | J45: 5.3375 | K45: 5.146875 | L45: 4.95625 | M45: 4.765625 | N45: 4.575 | O45: 4.384375 | P45: 4.19375 | Q45: 4.003125 | R45: 3.8125 | S45: 3.621875 | T45: 3.43125 | U45: 3.240625 | V45: 3.05 | W45: 2.859375 | X45: 2.66875 | Y45: 2.478125 | Z45: 2.2875 | AA45: 2.096875 | AB45: 1.90625 | AC45: 1.715625 | AD45: 1.525 | AE45: 1.334375 | AF45: 1.14375 | AG45: 0.953125 | AH45: 0.7625 | AI45: 0.571875 | AJ45: 0.38125 | AK45: 0.190625 | AL45: 0 | AM45: 0 | AN45: 0 | AO45: 0 | AP45: 0 | AQ45: 0 | AR45: 0 | AS45: 0 | AT45: 0 | AU45: 0 | AV45: 0 | AW45: 0 | AX45: 0 | AY45: 0 | AZ45: 0
A47: Financing
B48: Repayment Switch | F48: =F49 -> 32 | G48: =G5<=$F$48 -> TRUE | H48: TRUE | I48: TRUE | J48: TRUE | K48: TRUE | L48: TRUE | M48: TRUE | N48: TRUE | O48: TRUE | P48: TRUE | Q48: TRUE | R48: TRUE | S48: TRUE | T48: TRUE | U48: TRUE | V48: TRUE | W48: TRUE | X48: TRUE | Y48: TRUE | Z48: TRUE | AA48: TRUE | AB48: TRUE | AC48: TRUE | AD48: TRUE | AE48: TRUE | AF48: TRUE | AG48: TRUE | AH48: TRUE | AI48: TRUE | AJ48: TRUE | AK48: TRUE | AL48: TRUE | AM48: FALSE | AN48: FALSE | AO48: FALSE | AP48: FALSE | AQ48: FALSE | AR48: FALSE | AS48: FALSE | AT48: FALSE | AU48: FALSE | AV48: FALSE | AW48: FALSE | AX48: FALSE | AY48: FALSE | AZ48: FALSE
B49: Linear Repayment | E49: ='Transaction and Pro-forma'!E44 -> TRUE | F49: ='Transaction and Pro-forma'!$E$42*4 -> 32 | G49: =$F$57/$F$49*G48 -> 12.8125 | H49: =$F$57/$F$49*H48 -> 12.8125 | I49: 12.8125 | J49: 12.8125 | K49: 12.8125 | L49: 12.8125 | M49: 12.8125 | N49: 12.8125 | O49: 12.8125 | P49: 12.8125 | Q49: 12.8125 | R49: 12.8125 | S49: 12.8125 | T49: 12.8125 | U49: 12.8125 | V49: 12.8125 | W49: 12.8125 | X49: 12.8125 | Y49: 12.8125 | Z49: 12.8125 | AA49: 12.8125 | AB49: 12.8125 | AC49: 12.8125 | AD49: 12.8125 | AE49: 12.8125 | AF49: 12.8125 | AG49: 12.8125 | AH49: 12.8125 | AI49: 12.8125 | AJ49: 12.8125 | AK49: 12.8125 | AL49: 12.8125 | AM49: 0 | AN49: 0 | AO49: 0 | AP49: 0 | AQ49: 0 | AR49: 0 | AS49: 0 | AT49: 0 | AU49: 0 | AV49: 0 | AW49: 0 | AX49: 0 | AY49: 0 | AZ49: 0
B50: Annuity Repayment | E50: ='Transaction and Pro-forma'!E45 -> FALSE | F50: ='Transaction and Pro-forma'!$E$42*4 -> 32 | G50: =IF(G48,PPMT($E$58,G5,$F$50,-$F$57))*1 -> 11.15795977 | H50: 11.25559192 | I50: 11.35407835 | J50: 11.45342653 | K50: 11.55364402 | L50: 11.6547384 | M50: 11.75671736 | N50: 11.85958864 | O50: 11.96336004 | P50: 12.06803944 | Q50: 12.17363478 | R50: 12.28015409 | S50: 12.38760544 | T50: 12.49599698 | U50: 12.60533696 | V50: 12.71563366 | W50: 12.82689545 | X50: 12.93913079 | Y50: 13.05234818 | Z50: 13.16655623 | AA50: 13.28176359 | AB50: 13.39797903 | AC50: 13.51521134 | AD50: 13.63346944 | AE50: 13.7527623 | AF50: 13.87309897 | AG50: 13.99448858 | AH50: 14.11694036 | AI50: 14.24046359 | AJ50: 14.36506764 | AK50: 14.49076199 | AL50: 14.61755615 | AM50: 0 | AN50: 0 | AO50: 0 | AP50: 0 | AQ50: 0 | AR50: 0 | AS50: 0 | AT50: 0 | AU50: 0 | AV50: 0 | AW50: 0 | AX50: 0 | AY50: 0 | AZ50: 0
B51: Repayment Applied | G51: =IF($E$49,G49,G50) -> 12.8125 | H51: =IF($E$49,H49,H50) -> 12.8125 | I51: 12.8125 | J51: 12.8125 | K51: 12.8125 | L51: 12.8125 | M51: 12.8125 | N51: 12.8125 | O51: 12.8125 | P51: 12.8125 | Q51: 12.8125 | R51: 12.8125 | S51: 12.8125 | T51: 12.8125 | U51: 12.8125 | V51: 12.8125 | W51: 12.8125 | X51: 12.8125 | Y51: 12.8125 | Z51: 12.8125 | AA51: 12.8125 | AB51: 12.8125 | AC51: 12.8125 | AD51: 12.8125 | AE51: 12.8125 | AF51: 12.8125 | AG51: 12.8125 | AH51: 12.8125 | AI51: 12.8125 | AJ51: 12.8125 | AK51: 12.8125 | AL51: 12.8125 | AM51: 0 | AN51: 0 | AO51: 0 | AP51: 0 | AQ51: 0 | AR51: 0 | AS51: 0 | AT51: 0 | AU51: 0 | AV51: 0 | AW51: 0 | AX51: 0 | AY51: 0 | AZ51: 0
B53: Senior Debt
C54: Opening Balance | G54: =F57 -> 410 | H54: =G57 -> 339.687 | I54: 271.4365709 | J54: 258.6240709 | K54: 245.8115709 | L54: 144.5028014 | M54: 109.627054 | N54: 96.81455396 | O54: 84.00205396 | P54: 3.354800486 | Q54: 0 | R54: 0 | S54: 0 | T54: 0 | U54: 0 | V54: 0 | W54: 0 | X54: 0 | Y54: 0 | Z54: 0 | AA54: =Z57 -> 0 | AB54: 0 | AC54: 0 | AD54: 0 | AE54: 0 | AF54: 0 | AG54: 0 | AH54: 0 | AI54: 0 | AJ54: 0 | AK54: 0 | AL54: 0 | AM54: 0 | AN54: 0 | AO54: 0 | AP54: 0 | AQ54: 0 | AR54: 0 | AS54: 0 | AT54: 0 | AU54: 0 | AV54: 0 | AW54: 0 | AX54: 0 | AY54: 0 | AZ54: 0
C55: Scheduled Repayment | E55: ='Transaction and Pro-forma'!E42*4 -> 32 | G55: =G125 -> -12.8125 | H55: =H125 -> -12.8125 | I55: -12.8125 | J55: -12.8125 | K55: -12.8125 | L55: -12.8125 | M55: -12.8125 | N55: -12.8125 | O55: -12.8125 | P55: -3.354800486 | Q55: 0 | R55: 0 | S55: 0 | T55: 0 | U55: 0 | V55: 0 | W55: 0 | X55: 0 | Y55: 0 | Z55: 0 | AA55: 0 | AB55: 0 | AC55: 0 | AD55: 0 | AE55: 0 | AF55: 0 | AG55: 0 | AH55: 0 | AI55: 0 | AJ55: 0 | AK55: 0 | AL55: 0 | AM55: 0 | AN55: 0 | AO55: 0 | AP55: 0 | AQ55: 0 | AR55: 0 | AS55: 0 | AT55: 0 | AU55: 0 | AV55: 0 | AW55: 0 | AX55: 0 | AY55: 0 | AZ55: 0
C56: Cash Sweep | G56: =G129 -> -57.5005 | H56: =H129 -> -55.43792906 | I56: 0 | J56: 0 | K56: -88.49626958 | L56: -22.0632474 | M56: 0 | N56: 0 | O56: -67.83475347 | P56: 0 | Q56: 0 | R56: 0 | S56: 0 | T56: 0 | U56: 0 | V56: 0 | W56: 0 | X56: 0 | Y56: 0 | Z56: 0 | AA56: =AA129 -> 0 | AB56: 0 | AC56: 0 | AD56: 0 | AE56: 0 | AF56: 0 | AG56: 0 | AH56: 0 | AI56: 0 | AJ56: 0 | AK56: 0 | AL56: 0 | AM56: 0 | AN56: 0 | AO56: 0 | AP56: 0 | AQ56: 0 | AR56: 0 | AS56: 0 | AT56: 0 | AU56: 0 | AV56: 0 | AW56: 0 | AX56: 0 | AY56: 0 | AZ56: 0
C57: Closing Balance | F57: =F23 -> 410 | G57: =SUM(G54:G56) -> 339.687 | H57: =SUM(H54:H56) -> 271.4365709 | I57: 258.6240709 | J57: 245.8115709 | K57: 144.5028014 | L57: 109.627054 | M57: 96.81455396 | N57: 84.00205396 | O57: 3.354800486 | P57: 0 | Q57: 0 | R57: 0 | S57: 0 | T57: 0 | U57: 0 | V57: 0 | W57: 0 | X57: 0 | Y57: 0 | Z57: 0 | AA57: 0 | AB57: 0 | AC57: 0 | AD57: 0 | AE57: 0 | AF57: 0 | AG57: 0 | AH57: 0 | AI57: 0 | AJ57: 0 | AK57: 0 | AL57: 0 | AM57: 0 | AN57: 0 | AO57: 0 | AP57: 0 | AQ57: 0 | AR57: 0 | AS57: 0 | AT57: 0 | AU57: 0 | AV57: 0 | AW57: 0 | AX57: 0 | AY57: 0 | AZ57: 0
C58: Interest | E58: ='Transaction and Pro-forma'!E46/4 -> 0.00875 | G58: =$E$58*G54 -> 3.5875 | H58: =$E$58*H54 -> 2.97226125 | I58: 2.375069996 | J58: 2.262960621 | K58: 2.150851246 | L58: 1.264399512 | M58: 0.9592367221 | N58: 0.8471273471 | O58: 0.7350179721 | P58: 0.02935450425 | Q58: 0 | R58: 0 | S58: 0 | T58: 0 | U58: 0 | V58: 0 | W58: 0 | X58: 0 | Y58: 0 | Z58: 0 | AA58: =$E$58*AA54 -> 0 | AB58: 0 | AC58: 0 | AD58: 0 | AE58: 0 | AF58: 0 | AG58: 0 | AH58: 0 | AI58: 0 | AJ58: 0 | AK58: 0 | AL58: 0 | AM58: 0 | AN58: 0 | AO58: 0 | AP58: 0 | AQ58: 0 | AR58: 0 | AS58: 0 | AT58: 0 | AU58: 0 | AV58: 0 | AW58: 0 | AX58: 0 | AY58: 0 | AZ58: 0
B60: Revolver
C61: Total Commitment | E61: ='Transaction and Pro-forma'!E54 -> 200 | G61: =$E$61*G7 -> 200 | H61: 200 | I61: 200 | J61: 200 | K61: 200 | L61: 200 | M61: 200 | N61: 200 | O61: 200 | P61: 200 | Q61: 200 | R61: 200 | S61: 200 | T61: 200 | U61: 200 | V61: 200 | W61: 200 | X61: 200 | Y61: 200 | Z61: 200 | AA61: 200 | AB61: 200 | AC61: 200 | AD61: 200 | AE61: 200 | AF61: 200 | AG61: 200 | AH61: 200 | AI61: 200 | AJ61: 200 | AK61: 200 | AL61: 200 | AM61: 0 | AN61: 0 | AO61: 0 | AP61: 0 | AQ61: 0 | AR61: 0 | AS61: 0 | AT61: 0 | AU61: 0 | AV61: 0 | AW61: 0 | AX61: 0 | AY61: 0 | AZ61: 0
C62: Less: Amount Drawn | G62: =G65 -> 0 | H62: =H65 -> 0 | I62: 0 | J62: 53.11058096 | K62: 120.285899 | L62: 120.285899 | M62: 98.22265162 | N62: 139.7762415 | O62: 186.8707948 | P62: 119.0360414 | Q62: 157.1427221 | R62: 188.5399579 | S62: 200 | T62: 35.19078114 | U62: 60.68292927 | V62: 91.45553667 | W62: 127.6577148 | X62: 0 | Y62: 12.53694913 | Z62: 42.65074721 | AA62: =AA65 -> 78.19079116 | AB62: 0 | AC62: 0 | AD62: 0 | AE62: 3.014784163 | AF62: 0 | AG62: 0 | AH62: 0 | AI62: 0 | AJ62: 0 | AK62: 0 | AL62: 0 | AM62: 0 | AN62: 0 | AO62: 0 | AP62: 0 | AQ62: 0 | AR62: 0 | AS62: 0 | AT62: 0 | AU62: 0 | AV62: 0 | AW62: 0 | AX62: 0 | AY62: 0 | AZ62: 0
C63: Amount Un-Drawn | G63: =G61-G62 -> 200 | H63: =H61-H62 -> 200 | I63: 200 | J63: 146.889419 | K63: 79.71410098 | L63: 79.71410098 | M63: 101.7773484 | N63: 60.22375852 | O63: 13.12920517 | P63: 80.96395864 | Q63: 42.85727788 | R63: 11.46004212 | S63: 0 | T63: 164.8092189 | U63: 139.3170707 | V63: 108.5444633 | W63: 72.34228523 | X63: 200 | Y63: 187.4630509 | Z63: 157.3492528 | AA63: =AA61-AA62 -> 121.8092088 | AB63: =AB61-AB62 -> 200 | AC63: =AC61-AC62 -> 200 | AD63: =AD61-AD62 -> 200 | AE63: =AE61-AE62 -> 196.9852158 | AF63: =AF61-AF62 -> 200 | AG63: =AG61-AG62 -> 200 | AH63: =AH61-AH62 -> 200 | AI63: =AI61-AI62 -> 200 | AJ63: =AJ61-AJ62 -> 200 | AK63: =AK61-AK62 -> 200 | AL63: =AL61-AL62 -> 200 | AM63: =AM61-AM62 -> 0 | AN63: =AN61-AN62 -> 0 | AO63: =AO61-AO62 -> 0 | AP63: =AP61-AP62 -> 0 | AQ63: =AQ61-AQ62 -> 0 | AR63: =AR61-AR62 -> 0 | AS63: =AS61-AS62 -> 0 | AT63: =AT61-AT62 -> 0 | AU63: =AU61-AU62 -> 0 | AV63: =AV61-AV62 -> 0 | AW63: =AW61-AW62 -> 0 | AX63: =AX61-AX62 -> 0 | AY63: =AY61-AY62 -> 0 | AZ63: =AZ61-AZ62 -> 0
C65: Opening Balance | G65: =F68 -> 0 | H65: =G68 -> 0 | I65: 0 | J65: 53.11058096 | K65: 120.285899 | L65: 120.285899 | M65: 98.22265162 | N65: 139.7762415 | O65: 186.8707948 | P65: 119.0360414 | Q65: 157.1427221 | R65: 188.5399579 | S65: 200 | T65: 35.19078114 | U65: 60.68292927 | V65: 91.45553667 | W65: 127.6577148 | X65: 0 | Y65: 12.53694913 | Z65: 42.65074721 | AA65: =Z68 -> 78.19079116 | AB65: 0 | AC65: 0 | AD65: 0 | AE65: 3.014784163 | AF65: 0 | AG65: 0 | AH65: 0 | AI65: 0 | AJ65: 0 | AK65: 0 | AL65: 0 | AM65: 0 | AN65: 0 | AO65: 0 | AP65: 0 | AQ65: 0 | AR65: 0 | AS65: 0 | AT65: 0 | AU65: 0 | AV65: 0 | AW65: 0 | AX65: 0 | AY65: 0 | AZ65: 0
C66: Add: Amount Borrowed | G66: =G134 -> 0 | H66: =H134 -> 0 | I66: 53.11058096 | J66: 67.17531806 | K66: 0 | L66: 0 | M66: 41.55358986 | N66: 47.09455335 | O66: 0 | P66: 38.10668076 | Q66: 31.39723576 | R66: 11.46004212 | S66: 0 | T66: 25.49214813 | U66: 30.77260741 | V66: 36.20217809 | W66: 0 | X66: 12.53694913 | Y66: 30.11379808 | Z66: 35.54004395 | AA66: =AA134 -> 0 | AB66: 0 | AC66: 0 | AD66: 3.014784163 | AE66: 0 | AF66: 0 | AG66: 0 | AH66: 0 | AI66: 0 | AJ66: 0 | AK66: 0 | AL66: 0 | AM66: 0 | AN66: 0 | AO66: 0 | AP66: 0 | AQ66: 0 | AR66: 0 | AS66: 0 | AT66: 0 | AU66: 0 | AV66: 0 | AW66: 0 | AX66: 0 | AY66: 0 | AZ66: 0
C67: Less: Amount Repaid | G67: =G135 -> 0 | H67: =H135 -> 0 | I67: 0 | J67: 0 | K67: 0 | L67: -22.0632474 | M67: 0 | N67: 0 | O67: -67.83475347 | P67: 0 | Q67: 0 | R67: 0 | S67: -164.8092189 | T67: 0 | U67: 0 | V67: 0 | W67: -127.6577148 | X67: 0 | Y67: 0 | Z67: 0 | AA67: =AA135 -> -78.19079116 | AB67: 0 | AC67: 0 | AD67: 0 | AE67: -3.014784163 | AF67: 0 | AG67: 0 | AH67: 0 | AI67: 0 | AJ67: 0 | AK67: 0 | AL67: 0 | AM67: 0 | AN67: 0 | AO67: 0 | AP67: 0 | AQ67: 0 | AR67: 0 | AS67: 0 | AT67: 0 | AU67: 0 | AV67: 0 | AW67: 0 | AX67: 0 | AY67: 0 | AZ67: 0
C68: Closing Balance | F68: 0 | G68: =SUM(G65:G67) -> 0 | H68: =SUM(H65:H67) -> 0 | I68: 53.11058096 | J68: 120.285899 | K68: 120.285899 | L68: 98.22265162 | M68: 139.7762415 | N68: 186.8707948 | O68: 119.0360414 | P68: 157.1427221 | Q68: 188.5399579 | R68: 200 | S68: 35.19078114 | T68: 60.68292927 | U68: 91.45553667 | V68: 127.6577148 | W68: 0 | X68: 12.53694913 | Y68: 42.65074721 | Z68: 78.19079116 | AA68: 0 | AB68: 0 | AC68: 0 | AD68: 3.014784163 | AE68: 0 | AF68: 0 | AG68: 0 | AH68: 0 | AI68: 0 | AJ68: 0 | AK68: 0 | AL68: 0 | AM68: 0 | AN68: 0 | AO68: 0 | AP68: 0 | AQ68: 0 | AR68: 0 | AS68: 0 | AT68: 0 | AU68: 0 | AV68: 0 | AW68: 0 | AX68: 0 | AY68: 0 | AZ68: 0
C69: Interest Expense | E69: ='Transaction and Pro-forma'!E56/4 -> 0.00875 | G69: =$E$69*G65 -> 0 | H69: =$E$69*H65 -> 0 | I69: 0 | J69: 0.4647175834 | K69: 1.052501616 | L69: 1.052501616 | M69: 0.8594482017 | N69: 1.223042113 | O69: 1.635119455 | P69: 1.041565362 | Q69: 1.374998819 | R69: 1.649724631 | S69: 1.75 | T69: 0.3079193349 | U69: 0.5309756311 | V69: 0.8002359459 | W69: 1.117005004 | X69: 0 | Y69: 0.1096983049 | Z69: 0.3731940381 | AA69: =$E$69*AA65 -> 0.6841694226 | AB69: 0 | AC69: 0 | AD69: 0 | AE69: 0.02637936142 | AF69: 0 | AG69: 0 | AH69: 0 | AI69: 0 | AJ69: 0 | AK69: 0 | AL69: 0 | AM69: 0 | AN69: 0 | AO69: 0 | AP69: 0 | AQ69: 0 | AR69: 0 | AS69: 0 | AT69: 0 | AU69: 0 | AV69: 0 | AW69: 0 | AX69: 0 | AY69: 0 | AZ69: 0
C70: Commit. Fee | E70: ='Transaction and Pro-forma'!E55/4 -> 0.0055 | G70: =$E$70*G63 -> 1.1 | H70: =$E$70*H63 -> 1.1 | I70: 1.1 | J70: 0.8078918047 | K70: 0.4384275554 | L70: 0.4384275554 | M70: 0.5597754161 | N70: 0.3312306719 | O70: 0.07221062841 | P70: 0.4453017725 | Q70: 0.2357150283 | R70: 0.06303023168 | S70: 0 | T70: 0.9064507038 | U70: 0.766243889 | V70: 0.5969945483 | W70: 0.3978825688 | X70: 1.1 | Y70: 1.03104678 | Z70: 0.8654208904 | AA70: =$E$70*AA63 -> 0.6699506486 | AB70: 1.1 | AC70: 1.1 | AD70: 1.1 | AE70: 1.083418687 | AF70: 1.1 | AG70: 1.1 | AH70: 1.1 | AI70: 1.1 | AJ70: 1.1 | AK70: 1.1 | AL70: 1.1 | AM70: 0 | AN70: 0 | AO70: 0 | AP70: 0 | AQ70: 0 | AR70: 0 | AS70: 0 | AT70: 0 | AU70: 0 | AV70: 0 | AW70: 0 | AX70: 0 | AY70: 0 | AZ70: 0
B72: Defaulting Debt
C73: Opening Balance | G73: =F76 -> 0 | H73: =G76 -> 0 | I73: 0 | J73: 0 | K73: 0 | L73: 0 | M73: 0 | N73: 0 | O73: 0 | P73: 0 | Q73: 0 | R73: 0 | S73: 25.36984415 | T73: 25.36984415 | U73: 25.36984415 | V73: 25.36984415 | W73: 25.36984415 | X73: 0 | Y73: 0 | Z73: 0 | AA73: =Z76 -> 0 | AB73: 0 | AC73: 0 | AD73: 0 | AE73: 0 | AF73: 0 | AG73: 0 | AH73: 0 | AI73: 0 | AJ73: 0 | AK73: 0 | AL73: 0 | AM73: 0 | AN73: 0 | AO73: 0 | AP73: 0 | AQ73: 0 | AR73: 0 | AS73: 0 | AT73: 0 | AU73: 0 | AV73: 0 | AW73: 0 | AX73: 0 | AY73: 0 | AZ73: 0
C74: Add: Default | G74: =G137 -> 0 | H74: =H137 -> 0 | I74: 0 | J74: 0 | K74: 0 | L74: 0 | M74: 0 | N74: 0 | O74: 0 | P74: 0 | Q74: 0 | R74: 25.36984415 | S74: 0 | T74: 0 | U74: 0 | V74: 0 | W74: 0 | X74: 0 | Y74: 0 | Z74: 0 | AA74: =AA137 -> 0 | AB74: 0 | AC74: 0 | AD74: 0 | AE74: 0 | AF74: 0 | AG74: 0 | AH74: 0 | AI74: 0 | AJ74: 0 | AK74: 0 | AL74: 0 | AM74: 0 | AN74: 0 | AO74: 0 | AP74: 0 | AQ74: 0 | AR74: 0 | AS74: 0 | AT74: 0 | AU74: 0 | AV74: 0 | AW74: 0 | AX74: 0 | AY74: 0 | AZ74: 0
C75: Less: Repayment of Default | G75: =G138 -> 0 | H75: =H138 -> 0 | I75: 0 | J75: 0 | K75: 0 | L75: 0 | M75: 0 | N75: 0 | O75: 0 | P75: 0 | Q75: 0 | R75: 0 | S75: 0 | T75: 0 | U75: 0 | V75: 0 | W75: -25.36984415 | X75: 0 | Y75: 0 | Z75: 0 | AA75: =AA138 -> 0 | AB75: 0 | AC75: 0 | AD75: 0 | AE75: 0 | AF75: 0 | AG75: 0 | AH75: 0 | AI75: 0 | AJ75: 0 | AK75: 0 | AL75: 0 | AM75: 0 | AN75: 0 | AO75: 0 | AP75: 0 | AQ75: 0 | AR75: 0 | AS75: 0 | AT75: 0 | AU75: 0 | AV75: 0 | AW75: 0 | AX75: 0 | AY75: 0 | AZ75: 0
C76: Closing Balance | F76: 0 | G76: =SUM(G73:G75) -> 0 | H76: =SUM(H73:H75) -> 0 | I76: 0 | J76: 0 | K76: 0 | L76: 0 | M76: 0 | N76: 0 | O76: 0 | P76: 0 | Q76: 0 | R76: 25.36984415 | S76: 25.36984415 | T76: 25.36984415 | U76: 25.36984415 | V76: 25.36984415 | W76: 0 | X76: 0 | Y76: 0 | Z76: 0 | AA76: 0 | AB76: 0 | AC76: 0 | AD76: 0 | AE76: 0 | AF76: 0 | AG76: 0 | AH76: 0 | AI76: 0 | AJ76: 0 | AK76: 0 | AL76: 0 | AM76: 0 | AN76: 0 | AO76: 0 | AP76: 0 | AQ76: 0 | AR76: 0 | AS76: 0 | AT76: 0 | AU76: 0 | AV76: 0 | AW76: 0 | AX76: 0 | AY76: 0 | AZ76: 0
C77: Interest on Defaulted | E77: =E58 -> 0.00875 | G77: =$E$77*G73 -> 0 | H77: =$E$77*H73 -> 0 | I77: 0 | J77: 0 | K77: 0 | L77: 0 | M77: 0 | N77: 0 | O77: 0 | P77: 0 | Q77: 0 | R77: 0 | S77: 0.2219861363 | T77: 0.2219861363 | U77: 0.2219861363 | V77: 0.2219861363 | W77: 0.2219861363 | X77: 0 | Y77: 0 | Z77: 0 | AA77: =$E$77*AA73 -> 0 | AB77: 0 | AC77: 0 | AD77: 0 | AE77: 0 | AF77: 0 | AG77: 0 | AH77: 0 | AI77: 0 | AJ77: 0 | AK77: 0 | AL77: 0 | AM77: 0 | AN77: 0 | AO77: 0 | AP77: 0 | AQ77: 0 | AR77: 0 | AS77: 0 | AT77: 0 | AU77: 0 | AV77: 0 | AW77: 0 | AX77: 0 | AY77: 0 | AZ77: 0
B79: Subord. Debt
C80: Opening Balance | G80: =F83 -> 75 | H80: =G83 -> 76.875 | I80: 78.796875 | J80: 80.76679687 | K80: 82.7859668 | L80: 84.85561597 | M80: 86.97700637 | N80: 89.15143153 | O80: 91.38021731 | P80: 93.66472275 | Q80: 96.00634081 | R80: 98.40649934 | S80: 100.8666618 | T80: 103.3883284 | U80: 105.9730366 | V80: 108.6223625 | W80: 111.3379215 | X80: 114.1213696 | Y80: 116.9744038 | Z80: 119.8987639 | AA80: =Z83 -> 122.896233 | AB80: 125.9686388 | AC80: 129.1178548 | AD80: 132.3458012 | AE80: 135.6544462 | AF80: 139.0458074 | AG80: 142.5219526 | AH80: 146.0850014 | AI80: 149.7371264 | AJ80: 153.4805546 | AK80: 157.3175684 | AL80: 161.2505076 | AM80: 0 | AN80: 0 | AO80: 0 | AP80: 0 | AQ80: 0 | AR80: 0 | AS80: 0 | AT80: 0 | AU80: 0 | AV80: 0 | AW80: 0 | AX80: 0 | AY80: 0 | AZ80: 0
C81: Add: Interest Capitalized | G81: =G84 -> 1.875 | H81: =H84 -> 1.921875 | I81: 1.969921875 | J81: 2.019169922 | K81: 2.06964917 | L81: 2.121390399 | M81: 2.174425159 | N81: 2.228785788 | O81: 2.284505433 | P81: 2.341618069 | Q81: 2.40015852 | R81: 2.460162483 | S81: 2.521666545 | T81: 2.584708209 | U81: 2.649325914 | V81: 2.715559062 | W81: 2.783448039 | X81: 2.85303424 | Y81: 2.924360096 | Z81: 2.997469098 | AA81: =AA84 -> 3.072405826 | AB81: 3.149215971 | AC81: 3.22794637 | AD81: 3.30864503 | AE81: 3.391361155 | AF81: 3.476145184 | AG81: 3.563048814 | AH81: 3.652125034 | AI81: 3.74342816 | AJ81: 3.837013864 | AK81: 3.932939211 | AL81: 4.031262691 | AM81: 0 | AN81: 0 | AO81: 0 | AP81: 0 | AQ81: 0 | AR81: 0 | AS81: 0 | AT81: 0 | AU81: 0 | AV81: 0 | AW81: 0 | AX81: 0 | AY81: 0 | AZ81: 0
C82: Less: Repayment at Exit | G82: =G140 -> 0 | H82: =H140 -> 0 | I82: 0 | J82: 0 | K82: 0 | L82: 0 | M82: 0 | N82: 0 | O82: 0 | P82: 0 | Q82: 0 | R82: 0 | S82: 0 | T82: 0 | U82: 0 | V82: 0 | W82: 0 | X82: 0 | Y82: 0 | Z82: 0 | AA82: =AA140 -> 0 | AB82: 0 | AC82: 0 | AD82: 0 | AE82: 0 | AF82: 0 | AG82: 0 | AH82: 0 | AI82: 0 | AJ82: 0 | AK82: 0 | AL82: -165.2817703 | AM82: 0 | AN82: 0 | AO82: 0 | AP82: 0 | AQ82: 0 | AR82: 0 | AS82: 0 | AT82: 0 | AU82: 0 | AV82: 0 | AW82: 0 | AX82: 0 | AY82: 0 | AZ82: 0
C83: Closing Balance | F83: =F24 -> 75 | G83: =SUM(G80:G82) -> 76.875 | H83: =SUM(H80:H82) -> 78.796875 | I83: 80.76679687 | J83: 82.7859668 | K83: 84.85561597 | L83: 86.97700637 | M83: 89.15143153 | N83: 91.38021731 | O83: 93.66472275 | P83: 96.00634081 | Q83: 98.40649934 | R83: 100.8666618 | S83: 103.3883284 | T83: 105.9730366 | U83: 108.6223625 | V83: 111.3379215 | W83: 114.1213696 | X83: 116.9744038 | Y83: 119.8987639 | Z83: 122.896233 | AA83: 125.9686388 | AB83: 129.1178548 | AC83: 132.3458012 | AD83: 135.6544462 | AE83: 139.0458074 | AF83: 142.5219526 | AG83: 146.0850014 | AH83: 149.7371264 | AI83: 153.4805546 | AJ83: 157.3175684 | AK83: 161.2505076 | AL83: 0 | AM83: 0 | AN83: 0 | AO83: 0 | AP83: 0 | AQ83: 0 | AR83: 0 | AS83: 0 | AT83: 0 | AU83: 0 | AV83: 0 | AW83: 0 | AX83: 0 | AY83: 0 | AZ83: 0
C84: Interest Expense | E84: ='Transaction and Pro-forma'!E63/4 -> 0.025 | G84: =$E$84*G80*G7 -> 1.875 | H84: 1.921875 | I84: 1.969921875 | J84: 2.019169922 | K84: 2.06964917 | L84: 2.121390399 | M84: 2.174425159 | N84: 2.228785788 | O84: 2.284505433 | P84: 2.341618069 | Q84: 2.40015852 | R84: 2.460162483 | S84: 2.521666545 | T84: 2.584708209 | U84: 2.649325914 | V84: 2.715559062 | W84: 2.783448039 | X84: 2.85303424 | Y84: 2.924360096 | Z84: 2.997469098 | AA84: 3.072405826 | AB84: 3.149215971 | AC84: 3.22794637 | AD84: 3.30864503 | AE84: 3.391361155 | AF84: 3.476145184 | AG84: 3.563048814 | AH84: 3.652125034 | AI84: 3.74342816 | AJ84: 3.837013864 | AK84: 3.932939211 | AL84: 4.031262691 | AM84: 0 | AN84: 0 | AO84: 0 | AP84: 0 | AQ84: 0 | AR84: 0 | AS84: 0 | AT84: 0 | AU84: 0 | AV84: 0 | AW84: 0 | AX84: 0 | AY84: 0 | AZ84: 0
B86: Cash Balance
C87: Opening Balance | G87: =F90 -> 2 | H87: =G90 -> 2 | I87: 20.47930969 | J87: 0 | K87: 0 | L87: 0 | M87: 0 | N87: 0 | O87: 0 | P87: 0 | Q87: 0 | R87: 0 | S87: 0 | T87: 0 | U87: 0 | V87: 0 | W87: 0 | X87: 12.01677238 | Y87: 0 | Z87: 0 | AA87: =Z90 -> 0 | AB87: 87.23629377 | AC87: 63.0777223 | AD87: 32.84087068 | AE87: 0 | AF87: 162.6566228 | AG87: 137.246567 | AH87: 106.6854106 | AI87: 70.68611681 | AJ87: 236.3673218 | AK87: 211.0356397 | AL87: 180.524947 | AM87: 0 | AN87: 0 | AO87: 0 | AP87: 0 | AQ87: 0 | AR87: 0 | AS87: 0 | AT87: 0 | AU87: 0 | AV87: 0 | AW87: 0 | AX87: 0 | AY87: 0 | AZ87: 0
C88: Add: Extra Cash Generated | G88: =G142 -> 0 | H88: =H142 -> 18.47930969 | I88: 0 | J88: 0 | K88: 0 | L88: 0 | M88: 0 | N88: 0 | O88: 0 | P88: 0 | Q88: 0 | R88: 0 | S88: 0 | T88: 0 | U88: 0 | V88: 0 | W88: 12.01677238 | X88: 0 | Y88: 0 | Z88: 0 | AA88: =AA142 -> 87.23629377 | AB88: 0 | AC88: 0 | AD88: 0 | AE88: 162.6566228 | AF88: 0 | AG88: 0 | AH88: 0 | AI88: 165.681205 | AJ88: 0 | AK88: 0 | AL88: 0 | AM88: 0 | AN88: 0 | AO88: 0 | AP88: 0 | AQ88: 0 | AR88: 0 | AS88: 0 | AT88: 0 | AU88: 0 | AV88: 0 | AW88: 0 | AX88: 0 | AY88: 0 | AZ88: 0
C89: Less: Cash Used | G89: =G131+G132 -> 0 | H89: =H131+H132 -> 0 | I89: 20.47930969 | J89: 0 | K89: 0 | L89: 0 | M89: 0 | N89: 0 | O89: 0 | P89: 0 | Q89: 0 | R89: 0 | S89: 0 | T89: 0 | U89: 0 | V89: 0 | W89: 0 | X89: 12.01677238 | Y89: 0 | Z89: 0 | AA89: 0 | AB89: 24.15857147 | AC89: 30.23685162 | AD89: 32.84087068 | AE89: 0 | AF89: 25.41005584 | AG89: 30.56115637 | AH89: 35.99929377 | AI89: 0 | AJ89: 25.33168214 | AK89: 30.5106927 | AL89: 180.524947 | AM89: 0 | AN89: 0 | AO89: 0 | AP89: 0 | AQ89: 0 | AR89: 0 | AS89: 0 | AT89: 0 | AU89: 0 | AV89: 0 | AW89: 0 | AX89: 0 | AY89: 0 | AZ89: 0
C90: Closing Balance | F90: =F14 -> 2 | G90: =G87+G88-G89 -> 2 | H90: =H87+H88-H89 -> 20.47930969 | I90: 0 | J90: 0 | K90: 0 | L90: 0 | M90: 0 | N90: 0 | O90: 0 | P90: 0 | Q90: 0 | R90: 0 | S90: 0 | T90: 0 | U90: 0 | V90: 0 | W90: 12.01677238 | X90: 0 | Y90: 0 | Z90: 0 | AA90: =AA87+AA88-AA89 -> 87.23629377 | AB90: =AB87+AB88-AB89 -> 63.0777223 | AC90: =AC87+AC88-AC89 -> 32.84087068 | AD90: =AD87+AD88-AD89 -> 0 | AE90: =AE87+AE88-AE89 -> 162.6566228 | AF90: =AF87+AF88-AF89 -> 137.246567 | AG90: =AG87+AG88-AG89 -> 106.6854106 | AH90: =AH87+AH88-AH89 -> 70.68611681 | AI90: =AI87+AI88-AI89 -> 236.3673218 | AJ90: =AJ87+AJ88-AJ89 -> 211.0356397 | AK90: =AK87+AK88-AK89 -> 180.524947 | AL90: =AL87+AL88-AL89 -> 0 | AM90: =AM87+AM88-AM89 -> 0 | AN90: =AN87+AN88-AN89 -> 0 | AO90: =AO87+AO88-AO89 -> 0 | AP90: =AP87+AP88-AP89 -> 0 | AQ90: =AQ87+AQ88-AQ89 -> 0 | AR90: =AR87+AR88-AR89 -> 0 | AS90: =AS87+AS88-AS89 -> 0 | AT90: =AT87+AT88-AT89 -> 0 | AU90: =AU87+AU88-AU89 -> 0 | AV90: =AV87+AV88-AV89 -> 0 | AW90: =AW87+AW88-AW89 -> 0 | AX90: =AX87+AX88-AX89 -> 0 | AY90: =AY87+AY88-AY89 -> 0 | AZ90: =AZ87+AZ88-AZ89 -> 0
A92: P&L
B93: EBITDA | G93: =G29 -> 4.9005 | H93: 19.602 | I93: 29.403 | J93: 44.1045 | K93: 5.39055 | L93: 21.5622 | M93: 32.3433 | N93: 48.51495 | O93: 5.929605 | P93: 23.71842 | Q93: 35.57763 | R93: 53.366445 | S93: 5.929605 | T93: 23.71842 | U93: 35.57763 | V93: 53.366445 | W93: 5.929605 | X93: 23.71842 | Y93: 35.57763 | Z93: 53.366445 | AA93: 5.929605 | AB93: 23.71842 | AC93: 35.57763 | AD93: 53.366445 | AE93: 5.929605 | AF93: 23.71842 | AG93: 35.57763 | AH93: 53.366445 | AI93: 5.929605 | AJ93: 23.71842 | AK93: 35.57763 | AL93: 53.366445 | AM93: 0 | AN93: 0 | AO93: 0 | AP93: 0 | AQ93: 0 | AR93: 0 | AS93: 0 | AT93: 0 | AU93: 0 | AV93: 0 | AW93: 0 | AX93: 0 | AY93: 0 | AZ93: 0
B94: Add: Synergies | G94: =G32 -> -1.25 | H94: =H32 -> -1.25 | I94: -1.25 | J94: 1.5 | K94: 1.5 | L94: 1.5 | M94: 2.5 | N94: 2.5 | O94: 2.5 | P94: 3 | Q94: 3 | R94: 3 | S94: 3.25 | T94: 3.25 | U94: 3.25 | V94: 3.25 | W94: 3.25 | X94: 3.25 | Y94: 3.25 | Z94: 3.25 | AA94: 3.25 | AB94: 3.25 | AC94: 3.25 | AD94: 3.25 | AE94: 3.25 | AF94: 3.25 | AG94: 3.25 | AH94: 3.25 | AI94: 3.25 | AJ94: 3.25 | AK94: 3.25 | AL94: 3.25 | AM94: 0 | AN94: 0 | AO94: 0 | AP94: 0 | AQ94: 0 | AR94: 0 | AS94: 0 | AT94: 0 | AU94: 0 | AV94: 0 | AW94: 0 | AX94: 0 | AY94: 0 | AZ94: 0
C95: Operating Margin | G95: =G93+G94 -> 3.6505 | H95: =H93+H94 -> 18.352 | I95: 28.153 | J95: 45.6045 | K95: 6.89055 | L95: 23.0622 | M95: 34.8433 | N95: 51.01495 | O95: 8.429605 | P95: 26.71842 | Q95: 38.57763 | R95: 56.366445 | S95: 9.179605 | T95: 26.96842 | U95: 38.82763 | V95: 56.616445 | W95: 9.179605 | X95: 26.96842 | Y95: 38.82763 | Z95: 56.616445 | AA95: 9.179605 | AB95: 26.96842 | AC95: 38.82763 | AD95: 56.616445 | AE95: 9.179605 | AF95: 26.96842 | AG95: 38.82763 | AH95: 56.616445 | AI95: 9.179605 | AJ95: 26.96842 | AK95: 38.82763 | AL95: 56.616445 | AM95: 0 | AN95: 0 | AO95: 0 | AP95: 0 | AQ95: 0 | AR95: 0 | AS95: 0 | AT95: 0 | AU95: 0 | AV95: 0 | AW95: 0 | AX95: 0 | AY95: 0 | AZ95: 0
B96: Less: Deprecation | G96: =G38 -> 5.714285714 | H96: =H38 -> 6.053571429 | I96: 6.392857143 | J96: 6.732142857 | K96: 7.071428571 | L96: 7.39375 | M96: 7.716071429 | N96: 8.038392857 | O96: 8.360714286 | P96: 8.666919643 | Q96: 8.973125 | R96: 9.279330357 | S96: 9.585535714 | T96: 9.891741071 | U96: 10.19794643 | V96: 10.50415179 | W96: 10.81035714 | X96: 11.1165625 | Y96: 11.42276786 | Z96: 11.72897321 | AA96: 12.03517857 | AB96: 11.26995536 | AC96: 10.50473214 | AD96: 9.739508929 | AE96: 8.974285714 | AF96: 8.923348214 | AG96: 8.872410714 | AH96: 8.821473214 | AI96: 8.770535714 | AJ96: 8.737455357 | AK96: 8.704375 | AL96: 8.671294643 | AM96: 0 | AN96: 0 | AO96: 0 | AP96: 0 | AQ96: 0 | AR96: 0 | AS96: 0 | AT96: 0 | AU96: 0 | AV96: 0 | AW96: 0 | AX96: 0 | AY96: 0 | AZ96: 0
B97: Less: Amorisation of Fees | G97: =G43 -> 0.190625 | H97: =H43 -> 0.190625 | I97: 0.190625 | J97: 0.190625 | K97: 0.190625 | L97: 0.190625 | M97: 0.190625 | N97: 0.190625 | O97: 0.190625 | P97: 0.190625 | Q97: 0.190625 | R97: 0.190625 | S97: 0.190625 | T97: 0.190625 | U97: 0.190625 | V97: 0.190625 | W97: 0.190625 | X97: 0.190625 | Y97: 0.190625 | Z97: 0.190625 | AA97: 0.190625 | AB97: 0.190625 | AC97: 0.190625 | AD97: 0.190625 | AE97: 0.190625 | AF97: 0.190625 | AG97: 0.190625 | AH97: 0.190625 | AI97: 0.190625 | AJ97: 0.190625 | AK97: 0.190625 | AL97: 0.190625 | AM97: 0 | AN97: 0 | AO97: 0 | AP97: 0 | AQ97: 0 | AR97: 0 | AS97: 0 | AT97: 0 | AU97: 0 | AV97: 0 | AW97: 0 | AX97: 0 | AY97: 0 | AZ97: 0
C98: EBIT | G98: =G95-G96-G97 -> -2.254410714 | H98: =H95-H96-H97 -> 12.10780357 | I98: 21.56951786 | J98: 38.68173214 | K98: -0.3715035714 | L98: 15.477825 | M98: 26.93660357 | N98: 42.78593214 | O98: -0.1217342857 | P98: 17.86087536 | Q98: 29.41388 | R98: 46.89648964 | S98: -0.5965557143 | T98: 16.88605393 | U98: 28.43905857 | V98: 45.92166821 | W98: -1.821377143 | X98: 15.6612325 | Y98: 27.21423714 | Z98: 44.69684679 | AA98: -3.046198571 | AB98: 15.50783964 | AC98: 28.13227286 | AD98: 46.68631107 | AE98: 0.01469428571 | AF98: 17.85444679 | AG98: 29.76459429 | AH98: 47.60434679 | AI98: 0.2184442857 | AJ98: 18.04033964 | AK98: 29.93263 | AL98: 47.75452536 | AM98: 0 | AN98: 0 | AO98: 0 | AP98: 0 | AQ98: 0 | AR98: 0 | AS98: 0 | AT98: 0 | AU98: 0 | AV98: 0 | AW98: 0 | AX98: 0 | AY98: 0 | AZ98: 0
B99: Less: Commit. Fees | G99: =G70 -> 1.1 | H99: 1.1 | I99: 1.1 | J99: 0.8078918047 | K99: 0.4384275554 | L99: 0.4384275554 | M99: 0.5597754161 | N99: 0.3312306719 | O99: 0.07221062841 | P99: 0.4453017725 | Q99: 0.2357150283 | R99: 0.06303023168 | S99: 0 | T99: 0.9064507038 | U99: 0.766243889 | V99: 0.5969945483 | W99: 0.3978825688 | X99: 1.1 | Y99: 1.03104678 | Z99: 0.8654208904 | AA99: 0.6699506486 | AB99: 1.1 | AC99: 1.1 | AD99: 1.1 | AE99: 1.083418687 | AF99: 1.1 | AG99: 1.1 | AH99: 1.1 | AI99: 1.1 | AJ99: 1.1 | AK99: 1.1 | AL99: 1.1 | AM99: 0 | AN99: 0 | AO99: 0 | AP99: 0 | AQ99: 0 | AR99: 0 | AS99: 0 | AT99: 0 | AU99: 0 | AV99: 0 | AW99: 0 | AX99: 0 | AY99: 0 | AZ99: 0
B100: Less: Senior Debt Interest Expense | G100: =G58+G77 -> 3.5875 | H100: =H58+H77 -> 2.97226125 | I100: 2.375069996 | J100: 2.262960621 | K100: 2.150851246 | L100: 1.264399512 | M100: 0.9592367221 | N100: 0.8471273471 | O100: 0.7350179721 | P100: 0.02935450425 | Q100: 0 | R100: 0 | S100: 0.2219861363 | T100: 0.2219861363 | U100: 0.2219861363 | V100: 0.2219861363 | W100: 0.2219861363 | X100: 0 | Y100: 0 | Z100: 0 | AA100: 0 | AB100: 0 | AC100: 0 | AD100: 0 | AE100: 0 | AF100: 0 | AG100: 0 | AH100: 0 | AI100: 0 | AJ100: 0 | AK100: 0 | AL100: 0 | AM100: 0 | AN100: 0 | AO100: 0 | AP100: 0 | AQ100: 0 | AR100: 0 | AS100: 0 | AT100: 0 | AU100: 0 | AV100: 0 | AW100: 0 | AX100: 0 | AY100: 0 | AZ100: 0
B101: Less: Revolver Interest Expense | G101: =G69 -> 0 | H101: 0 | I101: 0 | J101: 0.4647175834 | K101: 1.052501616 | L101: 1.052501616 | M101: 0.8594482017 | N101: 1.223042113 | O101: 1.635119455 | P101: 1.041565362 | Q101: 1.374998819 | R101: 1.649724631 | S101: 1.75 | T101: 0.3079193349 | U101: 0.5309756311 | V101: 0.8002359459 | W101: 1.117005004 | X101: 0 | Y101: 0.1096983049 | Z101: 0.3731940381 | AA101: 0.6841694226 | AB101: 0 | AC101: 0 | AD101: 0 | AE101: 0.02637936142 | AF101: 0 | AG101: 0 | AH101: 0 | AI101: 0 | AJ101: 0 | AK101: 0 | AL101: 0 | AM101: 0 | AN101: 0 | AO101: 0 | AP101: 0 | AQ101: 0 | AR101: 0 | AS101: 0 | AT101: 0 | AU101: 0 | AV101: 0 | AW101: 0 | AX101: 0 | AY101: 0 | AZ101: 0
B102: Less: Subord. Debt Interest Expense | G102: =G84 -> 1.875 | H102: 1.921875 | I102: 1.969921875 | J102: 2.019169922 | K102: 2.06964917 | L102: 2.121390399 | M102: 2.174425159 | N102: 2.228785788 | O102: 2.284505433 | P102: 2.341618069 | Q102: 2.40015852 | R102: 2.460162483 | S102: 2.521666545 | T102: 2.584708209 | U102: 2.649325914 | V102: 2.715559062 | W102: 2.783448039 | X102: 2.85303424 | Y102: 2.924360096 | Z102: 2.997469098 | AA102: 3.072405826 | AB102: 3.149215971 | AC102: 3.22794637 | AD102: 3.30864503 | AE102: 3.391361155 | AF102: 3.476145184 | AG102: 3.563048814 | AH102: 3.652125034 | AI102: 3.74342816 | AJ102: 3.837013864 | AK102: 3.932939211 | AL102: 4.031262691 | AM102: 0 | AN102: 0 | AO102: 0 | AP102: 0 | AQ102: 0 | AR102: 0 | AS102: 0 | AT102: 0 | AU102: 0 | AV102: 0 | AW102: 0 | AX102: 0 | AY102: 0 | AZ102: 0
C103: EBT | G103: =G98-G99-G100-G101-G102 -> -8.816910714 | H103: =H98-H99-H100-H101-H102 -> 6.113667321 | I103: 16.12452599 | J103: 33.12699221 | K103: -6.082933159 | L103: 10.60110592 | M103: 22.38371807 | N103: 38.15574622 | O103: -4.848587774 | P103: 14.00303565 | Q103: 25.40300763 | R103: 42.7235723 | S103: -5.090208396 | T103: 12.86498954 | U103: 24.270527 | V103: 41.58689252 | W103: -6.341698891 | X103: 11.70819826 | Y103: 23.14913196 | Z103: 40.46076276 | AA103: -7.472724468 | AB103: 11.25862367 | AC103: 23.80432649 | AD103: 42.27766604 | AE103: -4.486464918 | AF103: 13.2783016 | AG103: 25.10154547 | AH103: 42.85222175 | AI103: -4.624983874 | AJ103: 13.10332578 | AK103: 24.89969079 | AL103: 42.62326267 | AM103: 0 | AN103: 0 | AO103: 0 | AP103: 0 | AQ103: 0 | AR103: 0 | AS103: 0 | AT103: 0 | AU103: 0 | AV103: 0 | AW103: 0 | AX103: 0 | AY103: 0 | AZ103: 0
B104: NOL Balance
B105: Opening Balance | G105: =F108 -> 0 | H105: =G108 -> 8.816910714 | I105: 2.703243393 | J105: 0 | K105: 0 | L105: 6.082933159 | M105: 0 | N105: 0 | O105: 0 | P105: 4.848587774 | Q105: 0 | R105: 0 | S105: 0 | T105: 5.090208396 | U105: 0 | V105: 0 | W105: 0 | X105: 6.341698891 | Y105: 0 | Z105: 0 | AA105: 0 | AB105: 7.472724468 | AC105: 0 | AD105: 0 | AE105: 0 | AF105: 4.486464918 | AG105: 0 | AH105: 0 | AI105: 0 | AJ105: 4.624983874 | AK105: 0 | AL105: 0 | AM105: 0 | AN105: 0 | AO105: 0 | AP105: 0 | AQ105: 0 | AR105: 0 | AS105: 0 | AT105: 0 | AU105: 0 | AV105: 0 | AW105: 0 | AX105: 0 | AY105: 0 | AZ105: 0
B106: Add: Net Loss | G106: =MAX(-G103,0) -> 8.816910714 | H106: =MAX(-H103,0) -> 0 | I106: 0 | J106: 0 | K106: 6.082933159 | L106: 0 | M106: 0 | N106: 0 | O106: 4.848587774 | P106: 0 | Q106: 0 | R106: 0 | S106: 5.090208396 | T106: 0 | U106: 0 | V106: 0 | W106: 6.341698891 | X106: 0 | Y106: 0 | Z106: 0 | AA106: 7.472724468 | AB106: 0 | AC106: 0 | AD106: 0 | AE106: 4.486464918 | AF106: 0 | AG106: 0 | AH106: 0 | AI106: 4.624983874 | AJ106: 0 | AK106: 0 | AL106: 0 | AM106: 0 | AN106: 0 | AO106: 0 | AP106: 0 | AQ106: 0 | AR106: 0 | AS106: 0 | AT106: 0 | AU106: 0 | AV106: 0 | AW106: 0 | AX106: 0 | AY106: 0 | AZ106: 0
B107: Less: NOL Used | G107: =MIN(G105,MAX(G103,0)) -> 0 | H107: =MIN(H105,MAX(H103,0)) -> 6.113667321 | I107: 2.703243393 | J107: 0 | K107: 0 | L107: 6.082933159 | M107: 0 | N107: 0 | O107: 0 | P107: 4.848587774 | Q107: 0 | R107: 0 | S107: 0 | T107: 5.090208396 | U107: 0 | V107: 0 | W107: 0 | X107: 6.341698891 | Y107: 0 | Z107: 0 | AA107: 0 | AB107: 7.472724468 | AC107: 0 | AD107: 0 | AE107: 0 | AF107: 4.486464918 | AG107: 0 | AH107: 0 | AI107: 0 | AJ107: 4.624983874 | AK107: 0 | AL107: 0 | AM107: 0 | AN107: 0 | AO107: 0 | AP107: 0 | AQ107: 0 | AR107: 0 | AS107: 0 | AT107: 0 | AU107: 0 | AV107: 0 | AW107: 0 | AX107: 0 | AY107: 0 | AZ107: 0
B108: Closing Balance | G108: =G105+G106-G107 -> 8.816910714 | H108: =H105+H106-H107 -> 2.703243393 | I108: 0 | J108: 0 | K108: 6.082933159 | L108: 0 | M108: 0 | N108: 0 | O108: 4.848587774 | P108: 0 | Q108: 0 | R108: 0 | S108: 5.090208396 | T108: 0 | U108: 0 | V108: 0 | W108: 6.341698891 | X108: 0 | Y108: 0 | Z108: 0 | AA108: 7.472724468 | AB108: 0 | AC108: 0 | AD108: 0 | AE108: 4.486464918 | AF108: 0 | AG108: 0 | AH108: 0 | AI108: 4.624983874 | AJ108: 0 | AK108: 0 | AL108: 0 | AM108: 0 | AN108: 0 | AO108: 0 | AP108: 0 | AQ108: 0 | AR108: 0 | AS108: 0 | AT108: 0 | AU108: 0 | AV108: 0 | AW108: 0 | AX108: 0 | AY108: 0 | AZ108: 0
C109: EBT after NOL | G109: =G103+G106-G107 -> 0 | H109: =H103+H106-H107 -> 0 | I109: 13.42128259 | J109: 33.12699221 | K109: 0 | L109: 4.518172758 | M109: 22.38371807 | N109: 38.15574622 | O109: 0 | P109: 9.154447876 | Q109: 25.40300763 | R109: 42.7235723 | S109: 0 | T109: 7.774781148 | U109: 24.270527 | V109: 41.58689252 | W109: 0 | X109: 5.366499369 | Y109: 23.14913196 | Z109: 40.46076276 | AA109: 0 | AB109: 3.785899203 | AC109: 23.80432649 | AD109: 42.27766604 | AE109: 0 | AF109: 8.791836683 | AG109: 25.10154547 | AH109: 42.85222175 | AI109: 0 | AJ109: 8.478341904 | AK109: 24.89969079 | AL109: 42.62326267 | AM109: 0 | AN109: 0 | AO109: 0 | AP109: 0 | AQ109: 0 | AR109: 0 | AS109: 0 | AT109: 0 | AU109: 0 | AV109: 0 | AW109: 0 | AX109: 0 | AY109: 0 | AZ109: 0
C110: Taxes Paid | F110: ='Standalone Case'!F33 -> 0.25 | G110: =$F$110*G109 -> 0 | H110: =$F$110*H109 -> 0 | I110: 3.355320648 | J110: 8.281748053 | K110: 0 | L110: 1.12954319 | M110: 5.595929518 | N110: 9.538936556 | O110: 0 | P110: 2.288611969 | Q110: 6.350751908 | R110: 10.68089307 | S110: 0 | T110: 1.943695287 | U110: 6.06763175 | V110: 10.39672313 | W110: 0 | X110: 1.341624842 | Y110: 5.787282991 | Z110: 10.11519069 | AA110: 0 | AB110: 0.9464748009 | AC110: 5.951081622 | AD110: 10.56941651 | AE110: 0 | AF110: 2.197959171 | AG110: 6.275386368 | AH110: 10.71305544 | AI110: 0 | AJ110: 2.119585476 | AK110: 6.224922697 | AL110: 10.65581567 | AM110: 0 | AN110: 0 | AO110: 0 | AP110: 0 | AQ110: 0 | AR110: 0 | AS110: 0 | AT110: 0 | AU110: 0 | AV110: 0 | AW110: 0 | AX110: 0 | AY110: 0 | AZ110: 0
C111: Net Income | G111: =G103-G110 -> -8.816910714 | H111: =H103-H110 -> 6.113667321 | I111: 12.76920534 | J111: 24.84524416 | K111: -6.082933159 | L111: 9.471562728 | M111: 16.78778855 | N111: 28.61680967 | O111: -4.848587774 | P111: 11.71442368 | Q111: 19.05225572 | R111: 32.04267922 | S111: -5.090208396 | T111: 10.92129426 | U111: 18.20289525 | V111: 31.19016939 | W111: -6.341698891 | X111: 10.36657342 | Y111: 17.36184897 | Z111: 30.34557207 | AA111: -7.472724468 | AB111: 10.31214887 | AC111: 17.85324487 | AD111: 31.70824953 | AE111: -4.486464918 | AF111: 11.08034243 | AG111: 18.8261591 | AH111: 32.13916631 | AI111: -4.624983874 | AJ111: 10.9837403 | AK111: 18.67476809 | AL111: 31.967447 | AM111: 0 | AN111: 0 | AO111: 0 | AP111: 0 | AQ111: 0 | AR111: 0 | AS111: 0 | AT111: 0 | AU111: 0 | AV111: 0 | AW111: 0 | AX111: 0 | AY111: 0 | AZ111: 0
A113: Cash Flow
B114: Debt/ EBITDA | G114: =IF(G93,G54/(G93*4))*1 -> 20.91623304 | H114: =IF(H93,H54/(H93*4))*1 -> 4.332300275 | I114: 2.307898607 | J114: 1.465973262 | K114: 11.40011552 | L114: 1.675418108 | M114: 0.8473706607 | N114: 0.4988903109 | O114: 3.541637848 | P114: 0.0353607079 | Q114: 0 | R114: 0 | S114: 0 | T114: 0 | U114: 0 | V114: 0 | W114: 0 | X114: 0 | Y114: 0 | Z114: 0 | AA114: 0 | AB114: 0 | AC114: 0 | AD114: 0 | AE114: 0 | AF114: 0 | AG114: 0 | AH114: 0 | AI114: 0 | AJ114: 0 | AK114: 0 | AL114: 0 | AM114: 0 | AN114: 0 | AO114: 0 | AP114: 0 | AQ114: 0 | AR114: 0 | AS114: 0 | AT114: 0 | AU114: 0 | AV114: 0 | AW114: 0 | AX114: 0 | AY114: 0 | AZ114: 0
B115: Cash Sweep % | G115: =INDEX('Transaction and Pro-forma'!$G$50:$G$52,MATCH(G114,'Transaction and Pro-forma'!$E$50:$E$52,-1)) -> 1 | H115: =INDEX('Transaction and Pro-forma'!$G$50:$G$52,MATCH(H114,'Transaction and Pro-forma'!$E$50:$E$52,-1)) -> 0.75 | I115: =INDEX('Transaction and Pro-forma'!$G$50:$G$52,MATCH(I114,'Transaction and Pro-forma'!$E$50:$E$52,-1)) -> 0.5 | J115: =INDEX('Transaction and Pro-forma'!$G$50:$G$52,MATCH(J114,'Transaction and Pro-forma'!$E$50:$E$52,-1)) -> 0.5 | K115: =INDEX('Transaction and Pro-forma'!$G$50:$G$52,MATCH(K114,'Transaction and Pro-forma'!$E$50:$E$52,-1)) -> 1 | L115: =INDEX('Transaction and Pro-forma'!$G$50:$G$52,MATCH(L114,'Transaction and Pro-forma'!$E$50:$E$52,-1)) -> 0.5 | M115: =INDEX('Transaction and Pro-forma'!$G$50:$G$52,MATCH(M114,'Transaction and Pro-forma'!$E$50:$E$52,-1)) -> 0.5 | N115: =INDEX('Transaction and Pro-forma'!$G$50:$G$52,MATCH(N114,'Transaction and Pro-forma'!$E$50:$E$52,-1)) -> 0.5 | O115: =INDEX('Transaction and Pro-forma'!$G$50:$G$52,MATCH(O114,'Transaction and Pro-forma'!$E$50:$E$52,-1)) -> 0.5 | P115: =INDEX('Transaction and Pro-forma'!$G$50:$G$52,MATCH(P114,'Transaction and Pro-forma'!$E$50:$E$52,-1)) -> 0.5 | Q115: =INDEX('Transaction and Pro-forma'!$G$50:$G$52,MATCH(Q114,'Transaction and Pro-forma'!$E$50:$E$52,-1)) -> 0.5 | R115: =INDEX('Transaction and Pro-forma'!$G$50:$G$52,MATCH(R114,'Transaction and Pro-forma'!$E$50:$E$52,-1)) -> 0.5 | S115: =INDEX('Transaction and Pro-forma'!$G$50:$G$52,MATCH(S114,'Transaction and Pro-forma'!$E$50:$E$52,-1)) -> 0.5 | T115: =INDEX('Transaction and Pro-forma'!$G$50:$G$52,MATCH(T114,'Transaction and Pro-forma'!$E$50:$E$52,-1)) -> 0.5 | U115: =INDEX('Transaction and Pro-forma'!$G$50:$G$52,MATCH(U114,'Transaction and Pro-forma'!$E$50:$E$52,-1)) -> 0.5 | V115: =INDEX('Transaction and Pro-forma'!$G$50:$G$52,MATCH(V114,'Transaction and Pro-forma'!$E$50:$E$52,-1)) -> 0.5 | W115: =INDEX('Transaction and Pro-forma'!$G$50:$G$52,MATCH(W114,'Transaction and Pro-forma'!$E$50:$E$52,-1)) -> 0.5 | X115: =INDEX('Transaction and Pro-forma'!$G$50:$G$52,MATCH(X114,'Transaction and Pro-forma'!$E$50:$E$52,-1)) -> 0.5 | Y115: =INDEX('Transaction and Pro-forma'!$G$50:$G$52,MATCH(Y114,'Transaction and Pro-forma'!$E$50:$E$52,-1)) -> 0.5 | Z115: =INDEX('Transaction and Pro-forma'!$G$50:$G$52,MATCH(Z114,'Transaction and Pro-forma'!$E$50:$E$52,-1)) -> 0.5 | AA115: =INDEX('Transaction and Pro-forma'!$G$50:$G$52,MATCH(AA114,'Transaction and Pro-forma'!$E$50:$E$52,-1)) -> 0.5 | AB115: =INDEX('Transaction and Pro-forma'!$G$50:$G$52,MATCH(AB114,'Transaction and Pro-forma'!$E$50:$E$52,-1)) -> 0.5 | AC115: =INDEX('Transaction and Pro-forma'!$G$50:$G$52,MATCH(AC114,'Transaction and Pro-forma'!$E$50:$E$52,-1)) -> 0.5 | AD115: =INDEX('Transaction and Pro-forma'!$G$50:$G$52,MATCH(AD114,'Transaction and Pro-forma'!$E$50:$E$52,-1)) -> 0.5 | AE115: =INDEX('Transaction and Pro-forma'!$G$50:$G$52,MATCH(AE114,'Transaction and Pro-forma'!$E$50:$E$52,-1)) -> 0.5 | AF115: =INDEX('Transaction and Pro-forma'!$G$50:$G$52,MATCH(AF114,'Transaction and Pro-forma'!$E$50:$E$52,-1)) -> 0.5 | AG115: =INDEX('Transaction and Pro-forma'!$G$50:$G$52,MATCH(AG114,'Transaction and Pro-forma'!$E$50:$E$52,-1)) -> 0.5 | AH115: =INDEX('Transaction and Pro-forma'!$G$50:$G$52,MATCH(AH114,'Transaction and Pro-forma'!$E$50:$E$52,-1)) -> 0.5 | AI115: =INDEX('Transaction and Pro-forma'!$G$50:$G$52,MATCH(AI114,'Transaction and Pro-forma'!$E$50:$E$52,-1)) -> 0.5 | AJ115: =INDEX('Transaction and Pro-forma'!$G$50:$G$52,MATCH(AJ114,'Transaction and Pro-forma'!$E$50:$E$52,-1)) -> 0.5 | AK115: =INDEX('Transaction and Pro-forma'!$G$50:$G$52,MATCH(AK114,'Transaction and Pro-forma'!$E$50:$E$52,-1)) -> 0.5 | AL115: =INDEX('Transaction and Pro-forma'!$G$50:$G$52,MATCH(AL114,'Transaction and Pro-forma'!$E$50:$E$52,-1)) -> 0.5 | AM115: =INDEX('Transaction and Pro-forma'!$G$50:$G$52,MATCH(AM114,'Transaction and Pro-forma'!$E$50:$E$52,-1)) -> 0.5 | AN115: =INDEX('Transaction and Pro-forma'!$G$50:$G$52,MATCH(AN114,'Transaction and Pro-forma'!$E$50:$E$52,-1)) -> 0.5 | AO115: =INDEX('Transaction and Pro-forma'!$G$50:$G$52,MATCH(AO114,'Transaction and Pro-forma'!$E$50:$E$52,-1)) -> 0.5 | AP115: =INDEX('Transaction and Pro-forma'!$G$50:$G$52,MATCH(AP114,'Transaction and Pro-forma'!$E$50:$E$52,-1)) -> 0.5 | AQ115: =INDEX('Transaction and Pro-forma'!$G$50:$G$52,MATCH(AQ114,'Transaction and Pro-forma'!$E$50:$E$52,-1)) -> 0.5 | AR115: =INDEX('Transaction and Pro-forma'!$G$50:$G$52,MATCH(AR114,'Transaction and Pro-forma'!$E$50:$E$52,-1)) -> 0.5 | AS115: =INDEX('Transaction and Pro-forma'!$G$50:$G$52,MATCH(AS114,'Transaction and Pro-forma'!$E$50:$E$52,-1)) -> 0.5 | AT115: =INDEX('Transaction and Pro-forma'!$G$50:$G$52,MATCH(AT114,'Transaction and Pro-forma'!$E$50:$E$52,-1)) -> 0.5 | AU115: =INDEX('Transaction and Pro-forma'!$G$50:$G$52,MATCH(AU114,'Transaction and Pro-forma'!$E$50:$E$52,-1)) -> 0.5 | AV115: =INDEX('Transaction and Pro-forma'!$G$50:$G$52,MATCH(AV114,'Transaction and Pro-forma'!$E$50:$E$52,-1)) -> 0.5 | AW115: =INDEX('Transaction and Pro-forma'!$G$50:$G$52,MATCH(AW114,'Transaction and Pro-forma'!$E$50:$E$52,-1)) -> 0.5 | AX115: =INDEX('Transaction and Pro-forma'!$G$50:$G$52,MATCH(AX114,'Transaction and Pro-forma'!$E$50:$E$52,-1)) -> 0.5 | AY115: =INDEX('Transaction and Pro-forma'!$G$50:$G$52,MATCH(AY114,'Transaction and Pro-forma'!$E$50:$E$52,-1)) -> 0.5 | AZ115: =INDEX('Transaction and Pro-forma'!$G$50:$G$52,MATCH(AZ114,'Transaction and Pro-forma'!$E$50:$E$52,-1)) -> 0.5
B117: EBITDA | G117: =G93 -> 4.9005 | H117: 19.602 | I117: 29.403 | J117: 44.1045 | K117: 5.39055 | L117: 21.5622 | M117: 32.3433 | N117: 48.51495 | O117: 5.929605 | P117: 23.71842 | Q117: 35.57763 | R117: 53.366445 | S117: 5.929605 | T117: 23.71842 | U117: 35.57763 | V117: 53.366445 | W117: 5.929605 | X117: 23.71842 | Y117: 35.57763 | Z117: 53.366445 | AA117: 5.929605 | AB117: 23.71842 | AC117: 35.57763 | AD117: 53.366445 | AE117: 5.929605 | AF117: 23.71842 | AG117: 35.57763 | AH117: 53.366445 | AI117: 5.929605 | AJ117: 23.71842 | AK117: 35.57763 | AL117: 53.366445 | AM117: 0 | AN117: 0 | AO117: 0 | AP117: 0 | AQ117: 0 | AR117: 0 | AS117: 0 | AT117: 0 | AU117: 0 | AV117: 0 | AW117: 0 | AX117: 0 | AY117: 0 | AZ117: 0
B118: Less: Working Capital Changes | G118: =G30 -> 80.85 | H118: 81.95 | I118: -72.6 | J118: -78.65 | K118: 107.085 | L118: 46.78666667 | M118: -46.585 | N118: -64.33166667 | O118: 151.0685 | P118: -49.09171667 | Q118: -53.43965 | R118: -72.22893333 | S118: 166.17535 | T118: -40.50676667 | U118: -53.43965 | V118: -72.22893333 | W118: 166.17535 | X118: -40.50676667 | Y118: -53.43965 | Z118: -72.22893333 | AA118: 166.17535 | AB118: -40.50676667 | AC118: -53.43965 | AD118: -72.22893333 | AE118: 166.17535 | AF118: -40.50676667 | AG118: -53.43965 | AH118: -72.22893333 | AI118: 166.17535 | AJ118: -40.50676667 | AK118: -53.43965 | AL118: -72.22893333 | AM118: 0 | AN118: 0 | AO118: 0 | AP118: 0 | AQ118: 0 | AR118: 0 | AS118: 0 | AT118: 0 | AU118: 0 | AV118: 0 | AW118: 0 | AX118: 0 | AY118: 0 | AZ118: 0
B119: Less: R&D | G119: =G31 -> -9.5 | H119: -9.5 | I119: -9.5 | J119: -9.5 | K119: -9.025 | L119: -9.025 | M119: -9.025 | N119: -9.025 | O119: -8.57375 | P119: -8.57375 | Q119: -8.57375 | R119: -8.57375 | S119: -8.57375 | T119: -8.57375 | U119: -8.57375 | V119: -8.57375 | W119: -8.57375 | X119: -8.57375 | Y119: -8.57375 | Z119: -8.57375 | AA119: -8.57375 | AB119: -8.57375 | AC119: -8.57375 | AD119: -8.57375 | AE119: -8.57375 | AF119: -8.57375 | AG119: -8.57375 | AH119: -8.57375 | AI119: -8.57375 | AJ119: -8.57375 | AK119: -8.57375 | AL119: -8.57375 | AM119: 0 | AN119: 0 | AO119: 0 | AP119: 0 | AQ119: 0 | AR119: 0 | AS119: 0 | AT119: 0 | AU119: 0 | AV119: 0 | AW119: 0 | AX119: 0 | AY119: 0 | AZ119: 0
B120: Add: Synergies | G120: =G32 -> -1.25 | H120: -1.25 | I120: -1.25 | J120: 1.5 | K120: 1.5 | L120: 1.5 | M120: 2.5 | N120: 2.5 | O120: 2.5 | P120: 3 | Q120: 3 | R120: 3 | S120: 3.25 | T120: 3.25 | U120: 3.25 | V120: 3.25 | W120: 3.25 | X120: 3.25 | Y120: 3.25 | Z120: 3.25 | AA120: 3.25 | AB120: 3.25 | AC120: 3.25 | AD120: 3.25 | AE120: 3.25 | AF120: 3.25 | AG120: 3.25 | AH120: 3.25 | AI120: 3.25 | AJ120: 3.25 | AK120: 3.25 | AL120: 3.25 | AM120: 0 | AN120: 0 | AO120: 0 | AP120: 0 | AQ120: 0 | AR120: 0 | AS120: 0 | AT120: 0 | AU120: 0 | AV120: 0 | AW120: 0 | AX120: 0 | AY120: 0 | AZ120: 0
B121: Less: Taxes Paid | G121: =-G110 -> 0 | H121: =-H110 -> 0 | I121: -3.355320648 | J121: -8.281748053 | K121: 0 | L121: -1.12954319 | M121: -5.595929518 | N121: -9.538936556 | O121: 0 | P121: -2.288611969 | Q121: -6.350751908 | R121: -10.68089307 | S121: 0 | T121: -1.943695287 | U121: -6.06763175 | V121: -10.39672313 | W121: 0 | X121: -1.341624842 | Y121: -5.787282991 | Z121: -10.11519069 | AA121: 0 | AB121: -0.9464748009 | AC121: -5.951081622 | AD121: -10.56941651 | AE121: 0 | AF121: -2.197959171 | AG121: -6.275386368 | AH121: -10.71305544 | AI121: 0 | AJ121: -2.119585476 | AK121: -6.224922697 | AL121: -10.65581567 | AM121: 0 | AN121: 0 | AO121: 0 | AP121: 0 | AQ121: 0 | AR121: 0 | AS121: 0 | AT121: 0 | AU121: 0 | AV121: 0 | AW121: 0 | AX121: 0 | AY121: 0 | AZ121: 0
B122: Add: Exit Proceeds | G122: =G35 -> 0 | H122: 0 | I122: 0 | J122: 0 | K122: 0 | L122: 0 | M122: 0 | N122: 0 | O122: 0 | P122: 0 | Q122: 0 | R122: 0 | S122: 0 | T122: 0 | U122: 0 | V122: 0 | W122: 0 | X122: 0 | Y122: 0 | Z122: 0 | AA122: 0 | AB122: 0 | AC122: 0 | AD122: 0 | AE122: 0 | AF122: 0 | AG122: 0 | AH122: 0 | AI122: 0 | AJ122: 0 | AK122: 0 | AL122: 794.56707 | AM122: 0 | AN122: 0 | AO122: 0 | AP122: 0 | AQ122: 0 | AR122: 0 | AS122: 0 | AT122: 0 | AU122: 0 | AV122: 0 | AW122: 0 | AX122: 0 | AY122: 0 | AZ122: 0
C123: Operating Cash Flow | G123: =SUM(G117:G122) -> 75.0005 | H123: =SUM(H117:H122) -> 90.802 | I123: -57.30232065 | J123: -50.82724805 | K123: 104.95055 | L123: 59.69432348 | M123: -26.36262952 | N123: -31.88065322 | O123: 150.924355 | P123: -33.23565864 | Q123: -29.78652191 | R123: -35.11713141 | S123: 166.781205 | T123: -24.05579195 | U123: -29.25340175 | V123: -34.58296146 | W123: 166.781205 | X123: -23.45372151 | Y123: -28.97305299 | Z123: -34.30142902 | AA123: 166.781205 | AB123: -23.05857147 | AC123: -29.13685162 | AD123: -34.75565484 | AE123: 166.781205 | AF123: -24.31005584 | AG123: -29.46115637 | AH123: -34.89929377 | AI123: 166.781205 | AJ123: -24.23168214 | AK123: -29.4106927 | AL123: 759.725016 | AM123: 0 | AN123: 0 | AO123: 0 | AP123: 0 | AQ123: 0 | AR123: 0 | AS123: 0 | AT123: 0 | AU123: 0 | AV123: 0 | AW123: 0 | AX123: 0 | AY123: 0 | AZ123: 0
C124: Less: Interest Expense | G124: =-G100 -> -3.5875 | H124: -2.97226125 | I124: -2.375069996 | J124: -2.262960621 | K124: -2.150851246 | L124: -1.264399512 | M124: -0.9592367221 | N124: -0.8471273471 | O124: -0.7350179721 | P124: -0.02935450425 | Q124: 0 | R124: 0 | S124: -0.2219861363 | T124: -0.2219861363 | U124: -0.2219861363 | V124: -0.2219861363 | W124: -0.2219861363 | X124: 0 | Y124: 0 | Z124: 0 | AA124: 0 | AB124: 0 | AC124: 0 | AD124: 0 | AE124: 0 | AF124: 0 | AG124: 0 | AH124: 0 | AI124: 0 | AJ124: 0 | AK124: 0 | AL124: 0 | AM124: 0 | AN124: 0 | AO124: 0 | AP124: 0 | AQ124: 0 | AR124: 0 | AS124: 0 | AT124: 0 | AU124: 0 | AV124: 0 | AW124: 0 | AX124: 0 | AY124: 0 | AZ124: 0
C125: Less: Scheduled Repayments | G125: =-MIN(G51,G54) -> -12.8125 | H125: -12.8125 | I125: -12.8125 | J125: -12.8125 | K125: -12.8125 | L125: -12.8125 | M125: -12.8125 | N125: -12.8125 | O125: -12.8125 | P125: -3.354800486 | Q125: 0 | R125: 0 | S125: 0 | T125: 0 | U125: 0 | V125: 0 | W125: 0 | X125: 0 | Y125: 0 | Z125: 0 | AA125: 0 | AB125: 0 | AC125: 0 | AD125: 0 | AE125: 0 | AF125: 0 | AG125: 0 | AH125: 0 | AI125: 0 | AJ125: 0 | AK125: 0 | AL125: 0 | AM125: 0 | AN125: 0 | AO125: 0 | AP125: 0 | AQ125: 0 | AR125: 0 | AS125: 0 | AT125: 0 | AU125: 0 | AV125: 0 | AW125: 0 | AX125: 0 | AY125: 0 | AZ125: 0
C126: Less: Commitment Fee | G126: =-G99 -> -1.1 | H126: =-H99 -> -1.1 | I126: -1.1 | J126: -0.8078918047 | K126: -0.4384275554 | L126: -0.4384275554 | M126: -0.5597754161 | N126: -0.3312306719 | O126: -0.07221062841 | P126: -0.4453017725 | Q126: -0.2357150283 | R126: -0.06303023168 | S126: 0 | T126: -0.9064507038 | U126: -0.766243889 | V126: -0.5969945483 | W126: -0.3978825688 | X126: -1.1 | Y126: -1.03104678 | Z126: -0.8654208904 | AA126: -0.6699506486 | AB126: -1.1 | AC126: -1.1 | AD126: -1.1 | AE126: -1.083418687 | AF126: -1.1 | AG126: -1.1 | AH126: -1.1 | AI126: -1.1 | AJ126: -1.1 | AK126: -1.1 | AL126: -1.1 | AM126: 0 | AN126: 0 | AO126: 0 | AP126: 0 | AQ126: 0 | AR126: 0 | AS126: 0 | AT126: 0 | AU126: 0 | AV126: 0 | AW126: 0 | AX126: 0 | AY126: 0 | AZ126: 0
C127: Less: Interest on RCF | G127: =-G101 -> 0 | H127: 0 | I127: 0 | J127: -0.4647175834 | K127: -1.052501616 | L127: -1.052501616 | M127: -0.8594482017 | N127: -1.223042113 | O127: -1.635119455 | P127: -1.041565362 | Q127: -1.374998819 | R127: -1.649724631 | S127: -1.75 | T127: -0.3079193349 | U127: -0.5309756311 | V127: -0.8002359459 | W127: -1.117005004 | X127: 0 | Y127: -0.1096983049 | Z127: -0.3731940381 | AA127: -0.6841694226 | AB127: 0 | AC127: 0 | AD127: 0 | AE127: -0.02637936142 | AF127: 0 | AG127: 0 | AH127: 0 | AI127: 0 | AJ127: 0 | AK127: 0 | AL127: 0 | AM127: 0 | AN127: 0 | AO127: 0 | AP127: 0 | AQ127: 0 | AR127: 0 | AS127: 0 | AT127: 0 | AU127: 0 | AV127: 0 | AW127: 0 | AX127: 0 | AY127: 0 | AZ127: 0
D128: Sub-Total | G128: =SUM(G123:G127) -> 57.5005 | H128: =SUM(H123:H127) -> 73.91723875 | I128: -73.58989064 | J128: -67.17531806 | K128: 88.49626958 | L128: 44.12649479 | M128: -41.55358986 | N128: -47.09455335 | O128: 135.6695069 | P128: -38.10668076 | Q128: -31.39723576 | R128: -36.82988627 | S128: 164.8092189 | T128: -25.49214813 | U128: -30.77260741 | V128: -36.20217809 | W128: 165.0443313 | X128: -24.55372151 | Y128: -30.11379808 | Z128: -35.54004395 | AA128: =SUM(AA123:AA127) -> 165.4270849 | AB128: =SUM(AB123:AB127) -> -24.15857147 | AC128: =SUM(AC123:AC127) -> -30.23685162 | AD128: =SUM(AD123:AD127) -> -35.85565484 | AE128: =SUM(AE123:AE127) -> 165.671407 | AF128: =SUM(AF123:AF127) -> -25.41005584 | AG128: =SUM(AG123:AG127) -> -30.56115637 | AH128: =SUM(AH123:AH127) -> -35.99929377 | AI128: =SUM(AI123:AI127) -> 165.681205 | AJ128: =SUM(AJ123:AJ127) -> -25.33168214 | AK128: =SUM(AK123:AK127) -> -30.5106927 | AL128: =SUM(AL123:AL127) -> 758.625016 | AM128: =SUM(AM123:AM127) -> 0 | AN128: =SUM(AN123:AN127) -> 0 | AO128: =SUM(AO123:AO127) -> 0 | AP128: =SUM(AP123:AP127) -> 0 | AQ128: =SUM(AQ123:AQ127) -> 0 | AR128: =SUM(AR123:AR127) -> 0 | AS128: =SUM(AS123:AS127) -> 0 | AT128: =SUM(AT123:AT127) -> 0 | AU128: =SUM(AU123:AU127) -> 0 | AV128: =SUM(AV123:AV127) -> 0 | AW128: =SUM(AW123:AW127) -> 0 | AX128: =SUM(AX123:AX127) -> 0 | AY128: =SUM(AY123:AY127) -> 0 | AZ128: =SUM(AZ123:AZ127) -> 0
C129: Less: CF Sweep | G129: =-MIN(MAX(G128,0)*G115,G54+G55) -> -57.5005 | H129: =-MIN(MAX(H128,0)*H115,H54+H55) -> -55.43792906 | I129: 0 | J129: 0 | K129: -88.49626958 | L129: -22.0632474 | M129: 0 | N129: 0 | O129: -67.83475347 | P129: 0 | Q129: 0 | R129: 0 | S129: 0 | T129: 0 | U129: 0 | V129: 0 | W129: 0 | X129: 0 | Y129: 0 | Z129: 0 | AA129: 0 | AB129: 0 | AC129: 0 | AD129: 0 | AE129: 0 | AF129: 0 | AG129: 0 | AH129: 0 | AI129: 0 | AJ129: 0 | AK129: 0 | AL129: 0 | AM129: 0 | AN129: 0 | AO129: 0 | AP129: 0 | AQ129: 0 | AR129: 0 | AS129: 0 | AT129: 0 | AU129: 0 | AV129: 0 | AW129: 0 | AX129: 0 | AY129: 0 | AZ129: 0
D130: Sub-Total | G130: =SUM(G128:G129) -> 0 | H130: =SUM(H128:H129) -> 18.47930969 | I130: -73.58989064 | J130: -67.17531806 | K130: 0 | L130: 22.0632474 | M130: -41.55358986 | N130: -47.09455335 | O130: 67.83475347 | P130: -38.10668076 | Q130: -31.39723576 | R130: -36.82988627 | S130: 164.8092189 | T130: -25.49214813 | U130: -30.77260741 | V130: -36.20217809 | W130: 165.0443313 | X130: -24.55372151 | Y130: -30.11379808 | Z130: -35.54004395 | AA130: =SUM(AA128:AA129) -> 165.4270849 | AB130: =SUM(AB128:AB129) -> -24.15857147 | AC130: =SUM(AC128:AC129) -> -30.23685162 | AD130: =SUM(AD128:AD129) -> -35.85565484 | AE130: =SUM(AE128:AE129) -> 165.671407 | AF130: =SUM(AF128:AF129) -> -25.41005584 | AG130: =SUM(AG128:AG129) -> -30.56115637 | AH130: =SUM(AH128:AH129) -> -35.99929377 | AI130: =SUM(AI128:AI129) -> 165.681205 | AJ130: =SUM(AJ128:AJ129) -> -25.33168214 | AK130: =SUM(AK128:AK129) -> -30.5106927 | AL130: =SUM(AL128:AL129) -> 758.625016 | AM130: =SUM(AM128:AM129) -> 0 | AN130: =SUM(AN128:AN129) -> 0 | AO130: =SUM(AO128:AO129) -> 0 | AP130: =SUM(AP128:AP129) -> 0 | AQ130: =SUM(AQ128:AQ129) -> 0 | AR130: =SUM(AR128:AR129) -> 0 | AS130: =SUM(AS128:AS129) -> 0 | AT130: =SUM(AT128:AT129) -> 0 | AU130: =SUM(AU128:AU129) -> 0 | AV130: =SUM(AV128:AV129) -> 0 | AW130: =SUM(AW128:AW129) -> 0 | AX130: =SUM(AX128:AX129) -> 0 | AY130: =SUM(AY128:AY129) -> 0 | AZ130: =SUM(AZ128:AZ129) -> 0
C131: Add: Cash Balance Used | G131: =MIN(MAX(-G130,0),G87) -> 0 | H131: 0 | I131: 20.47930969 | J131: 0 | K131: 0 | L131: 0 | M131: 0 | N131: 0 | O131: 0 | P131: 0 | Q131: 0 | R131: 0 | S131: 0 | T131: 0 | U131: 0 | V131: 0 | W131: 0 | X131: 12.01677238 | Y131: 0 | Z131: 0 | AA131: 0 | AB131: 24.15857147 | AC131: 30.23685162 | AD131: 32.84087068 | AE131: 0 | AF131: 25.41005584 | AG131: 30.56115637 | AH131: 35.99929377 | AI131: 0 | AJ131: 25.33168214 | AK131: 30.5106927 | AL131: 0 | AM131: 0 | AN131: 0 | AO131: 0 | AP131: 0 | AQ131: 0 | AR131: 0 | AS131: 0 | AT131: 0 | AU131: 0 | AV131: 0 | AW131: 0 | AX131: 0 | AY131: 0 | AZ131: 0
C132: Add: Cash Paid in Terminal Period | G132: =G8*G87 -> 0 | H132: 0 | I132: 0 | J132: 0 | K132: 0 | L132: 0 | M132: 0 | N132: 0 | O132: 0 | P132: 0 | Q132: 0 | R132: 0 | S132: 0 | T132: 0 | U132: 0 | V132: 0 | W132: 0 | X132: 0 | Y132: 0 | Z132: 0 | AA132: 0 | AB132: 0 | AC132: 0 | AD132: 0 | AE132: 0 | AF132: 0 | AG132: 0 | AH132: 0 | AI132: 0 | AJ132: 0 | AK132: 0 | AL132: 180.524947 | AM132: 0 | AN132: 0 | AO132: 0 | AP132: 0 | AQ132: 0 | AR132: 0 | AS132: 0 | AT132: 0 | AU132: 0 | AV132: 0 | AW132: 0 | AX132: 0 | AY132: 0 | AZ132: 0
D133: Sub-Total | G133: =SUM(G130:G132) -> 0 | H133: =SUM(H130:H132) -> 18.47930969 | I133: -53.11058096 | J133: -67.17531806 | K133: 0 | L133: 22.0632474 | M133: -41.55358986 | N133: -47.09455335 | O133: 67.83475347 | P133: -38.10668076 | Q133: -31.39723576 | R133: -36.82988627 | S133: 164.8092189 | T133: -25.49214813 | U133: -30.77260741 | V133: -36.20217809 | W133: 165.0443313 | X133: -12.53694913 | Y133: -30.11379808 | Z133: -35.54004395 | AA133: 165.4270849 | AB133: 0 | AC133: 0 | AD133: -3.014784163 | AE133: 165.671407 | AF133: 0 | AG133: 0 | AH133: 0 | AI133: 165.681205 | AJ133: 0 | AK133: 0 | AL133: 939.149963 | AM133: 0 | AN133: 0 | AO133: 0 | AP133: 0 | AQ133: 0 | AR133: 0 | AS133: 0 | AT133: 0 | AU133: 0 | AV133: 0 | AW133: 0 | AX133: 0 | AY133: 0 | AZ133: 0
C134: Add: Draws from Revolving Credit | G134: =MIN(MAX(-G133,0),G63) -> 0 | H134: 0 | I134: 53.11058096 | J134: 67.17531806 | K134: 0 | L134: 0 | M134: 41.55358986 | N134: 47.09455335 | O134: 0 | P134: 38.10668076 | Q134: 31.39723576 | R134: 11.46004212 | S134: 0 | T134: 25.49214813 | U134: 30.77260741 | V134: 36.20217809 | W134: 0 | X134: 12.53694913 | Y134: 30.11379808 | Z134: 35.54004395 | AA134: 0 | AB134: 0 | AC134: 0 | AD134: 3.014784163 | AE134: 0 | AF134: 0 | AG134: 0 | AH134: 0 | AI134: 0 | AJ134: 0 | AK134: 0 | AL134: 0 | AM134: 0 | AN134: 0 | AO134: 0 | AP134: 0 | AQ134: 0 | AR134: 0 | AS134: 0 | AT134: 0 | AU134: 0 | AV134: 0 | AW134: 0 | AX134: 0 | AY134: 0 | AZ134: 0
C135: Less: Repayments of Revolving Credit | G135: =-MIN(MAX(G133,0),G65) -> 0 | H135: 0 | I135: 0 | J135: 0 | K135: 0 | L135: -22.0632474 | M135: 0 | N135: 0 | O135: -67.83475347 | P135: 0 | Q135: 0 | R135: 0 | S135: -164.8092189 | T135: 0 | U135: 0 | V135: 0 | W135: -127.6577148 | X135: 0 | Y135: 0 | Z135: 0 | AA135: -78.19079116 | AB135: 0 | AC135: 0 | AD135: 0 | AE135: -3.014784163 | AF135: 0 | AG135: 0 | AH135: 0 | AI135: 0 | AJ135: 0 | AK135: 0 | AL135: 0 | AM135: 0 | AN135: 0 | AO135: 0 | AP135: 0 | AQ135: 0 | AR135: 0 | AS135: 0 | AT135: 0 | AU135: 0 | AV135: 0 | AW135: 0 | AX135: 0 | AY135: 0 | AZ135: 0
D136: Sub-Total | G136: =SUM(G133) -> 0 | H136: =SUM(H133:H135) -> 18.47930969 | I136: 0 | J136: 0 | K136: 0 | L136: 0 | M136: 0 | N136: 0 | O136: 0 | P136: 0 | Q136: 0 | R136: -25.36984415 | S136: 0 | T136: 0 | U136: 0 | V136: 0 | W136: 37.38661652 | X136: 0 | Y136: 0 | Z136: 0 | AA136: =SUM(AA133:AA135) -> 87.23629377 | AB136: =SUM(AB133:AB135) -> 0 | AC136: =SUM(AC133:AC135) -> 0 | AD136: =SUM(AD133:AD135) -> 0 | AE136: =SUM(AE133:AE135) -> 162.6566228 | AF136: =SUM(AF133:AF135) -> 0 | AG136: =SUM(AG133:AG135) -> 0 | AH136: =SUM(AH133:AH135) -> 0 | AI136: =SUM(AI133:AI135) -> 165.681205 | AJ136: =SUM(AJ133:AJ135) -> 0 | AK136: =SUM(AK133:AK135) -> 0 | AL136: =SUM(AL133:AL135) -> 939.149963 | AM136: =SUM(AM133:AM135) -> 0 | AN136: =SUM(AN133:AN135) -> 0 | AO136: =SUM(AO133:AO135) -> 0 | AP136: =SUM(AP133:AP135) -> 0 | AQ136: =SUM(AQ133:AQ135) -> 0 | AR136: =SUM(AR133:AR135) -> 0 | AS136: =SUM(AS133:AS135) -> 0 | AT136: =SUM(AT133:AT135) -> 0 | AU136: =SUM(AU133:AU135) -> 0 | AV136: =SUM(AV133:AV135) -> 0 | AW136: =SUM(AW133:AW135) -> 0 | AX136: =SUM(AX133:AX135) -> 0 | AY136: =SUM(AY133:AY135) -> 0 | AZ136: =SUM(AZ133:AZ135) -> 0
C137: Add: Restructuring of Senior Debt | G137: =MAX(-G136,0) -> 0 | H137: =MAX(-H136,0) -> 0 | I137: 0 | J137: 0 | K137: 0 | L137: 0 | M137: 0 | N137: 0 | O137: 0 | P137: 0 | Q137: 0 | R137: 25.36984415 | S137: 0 | T137: 0 | U137: 0 | V137: 0 | W137: 0 | X137: 0 | Y137: 0 | Z137: 0 | AA137: =MAX(-AA136,0) -> 0 | AB137: =MAX(-AB136,0) -> 0 | AC137: =MAX(-AC136,0) -> 0 | AD137: =MAX(-AD136,0) -> 0 | AE137: =MAX(-AE136,0) -> 0 | AF137: =MAX(-AF136,0) -> 0 | AG137: =MAX(-AG136,0) -> 0 | AH137: =MAX(-AH136,0) -> 0 | AI137: =MAX(-AI136,0) -> 0 | AJ137: =MAX(-AJ136,0) -> 0 | AK137: =MAX(-AK136,0) -> 0 | AL137: =MAX(-AL136,0) -> 0 | AM137: =MAX(-AM136,0) -> 0 | AN137: =MAX(-AN136,0) -> 0 | AO137: =MAX(-AO136,0) -> 0 | AP137: =MAX(-AP136,0) -> 0 | AQ137: =MAX(-AQ136,0) -> 0 | AR137: =MAX(-AR136,0) -> 0 | AS137: =MAX(-AS136,0) -> 0 | AT137: =MAX(-AT136,0) -> 0 | AU137: =MAX(-AU136,0) -> 0 | AV137: =MAX(-AV136,0) -> 0 | AW137: =MAX(-AW136,0) -> 0 | AX137: =MAX(-AX136,0) -> 0 | AY137: =MAX(-AY136,0) -> 0 | AZ137: =MAX(-AZ136,0) -> 0
C138: Less: Repayment of Defaulting Debt | G138: =-MIN(MAX(G136,0),G73) -> 0 | H138: 0 | I138: 0 | J138: 0 | K138: 0 | L138: 0 | M138: 0 | N138: 0 | O138: 0 | P138: 0 | Q138: 0 | R138: 0 | S138: 0 | T138: 0 | U138: 0 | V138: 0 | W138: -25.36984415 | X138: 0 | Y138: 0 | Z138: 0 | AA138: 0 | AB138: 0 | AC138: 0 | AD138: 0 | AE138: 0 | AF138: 0 | AG138: 0 | AH138: 0 | AI138: 0 | AJ138: 0 | AK138: 0 | AL138: 0 | AM138: 0 | AN138: 0 | AO138: 0 | AP138: 0 | AQ138: 0 | AR138: 0 | AS138: 0 | AT138: 0 | AU138: 0 | AV138: 0 | AW138: 0 | AX138: 0 | AY138: 0 | AZ138: 0
D139: Sub-Total | G139: =SUM(G136:G138) -> 0 | H139: =SUM(H136:H138) -> 18.47930969 | I139: 0 | J139: 0 | K139: 0 | L139: 0 | M139: 0 | N139: 0 | O139: 0 | P139: 0 | Q139: 0 | R139: 0 | S139: 0 | T139: 0 | U139: 0 | V139: 0 | W139: 12.01677238 | X139: 0 | Y139: 0 | Z139: 0 | AA139: =SUM(AA136:AA138) -> 87.23629377 | AB139: =SUM(AB136:AB138) -> 0 | AC139: =SUM(AC136:AC138) -> 0 | AD139: =SUM(AD136:AD138) -> 0 | AE139: =SUM(AE136:AE138) -> 162.6566228 | AF139: =SUM(AF136:AF138) -> 0 | AG139: =SUM(AG136:AG138) -> 0 | AH139: =SUM(AH136:AH138) -> 0 | AI139: =SUM(AI136:AI138) -> 165.681205 | AJ139: =SUM(AJ136:AJ138) -> 0 | AK139: =SUM(AK136:AK138) -> 0 | AL139: =SUM(AL136:AL138) -> 939.149963 | AM139: =SUM(AM136:AM138) -> 0 | AN139: =SUM(AN136:AN138) -> 0 | AO139: =SUM(AO136:AO138) -> 0 | AP139: =SUM(AP136:AP138) -> 0 | AQ139: =SUM(AQ136:AQ138) -> 0 | AR139: =SUM(AR136:AR138) -> 0 | AS139: =SUM(AS136:AS138) -> 0 | AT139: =SUM(AT136:AT138) -> 0 | AU139: =SUM(AU136:AU138) -> 0 | AV139: =SUM(AV136:AV138) -> 0 | AW139: =SUM(AW136:AW138) -> 0 | AX139: =SUM(AX136:AX138) -> 0 | AY139: =SUM(AY136:AY138) -> 0 | AZ139: =SUM(AZ136:AZ138) -> 0
C140: Less: Repayment of Subord. Debt | G140: =-MIN(G139,(G80+G81)*G8) -> 0 | H140: 0 | I140: 0 | J140: 0 | K140: 0 | L140: 0 | M140: 0 | N140: 0 | O140: 0 | P140: 0 | Q140: 0 | R140: 0 | S140: 0 | T140: 0 | U140: 0 | V140: 0 | W140: 0 | X140: 0 | Y140: 0 | Z140: 0 | AA140: 0 | AB140: 0 | AC140: 0 | AD140: 0 | AE140: 0 | AF140: 0 | AG140: 0 | AH140: 0 | AI140: 0 | AJ140: 0 | AK140: 0 | AL140: -165.2817703 | AM140: 0 | AN140: 0 | AO140: 0 | AP140: 0 | AQ140: 0 | AR140: 0 | AS140: 0 | AT140: 0 | AU140: 0 | AV140: 0 | AW140: 0 | AX140: 0 | AY140: 0 | AZ140: 0
D141: Sub-Total | G141: =SUM(G139:G140) -> 0 | H141: =SUM(H139:H140) -> 18.47930969 | I141: 0 | J141: 0 | K141: 0 | L141: 0 | M141: 0 | N141: 0 | O141: 0 | P141: 0 | Q141: 0 | R141: 0 | S141: 0 | T141: 0 | U141: 0 | V141: 0 | W141: 12.01677238 | X141: 0 | Y141: 0 | Z141: 0 | AA141: =SUM(AA139:AA140) -> 87.23629377 | AB141: =SUM(AB139:AB140) -> 0 | AC141: =SUM(AC139:AC140) -> 0 | AD141: =SUM(AD139:AD140) -> 0 | AE141: =SUM(AE139:AE140) -> 162.6566228 | AF141: =SUM(AF139:AF140) -> 0 | AG141: =SUM(AG139:AG140) -> 0 | AH141: =SUM(AH139:AH140) -> 0 | AI141: =SUM(AI139:AI140) -> 165.681205 | AJ141: =SUM(AJ139:AJ140) -> 0 | AK141: =SUM(AK139:AK140) -> 0 | AL141: =SUM(AL139:AL140) -> 773.8681926 | AM141: =SUM(AM139:AM140) -> 0 | AN141: =SUM(AN139:AN140) -> 0 | AO141: =SUM(AO139:AO140) -> 0 | AP141: =SUM(AP139:AP140) -> 0 | AQ141: =SUM(AQ139:AQ140) -> 0 | AR141: =SUM(AR139:AR140) -> 0 | AS141: =SUM(AS139:AS140) -> 0 | AT141: =SUM(AT139:AT140) -> 0 | AU141: =SUM(AU139:AU140) -> 0 | AV141: =SUM(AV139:AV140) -> 0 | AW141: =SUM(AW139:AW140) -> 0 | AX141: =SUM(AX139:AX140) -> 0 | AY141: =SUM(AY139:AY140) -> 0 | AZ141: =SUM(AZ139:AZ140) -> 0
C142: Cash Flow | G142: =NOT(G8)*G141 -> 0 | H142: 18.47930969 | I142: 0 | J142: 0 | K142: 0 | L142: 0 | M142: 0 | N142: 0 | O142: 0 | P142: 0 | Q142: 0 | R142: 0 | S142: 0 | T142: 0 | U142: 0 | V142: 0 | W142: 12.01677238 | X142: 0 | Y142: 0 | Z142: 0 | AA142: 87.23629377 | AB142: 0 | AC142: 0 | AD142: 0 | AE142: 162.6566228 | AF142: 0 | AG142: 0 | AH142: 0 | AI142: 165.681205 | AJ142: 0 | AK142: 0 | AL142: 0 | AM142: 0 | AN142: 0 | AO142: 0 | AP142: 0 | AQ142: 0 | AR142: 0 | AS142: 0 | AT142: 0 | AU142: 0 | AV142: 0 | AW142: 0 | AX142: 0 | AY142: 0 | AZ142: 0
D143: Dividends | G143: =G141-G142 -> 0 | H143: =H141-H142 -> 0 | I143: 0 | J143: 0 | K143: 0 | L143: 0 | M143: 0 | N143: 0 | O143: 0 | P143: 0 | Q143: 0 | R143: 0 | S143: 0 | T143: 0 | U143: 0 | V143: 0 | W143: 0 | X143: 0 | Y143: 0 | Z143: 0 | AA143: =AA141-AA142 -> 0 | AB143: =AB141-AB142 -> 0 | AC143: =AC141-AC142 -> 0 | AD143: =AD141-AD142 -> 0 | AE143: =AE141-AE142 -> 0 | AF143: =AF141-AF142 -> 0 | AG143: =AG141-AG142 -> 0 | AH143: =AH141-AH142 -> 0 | AI143: =AI141-AI142 -> 0 | AJ143: =AJ141-AJ142 -> 0 | AK143: =AK141-AK142 -> 0 | AL143: =AL141-AL142 -> 773.8681926 | AM143: =AM141-AM142 -> 0 | AN143: =AN141-AN142 -> 0 | AO143: =AO141-AO142 -> 0 | AP143: =AP141-AP142 -> 0 | AQ143: =AQ141-AQ142 -> 0 | AR143: =AR141-AR142 -> 0 | AS143: =AS141-AS142 -> 0 | AT143: =AT141-AT142 -> 0 | AU143: =AU141-AU142 -> 0 | AV143: =AV141-AV142 -> 0 | AW143: =AW141-AW142 -> 0 | AX143: =AX141-AX142 -> 0 | AY143: =AY141-AY142 -> 0 | AZ143: =AZ141-AZ142 -> 0
A145: Balance Sheet
B146: Equity Balance
C147: Opening Balance | G147: =F150 -> 77.5 | H147: =G150 -> 68.68308929 | I147: 74.79675661 | J147: 87.56596195 | K147: 112.4112061 | L147: 106.3282729 | M147: 115.7998357 | N147: 132.5876242 | O147: 161.2044339 | P147: 156.3558461 | Q147: 168.0702698 | R147: 187.1225255 | S147: 219.1652047 | T147: 214.0749964 | U147: 224.9962906 | V147: 243.1991859 | W147: 274.3893553 | X147: 268.0476564 | Y147: 278.4142298 | Z147: 295.7760788 | AA147: 326.1216508 | AB147: 318.6489264 | AC147: 328.9610752 | AD147: 346.8143201 | AE147: 378.5225696 | AF147: 374.0361047 | AG147: 385.1164471 | AH147: 403.9426062 | AI147: 436.0817725 | AJ147: 431.4567887 | AK147: 442.440529 | AL147: 461.1152971 | AM147: -280.7854486 | AN147: -280.7854486 | AO147: -280.7854486 | AP147: -280.7854486 | AQ147: -280.7854486 | AR147: -280.7854486 | AS147: -280.7854486 | AT147: -280.7854486 | AU147: -280.7854486 | AV147: -280.7854486 | AW147: -280.7854486 | AX147: -280.7854486 | AY147: -280.7854486 | AZ147: -280.7854486
C148: Add: Income | G148: =G111 -> -8.816910714 | H148: 6.113667321 | I148: 12.76920534 | J148: 24.84524416 | K148: -6.082933159 | L148: 9.471562728 | M148: 16.78778855 | N148: 28.61680967 | O148: -4.848587774 | P148: 11.71442368 | Q148: 19.05225572 | R148: 32.04267922 | S148: -5.090208396 | T148: 10.92129426 | U148: 18.20289525 | V148: 31.19016939 | W148: -6.341698891 | X148: 10.36657342 | Y148: 17.36184897 | Z148: 30.34557207 | AA148: -7.472724468 | AB148: 10.31214887 | AC148: 17.85324487 | AD148: 31.70824953 | AE148: -4.486464918 | AF148: 11.08034243 | AG148: 18.8261591 | AH148: 32.13916631 | AI148: -4.624983874 | AJ148: 10.9837403 | AK148: 18.67476809 | AL148: 31.967447 | AM148: 0 | AN148: 0 | AO148: 0 | AP148: 0 | AQ148: 0 | AR148: 0 | AS148: 0 | AT148: 0 | AU148: 0 | AV148: 0 | AW148: 0 | AX148: 0 | AY148: 0 | AZ148: 0
C149: Less: Dividends | G149: =G143 -> 0 | H149: 0 | I149: 0 | J149: 0 | K149: 0 | L149: 0 | M149: 0 | N149: 0 | O149: 0 | P149: 0 | Q149: 0 | R149: 0 | S149: 0 | T149: 0 | U149: 0 | V149: 0 | W149: 0 | X149: 0 | Y149: 0 | Z149: 0 | AA149: 0 | AB149: 0 | AC149: 0 | AD149: 0 | AE149: 0 | AF149: 0 | AG149: 0 | AH149: 0 | AI149: 0 | AJ149: 0 | AK149: 0 | AL149: 773.8681926 | AM149: 0 | AN149: 0 | AO149: 0 | AP149: 0 | AQ149: 0 | AR149: 0 | AS149: 0 | AT149: 0 | AU149: 0 | AV149: 0 | AW149: 0 | AX149: 0 | AY149: 0 | AZ149: 0
C150: Closing Balance | F150: =F25 -> 77.5 | G150: =G147+G148-G149 -> 68.68308929 | H150: =H147+H148-H149 -> 74.79675661 | I150: 87.56596195 | J150: 112.4112061 | K150: 106.3282729 | L150: 115.7998357 | M150: 132.5876242 | N150: 161.2044339 | O150: 156.3558461 | P150: 168.0702698 | Q150: 187.1225255 | R150: 219.1652047 | S150: 214.0749964 | T150: 224.9962906 | U150: 243.1991859 | V150: 274.3893553 | W150: 268.0476564 | X150: 278.4142298 | Y150: 295.7760788 | Z150: 326.1216508 | AA150: 318.6489264 | AB150: 328.9610752 | AC150: 346.8143201 | AD150: 378.5225696 | AE150: 374.0361047 | AF150: 385.1164471 | AG150: 403.9426062 | AH150: 436.0817725 | AI150: 431.4567887 | AJ150: 442.440529 | AK150: 461.1152971 | AL150: -280.7854486 | AM150: -280.7854486 | AN150: -280.7854486 | AO150: -280.7854486 | AP150: -280.7854486 | AQ150: -280.7854486 | AR150: -280.7854486 | AS150: -280.7854486 | AT150: -280.7854486 | AU150: -280.7854486 | AV150: -280.7854486 | AW150: -280.7854486 | AX150: -280.7854486 | AY150: -280.7854486 | AZ150: -280.7854486
B152: Cash | F152: =F90 -> 2 | G152: 2 | H152: 20.47930969 | I152: 0 | J152: 0 | K152: 0 | L152: 0 | M152: 0 | N152: 0 | O152: 0 | P152: 0 | Q152: 0 | R152: 0 | S152: 0 | T152: 0 | U152: 0 | V152: 0 | W152: 12.01677238 | X152: 0 | Y152: 0 | Z152: 0 | AA152: 87.23629377 | AB152: 63.0777223 | AC152: 32.84087068 | AD152: 0 | AE152: 162.6566228 | AF152: 137.246567 | AG152: 106.6854106 | AH152: 70.68611681 | AI152: 236.3673218 | AJ152: 211.0356397 | AK152: 180.524947 | AL152: 0 | AM152: 0 | AN152: 0 | AO152: 0 | AP152: 0 | AQ152: 0 | AR152: 0 | AS152: 0 | AT152: 0 | AU152: 0 | AV152: 0 | AW152: 0 | AX152: 0 | AY152: 0 | AZ152: 0
B153: A/R | F153: =F15 -> 247.5 | G153: =F153-G118 -> 166.65 | H153: 84.7 | I153: 157.3 | J153: 235.95 | K153: 128.865 | L153: 82.07833333 | M153: 128.6633333 | N153: 192.995 | O153: 41.9265 | P153: 91.01821667 | Q153: 144.4578667 | R153: 216.6868 | S153: 50.51145 | T153: 91.01821667 | U153: 144.4578667 | V153: 216.6868 | W153: 50.51145 | X153: 91.01821667 | Y153: 144.4578667 | Z153: 216.6868 | AA153: 50.51145 | AB153: 91.01821667 | AC153: 144.4578667 | AD153: 216.6868 | AE153: 50.51145 | AF153: 91.01821667 | AG153: 144.4578667 | AH153: 216.6868 | AI153: 50.51145 | AJ153: 91.01821667 | AK153: 144.4578667 | AL153: 216.6868 | AM153: 216.6868 | AN153: 216.6868 | AO153: 216.6868 | AP153: 216.6868 | AQ153: 216.6868 | AR153: 216.6868 | AS153: 216.6868 | AT153: 216.6868 | AU153: 216.6868 | AV153: 216.6868 | AW153: 216.6868 | AX153: 216.6868 | AY153: 216.6868 | AZ153: 216.6868
B154: Development Capitalised | F154: =F39 -> 154.2857143 | G154: 158.0714286 | H154: 161.5178571 | I154: 164.625 | J154: 167.3928571 | K154: 169.3464286 | L154: 170.9776786 | M154: 172.2866071 | N154: 173.2732143 | O154: 173.48625 | P154: 173.3930804 | Q154: 172.9937054 | R154: 172.288125 | S154: 171.2763393 | T154: 169.9583482 | U154: 168.3341518 | V154: 166.40375 | W154: 164.1671429 | X154: 161.6243304 | Y154: 158.7753125 | Z154: 155.6200893 | AA154: 152.1586607 | AB154: 149.4624554 | AC154: 147.5314732 | AD154: 146.3657143 | AE154: 145.9651786 | AF154: 145.6155804 | AG154: 145.3169196 | AH154: 145.0691964 | AI154: 144.8724107 | AJ154: 144.7087054 | AK154: 144.5780804 | AL154: 144.4805357 | AM154: 144.4805357 | AN154: 144.4805357 | AO154: 144.4805357 | AP154: 144.4805357 | AQ154: 144.4805357 | AR154: 144.4805357 | AS154: 144.4805357 | AT154: 144.4805357 | AU154: 144.4805357 | AV154: 144.4805357 | AW154: 144.4805357 | AX154: 144.4805357 | AY154: 144.4805357 | AZ154: 144.4805357
B155: GoodWill | F155: =F17 -> 122.6142857 | G155: =F155 -> 122.6142857 | H155: =G155 -> 122.6142857 | I155: =H155 -> 122.6142857 | J155: 122.6142857 | K155: 122.6142857 | L155: 122.6142857 | M155: 122.6142857 | N155: 122.6142857 | O155: 122.6142857 | P155: 122.6142857 | Q155: 122.6142857 | R155: 122.6142857 | S155: 122.6142857 | T155: 122.6142857 | U155: 122.6142857 | V155: 122.6142857 | W155: 122.6142857 | X155: 122.6142857 | Y155: 122.6142857 | Z155: 122.6142857 | AA155: 122.6142857 | AB155: 122.6142857 | AC155: 122.6142857 | AD155: 122.6142857 | AE155: 122.6142857 | AF155: 122.6142857 | AG155: 122.6142857 | AH155: 122.6142857 | AI155: 122.6142857 | AJ155: 122.6142857 | AK155: 122.6142857 | AL155: 122.6142857 | AM155: 122.6142857 | AN155: 122.6142857 | AO155: 122.6142857 | AP155: 122.6142857 | AQ155: 122.6142857 | AR155: 122.6142857 | AS155: 122.6142857 | AT155: 122.6142857 | AU155: 122.6142857 | AV155: 122.6142857 | AW155: 122.6142857 | AX155: 122.6142857 | AY155: 122.6142857 | AZ155: 122.6142857
B156: Intangibles | F156: =F18 -> 30 | G156: =F156 -> 30 | H156: =G156 -> 30 | I156: =H156 -> 30 | J156: 30 | K156: 30 | L156: 30 | M156: 30 | N156: 30 | O156: 30 | P156: 30 | Q156: 30 | R156: 30 | S156: 30 | T156: 30 | U156: 30 | V156: 30 | W156: 30 | X156: 30 | Y156: 30 | Z156: 30 | AA156: 30 | AB156: 30 | AC156: 30 | AD156: 30 | AE156: 30 | AF156: 30 | AG156: 30 | AH156: 30 | AI156: 30 | AJ156: 30 | AK156: 30 | AL156: 30 | AM156: 30 | AN156: 30 | AO156: 30 | AP156: 30 | AQ156: 30 | AR156: 30 | AS156: 30 | AT156: 30 | AU156: 30 | AV156: 30 | AW156: 30 | AX156: 30 | AY156: 30 | AZ156: 30
B157: Debt Issuance Cost | F157: =F45 -> 6.1 | G157: 5.909375 | H157: 5.71875 | I157: 5.528125 | J157: 5.3375 | K157: 5.146875 | L157: 4.95625 | M157: 4.765625 | N157: 4.575 | O157: 4.384375 | P157: 4.19375 | Q157: 4.003125 | R157: 3.8125 | S157: 3.621875 | T157: 3.43125 | U157: 3.240625 | V157: 3.05 | W157: 2.859375 | X157: 2.66875 | Y157: 2.478125 | Z157: 2.2875 | AA157: 2.096875 | AB157: 1.90625 | AC157: 1.715625 | AD157: 1.525 | AE157: 1.334375 | AF157: 1.14375 | AG157: 0.953125 | AH157: 0.7625 | AI157: 0.571875 | AJ157: 0.38125 | AK157: 0.190625 | AL157: 0 | AM157: 0 | AN157: 0 | AO157: 0 | AP157: 0 | AQ157: 0 | AR157: 0 | AS157: 0 | AT157: 0 | AU157: 0 | AV157: 0 | AW157: 0 | AX157: 0 | AY157: 0 | AZ157: 0
C158: Total | F158: =SUM(F152:F157) -> 562.5 | G158: =SUM(G152:G157) -> 485.2450893 | H158: =SUM(H152:H157) -> 425.0302025 | I158: =SUM(I152:I157) -> 480.0674107 | J158: 561.2946429 | K158: 455.9725893 | L158: 410.6265476 | M158: 458.3298512 | N158: 523.4575 | O158: 372.4114107 | P158: 421.2193327 | Q158: 474.0689827 | R158: 545.4017107 | S158: 378.02395 | T158: 417.0221006 | U158: 468.6469292 | V158: 538.7548357 | W158: 382.1690259 | X158: 407.9255827 | Y158: 458.3255899 | Z158: 527.208675 | AA158: 444.6175652 | AB158: 458.07893 | AC158: 479.1601213 | AD158: 517.1918 | AE158: 513.0819121 | AF158: 527.6383997 | AG158: 550.0276076 | AH158: 585.818899 | AI158: 584.9373432 | AJ158: 599.7580974 | AK158: 622.3658047 | AL158: 513.7816214 | AM158: 513.7816214 | AN158: 513.7816214 | AO158: 513.7816214 | AP158: 513.7816214 | AQ158: 513.7816214 | AR158: 513.7816214 | AS158: 513.7816214 | AT158: 513.7816214 | AU158: 513.7816214 | AV158: 513.7816214 | AW158: 513.7816214 | AX158: 513.7816214 | AY158: 513.7816214 | AZ158: 513.7816214
C160: Pro-Forma Test | F160: =F158=F20 -> TRUE
B162: Debt
B163: Senior Debt | F163: =F57 -> 410 | G163: 339.687 | H163: 271.4365709 | I163: 258.6240709 | J163: 245.8115709 | K163: 144.5028014 | L163: 109.627054 | M163: 96.81455396 | N163: 84.00205396 | O163: 3.354800486 | P163: 0 | Q163: 0 | R163: 0 | S163: 0 | T163: 0 | U163: 0 | V163: 0 | W163: 0 | X163: 0 | Y163: 0 | Z163: 0 | AA163: 0 | AB163: 0 | AC163: 0 | AD163: 0 | AE163: 0 | AF163: 0 | AG163: 0 | AH163: 0 | AI163: 0 | AJ163: 0 | AK163: 0 | AL163: 0 | AM163: 0 | AN163: 0 | AO163: 0 | AP163: 0 | AQ163: 0 | AR163: 0 | AS163: 0 | AT163: 0 | AU163: 0 | AV163: 0 | AW163: 0 | AX163: 0 | AY163: 0 | AZ163: 0
B164: Revolving Debt | F164: =F68 -> 0 | G164: 0 | H164: 0 | I164: 53.11058096 | J164: 120.285899 | K164: 120.285899 | L164: 98.22265162 | M164: 139.7762415 | N164: 186.8707948 | O164: 119.0360414 | P164: 157.1427221 | Q164: 188.5399579 | R164: 200 | S164: 35.19078114 | T164: 60.68292927 | U164: 91.45553667 | V164: 127.6577148 | W164: 0 | X164: 12.53694913 | Y164: 42.65074721 | Z164: 78.19079116 | AA164: 0 | AB164: 0 | AC164: 0 | AD164: 3.014784163 | AE164: 0 | AF164: 0 | AG164: 0 | AH164: 0 | AI164: 0 | AJ164: 0 | AK164: 0 | AL164: 0 | AM164: 0 | AN164: 0 | AO164: 0 | AP164: 0 | AQ164: 0 | AR164: 0 | AS164: 0 | AT164: 0 | AU164: 0 | AV164: 0 | AW164: 0 | AX164: 0 | AY164: 0 | AZ164: 0
B165: Defaulted Debt | F165: =F76 -> 0 | G165: 0 | H165: 0 | I165: 0 | J165: 0 | K165: 0 | L165: 0 | M165: 0 | N165: 0 | O165: 0 | P165: 0 | Q165: 0 | R165: 25.36984415 | S165: 25.36984415 | T165: 25.36984415 | U165: 25.36984415 | V165: 25.36984415 | W165: 0 | X165: 0 | Y165: 0 | Z165: 0 | AA165: 0 | AB165: 0 | AC165: 0 | AD165: 0 | AE165: 0 | AF165: 0 | AG165: 0 | AH165: 0 | AI165: 0 | AJ165: 0 | AK165: 0 | AL165: 0 | AM165: 0 | AN165: 0 | AO165: 0 | AP165: 0 | AQ165: 0 | AR165: 0 | AS165: 0 | AT165: 0 | AU165: 0 | AV165: 0 | AW165: 0 | AX165: 0 | AY165: 0 | AZ165: 0
B166: Subord. Debt | F166: =F83 -> 75 | G166: 76.875 | H166: 78.796875 | I166: 80.76679687 | J166: 82.7859668 | K166: 84.85561597 | L166: 86.97700637 | M166: 89.15143153 | N166: 91.38021731 | O166: 93.66472275 | P166: 96.00634081 | Q166: 98.40649934 | R166: 100.8666618 | S166: 103.3883284 | T166: 105.9730366 | U166: 108.6223625 | V166: 111.3379215 | W166: 114.1213696 | X166: 116.9744038 | Y166: 119.8987639 | Z166: 122.896233 | AA166: 125.9686388 | AB166: 129.1178548 | AC166: 132.3458012 | AD166: 135.6544462 | AE166: 139.0458074 | AF166: 142.5219526 | AG166: 146.0850014 | AH166: 149.7371264 | AI166: 153.4805546 | AJ166: 157.3175684 | AK166: 161.2505076 | AL166: 0 | AM166: 0 | AN166: 0 | AO166: 0 | AP166: 0 | AQ166: 0 | AR166: 0 | AS166: 0 | AT166: 0 | AU166: 0 | AV166: 0 | AW166: 0 | AX166: 0 | AY166: 0 | AZ166: 0
B167: Equity | F167: =F150 -> 77.5 | G167: =G150 -> 68.68308929 | H167: =H150 -> 74.79675661 | I167: =I150 -> 87.56596195 | J167: 112.4112061 | K167: 106.3282729 | L167: 115.7998357 | M167: 132.5876242 | N167: 161.2044339 | O167: 156.3558461 | P167: 168.0702698 | Q167: 187.1225255 | R167: 219.1652047 | S167: 214.0749964 | T167: 224.9962906 | U167: 243.1991859 | V167: 274.3893553 | W167: 268.0476564 | X167: 278.4142298 | Y167: 295.7760788 | Z167: 326.1216508 | AA167: 318.6489264 | AB167: 328.9610752 | AC167: 346.8143201 | AD167: 378.5225696 | AE167: 374.0361047 | AF167: 385.1164471 | AG167: 403.9426062 | AH167: 436.0817725 | AI167: 431.4567887 | AJ167: 442.440529 | AK167: 461.1152971 | AL167: -280.7854486 | AM167: -280.7854486 | AN167: -280.7854486 | AO167: -280.7854486 | AP167: -280.7854486 | AQ167: -280.7854486 | AR167: -280.7854486 | AS167: -280.7854486 | AT167: -280.7854486 | AU167: -280.7854486 | AV167: -280.7854486 | AW167: -280.7854486 | AX167: -280.7854486 | AY167: -280.7854486 | AZ167: -280.7854486
C168: Total | F168: =SUM(F163:F167) -> 562.5 | G168: =SUM(G163:G167) -> 485.2450893 | H168: =SUM(H163:H167) -> 425.0302025 | I168: =SUM(I163:I167) -> 480.0674107 | J168: 561.2946429 | K168: 455.9725893 | L168: 410.6265476 | M168: 458.3298512 | N168: 523.4575 | O168: 372.4114107 | P168: 421.2193327 | Q168: 474.0689827 | R168: 545.4017107 | S168: 378.02395 | T168: 417.0221006 | U168: 468.6469292 | V168: 538.7548357 | W168: 382.1690259 | X168: 407.9255827 | Y168: 458.3255899 | Z168: 527.208675 | AA168: 444.6175652 | AB168: 458.07893 | AC168: 479.1601213 | AD168: 517.1918 | AE168: 513.0819121 | AF168: 527.6383997 | AG168: 550.0276076 | AH168: 585.818899 | AI168: 584.9373432 | AJ168: 599.7580974 | AK168: 622.3658047 | AL168: -280.7854486 | AM168: -280.7854486 | AN168: -280.7854486 | AO168: -280.7854486 | AP168: -280.7854486 | AQ168: -280.7854486 | AR168: -280.7854486 | AS168: -280.7854486 | AT168: -280.7854486 | AU168: -280.7854486 | AV168: -280.7854486 | AW168: -280.7854486 | AX168: -280.7854486 | AY168: -280.7854486 | AZ168: -280.7854486
C170: Difference | F170: =IF(AND(NOT(F8),F7),F168-F158) -> 1.136868377e-13 | G170: =IF(AND(NOT(G8),G7),G168-G158) -> 5.684341886e-14 | H170: 1.136868377e-13 | I170: 5.684341886e-14 | J170: 2.273736754e-13 | K170: 0 | L170: 5.684341886e-14 | M170: 1.136868377e-13 | N170: 0 | O170: 1.136868377e-13 | P170: 5.684341886e-14 | Q170: 1.705302566e-13 | R170: 2.273736754e-13 | S170: 1.705302566e-13 | T170: 1.705302566e-13 | U170: 2.273736754e-13 | V170: 3.410605132e-13 | W170: 2.273736754e-13 | X170: 2.842170943e-13 | Y170: 3.410605132e-13 | Z170: 3.410605132e-13 | AA170: 3.410605132e-13 | AB170: 3.97903932e-13 | AC170: 3.97903932e-13 | AD170: 3.410605132e-13 | AE170: 3.410605132e-13 | AF170: 3.410605132e-13 | AG170: 3.410605132e-13 | AH170: 3.410605132e-13 | AI170: 3.410605132e-13 | AJ170: 4.547473509e-13 | AK170: 5.684341886e-13 | AL170: FALSE | AM170: FALSE | AN170: FALSE | AO170: FALSE | AP170: FALSE | AQ170: FALSE | AR170: FALSE | AS170: FALSE | AT170: FALSE | AU170: FALSE | AV170: FALSE | AW170: FALSE | AX170: FALSE | AY170: FALSE | AZ170: FALSE
A172: IRR's on Debt and Equity
B173: Equity Cash Flow | F173: =-'Transaction and Pro-forma'!E80 -> -88.588 | G173: =G143 -> 0 | H173: =H143 -> 0 | I173: 0 | J173: 0 | K173: 0 | L173: 0 | M173: 0 | N173: 0 | O173: 0 | P173: 0 | Q173: 0 | R173: 0 | S173: 0 | T173: 0 | U173: 0 | V173: 0 | W173: 0 | X173: 0 | Y173: 0 | Z173: 0 | AA173: 0 | AB173: 0 | AC173: 0 | AD173: 0 | AE173: 0 | AF173: 0 | AG173: 0 | AH173: 0 | AI173: 0 | AJ173: 0 | AK173: 0 | AL173: 773.8681926 | AM173: 0 | AN173: 0 | AO173: 0 | AP173: 0 | AQ173: 0 | AR173: 0 | AS173: 0 | AT173: 0 | AU173: 0 | AV173: 0 | AW173: 0 | AX173: 0 | AY173: 0 | AZ173: 0
B174: Equity IRR | F174: =IFERROR(XIRR(F173:AZ173,$F$4:$AZ$4),FALSE) -> 0.3109344542
B176: Sub Debt Cash Flow | F176: =-'Transaction and Pro-forma'!E78 -> -75 | G176: =-G140 -> 0 | H176: =-H140 -> 0 | I176: 0 | J176: 0 | K176: 0 | L176: 0 | M176: 0 | N176: 0 | O176: 0 | P176: 0 | Q176: 0 | R176: 0 | S176: 0 | T176: 0 | U176: 0 | V176: 0 | W176: 0 | X176: 0 | Y176: 0 | Z176: 0 | AA176: 0 | AB176: 0 | AC176: 0 | AD176: 0 | AE176: 0 | AF176: 0 | AG176: 0 | AH176: 0 | AI176: 0 | AJ176: 0 | AK176: 0 | AL176: 165.2817703 | AM176: 0 | AN176: 0 | AO176: 0 | AP176: 0 | AQ176: 0 | AR176: 0 | AS176: 0 | AT176: 0 | AU176: 0 | AV176: 0 | AW176: 0 | AX176: 0 | AY176: 0 | AZ176: 0
B177: Sub Debt IRR | F177: =IFERROR(XIRR(F176:AZ176,$F$4:$AZ$4),FALSE) -> 0.1037382662
B178: Quarterly IRR | F178: =IRR(F176:AZ176) -> 0.02499999998
B179: Annual IRR without Compounding | F179: =IFERROR(F178*4,FALSE) -> 0.09999999994
B181: Senior Debt
C182: Outflows at Start | F182: =-'Transaction and Pro-forma'!E77 -> -410
C183: Inflows from Fees and Interest | F183: ='Transaction and Pro-forma'!E72 -> 6.1 | G183: =G99+G100+G101 -> 4.6875 | H183: =H99+H100+H101 -> 4.07226125 | I183: 3.475069996 | J183: 3.535570009 | K183: 3.641780418 | L183: 2.755328684 | M183: 2.37846034 | N183: 2.401400132 | O183: 2.442348055 | P183: 1.516221639 | Q183: 1.610713847 | R183: 1.712754863 | S183: 1.971986136 | T183: 1.436356175 | U183: 1.519205656 | V183: 1.61921663 | W183: 1.736873709 | X183: 1.1 | Y183: 1.140745085 | Z183: 1.238614928 | AA183: 1.354120071 | AB183: 1.1 | AC183: 1.1 | AD183: 1.1 | AE183: 1.109798049 | AF183: 1.1 | AG183: 1.1 | AH183: 1.1 | AI183: 1.1 | AJ183: 1.1 | AK183: 1.1 | AL183: 1.1 | AM183: 0 | AN183: 0 | AO183: 0 | AP183: 0 | AQ183: 0 | AR183: 0 | AS183: 0 | AT183: 0 | AU183: 0 | AV183: 0 | AW183: 0 | AX183: 0 | AY183: 0 | AZ183: 0
C184: Outflows from Default | G184: =-G137 -> 0 | H184: =-H137 -> 0 | I184: 0 | J184: 0 | K184: 0 | L184: 0 | M184: 0 | N184: 0 | O184: 0 | P184: 0 | Q184: 0 | R184: -25.36984415 | S184: 0 | T184: 0 | U184: 0 | V184: 0 | W184: 0 | X184: 0 | Y184: 0 | Z184: 0 | AA184: 0 | AB184: 0 | AC184: 0 | AD184: 0 | AE184: 0 | AF184: 0 | AG184: 0 | AH184: 0 | AI184: 0 | AJ184: 0 | AK184: 0 | AL184: 0 | AM184: 0 | AN184: 0 | AO184: 0 | AP184: 0 | AQ184: 0 | AR184: 0 | AS184: 0 | AT184: 0 | AU184: 0 | AV184: 0 | AW184: 0 | AX184: 0 | AY184: 0 | AZ184: 0
C185: Inflows from Repayments | G185: =-G125-G129-G138 -> 70.313 | H185: =-H125-H129-H138 -> 68.25042906 | I185: 12.8125 | J185: 12.8125 | K185: 101.3087696 | L185: 34.8757474 | M185: 12.8125 | N185: 12.8125 | O185: 80.64725347 | P185: 3.354800486 | Q185: 0 | R185: 0 | S185: 0 | T185: 0 | U185: 0 | V185: 0 | W185: 25.36984415 | X185: 0 | Y185: 0 | Z185: 0 | AA185: 0 | AB185: 0 | AC185: 0 | AD185: 0 | AE185: 0 | AF185: 0 | AG185: 0 | AH185: 0 | AI185: 0 | AJ185: 0 | AK185: 0 | AL185: 0 | AM185: 0 | AN185: 0 | AO185: 0 | AP185: 0 | AQ185: 0 | AR185: 0 | AS185: 0 | AT185: 0 | AU185: 0 | AV185: 0 | AW185: 0 | AX185: 0 | AY185: 0 | AZ185: 0
C186: Net RCF Cash Flow | G186: =-G135-G134 -> 0 | H186: =-H135-H134 -> 0 | I186: -53.11058096 | J186: -67.17531806 | K186: 0 | L186: 22.0632474 | M186: -41.55358986 | N186: -47.09455335 | O186: 67.83475347 | P186: -38.10668076 | Q186: -31.39723576 | R186: -11.46004212 | S186: 164.8092189 | T186: -25.49214813 | U186: -30.77260741 | V186: -36.20217809 | W186: 127.6577148 | X186: -12.53694913 | Y186: -30.11379808 | Z186: -35.54004395 | AA186: 78.19079116 | AB186: 0 | AC186: 0 | AD186: -3.014784163 | AE186: 3.014784163 | AF186: 0 | AG186: 0 | AH186: 0 | AI186: 0 | AJ186: 0 | AK186: 0 | AL186: 0 | AM186: 0 | AN186: 0 | AO186: 0 | AP186: 0 | AQ186: 0 | AR186: 0 | AS186: 0 | AT186: 0 | AU186: 0 | AV186: 0 | AW186: 0 | AX186: 0 | AY186: 0 | AZ186: 0
D187: Total Cash Flow | F187: =SUM(F182:F186) -> -403.9 | G187: =SUM(G182:G186) -> 75.0005 | H187: =SUM(H182:H186) -> 72.32269031 | I187: -36.82301096 | J187: -50.82724805 | K187: 104.95055 | L187: 59.69432348 | M187: -26.36262952 | N187: -31.88065322 | O187: 150.924355 | P187: -33.23565864 | Q187: -29.78652191 | R187: -35.11713141 | S187: 166.781205 | T187: -24.05579195 | U187: -29.25340175 | V187: -34.58296146 | W187: 154.7644326 | X187: -11.43694913 | Y187: -28.97305299 | Z187: -34.30142902 | AA187: 79.54491123 | AB187: 1.1 | AC187: 1.1 | AD187: -1.914784163 | AE187: 4.124582211 | AF187: 1.1 | AG187: 1.1 | AH187: 1.1 | AI187: 1.1 | AJ187: 1.1 | AK187: 1.1 | AL187: 1.1 | AM187: 0 | AN187: 0 | AO187: 0 | AP187: 0 | AQ187: 0 | AR187: 0 | AS187: 0 | AT187: 0 | AU187: 0 | AV187: 0 | AW187: 0 | AX187: 0 | AY187: 0 | AZ187: 0
B188: XIRR | F188: =IFERROR(XIRR(F187:AZ187,$F$4:$AZ$4),FALSE) -> 0.06533525884
B189: Annual IRR | F189: =IFERROR(IRR(187:187)*4,FALSE) -> 0.06369158117

Sheet Annual
A2: Timing
B3: Year | F3: =YEAR('LBO Model'!G3) -> 2018 | G3: =F3+1 -> 2019 | H3: =G3+1 -> 2020 | I3: 2021 | J3: 2022 | K3: 2023 | L3: 2024 | M3: 2025 | N3: 2026 | O3: 2027 | P3: 2028
B4: Counter | F4: 5 | G4: =F4+5 -> 10 | H4: =G4+5 -> 15 | I4: 20 | J4: 25 | K4: 30 | L4: 35 | M4: 40 | N4: 45 | O4: 50 | P4: 55
A6: P&L
B7: EBITDA | F7: =(SUMIF('LBO Model'!$10:$10,Annual!F$3,'LBO Model'!93:93)) -> 98.01 | G7: =(SUMIF('LBO Model'!$10:$10,Annual!G$3,'LBO Model'!93:93)) -> 107.811 | H7: =(SUMIF('LBO Model'!$10:$10,Annual!H$3,'LBO Model'!93:93)) -> 118.5921 | I7: =(SUMIF('LBO Model'!$10:$10,Annual!I$3,'LBO Model'!93:93)) -> 118.5921 | J7: =(SUMIF('LBO Model'!$10:$10,Annual!J$3,'LBO Model'!93:93)) -> 118.5921 | K7: =(SUMIF('LBO Model'!$10:$10,Annual!K$3,'LBO Model'!93:93)) -> 118.5921 | L7: =(SUMIF('LBO Model'!$10:$10,Annual!L$3,'LBO Model'!93:93)) -> 118.5921 | M7: =(SUMIF('LBO Model'!$10:$10,Annual!M$3,'LBO Model'!93:93)) -> 118.5921 | N7: =(SUMIF('LBO Model'!$10:$10,Annual!N$3,'LBO Model'!93:93)) -> 0 | O7: =(SUMIF('LBO Model'!$10:$10,Annual!O$3,'LBO Model'!93:93)) -> 0 | P7: =(SUMIF('LBO Model'!$10:$10,Annual!P$3,'LBO Model'!93:93)) -> 0
B8: Add: Synergies | F8: =(SUMIF('LBO Model'!$10:$10,Annual!F$3,'LBO Model'!94:94)) -> -2.25 | G8: =(SUMIF('LBO Model'!$10:$10,Annual!G$3,'LBO Model'!94:94)) -> 8 | H8: =(SUMIF('LBO Model'!$10:$10,Annual!H$3,'LBO Model'!94:94)) -> 11.5 | I8: =(SUMIF('LBO Model'!$10:$10,Annual!I$3,'LBO Model'!94:94)) -> 13 | J8: =(SUMIF('LBO Model'!$10:$10,Annual!J$3,'LBO Model'!94:94)) -> 13 | K8: =(SUMIF('LBO Model'!$10:$10,Annual!K$3,'LBO Model'!94:94)) -> 13 | L8: =(SUMIF('LBO Model'!$10:$10,Annual!L$3,'LBO Model'!94:94)) -> 13 | M8: =(SUMIF('LBO Model'!$10:$10,Annual!M$3,'LBO Model'!94:94)) -> 13 | N8: =(SUMIF('LBO Model'!$10:$10,Annual!N$3,'LBO Model'!94:94)) -> 0 | O8: =(SUMIF('LBO Model'!$10:$10,Annual!O$3,'LBO Model'!94:94)) -> 0 | P8: =(SUMIF('LBO Model'!$10:$10,Annual!P$3,'LBO Model'!94:94)) -> 0
C9: Operating Margin | F9: =(SUMIF('LBO Model'!$10:$10,Annual!F$3,'LBO Model'!95:95)) -> 95.76 | G9: =(SUMIF('LBO Model'!$10:$10,Annual!G$3,'LBO Model'!95:95)) -> 115.811 | H9: =(SUMIF('LBO Model'!$10:$10,Annual!H$3,'LBO Model'!95:95)) -> 130.0921 | I9: =(SUMIF('LBO Model'!$10:$10,Annual!I$3,'LBO Model'!95:95)) -> 131.5921 | J9: =(SUMIF('LBO Model'!$10:$10,Annual!J$3,'LBO Model'!95:95)) -> 131.5921 | K9: =(SUMIF('LBO Model'!$10:$10,Annual!K$3,'LBO Model'!95:95)) -> 131.5921 | L9: =(SUMIF('LBO Model'!$10:$10,Annual!L$3,'LBO Model'!95:95)) -> 131.5921 | M9: =(SUMIF('LBO Model'!$10:$10,Annual!M$3,'LBO Model'!95:95)) -> 131.5921 | N9: =(SUMIF('LBO Model'!$10:$10,Annual!N$3,'LBO Model'!95:95)) -> 0 | O9: =(SUMIF('LBO Model'!$10:$10,Annual!O$3,'LBO Model'!95:95)) -> 0 | P9: =(SUMIF('LBO Model'!$10:$10,Annual!P$3,'LBO Model'!95:95)) -> 0
B10: Less: Deprecation | F10: =(SUMIF('LBO Model'!$10:$10,Annual!F$3,'LBO Model'!96:96)) -> 24.89285714 | G10: =(SUMIF('LBO Model'!$10:$10,Annual!G$3,'LBO Model'!96:96)) -> 30.21964286 | H10: =(SUMIF('LBO Model'!$10:$10,Annual!H$3,'LBO Model'!96:96)) -> 35.28008929 | I10: =(SUMIF('LBO Model'!$10:$10,Annual!I$3,'LBO Model'!96:96)) -> 40.179375 | J10: =(SUMIF('LBO Model'!$10:$10,Annual!J$3,'LBO Model'!96:96)) -> 45.07866071 | K10: =(SUMIF('LBO Model'!$10:$10,Annual!K$3,'LBO Model'!96:96)) -> 43.549375 | L10: =(SUMIF('LBO Model'!$10:$10,Annual!L$3,'LBO Model'!96:96)) -> 35.59151786 | M10: =(SUMIF('LBO Model'!$10:$10,Annual!M$3,'LBO Model'!96:96)) -> 34.88366071 | N10: =(SUMIF('LBO Model'!$10:$10,Annual!N$3,'LBO Model'!96:96)) -> 0 | O10: =(SUMIF('LBO Model'!$10:$10,Annual!O$3,'LBO Model'!96:96)) -> 0 | P10: =(SUMIF('LBO Model'!$10:$10,Annual!P$3,'LBO Model'!96:96)) -> 0
B11: Less: Amorisation of Fees | F11: =(SUMIF('LBO Model'!$10:$10,Annual!F$3,'LBO Model'!97:97)) -> 0.7625 | G11: =(SUMIF('LBO Model'!$10:$10,Annual!G$3,'LBO Model'!97:97)) -> 0.7625 | H11: =(SUMIF('LBO Model'!$10:$10,Annual!H$3,'LBO Model'!97:97)) -> 0.7625 | I11: =(SUMIF('LBO Model'!$10:$10,Annual!I$3,'LBO Model'!97:97)) -> 0.7625 | J11: =(SUMIF('LBO Model'!$10:$10,Annual!J$3,'LBO Model'!97:97)) -> 0.7625 | K11: =(SUMIF('LBO Model'!$10:$10,Annual!K$3,'LBO Model'!97:97)) -> 0.7625 | L11: =(SUMIF('LBO Model'!$10:$10,Annual!L$3,'LBO Model'!97:97)) -> 0.7625 | M11: =(SUMIF('LBO Model'!$10:$10,Annual!M$3,'LBO Model'!97:97)) -> 0.7625 | N11: =(SUMIF('LBO Model'!$10:$10,Annual!N$3,'LBO Model'!97:97)) -> 0 | O11: =(SUMIF('LBO Model'!$10:$10,Annual!O$3,'LBO Model'!97:97)) -> 0 | P11: =(SUMIF('LBO Model'!$10:$10,Annual!P$3,'LBO Model'!97:97)) -> 0
C12: EBIT | F12: =(SUMIF('LBO Model'!$10:$10,Annual!F$3,'LBO Model'!98:98)) -> 70.10464286 | G12: =(SUMIF('LBO Model'!$10:$10,Annual!G$3,'LBO Model'!98:98)) -> 84.82885714 | H12: =(SUMIF('LBO Model'!$10:$10,Annual!H$3,'LBO Model'!98:98)) -> 94.04951071 | I12: =(SUMIF('LBO Model'!$10:$10,Annual!I$3,'LBO Model'!98:98)) -> 90.650225 | J12: =(SUMIF('LBO Model'!$10:$10,Annual!J$3,'LBO Model'!98:98)) -> 85.75093929 | K12: =(SUMIF('LBO Model'!$10:$10,Annual!K$3,'LBO Model'!98:98)) -> 87.280225 | L12: =(SUMIF('LBO Model'!$10:$10,Annual!L$3,'LBO Model'!98:98)) -> 95.23808214 | M12: =(SUMIF('LBO Model'!$10:$10,Annual!M$3,'LBO Model'!98:98)) -> 95.94593929 | N12: =(SUMIF('LBO Model'!$10:$10,Annual!N$3,'LBO Model'!98:98)) -> 0 | O12: =(SUMIF('LBO Model'!$10:$10,Annual!O$3,'LBO Model'!98:98)) -> 0 | P12: =(SUMIF('LBO Model'!$10:$10,Annual!P$3,'LBO Model'!98:98)) -> 0
B13: Less: Commit. Fees | F13: =(SUMIF('LBO Model'!$10:$10,Annual!F$3,'LBO Model'!99:99)) -> 4.107891805 | G13: =(SUMIF('LBO Model'!$10:$10,Annual!G$3,'LBO Model'!99:99)) -> 1.767861199 | H13: =(SUMIF('LBO Model'!$10:$10,Annual!H$3,'LBO Model'!99:99)) -> 0.8162576609 | I13: =(SUMIF('LBO Model'!$10:$10,Annual!I$3,'LBO Model'!99:99)) -> 2.269689141 | J13: =(SUMIF('LBO Model'!$10:$10,Annual!J$3,'LBO Model'!99:99)) -> 3.394350239 | K13: =(SUMIF('LBO Model'!$10:$10,Annual!K$3,'LBO Model'!99:99)) -> 3.969950649 | L13: =(SUMIF('LBO Model'!$10:$10,Annual!L$3,'LBO Model'!99:99)) -> 4.383418687 | M13: =(SUMIF('LBO Model'!$10:$10,Annual!M$3,'LBO Model'!99:99)) -> 4.4 | N13: =(SUMIF('LBO Model'!$10:$10,Annual!N$3,'LBO Model'!99:99)) -> 0 | O13: =(SUMIF('LBO Model'!$10:$10,Annual!O$3,'LBO Model'!99:99)) -> 0 | P13: =(SUMIF('LBO Model'!$10:$10,Annual!P$3,'LBO Model'!99:99)) -> 0
B14: Less: Senior Debt Interest Expense | F14: =(SUMIF('LBO Model'!$10:$10,Annual!F$3,'LBO Model'!100:100)) -> 11.19779187 | G14: =(SUMIF('LBO Model'!$10:$10,Annual!G$3,'LBO Model'!100:100)) -> 5.221614827 | H14: =(SUMIF('LBO Model'!$10:$10,Annual!H$3,'LBO Model'!100:100)) -> 0.7643724764 | I14: =(SUMIF('LBO Model'!$10:$10,Annual!I$3,'LBO Model'!100:100)) -> 0.8879445452 | J14: =(SUMIF('LBO Model'!$10:$10,Annual!J$3,'LBO Model'!100:100)) -> 0.2219861363 | K14: =(SUMIF('LBO Model'!$10:$10,Annual!K$3,'LBO Model'!100:100)) -> 0 | L14: =(SUMIF('LBO Model'!$10:$10,Annual!L$3,'LBO Model'!100:100)) -> 0 | M14: =(SUMIF('LBO Model'!$10:$10,Annual!M$3,'LBO Model'!100:100)) -> 0 | N14: =(SUMIF('LBO Model'!$10:$10,Annual!N$3,'LBO Model'!100:100)) -> 0 | O14: =(SUMIF('LBO Model'!$10:$10,Annual!O$3,'LBO Model'!100:100)) -> 0 | P14: =(SUMIF('LBO Model'!$10:$10,Annual!P$3,'LBO Model'!100:100)) -> 0
B15: Less: Revolver Interest Expense | F15: =(SUMIF('LBO Model'!$10:$10,Annual!F$3,'LBO Model'!101:101)) -> 0.4647175834 | G15: =(SUMIF('LBO Model'!$10:$10,Annual!G$3,'LBO Model'!101:101)) -> 4.187493547 | H15: =(SUMIF('LBO Model'!$10:$10,Annual!H$3,'LBO Model'!101:101)) -> 5.701408267 | I15: =(SUMIF('LBO Model'!$10:$10,Annual!I$3,'LBO Model'!101:101)) -> 3.389130912 | J15: =(SUMIF('LBO Model'!$10:$10,Annual!J$3,'LBO Model'!101:101)) -> 1.599897347 | K15: =(SUMIF('LBO Model'!$10:$10,Annual!K$3,'LBO Model'!101:101)) -> 0.6841694226 | L15: =(SUMIF('LBO Model'!$10:$10,Annual!L$3,'LBO Model'!101:101)) -> 0.02637936142 | M15: =(SUMIF('LBO Model'!$10:$10,Annual!M$3,'LBO Model'!101:101)) -> 0 | N15: =(SUMIF('LBO Model'!$10:$10,Annual!N$3,'LBO Model'!101:101)) -> 0 | O15: =(SUMIF('LBO Model'!$10:$10,Annual!O$3,'LBO Model'!101:101)) -> 0 | P15: =(SUMIF('LBO Model'!$10:$10,Annual!P$3,'LBO Model'!101:101)) -> 0
B16: Less: Subord. Debt Interest Expense | F16: =(SUMIF('LBO Model'!$10:$10,Annual!F$3,'LBO Model'!102:102)) -> 7.785966797 | G16: =(SUMIF('LBO Model'!$10:$10,Annual!G$3,'LBO Model'!102:102)) -> 8.594250516 | H16: =(SUMIF('LBO Model'!$10:$10,Annual!H$3,'LBO Model'!102:102)) -> 9.486444505 | I16: =(SUMIF('LBO Model'!$10:$10,Annual!I$3,'LBO Model'!102:102)) -> 10.47125973 | J16: =(SUMIF('LBO Model'!$10:$10,Annual!J$3,'LBO Model'!102:102)) -> 11.55831147 | K16: =(SUMIF('LBO Model'!$10:$10,Annual!K$3,'LBO Model'!102:102)) -> 12.7582132 | L16: =(SUMIF('LBO Model'!$10:$10,Annual!L$3,'LBO Model'!102:102)) -> 14.08268019 | M16: =(SUMIF('LBO Model'!$10:$10,Annual!M$3,'LBO Model'!102:102)) -> 15.54464393 | N16: =(SUMIF('LBO Model'!$10:$10,Annual!N$3,'LBO Model'!102:102)) -> 0 | O16: =(SUMIF('LBO Model'!$10:$10,Annual!O$3,'LBO Model'!102:102)) -> 0 | P16: =(SUMIF('LBO Model'!$10:$10,Annual!P$3,'LBO Model'!102:102)) -> 0
C17: EBT | F17: =(SUMIF('LBO Model'!$10:$10,Annual!F$3,'LBO Model'!103:103)) -> 46.54827481 | G17: =(SUMIF('LBO Model'!$10:$10,Annual!G$3,'LBO Model'!103:103)) -> 65.05763705 | H17: =(SUMIF('LBO Model'!$10:$10,Annual!H$3,'LBO Model'!103:103)) -> 77.28102781 | I17: =(SUMIF('LBO Model'!$10:$10,Annual!I$3,'LBO Model'!103:103)) -> 73.63220067 | J17: =(SUMIF('LBO Model'!$10:$10,Annual!J$3,'LBO Model'!103:103)) -> 68.97639409 | K17: =(SUMIF('LBO Model'!$10:$10,Annual!K$3,'LBO Model'!103:103)) -> 69.86789173 | L17: =(SUMIF('LBO Model'!$10:$10,Annual!L$3,'LBO Model'!103:103)) -> 76.74560391 | M17: =(SUMIF('LBO Model'!$10:$10,Annual!M$3,'LBO Model'!103:103)) -> 76.00129536 | N17: =(SUMIF('LBO Model'!$10:$10,Annual!N$3,'LBO Model'!103:103)) -> 0 | O17: =(SUMIF('LBO Model'!$10:$10,Annual!O$3,'LBO Model'!103:103)) -> 0 | P17: =(SUMIF('LBO Model'!$10:$10,Annual!P$3,'LBO Model'!103:103)) -> 0
B18: NOL Balance | F18: =(SUMIF('LBO Model'!$10:$10,Annual!F$3,'LBO Model'!104:104)) -> 0 | G18: =(SUMIF('LBO Model'!$10:$10,Annual!G$3,'LBO Model'!104:104)) -> 0 | H18: =(SUMIF('LBO Model'!$10:$10,Annual!H$3,'LBO Model'!104:104)) -> 0 | I18: =(SUMIF('LBO Model'!$10:$10,Annual!I$3,'LBO Model'!104:104)) -> 0 | J18: =(SUMIF('LBO Model'!$10:$10,Annual!J$3,'LBO Model'!104:104)) -> 0 | K18: =(SUMIF('LBO Model'!$10:$10,Annual!K$3,'LBO Model'!104:104)) -> 0 | L18: =(SUMIF('LBO Model'!$10:$10,Annual!L$3,'LBO Model'!104:104)) -> 0 | M18: =(SUMIF('LBO Model'!$10:$10,Annual!M$3,'LBO Model'!104:104)) -> 0 | N18: =(SUMIF('LBO Model'!$10:$10,Annual!N$3,'LBO Model'!104:104)) -> 0 | O18: =(SUMIF('LBO Model'!$10:$10,Annual!O$3,'LBO Model'!104:104)) -> 0 | P18: =(SUMIF('LBO Model'!$10:$10,Annual!P$3,'LBO Model'!104:104)) -> 0
B19: Opening Balance | F19: =(SUMIF('LBO Model'!$10:$10,Annual!F$3,'LBO Model'!105:105)) -> 11.52015411 | G19: =(SUMIF('LBO Model'!$10:$10,Annual!G$3,'LBO Model'!105:105)) -> 6.082933159 | H19: =(SUMIF('LBO Model'!$10:$10,Annual!H$3,'LBO Model'!105:105)) -> 4.848587774 | I19: =(SUMIF('LBO Model'!$10:$10,Annual!I$3,'LBO Model'!105:105)) -> 5.090208396 | J19: =(SUMIF('LBO Model'!$10:$10,Annual!J$3,'LBO Model'!105:105)) -> 6.341698891 | K19: =(SUMIF('LBO Model'!$10:$10,Annual!K$3,'LBO Model'!105:105)) -> 7.472724468 | L19: =(SUMIF('LBO Model'!$10:$10,Annual!L$3,'LBO Model'!105:105)) -> 4.486464918 | M19: =(SUMIF('LBO Model'!$10:$10,Annual!M$3,'LBO Model'!105:105)) -> 4.624983874 | N19: =(SUMIF('LBO Model'!$10:$10,Annual!N$3,'LBO Model'!105:105)) -> 0 | O19: =(SUMIF('LBO Model'!$10:$10,Annual!O$3,'LBO Model'!105:105)) -> 0 | P19: =(SUMIF('LBO Model'!$10:$10,Annual!P$3,'LBO Model'!105:105)) -> 0
B20: Add: Net Loss | F20: =(SUMIF('LBO Model'!$10:$10,Annual!F$3,'LBO Model'!106:106)) -> 8.816910714 | G20: =(SUMIF('LBO Model'!$10:$10,Annual!G$3,'LBO Model'!106:106)) -> 6.082933159 | H20: =(SUMIF('LBO Model'!$10:$10,Annual!H$3,'LBO Model'!106:106)) -> 4.848587774 | I20: =(SUMIF('LBO Model'!$10:$10,Annual!I$3,'LBO Model'!106:106)) -> 5.090208396 | J20: =(SUMIF('LBO Model'!$10:$10,Annual!J$3,'LBO Model'!106:106)) -> 6.341698891 | K20: =(SUMIF('LBO Model'!$10:$10,Annual!K$3,'LBO Model'!106:106)) -> 7.472724468 | L20: =(SUMIF('LBO Model'!$10:$10,Annual!L$3,'LBO Model'!106:106)) -> 4.486464918 | M20: =(SUMIF('LBO Model'!$10:$10,Annual!M$3,'LBO Model'!106:106)) -> 4.624983874 | N20: =(SUMIF('LBO Model'!$10:$10,Annual!N$3,'LBO Model'!106:106)) -> 0 | O20: =(SUMIF('LBO Model'!$10:$10,Annual!O$3,'LBO Model'!106:106)) -> 0 | P20: =(SUMIF('LBO Model'!$10:$10,Annual!P$3,'LBO Model'!106:106)) -> 0
B21: Less: NOL Used | F21: =(SUMIF('LBO Model'!$10:$10,Annual!F$3,'LBO Model'!107:107)) -> 8.816910714 | G21: =(SUMIF('LBO Model'!$10:$10,Annual!G$3,'LBO Model'!107:107)) -> 6.082933159 | H21: =(SUMIF('LBO Model'!$10:$10,Annual!H$3,'LBO Model'!107:107)) -> 4.848587774 | I21: =(SUMIF('LBO Model'!$10:$10,Annual!I$3,'LBO Model'!107:107)) -> 5.090208396 | J21: =(SUMIF('LBO Model'!$10:$10,Annual!J$3,'LBO Model'!107:107)) -> 6.341698891 | K21: =(SUMIF('LBO Model'!$10:$10,Annual!K$3,'LBO Model'!107:107)) -> 7.472724468 | L21: =(SUMIF('LBO Model'!$10:$10,Annual!L$3,'LBO Model'!107:107)) -> 4.486464918 | M21: =(SUMIF('LBO Model'!$10:$10,Annual!M$3,'LBO Model'!107:107)) -> 4.624983874 | N21: =(SUMIF('LBO Model'!$10:$10,Annual!N$3,'LBO Model'!107:107)) -> 0 | O21: =(SUMIF('LBO Model'!$10:$10,Annual!O$3,'LBO Model'!107:107)) -> 0 | P21: =(SUMIF('LBO Model'!$10:$10,Annual!P$3,'LBO Model'!107:107)) -> 0
B22: Closing Balance | F22: =(SUMIF('LBO Model'!$10:$10,Annual!F$3,'LBO Model'!108:108)) -> 11.52015411 | G22: =(SUMIF('LBO Model'!$10:$10,Annual!G$3,'LBO Model'!108:108)) -> 6.082933159 | H22: =(SUMIF('LBO Model'!$10:$10,Annual!H$3,'LBO Model'!108:108)) -> 4.848587774 | I22: =(SUMIF('LBO Model'!$10:$10,Annual!I$3,'LBO Model'!108:108)) -> 5.090208396 | J22: =(SUMIF('LBO Model'!$10:$10,Annual!J$3,'LBO Model'!108:108)) -> 6.341698891 | K22: =(SUMIF('LBO Model'!$10:$10,Annual!K$3,'LBO Model'!108:108)) -> 7.472724468 | L22: =(SUMIF('LBO Model'!$10:$10,Annual!L$3,'LBO Model'!108:108)) -> 4.486464918 | M22: =(SUMIF('LBO Model'!$10:$10,Annual!M$3,'LBO Model'!108:108)) -> 4.624983874 | N22: =(SUMIF('LBO Model'!$10:$10,Annual!N$3,'LBO Model'!108:108)) -> 0 | O22: =(SUMIF('LBO Model'!$10:$10,Annual!O$3,'LBO Model'!108:108)) -> 0 | P22: =(SUMIF('LBO Model'!$10:$10,Annual!P$3,'LBO Model'!108:108)) -> 0
C23: EBT after NOL | F23: =(SUMIF('LBO Model'!$10:$10,Annual!F$3,'LBO Model'!109:109)) -> 46.54827481 | G23: =(SUMIF('LBO Model'!$10:$10,Annual!G$3,'LBO Model'!109:109)) -> 65.05763705 | H23: =(SUMIF('LBO Model'!$10:$10,Annual!H$3,'LBO Model'!109:109)) -> 77.28102781 | I23: =(SUMIF('LBO Model'!$10:$10,Annual!I$3,'LBO Model'!109:109)) -> 73.63220067 | J23: =(SUMIF('LBO Model'!$10:$10,Annual!J$3,'LBO Model'!109:109)) -> 68.97639409 | K23: =(SUMIF('LBO Model'!$10:$10,Annual!K$3,'LBO Model'!109:109)) -> 69.86789173 | L23: =(SUMIF('LBO Model'!$10:$10,Annual!L$3,'LBO Model'!109:109)) -> 76.74560391 | M23: =(SUMIF('LBO Model'!$10:$10,Annual!M$3,'LBO Model'!109:109)) -> 76.00129536 | N23: =(SUMIF('LBO Model'!$10:$10,Annual!N$3,'LBO Model'!109:109)) -> 0 | O23: =(SUMIF('LBO Model'!$10:$10,Annual!O$3,'LBO Model'!109:109)) -> 0 | P23: =(SUMIF('LBO Model'!$10:$10,Annual!P$3,'LBO Model'!109:109)) -> 0
C24: Taxes Paid | F24: =(SUMIF('LBO Model'!$10:$10,Annual!F$3,'LBO Model'!110:110)) -> 11.6370687 | G24: =(SUMIF('LBO Model'!$10:$10,Annual!G$3,'LBO Model'!110:110)) -> 16.26440926 | H24: =(SUMIF('LBO Model'!$10:$10,Annual!H$3,'LBO Model'!110:110)) -> 19.32025695 | I24: =(SUMIF('LBO Model'!$10:$10,Annual!I$3,'LBO Model'!110:110)) -> 18.40805017 | J24: =(SUMIF('LBO Model'!$10:$10,Annual!J$3,'LBO Model'!110:110)) -> 17.24409852 | K24: =(SUMIF('LBO Model'!$10:$10,Annual!K$3,'LBO Model'!110:110)) -> 17.46697293 | L24: =(SUMIF('LBO Model'!$10:$10,Annual!L$3,'LBO Model'!110:110)) -> 19.18640098 | M24: =(SUMIF('LBO Model'!$10:$10,Annual!M$3,'LBO Model'!110:110)) -> 19.00032384 | N24: =(SUMIF('LBO Model'!$10:$10,Annual!N$3,'LBO Model'!110:110)) -> 0 | O24: =(SUMIF('LBO Model'!$10:$10,Annual!O$3,'LBO Model'!110:110)) -> 0 | P24: =(SUMIF('LBO Model'!$10:$10,Annual!P$3,'LBO Model'!110:110)) -> 0
C25: Net Income | F25: =(SUMIF('LBO Model'!$10:$10,Annual!F$3,'LBO Model'!111:111)) -> 34.9112061 | G25: =(SUMIF('LBO Model'!$10:$10,Annual!G$3,'LBO Model'!111:111)) -> 48.79322779 | H25: =(SUMIF('LBO Model'!$10:$10,Annual!H$3,'LBO Model'!111:111)) -> 57.96077085 | I25: =(SUMIF('LBO Model'!$10:$10,Annual!I$3,'LBO Model'!111:111)) -> 55.2241505 | J25: =(SUMIF('LBO Model'!$10:$10,Annual!J$3,'LBO Model'!111:111)) -> 51.73229557 | K25: =(SUMIF('LBO Model'!$10:$10,Annual!K$3,'LBO Model'!111:111)) -> 52.4009188 | L25: =(SUMIF('LBO Model'!$10:$10,Annual!L$3,'LBO Model'!111:111)) -> 57.55920293 | M25: =(SUMIF('LBO Model'!$10:$10,Annual!M$3,'LBO Model'!111:111)) -> 57.00097152 | N25: =(SUMIF('LBO Model'!$10:$10,Annual!N$3,'LBO Model'!111:111)) -> 0 | O25: =(SUMIF('LBO Model'!$10:$10,Annual!O$3,'LBO Model'!111:111)) -> 0 | P25: =(SUMIF('LBO Model'!$10:$10,Annual!P$3,'LBO Model'!111:111)) -> 0
A27: Cash Flow
B28: EBITDA | F28: =(SUMIF('LBO Model'!$10:$10,Annual!F$3,'LBO Model'!117:117)) -> 98.01 | G28: =(SUMIF('LBO Model'!$10:$10,Annual!G$3,'LBO Model'!117:117)) -> 107.811 | H28: =(SUMIF('LBO Model'!$10:$10,Annual!H$3,'LBO Model'!117:117)) -> 118.5921 | I28: =(SUMIF('LBO Model'!$10:$10,Annual!I$3,'LBO Model'!117:117)) -> 118.5921 | J28: =(SUMIF('LBO Model'!$10:$10,Annual!J$3,'LBO Model'!117:117)) -> 118.5921 | K28: =(SUMIF('LBO Model'!$10:$10,Annual!K$3,'LBO Model'!117:117)) -> 118.5921 | L28: =(SUMIF('LBO Model'!$10:$10,Annual!L$3,'LBO Model'!117:117)) -> 118.5921 | M28: =(SUMIF('LBO Model'!$10:$10,Annual!M$3,'LBO Model'!117:117)) -> 118.5921 | N28: =(SUMIF('LBO Model'!$10:$10,Annual!N$3,'LBO Model'!117:117)) -> 0 | O28: =(SUMIF('LBO Model'!$10:$10,Annual!O$3,'LBO Model'!117:117)) -> 0 | P28: =(SUMIF('LBO Model'!$10:$10,Annual!P$3,'LBO Model'!117:117)) -> 0
B29: Less: Working Capital Changes | F29: =(SUMIF('LBO Model'!$10:$10,Annual!F$3,'LBO Model'!118:118)) -> 11.55 | G29: =(SUMIF('LBO Model'!$10:$10,Annual!G$3,'LBO Model'!118:118)) -> 42.955 | H29: =(SUMIF('LBO Model'!$10:$10,Annual!H$3,'LBO Model'!118:118)) -> -23.6918 | I29: =(SUMIF('LBO Model'!$10:$10,Annual!I$3,'LBO Model'!118:118)) -> -1.421085472e-14 | J29: =(SUMIF('LBO Model'!$10:$10,Annual!J$3,'LBO Model'!118:118)) -> -1.421085472e-14 | K29: =(SUMIF('LBO Model'!$10:$10,Annual!K$3,'LBO Model'!118:118)) -> -1.421085472e-14 | L29: =(SUMIF('LBO Model'!$10:$10,Annual!L$3,'LBO Model'!118:118)) -> -1.421085472e-14 | M29: =(SUMIF('LBO Model'!$10:$10,Annual!M$3,'LBO Model'!118:118)) -> -1.421085472e-14 | N29: =(SUMIF('LBO Model'!$10:$10,Annual!N$3,'LBO Model'!118:118)) -> 0 | O29: =(SUMIF('LBO Model'!$10:$10,Annual!O$3,'LBO Model'!118:118)) -> 0 | P29: =(SUMIF('LBO Model'!$10:$10,Annual!P$3,'LBO Model'!118:118)) -> 0
B30: Less: R&D | F30: =(SUMIF('LBO Model'!$10:$10,Annual!F$3,'LBO Model'!119:119)) -> -38 | G30: =(SUMIF('LBO Model'!$10:$10,Annual!G$3,'LBO Model'!119:119)) -> -36.1 | H30: =(SUMIF('LBO Model'!$10:$10,Annual!H$3,'LBO Model'!119:119)) -> -34.295 | I30: =(SUMIF('LBO Model'!$10:$10,Annual!I$3,'LBO Model'!119:119)) -> -34.295 | J30: =(SUMIF('LBO Model'!$10:$10,Annual!J$3,'LBO Model'!119:119)) -> -34.295 | K30: =(SUMIF('LBO Model'!$10:$10,Annual!K$3,'LBO Model'!119:119)) -> -34.295 | L30: =(SUMIF('LBO Model'!$10:$10,Annual!L$3,'LBO Model'!119:119)) -> -34.295 | M30: =(SUMIF('LBO Model'!$10:$10,Annual!M$3,'LBO Model'!119:119)) -> -34.295 | N30: =(SUMIF('LBO Model'!$10:$10,Annual!N$3,'LBO Model'!119:119)) -> 0 | O30: =(SUMIF('LBO Model'!$10:$10,Annual!O$3,'LBO Model'!119:119)) -> 0 | P30: =(SUMIF('LBO Model'!$10:$10,Annual!P$3,'LBO Model'!119:119)) -> 0
B31: Add: Synergies | F31: =(SUMIF('LBO Model'!$10:$10,Annual!F$3,'LBO Model'!120:120)) -> -2.25 | G31: =(SUMIF('LBO Model'!$10:$10,Annual!G$3,'LBO Model'!120:120)) -> 8 | H31: =(SUMIF('LBO Model'!$10:$10,Annual!H$3,'LBO Model'!120:120)) -> 11.5 | I31: =(SUMIF('LBO Model'!$10:$10,Annual!I$3,'LBO Model'!120:120)) -> 13 | J31: =(SUMIF('LBO Model'!$10:$10,Annual!J$3,'LBO Model'!120:120)) -> 13 | K31: =(SUMIF('LBO Model'!$10:$10,Annual!K$3,'LBO Model'!120:120)) -> 13 | L31: =(SUMIF('LBO Model'!$10:$10,Annual!L$3,'LBO Model'!120:120)) -> 13 | M31: =(SUMIF('LBO Model'!$10:$10,Annual!M$3,'LBO Model'!120:120)) -> 13 | N31: =(SUMIF('LBO Model'!$10:$10,Annual!N$3,'LBO Model'!120:120)) -> 0 | O31: =(SUMIF('LBO Model'!$10:$10,Annual!O$3,'LBO Model'!120:120)) -> 0 | P31: =(SUMIF('LBO Model'!$10:$10,Annual!P$3,'LBO Model'!120:120)) -> 0
B32: Less: Taxes Paid | F32: =(SUMIF('LBO Model'!$10:$10,Annual!F$3,'LBO Model'!121:121)) -> -11.6370687 | G32: =(SUMIF('LBO Model'!$10:$10,Annual!G$3,'LBO Model'!121:121)) -> -16.26440926 | H32: =(SUMIF('LBO Model'!$10:$10,Annual!H$3,'LBO Model'!121:121)) -> -19.32025695 | I32: =(SUMIF('LBO Model'!$10:$10,Annual!I$3,'LBO Model'!121:121)) -> -18.40805017 | J32: =(SUMIF('LBO Model'!$10:$10,Annual!J$3,'LBO Model'!121:121)) -> -17.24409852 | K32: =(SUMIF('LBO Model'!$10:$10,Annual!K$3,'LBO Model'!121:121)) -> -17.46697293 | L32: =(SUMIF('LBO Model'!$10:$10,Annual!L$3,'LBO Model'!121:121)) -> -19.18640098 | M32: =(SUMIF('LBO Model'!$10:$10,Annual!M$3,'LBO Model'!121:121)) -> -19.00032384 | N32: =(SUMIF('LBO Model'!$10:$10,Annual!N$3,'LBO Model'!121:121)) -> 0 | O32: =(SUMIF('LBO Model'!$10:$10,Annual!O$3,'LBO Model'!121:121)) -> 0 | P32: =(SUMIF('LBO Model'!$10:$10,Annual!P$3,'LBO Model'!121:121)) -> 0
B33: Add: Exit Proceeds | F33: =(SUMIF('LBO Model'!$10:$10,Annual!F$3,'LBO Model'!122:122)) -> 0 | G33: =(SUMIF('LBO Model'!$10:$10,Annual!G$3,'LBO Model'!122:122)) -> 0 | H33: =(SUMIF('LBO Model'!$10:$10,Annual!H$3,'LBO Model'!122:122)) -> 0 | I33: =(SUMIF('LBO Model'!$10:$10,Annual!I$3,'LBO Model'!122:122)) -> 0 | J33: =(SUMIF('LBO Model'!$10:$10,Annual!J$3,'LBO Model'!122:122)) -> 0 | K33: =(SUMIF('LBO Model'!$10:$10,Annual!K$3,'LBO Model'!122:122)) -> 0 | L33: =(SUMIF('LBO Model'!$10:$10,Annual!L$3,'LBO Model'!122:122)) -> 0 | M33: =(SUMIF('LBO Model'!$10:$10,Annual!M$3,'LBO Model'!122:122)) -> 794.56707 | N33: =(SUMIF('LBO Model'!$10:$10,Annual!N$3,'LBO Model'!122:122)) -> 0 | O33: =(SUMIF('LBO Model'!$10:$10,Annual!O$3,'LBO Model'!122:122)) -> 0 | P33: =(SUMIF('LBO Model'!$10:$10,Annual!P$3,'LBO Model'!122:122)) -> 0
C34: Operating Cash Flow | F34: =(SUMIF('LBO Model'!$10:$10,Annual!F$3,'LBO Model'!123:123)) -> 57.6729313 | G34: =(SUMIF('LBO Model'!$10:$10,Annual!G$3,'LBO Model'!123:123)) -> 106.4015907 | H34: =(SUMIF('LBO Model'!$10:$10,Annual!H$3,'LBO Model'!123:123)) -> 52.78504305 | I34: =(SUMIF('LBO Model'!$10:$10,Annual!I$3,'LBO Model'!123:123)) -> 78.88904983 | J34: =(SUMIF('LBO Model'!$10:$10,Annual!J$3,'LBO Model'!123:123)) -> 80.05300148 | K34: =(SUMIF('LBO Model'!$10:$10,Annual!K$3,'LBO Model'!123:123)) -> 79.83012707 | L34: =(SUMIF('LBO Model'!$10:$10,Annual!L$3,'LBO Model'!123:123)) -> 78.11069902 | M34: =(SUMIF('LBO Model'!$10:$10,Annual!M$3,'LBO Model'!123:123)) -> 872.8638462 | N34: =(SUMIF('LBO Model'!$10:$10,Annual!N$3,'LBO Model'!123:123)) -> 0 | O34: =(SUMIF('LBO Model'!$10:$10,Annual!O$3,'LBO Model'!123:123)) -> 0 | P34: =(SUMIF('LBO Model'!$10:$10,Annual!P$3,'LBO Model'!123:123)) -> 0
C35: Less: Interest Expense | F35: =(SUMIF('LBO Model'!$10:$10,Annual!F$3,'LBO Model'!124:124)) -> -11.19779187 | G35: =(SUMIF('LBO Model'!$10:$10,Annual!G$3,'LBO Model'!124:124)) -> -5.221614827 | H35: =(SUMIF('LBO Model'!$10:$10,Annual!H$3,'LBO Model'!124:124)) -> -0.7643724764 | I35: =(SUMIF('LBO Model'!$10:$10,Annual!I$3,'LBO Model'!124:124)) -> -0.8879445452 | J35: =(SUMIF('LBO Model'!$10:$10,Annual!J$3,'LBO Model'!124:124)) -> -0.2219861363 | K35: =(SUMIF('LBO Model'!$10:$10,Annual!K$3,'LBO Model'!124:124)) -> 0 | L35: =(SUMIF('LBO Model'!$10:$10,Annual!L$3,'LBO Model'!124:124)) -> 0 | M35: =(SUMIF('LBO Model'!$10:$10,Annual!M$3,'LBO Model'!124:124)) -> 0 | N35: =(SUMIF('LBO Model'!$10:$10,Annual!N$3,'LBO Model'!124:124)) -> 0 | O35: =(SUMIF('LBO Model'!$10:$10,Annual!O$3,'LBO Model'!124:124)) -> 0 | P35: =(SUMIF('LBO Model'!$10:$10,Annual!P$3,'LBO Model'!124:124)) -> 0
C36: Less: Scheduled Repayments | F36: =(SUMIF('LBO Model'!$10:$10,Annual!F$3,'LBO Model'!125:125)) -> -51.25 | G36: =(SUMIF('LBO Model'!$10:$10,Annual!G$3,'LBO Model'!125:125)) -> -51.25 | H36: =(SUMIF('LBO Model'!$10:$10,Annual!H$3,'LBO Model'!125:125)) -> -16.16730049 | I36: =(SUMIF('LBO Model'!$10:$10,Annual!I$3,'LBO Model'!125:125)) -> 0 | J36: =(SUMIF('LBO Model'!$10:$10,Annual!J$3,'LBO Model'!125:125)) -> 0 | K36: =(SUMIF('LBO Model'!$10:$10,Annual!K$3,'LBO Model'!125:125)) -> 0 | L36: =(SUMIF('LBO Model'!$10:$10,Annual!L$3,'LBO Model'!125:125)) -> 0 | M36: =(SUMIF('LBO Model'!$10:$10,Annual!M$3,'LBO Model'!125:125)) -> 0 | N36: =(SUMIF('LBO Model'!$10:$10,Annual!N$3,'LBO Model'!125:125)) -> 0 | O36: =(SUMIF('LBO Model'!$10:$10,Annual!O$3,'LBO Model'!125:125)) -> 0 | P36: =(SUMIF('LBO Model'!$10:$10,Annual!P$3,'LBO Model'!125:125)) -> 0
C37: Less: Commitment Fee | F37: =(SUMIF('LBO Model'!$10:$10,Annual!F$3,'LBO Model'!126:126)) -> -4.107891805 | G37: =(SUMIF('LBO Model'!$10:$10,Annual!G$3,'LBO Model'!126:126)) -> -1.767861199 | H37: =(SUMIF('LBO Model'!$10:$10,Annual!H$3,'LBO Model'!126:126)) -> -0.8162576609 | I37: =(SUMIF('LBO Model'!$10:$10,Annual!I$3,'LBO Model'!126:126)) -> -2.269689141 | J37: =(SUMIF('LBO Model'!$10:$10,Annual!J$3,'LBO Model'!126:126)) -> -3.394350239 | K37: =(SUMIF('LBO Model'!$10:$10,Annual!K$3,'LBO Model'!126:126)) -> -3.969950649 | L37: =(SUMIF('LBO Model'!$10:$10,Annual!L$3,'LBO Model'!126:126)) -> -4.383418687 | M37: =(SUMIF('LBO Model'!$10:$10,Annual!M$3,'LBO Model'!126:126)) -> -4.4 | N37: =(SUMIF('LBO Model'!$10:$10,Annual!N$3,'LBO Model'!126:126)) -> 0 | O37: =(SUMIF('LBO Model'!$10:$10,Annual!O$3,'LBO Model'!126:126)) -> 0 | P37: =(SUMIF('LBO Model'!$10:$10,Annual!P$3,'LBO Model'!126:126)) -> 0
C38: Less: Interest on RCF | F38: =(SUMIF('LBO Model'!$10:$10,Annual!F$3,'LBO Model'!127:127)) -> -0.4647175834 | G38: =(SUMIF('LBO Model'!$10:$10,Annual!G$3,'LBO Model'!127:127)) -> -4.187493547 | H38: =(SUMIF('LBO Model'!$10:$10,Annual!H$3,'LBO Model'!127:127)) -> -5.701408267 | I38: =(SUMIF('LBO Model'!$10:$10,Annual!I$3,'LBO Model'!127:127)) -> -3.389130912 | J38: =(SUMIF('LBO Model'!$10:$10,Annual!J$3,'LBO Model'!127:127)) -> -1.599897347 | K38: =(SUMIF('LBO Model'!$10:$10,Annual!K$3,'LBO Model'!127:127)) -> -0.6841694226 | L38: =(SUMIF('LBO Model'!$10:$10,Annual!L$3,'LBO Model'!127:127)) -> -0.02637936142 | M38: =(SUMIF('LBO Model'!$10:$10,Annual!M$3,'LBO Model'!127:127)) -> 0 | N38: =(SUMIF('LBO Model'!$10:$10,Annual!N$3,'LBO Model'!127:127)) -> 0 | O38: =(SUMIF('LBO Model'!$10:$10,Annual!O$3,'LBO Model'!127:127)) -> 0 | P38: =(SUMIF('LBO Model'!$10:$10,Annual!P$3,'LBO Model'!127:127)) -> 0
D39: Sub-Total | F39: =(SUMIF('LBO Model'!$10:$10,Annual!F$3,'LBO Model'!128:128)) -> -9.347469956 | G39: =(SUMIF('LBO Model'!$10:$10,Annual!G$3,'LBO Model'!128:128)) -> 43.97462116 | H39: =(SUMIF('LBO Model'!$10:$10,Annual!H$3,'LBO Model'!128:128)) -> 29.33570416 | I39: =(SUMIF('LBO Model'!$10:$10,Annual!I$3,'LBO Model'!128:128)) -> 72.34228523 | J39: =(SUMIF('LBO Model'!$10:$10,Annual!J$3,'LBO Model'!128:128)) -> 74.83676775 | K39: =(SUMIF('LBO Model'!$10:$10,Annual!K$3,'LBO Model'!128:128)) -> 75.176007 | L39: =(SUMIF('LBO Model'!$10:$10,Annual!L$3,'LBO Model'!128:128)) -> 73.70090097 | M39: =(SUMIF('LBO Model'!$10:$10,Annual!M$3,'LBO Model'!128:128)) -> 868.4638462 | N39: =(SUMIF('LBO Model'!$10:$10,Annual!N$3,'LBO Model'!128:128)) -> 0 | O39: =(SUMIF('LBO Model'!$10:$10,Annual!O$3,'LBO Model'!128:128)) -> 0 | P39: =(SUMIF('LBO Model'!$10:$10,Annual!P$3,'LBO Model'!128:128)) -> 0
C40: Less: CF Sweep | F40: =(SUMIF('LBO Model'!$10:$10,Annual!F$3,'LBO Model'!129:129)) -> -112.9384291 | G40: =(SUMIF('LBO Model'!$10:$10,Annual!G$3,'LBO Model'!129:129)) -> -110.559517 | H40: =(SUMIF('LBO Model'!$10:$10,Annual!H$3,'LBO Model'!129:129)) -> -67.83475347 | I40: =(SUMIF('LBO Model'!$10:$10,Annual!I$3,'LBO Model'!129:129)) -> 0 | J40: =(SUMIF('LBO Model'!$10:$10,Annual!J$3,'LBO Model'!129:129)) -> 0 | K40: =(SUMIF('LBO Model'!$10:$10,Annual!K$3,'LBO Model'!129:129)) -> 0 | L40: =(SUMIF('LBO Model'!$10:$10,Annual!L$3,'LBO Model'!129:129)) -> 0 | M40: =(SUMIF('LBO Model'!$10:$10,Annual!M$3,'LBO Model'!129:129)) -> 0 | N40: =(SUMIF('LBO Model'!$10:$10,Annual!N$3,'LBO Model'!129:129)) -> 0 | O40: =(SUMIF('LBO Model'!$10:$10,Annual!O$3,'LBO Model'!129:129)) -> 0 | P40: =(SUMIF('LBO Model'!$10:$10,Annual!P$3,'LBO Model'!129:129)) -> 0
